Workbook

Sheet Opening
A1: =CHECK!A1 -> Checks = 3
C2: NIAUR financial model PC21
C4: Financial model (version 1.0)
C6: Financial modelling worksheets | H6: Tariff Basket worksheets
D8: ='K solving'!B2 -> Modelling: K solving sheet | H8: TA1 | I8: Customer base: Tariffs (Primary revenue)
D9: =Allocation!B2 -> Modelling: Revenue allocation targets | H9: T1 | I9: Customer base: Revenue summary by source
C10: B1 | D10: =+'B1'!B2 -> Base historic data: Profit and Loss account | H10: T2 | I10: Customer base: Revenue summary by tariff basket and revenue group
C11: B2 | D11: =+'B2'!B2 -> Base historic data: Balance Sheet | H11: T3 | I11: Customer base: Non-domestic measured water
C12: B3 | D12: =+'B3'!B2 -> Base historic data: Cash Flow | H12: T4 | I12: Customer Base: Domestic measured water
C13: B4 | D13: =+'B4'!B2 -> Base historic data: Working Capital and other non-trade debtors/creditors | H13: T6 | I13: Customer base: Domestic measured sewerage
C14: B5 | D14: =+'B5'!B2 -> Base historic data: Tax | H14: T7 | I14: Customer base: Non-domestic measured sewerage
C15: B6 | D15: =+'B6'!B2 -> Base historic data: Maturity profile of closing (embedded) debt (as of 31 March 2018) | H15: T9 | I15: Customer base: Non-domestic unmeasured water
C16: B7 | D16: =+'B7'!B2 -> Base historic data: Depreciation and amortisation of closing assets | H16: T10 | I16: Customer base: Domestic unmeasured water
C17: A1 | D17: =+'A1'!B2 -> Assumptions: Inflation | H17: T14 | I17: Customer base: Domestic unmeasured sewerage
C18: A2 | D18: =+'A2'!B2 -> Assumptions: Financing | H18: T15 | I18: Customer base: Non-domestic unmeasured sewerage
C19: A3 | D19: =+'A3'!B4 -> Assumptions: Capital expenditure | H19: T17 | I19: Customer base: Trade effluent
C20: A4 | D20: =+'A4'!B2 -> Assumptions: Asset Disposals | H20: T21 | I20: Customer base: Retail - Non-tariff basket
C21: A5 | D21: =+'A5'!B2 -> Assumptions: Miscellaneous Accounting Assumptions | H21: T23 | I21: Customer base: charge cap workings
C22: A7 | D22: =+'A7'!B2 -> Assumptions: Tax
C23: P1 | D23: =+'P1'!B2 -> Process sheet: Capital Expenditure
C24: P2 | D24: =+'P2'!B2 -> Process sheet: Depreciation
C25: P3 | D25: =+'P3'!B2 -> Process sheet: Book Value
C26: P4 | D26: =+'P4'!B2 -> Process sheet: Regulatory capital value
C27: P5 | D27: =+'P5'!B2 -> Process sheet: Interest income and interest expense
C28: P6 | D28: =+'P6'!B2 -> Process sheet: Capital allowances
C29: P7 | D29: =+'P7'!B2 -> Process sheet: Tax
C30: P9 | D30: =+'P9'!B2 -> Process sheet: Cost of capital
C31: P10 | D31: =+'P10'!B2 -> Process sheet: Current Cost reserve adjustments
C32: P11 | D32: =+'P11'!B2 -> Process sheet: Revenue calculation formula
C33: O1 | D33: =+'O1'!B2 -> Output Sheet: Profit and Loss Account
C34: O2 | D34: =+'O2'!B2 -> Output Sheet: Balance Sheet
C35: O3 | D35: =+'O3'!B2 -> Output Sheet: Cash Flow
C36: O4 | D36: =+'O4'!B2 -> Output Sheet: financial ratios and debt calculations
C37: O5 | D37: =+'O5'!B2 -> Output Sheet: Investment summary
C38: O6 | D38: ='O6'!B2 -> Output sheet: charge caps
C39: E6 | D39: =+'E6'!B2 -> Alternative inputs: Revenue Options

Sheet Modelling -->
A1: =CHECK!A1 -> Checks = 3

Sheet K solving
A1: =CHECK!A1 -> Checks = 3 | B1: ver 01:00
B2: Modelling: K solving sheet
B4: Revenue approach selection
B6: Revenue approach
A7: 1 | B7: Option 1: Fixed revenue | D7: =IF('E6'!C13=1,"Use sheet 'E6' for revenue assumptions","Do not delete") -> Use sheet 'E6' for revenue assumptions
A8: 2 | B8: Option 2: Revenue calculation formula
A9: 3 | B9: Option 3: Tariff basket revenue
B12: K factor solving (only if option 1 or 2 selected above)
B14: Revenue proportion allocation
A15: 4 | B15: Selection of target revenue approach (1, 2, 3) | C15: 3
B16: 1.- Straight line, 2.- Input on year one, straight line thereafter, 3.- all inputs
B18: Outputs: Tariff Baskets (nominal)
B20: Tariff baskets | C20: Unit | D20: =+Baseplus2 -> 2020-21 | E20: =Baseplus3 -> 2021-22 | F20: =+Baseplus4 -> 2022-23 | G20: =+Baseplus5 -> 2023-24 | H20: =+Baseplus6 -> 2024-25 | I20: =+Baseplus7 -> 2025-26 | J20: =+Baseplus8 -> 2026-27 | K20: =+Baseplus9 -> 2027-28 | L20: =+Baseplus10 -> 2028-29
A21: 6 | B21: Charge cap - Tariff Basket 1: Unmeasured Water Supply | C21: % increase | D21: =+'T23'!I71 -> 0.02336071655 | E21: =+'T23'!J71 -> -0.001132378546 | F21: =+'T23'!K71 -> -0.001040899763 | G21: =+'T23'!L71 -> -0.001262495788 | H21: =+'T23'!M71 -> -0.001857935985 | I21: =+'T23'!N71 -> -0.002253919126 | J21: =+'T23'!O71 -> -0.002416152113 | K21: =+'T23'!P71 -> 0.3896714637 | L21: =+'T23'!Q71 -> 0.09373277584
A22: 7 | B22: Charge cap - Tariff Basket 2: Unmeasured Sewerage Services | C22: % increase | D22: =+'T23'!I72 -> -0.02657815621 | E22: =+'T23'!J72 -> 0.03354757752 | F22: =+'T23'!K72 -> 0.02919215106 | G22: =+'T23'!L72 -> 0.02419201003 | H22: =+'T23'!M72 -> 0.02246923222 | I22: =+'T23'!N72 -> 0.02589639486 | J22: =+'T23'!O72 -> 0.02542529077 | K22: =+'T23'!P72 -> 0.3898109782 | L22: =+'T23'!Q72 -> 0.09373277584
A23: 8 | B23: Charge cap - Tariff Basket 3: Measured Water Supply | C23: % increase | D23: =+'T23'!I73 -> -0.02883270607 | E23: =+'T23'!J73 -> 0.0228 | F23: =+'T23'!K73 -> 0.0228 | G23: =+'T23'!L73 -> 0.023 | H23: =+'T23'!M73 -> 0.023 | I23: =+'T23'!N73 -> 0.023 | J23: =+'T23'!O73 -> 0.023 | K23: =+'T23'!P73 -> 0.3902145945 | L23: =+'T23'!Q73 -> 0.09373277584
A24: 9 | B24: Charge cap - Tariff Basket 4: Measured Sewerage Services | C24: % increase | D24: =+'T23'!I74 -> -0.05045861982 | E24: =+'T23'!J74 -> 0.0314 | F24: =+'T23'!K74 -> 0.0314 | G24: =+'T23'!L74 -> 0.0314 | H24: =+'T23'!M74 -> 0.0315 | I24: =+'T23'!N74 -> 0.0315 | J24: =+'T23'!O74 -> 0.0315 | K24: =+'T23'!P74 -> 0.3902145945 | L24: =+'T23'!Q74 -> 0.09373277584
A25: 10 | B25: Charge cap - Tariff Basket 5: Trade effluent | C25: % increase | D25: =+'T23'!I75 -> -0.04460041696 | E25: =+'T23'!J75 -> 0.06 | F25: =+'T23'!K75 -> 0.0515 | G25: =+'T23'!L75 -> 0.0502 | H25: =+'T23'!M75 -> 0.05 | I25: =+'T23'!N75 -> 0.05 | J25: =+'T23'!O75 -> 0.05 | K25: =+'T23'!P75 -> 0.3902145945 | L25: =+'T23'!Q75 -> 0.09373277584
B27: Outputs: Tariff Baskets (real)
B29: Tariff baskets | C29: Unit | D29: =+Baseplus2 -> 2020-21 | E29: =+Baseplus3 -> 2021-22 | F29: =+Baseplus4 -> 2022-23 | G29: =+Baseplus5 -> 2023-24 | H29: =+Baseplus6 -> 2024-25 | I29: =+Baseplus7 -> 2025-26 | J29: =+Baseplus8 -> 2026-27 | K29: =+Baseplus9 -> 2027-28 | L29: =+Baseplus10 -> 2028-29
A30: 6 | B30: Charge cap - Tariff Basket 1: Unmeasured Water Supply | C30: % increase | D30: =D21-'A1'!I$8 -> -0.01063928345 | E30: =E21-'A1'!J$8 -> -0.03513237855 | F30: =F21-'A1'!K$8 -> -0.03504089976 | G30: =G21-'A1'!L$8 -> -0.03526249579 | H30: =H21-'A1'!M$8 -> -0.03585793598 | I30: =I21-'A1'!N$8 -> -0.03625391913 | J30: =J21-'A1'!O$8 -> -0.03641615211 | K30: =K21-'A1'!P$8 -> 0.3556714637 | L30: =L21-'A1'!Q$8 -> 0.05973277584
A31: 7 | B31: Charge cap - Tariff Basket 2: Unmeasured Sewerage Services | C31: % increase | D31: =D22-'A1'!I$8 -> -0.06057815621 | E31: =E22-'A1'!J$8 -> -0.0004524224822 | F31: =F22-'A1'!K$8 -> -0.004807848939 | G31: =G22-'A1'!L$8 -> -0.009807989968 | H31: =H22-'A1'!M$8 -> -0.01153076778 | I31: =I22-'A1'!N$8 -> -0.008103605136 | J31: =J22-'A1'!O$8 -> -0.008574709234 | K31: =K22-'A1'!P$8 -> 0.3558109782 | L31: =L22-'A1'!Q$8 -> 0.05973277584
A32: 8 | B32: Charge cap - Tariff Basket 3: Measured Water Supply | C32: % increase | D32: =D23-'A1'!I$8 -> -0.06283270607 | E32: =E23-'A1'!J$8 -> -0.0112 | F32: =F23-'A1'!K$8 -> -0.0112 | G32: =G23-'A1'!L$8 -> -0.011 | H32: =H23-'A1'!M$8 -> -0.011 | I32: =I23-'A1'!N$8 -> -0.011 | J32: =J23-'A1'!O$8 -> -0.011 | K32: =K23-'A1'!P$8 -> 0.3562145945 | L32: =L23-'A1'!Q$8 -> 0.05973277584
A33: 9 | B33: Charge cap - Tariff Basket 4: Measured Sewerage Services | C33: % increase | D33: =D24-'A1'!I$8 -> -0.08445861982 | E33: =E24-'A1'!J$8 -> -0.0026 | F33: =F24-'A1'!K$8 -> -0.0026 | G33: =G24-'A1'!L$8 -> -0.0026 | H33: =H24-'A1'!M$8 -> -0.0025 | I33: =I24-'A1'!N$8 -> -0.0025 | J33: =J24-'A1'!O$8 -> -0.0025 | K33: =K24-'A1'!P$8 -> 0.3562145945 | L33: =L24-'A1'!Q$8 -> 0.05973277584
A34: 10 | B34: Charge cap - Tariff Basket 5: Trade effluent | C34: % increase | D34: =D25-'A1'!I$8 -> -0.07860041696 | E34: =E25-'A1'!J$8 -> 0.026 | F34: =F25-'A1'!K$8 -> 0.0175 | G34: =G25-'A1'!L$8 -> 0.0162 | H34: =H25-'A1'!M$8 -> 0.016 | I34: =I25-'A1'!N$8 -> 0.016 | J34: =J25-'A1'!O$8 -> 0.016 | K34: =K25-'A1'!P$8 -> 0.3562145945 | L34: =L25-'A1'!Q$8 -> 0.05973277584
B37: Non tariff key outputs
B39: Tariffs | C39: Unit | D39: =+Baseplus2 -> 2020-21 | E39: =+Baseplus3 -> 2021-22 | F39: =+Baseplus4 -> 2022-23 | G39: =+Baseplus5 -> 2023-24 | H39: =+Baseplus6 -> 2024-25 | I39: =+Baseplus7 -> 2025-26 | J39: =+Baseplus8 -> 2026-27 | K39: =+Baseplus9 -> 2027-28 | L39: =+Baseplus10 -> 2028-29
A40: 11 | B40: Revenue | C40: £m | D40: =+'O1'!I8 -> 360.9192675 | E40: =+'O1'!J8 -> 0 | F40: =+'O1'!K8 -> 0 | G40: =+'O1'!L8 -> 0 | H40: =+'O1'!M8 -> 0 | I40: =+'O1'!N8 -> 0 | J40: =+'O1'!O8 -> 0 | K40: =+'O1'!P8 -> 0 | L40: =+'O1'!Q8 -> 0
A41: 12 | B41: Ratio 1: Cash interest cover | C41: Nr. | D41: =+'O4'!I15 -> 3.315262067 | E41: =+'O4'!J15 -> -3.034358357 | F41: =+'O4'!K15 -> -2.319546976 | G41: =+'O4'!L15 -> -1.861586396 | H41: =+'O4'!M15 -> -1.539215961 | I41: =+'O4'!N15 -> -1.318888374 | J41: =+'O4'!O15 -> -1.150041075 | K41: =+'O4'!P15 -> -1.017819325 | L41: =+'O4'!Q15 -> -0.8707086177
A42: 13 | B42: Ratio 2: Adjusted cash interest cover I (maintenance charges) | C42: Nr. | D42: =+'O4'!I17 -> 0.5526705496 | E42: =+'O4'!J17 -> -5.379128124 | F42: =+'O4'!K17 -> -4.049302273 | G42: =+'O4'!L17 -> -3.289091136 | H42: =+'O4'!M17 -> -2.753094584 | I42: =+'O4'!N17 -> -2.386632915 | J42: =+'O4'!O17 -> -2.110246966 | K42: =+'O4'!P17 -> -2.279627748 | L42: =+'O4'!Q17 -> -2.018997137
A43: 14 | B43: Ratio 3: Adjusted cash interest cover II (maintenance expenditure) | C43: Nr. | D43: =+'O4'!I19 -> 1.922227657 | E43: =+'O4'!J19 -> -4.374118434 | F43: =+'O4'!K19 -> -3.363668812 | G43: =+'O4'!L19 -> -2.718198822 | H43: =+'O4'!M19 -> -2.262793996 | I43: =+'O4'!N19 -> -1.945587905 | J43: =+'O4'!O19 -> -1.702955427 | K43: =+'O4'!P19 -> -2.151563948 | L43: =+'O4'!Q19 -> -1.844217327
A44: 15 | B44: Ratio 4: Funds from operations:debt | C44: % | D44: ='O4'!I21 -> 0.1165884155 | E44: ='O4'!J21 -> -0.1756964782 | F44: ='O4'!K21 -> -0.1478559725 | G44: ='O4'!L21 -> -0.1278586866 | H44: ='O4'!M21 -> -0.1142420019 | I44: ='O4'!N21 -> -0.1048596977 | J44: ='O4'!O21 -> -0.09757833601 | K44: ='O4'!P21 -> -0.08957897479 | L44: ='O4'!Q21 -> -0.08236844149
A45: 16 | B45: Ratio 5: Retained cashflow:debt | C45: % | D45: ='O4'!I23 -> 0.09051101413 | E45: ='O4'!J23 -> -0.1906248957 | F45: ='O4'!K23 -> -0.1433437219 | G45: ='O4'!L23 -> -0.1327545352 | H45: ='O4'!M23 -> -0.1158590686 | I45: ='O4'!N23 -> -0.104035708 | J45: ='O4'!O23 -> -0.09467490329 | K45: ='O4'!P23 -> -0.05086379749 | L45: ='O4'!Q23 -> -0.07671111565
A46: 17 | B46: Ratio 6: Gearing | C46: % | D46: ='O4'!I25 -> 0.4700286923 | E46: ='O4'!J25 -> 0.6420143466 | F46: ='O4'!K25 -> 0.7895223554 | G46: ='O4'!L25 -> 0.9364646118 | H46: ='O4'!M25 -> 1.07221331 | I46: ='O4'!N25 -> 1.198643668 | J46: ='O4'!O25 -> 1.316139646 | K46: ='O4'!P25 -> 1.388354589 | L46: ='O4'!Q25 -> 1.492263948
A47: 18 | B47: Public borrowing remaining | C47: £m | D47: ='O4'!I50 -> -88.85252065 | E47: ='O4'!J50 -> -532.8903103 | F47: ='O4'!K50 -> -971.0381939 | G47: ='O4'!L50 -> -1456.26533 | H47: ='O4'!M50 -> -1963.661479 | I47: ='O4'!N50 -> -2495.285277 | J47: ='O4'!O50 -> -3053.660035 | K47: ='O4'!P50 -> -3890.675537 | L47: ='O4'!Q50 -> -4950.490915
A50: Return to 'Opening' Sheet
B52: NPV of revenue | D52: =+Baseplus2 -> 2020-21 | E52: =+Baseplus3 -> 2021-22 | F52: =+Baseplus4 -> 2022-23 | G52: =+Baseplus5 -> 2023-24 | H52: =+Baseplus6 -> 2024-25 | I52: =+Baseplus7 -> 2025-26 | J52: =+Baseplus8 -> 2026-27 | K52: =+Baseplus9 -> 2027-28 | L52: =+Baseplus10 -> 2028-29
B53: Manual Input unsmoothed rev (manual input before solving K) | C53: £m | E53: 365.0113149 | F53: 376.2763591 | G53: 384.9003731 | H53: 393.9119165 | I53: 405.4350181 | J53: 417.1420228 | K53: 577.8435678 | L53: 632.4275434 | N53: revenue calcualtion option 2
B54: smoothed charge caps | C54: £m | E54: =E40 -> 0 | F54: 0 | G54: 0 | H54: 0 | I54: 0 | J54: 0 | K54: 0 | L54: 0
B55: smoothed revenue | C55: £m | E55: 365 | F55: =E55*(1+$E$72) -> 367.7754299 | G55: =F55*(1+$E$72) -> 370.5719639 | H55: =G55*(1+$E$72) -> 373.3897625 | I55: 376.2289874 | J55: =I55*(1+$E$72) -> 379.0898016 | K55: 381.9723692 | L55: 384.8768555
B57: Cost of capital | E57: 0.0347 | F57: 0.0347 | G57: 0.0347 | H57: 0.0347 | I57: 0.0347 | J57: 0.0347 | K57: 0.0347 | L57: 0.0347 | N57: excludes effect of embedded debt ( Actual return on RCV/ RCV)
B58: Cost of capital index | D58: 1 | E58: =(D58+E57) -> 1.0347 | F58: =E58*(1+F57) -> 1.07060409 | G58: =F58*(1+G57) -> 1.107754052 | H58: 1.146193118 | I58: 1.185966019 | J58: 1.22711904 | K58: 1.26970007 | L58: 1.313758663
B60: Present value of unsmoothed revenue | C60: £m | E60: =E53/E58 -> 352.7701894 | F60: 351.4617239 | G60: 347.4601356 | H60: 343.6697625 | I60: 341.8605691 | J60: 339.9360692 | K60: 455.1024146 | L60: 481.387915
B61: Present of value of smoothed charge caps | C61: £m | E61: =E54/E58 -> 0 | F61: 0 | G61: 0 | H61: 0 | I61: 0 | J61: 0 | K61: 0 | L61: 0
B62: Present value of smoothed revenue | C62: £m | E62: =E55/E58 -> 352.7592539 | F62: =F55/F58 -> 343.5214131 | G62: 334.5254872 | H62: 325.765141 | I62: 317.2342053 | J62: 308.9266725 | K62: 300.8366922 | L62: 292.9585672
B64: Net present value of unsmoothed revenue for PC15 | C64: £m | E64: =SUM(E60:J60) -> 2077.15845
B65: Net present value of smoothed charge caps for PC15 | C65: £m | E65: =SUM(E61:J61) -> 0 | F65: =E65-E66 -> -1982.732173
B66: Net present value of smoothed revenue for PC15 | C66: £m | E66: =SUM(E62:J62) -> 1982.732173
B72: % of revenue increase during 6 years of PC15 | E72: 0.007603917452

Sheet Allocation
A1: =CHECK!A1 -> Checks = 3
B2: Modelling: Revenue allocation targets
B5: Current revenue group revenue allocation
B7: % Revenue allocated to Revenue groups (net of non-primary revenue) | C7: Units | D7: Field Type | E7: Additional Info | F7: =+Baseminus1 -> 2017-18 | G7: =+Baseyear -> 2018-19 | H7: =+Baseplus1 -> 2019-20 | I7: =+Baseplus2 -> 2020-21 | J7: =+Baseplus3 -> 2021-22 | K7: =+Baseplus4 -> 2022-23 | L7: =+Baseplus5 -> 2023-24 | M7: =+Baseplus6 -> 2024-25 | N7: =+Baseplus7 -> 2025-26 | O7: =+Baseplus8 -> 2026-27 | P7: =+Baseplus9 -> 2027-28 | Q7: =+Baseplus10 -> 2028-29
A8: 1 | B8: Revenue: Input or building blocks (Financial model) | C8: £m | D8: C | G8: =+'O1'!G8 -> 366.398 | H8: =+'O1'!H8 -> 363.941116 | I8: =+'O1'!I8 -> 360.9192675 | J8: =+'O1'!J8 -> 0 | K8: =+'O1'!K8 -> 0 | L8: =+'O1'!L8 -> 0 | M8: =+'O1'!M8 -> 0 | N8: =+'O1'!N8 -> 0 | O8: =+'O1'!O8 -> 0 | P8: =+'O1'!P8 -> 0 | Q8: =+'O1'!Q8 -> 0
A9: 2 | B9: minus: Non-primary revenue | C9: £m | D9: C | G9: =+'T2'!G28 -> 9.765520286 | H9: =+'T2'!H28 -> 9.85023917 | I9: =+'T2'!I28 -> 9.571281329 | J9: =+'T2'!J28 -> 9.77483028 | K9: =+'T2'!K28 -> 10.03681044 | L9: =+'T2'!L28 -> 10.3025437 | M9: =+'T2'!M28 -> 10.57161196 | N9: =+'T2'!N28 -> 10.91001453 | O9: =+'T2'!O28 -> 11.26020889 | P9: =+'T2'!P28 -> 14.5024968 | Q9: =+'T2'!Q28 -> 15.44429852
A10: 3 | B10: Primary revenue (from Financial model) | C10: £m | D10: C | G10: =+G8-G9 -> 356.6324797 | H10: =+H8-H9 -> 354.0908768 | I10: =+I8-I9 -> 351.3479862 | J10: -9.77483028 | K10: =+K8-K9 -> -10.03681044 | L10: -10.3025437 | M10: -10.57161196 | N10: -10.91001453 | O10: -11.26020889 | P10: -14.5024968 | Q10: -15.44429852
A11: 4 | B11: Primary revenue (from Customer base) | C11: £m | D11: C | G11: =+'T2'!G29-Allocation!G9 -> 359.3911536 | H11: =+'T2'!H29-Allocation!H9 -> 353.8205556 | I11: =+'T2'!I29-Allocation!I9 -> 352.0932319 | J11: =+'T2'!J29-Allocation!J9 -> 358.8170629 | K11: =+'T2'!K29-Allocation!K9 -> 367.406036 | L11: =+'T2'!L29-Allocation!L9 -> 375.4621374 | M11: =+'T2'!M29-Allocation!M9 -> 383.4760048 | N11: =+'T2'!N29-Allocation!N9 -> 392.3393433 | O11: =+'T2'!O29-Allocation!O9 -> 401.4576497 | P11: =+'T2'!P29-Allocation!P9 -> 558.1122837 | Q11: =+'T2'!Q29-Allocation!Q9 -> 610.4256973
A12: 5 | B12: Difference | C12: £m | D12: C | G12: =+G10-G11 -> -2.758673908 | H12: =+H10-H11 -> 0.2703212487 | I12: -0.7452456578 | J12: -368.5918932 | K12: -377.4428465 | L12: -385.7646811 | M12: -394.0476168 | N12: -403.2493578 | O12: -412.7178586 | P12: -572.6147805 | Q12: -625.8699958
B14: % Revenue allocated to Revenue groups (net of non-primary revenue) | C14: Units | D14: C | E14: Additional Info | F14: =+Baseminus1 -> 2017-18 | G14: =+Baseyear -> 2018-19 | H14: =+Baseplus1 -> 2019-20 | I14: =+Baseplus2 -> 2020-21 | J14: =+Baseplus3 -> 2021-22 | K14: =+Baseplus4 -> 2022-23 | L14: =+Baseplus5 -> 2023-24 | M14: =+Baseplus6 -> 2024-25 | N14: =+Baseplus7 -> 2025-26 | O14: =+Baseplus8 -> 2026-27 | P14: =+Baseplus9 -> 2027-28 | Q14: =+Baseplus10 -> 2028-29
A15: 1 | B15: Revenue Group 1: domestic measured water | C15: % | D15: C | G15: =+'T2'!G19/G$10 -> 0 | H15: =+'T2'!H19/H$10 -> 0 | I15: =+'T2'!I19/I$10 -> 0 | J15: =+'T2'!J19/J$10 -> 0 | K15: =+'T2'!K19/K$10 -> 0 | L15: =+'T2'!L19/L$10 -> 0 | M15: =+'T2'!M19/M$10 -> 0 | N15: =+'T2'!N19/N$10 -> 0 | O15: =+'T2'!O19/O$10 -> 0 | P15: =+'T2'!P19/P$10 -> 0 | Q15: =+'T2'!Q19/Q$10 -> 0
A16: 2 | B16: Revenue Group 2: domestic measured sewerage | C16: % | D16: C | G16: =+'T2'!G20/G$10 -> 0 | H16: =+'T2'!H20/H$10 -> 0 | I16: =+'T2'!I20/I$10 -> 0 | J16: =+'T2'!J20/J$10 -> 0 | K16: =+'T2'!K20/K$10 -> 0 | L16: =+'T2'!L20/L$10 -> 0 | M16: =+'T2'!M20/M$10 -> 0 | N16: =+'T2'!N20/N$10 -> 0 | O16: =+'T2'!O20/O$10 -> 0 | P16: =+'T2'!P20/P$10 -> 0 | Q16: =+'T2'!Q20/Q$10 -> 0
A17: 3 | B17: Revenue Group 3: domestic unmeasured water | C17: % | D17: C | G17: =+'T2'!G21/G$10 -> 0.3406516707 | H17: =+'T2'!H21/H$10 -> 0.3455272129 | I17: =+'T2'!I21/I$10 -> 0.359360917 | J17: =+'T2'!J21/J$10 -> -12.95865146 | K17: =+'T2'!K21/K$10 -> -12.6606016 | L17: =+'T2'!L21/L$10 -> -12.37234099 | M17: =+'T2'!M21/M$10 -> -12.0939725 | N17: =+'T2'!N21/N$10 -> -11.75394945 | O17: =+'T2'!O21/O$10 -> -11.42218237 | P17: =+'T2'!P21/P$10 -> -12.32919163 | Q17: =+'T2'!Q21/Q$10 -> -12.66252804
A18: 4 | B18: Revenue Group 4: domestic unmeasured sewerage | C18: % | D18: C | G18: =+'T2'!G22/G$10 -> 0.4036983215 | H18: =+'T2'!H22/H$10 -> 0.390624423 | I18: =+'T2'!I22/I$10 -> 0.3863373718 | J18: =+'T2'!J22/J$10 -> -14.42249765 | K18: =+'T2'!K22/K$10 -> -14.52475872 | L18: =+'T2'!L22/L$10 -> -14.56316821 | M18: =+'T2'!M22/M$10 -> -14.58569297 | N18: =+'T2'!N22/N$10 -> -14.57906604 | O18: =+'T2'!O22/O$10 -> -14.56572365 | P18: =+'T2'!P22/P$10 -> -15.72235429 | Q18: =+'T2'!Q22/Q$10 -> -16.14742946
A19: 5 | B19: Revenue Group 5: non-domestic measured water | C19: % | D19: C | G19: =+'T2'!G23/G$10 -> 0.1094416889 | H19: =+'T2'!H23/H$10 -> 0.1106717051 | I19: =+'T2'!I23/I$10 -> 0.1099972813 | J19: =+'T2'!J23/J$10 -> -3.905091059 | K19: =+'T2'!K23/K$10 -> -3.918304656 | L19: =+'T2'!L23/L$10 -> -3.931222329 | M19: =+'T2'!M23/M$10 -> -3.945226653 | N19: =+'T2'!N23/N$10 -> -3.937060379 | O19: =+'T2'!O23/O$10 -> -3.931298427 | P19: =+'T2'!P23/P$10 -> -4.243473801 | Q19: =+'T2'!Q23/Q$10 -> -4.358201869
A20: 6 | B20: Revenue Group 6: non-domestic measured sewerage | C20: % | D20: C | G20: =+'T2'!G24/G$10 -> 0.0698630167 | H20: =+'T2'!H24/H$10 -> 0.07141167298 | I20: =+'T2'!I24/I$10 -> 0.06851414486 | J20: =+'T2'!J24/J$10 -> -2.494377327 | K20: =+'T2'!K24/K$10 -> -2.529046218 | L20: =+'T2'!L24/L$10 -> -2.561889991 | M20: =+'T2'!M24/M$10 -> -2.596085051 | N20: =+'T2'!N24/N$10 -> -2.615921683 | O20: =+'T2'!O24/O$10 -> -2.639009735 | P20: =+'T2'!P24/P$10 -> -2.848567433 | Q20: =+'T2'!Q24/Q$10 -> -2.925582316
A21: 7 | B21: Revenue Group 7: non-domestic unmeasured water | C21: % | D21: C | G21: =+'T2'!G25/G$10 -> 0.006744273236 | H21: =+'T2'!H25/H$10 -> 0.006232285079 | I21: =+'T2'!I25/I$10 -> 0.005764876987 | J21: =+'T2'!J25/J$10 -> -0.2104387579 | K21: =+'T2'!K25/K$10 -> -0.2085993978 | L21: =+'T2'!L25/L$10 -> -0.2061663383 | M21: =+'T2'!M25/M$10 -> -0.1999386748 | N21: =+'T2'!N25/N$10 -> -0.1888846462 | O21: =+'T2'!O25/O$10 -> -0.1761309995 | P21: =+'T2'!P25/P$10 -> -0.1901171574 | Q21: =+'T2'!Q25/Q$10 -> -0.1952572326
A22: 8 | B22: Revenue Group 8: non-domestic unmeasured sewerage | C22: % | D22: C | G22: =+'T2'!G26/G$10 -> 0.008441497499 | H22: =+'T2'!H26/H$10 -> 0.007612116803 | I22: =+'T2'!I26/I$10 -> 0.006784882036 | J22: =+'T2'!J26/J$10 -> -0.2468699653 | K22: =+'T2'!K26/K$10 -> -0.2428908606 | L22: =+'T2'!L26/L$10 -> -0.2371133728 | M22: =+'T2'!M26/M$10 -> -0.2303624543 | N22: =+'T2'!N26/N$10 -> -0.2179430327 | O22: =+'T2'!O26/O$10 -> -0.2035701155 | P22: =+'T2'!P26/P$10 -> -0.2197351505 | Q22: =+'T2'!Q26/Q$10 -> -0.2256759883
A23: 9 | B23: Revenue Group 9: trade effluent | C23: % | D23: C | G23: =+'T2'!G27/G$10 -> 0.06889487275 | H23: =+'T2'!H27/H$10 -> 0.06715716078 | I23: =+'T2'!I27/I$10 -> 0.06536163012 | J23: =+'T2'!J27/J$10 -> -2.470339054 | K23: =+'T2'!K27/K$10 -> -2.521654382 | L23: =+'T2'!L27/L$10 -> -2.571733292 | M23: =+'T2'!M27/M$10 -> -2.622849655 | N23: =+'T2'!N27/N$10 -> -2.668569883 | O23: =+'T2'!O27/O$10 -> -2.714855765 | P23: =+'T2'!P27/P$10 -> -2.930436222 | Q23: =+'T2'!Q27/Q$10 -> -3.009664539
A24: 10 | B24: Total group revenue as % of Financial model revenue | C24: % | D24: C | G24: =SUM(G15:G23) -> 1.007735341 | H24: =SUM(H15:H23) -> 0.9992365766 | I24: =SUM(I15:I23) -> 1.002121104 | J24: -36.70826527 | K24: -36.60585583 | L24: -36.44363453 | M24: -36.27412796 | N24: -35.96139511 | O24: -35.65277106 | P24: -38.48387568 | Q24: -39.52433944
B28: Revenue target: Alternative 1 - straight line
B30: % Revenue allocated to Revenue groups (net of non-primary revenue) | C30: Units | D30: Field Type | E30: Additional Info | F30: =+Baseminus1 -> 2017-18 | G30: =+Baseyear -> 2018-19 | H30: =+Baseplus1 -> 2019-20 | I30: =+Baseplus2 -> 2020-21 | J30: =+Baseplus3 -> 2021-22 | K30: =+Baseplus4 -> 2022-23 | L30: =+Baseplus5 -> 2023-24 | M30: =+Baseplus6 -> 2024-25 | N30: =+Baseplus7 -> 2025-26 | O30: =+Baseplus8 -> 2026-27
A31: 1 | B31: Revenue Group 1: domestic measured water | C31: % | D31: I/C | G31: =+'T2'!G19/('T2'!G$29-'T2'!G$28) -> 0 | H31: =+'T2'!H19/('T2'!H$29-'T2'!H$28) -> 0 | I31: =+'T2'!I19/('T2'!I$29-'T2'!I$28) -> 0 | J31: =+($O31-$I31)/6+I31 -> 0 | K31: 0 | L31: =+($O31-$I31)/6+K31 -> 0 | M31: 0 | N31: 0 | O31: 0
A32: 2 | B32: Revenue Group 2: domestic measured sewerage | C32: % | D32: I/C | G32: =+'T2'!G20/('T2'!G$29-'T2'!G$28) -> 0 | H32: =+'T2'!H20/('T2'!H$29-'T2'!H$28) -> 0 | I32: =+'T2'!I20/('T2'!I$29-'T2'!I$28) -> 0 | J32: 0 | K32: 0 | L32: =+($O32-$I32)/6+K32 -> 0 | M32: 0 | N32: 0 | O32: 0
A33: 3 | B33: Revenue Group 3: domestic unmeasured water | C33: % | D33: I/C | G33: =+'T2'!G21/('T2'!G$29-'T2'!G$28) -> 0.3380368404 | H33: =+'T2'!H21/('T2'!H$29-'T2'!H$28) -> 0.345791198 | I33: =+'T2'!I21/('T2'!I$29-'T2'!I$28) -> 0.3586002884 | J33: 0.3655002404 | K33: 0.3724001923 | L33: =+($O33-$I33)/6+K33 -> 0.3793001442 | M33: 0.3862000961 | N33: 0.3931000481 | O33: 0.4
A34: 4 | B34: Revenue Group 4: domestic unmeasured sewerage | C34: % | D34: I/C | G34: =+'T2'!G22/('T2'!G$29-'T2'!G$28) -> 0.4005995473 | H34: =+'T2'!H22/('T2'!H$29-'T2'!H$28) -> 0.3909228626 | I34: =+'T2'!I22/('T2'!I$29-'T2'!I$28) -> 0.3855196445 | J34: =+($O34-$I34)/6+I34 -> 0.3629330371 | K34: =+($O34-$I34)/6+J34 -> 0.3403464297 | L34: =+($O34-$I34)/6+K34 -> 0.3177598222 | M34: 0.2951732148 | N34: 0.2725866074 | O34: 0.25
A35: 5 | B35: Revenue Group 5: non-domestic measured water | C35: % | D35: I/C | G35: =+'T2'!G23/('T2'!G$29-'T2'!G$28) -> 0.1086016183 | H35: =+'T2'!H23/('T2'!H$29-'T2'!H$28) -> 0.110756259 | I35: =+'T2'!I23/('T2'!I$29-'T2'!I$28) -> 0.1097644595 | J35: 0.1081370496 | K35: 0.1065096397 | L35: =+($O35-$I35)/6+K35 -> 0.1048822297 | M35: 0.1032548198 | N35: 0.1016274099 | O35: 0.1
A36: 6 | B36: Revenue Group 6: non-domestic measured sewerage | C36: % | D36: I/C | G36: =+'T2'!G24/('T2'!G$29-'T2'!G$28) -> 0.06932675063 | H36: =+'T2'!H24/('T2'!H$29-'T2'!H$28) -> 0.07146623197 | I36: =+'T2'!I24/('T2'!I$29-'T2'!I$28) -> 0.06836912682 | J36: 0.06530760568 | K36: 0.06224608455 | L36: =+($O36-$I36)/6+K36 -> 0.05918456341 | M36: 0.05612304227 | N36: 0.05306152114 | O36: 0.05
A37: 7 | B37: Revenue Group 7: non-domestic unmeasured water | C37: % | D37: I/C | G37: =+'T2'!G25/('T2'!G$29-'T2'!G$28) -> 0.006692504431 | H37: =+'T2'!H25/('T2'!H$29-'T2'!H$28) -> 0.006237046586 | I37: =+'T2'!I25/('T2'!I$29-'T2'!I$28) -> 0.005752674964 | J37: 0.01312722914 | K37: 0.02050178331 | L37: =+($O37-$I37)/6+K37 -> 0.02787633748 | M37: 0.03525089165 | N37: 0.04262544583 | O37: 0.05
A38: 8 | B38: Revenue Group 8: non-domestic unmeasured sewerage | C38: % | D38: I/C | G38: =+'T2'!G26/('T2'!G$29-'T2'!G$28) -> 0.00837670086 | H38: =+'T2'!H26/('T2'!H$29-'T2'!H$28) -> 0.007617932511 | I38: =+'T2'!I26/('T2'!I$29-'T2'!I$28) -> 0.006770521056 | J38: 0.01397543421 | K38: 0.02118034737 | L38: =+($O38-$I38)/6+K38 -> 0.02838526053 | M38: 0.03559017369 | N38: 0.04279508684 | O38: 0.05
A39: 9 | B39: Revenue Group 9: trade effluent | C39: % | D39: I/C | G39: =+'T2'!G27/('T2'!G$29-'T2'!G$28) -> 0.06836603812 | H39: =+'T2'!H27/('T2'!H$29-'T2'!H$28) -> 0.0672084693 | I39: =+'T2'!I27/('T2'!I$29-'T2'!I$28) -> 0.06522328474 | J39: 0.07101940395 | K39: 0.07681552316 | L39: =+($O39-$I39)/6+K39 -> 0.08261164237 | M39: 0.08840776158 | N39: 0.09420388079 | O39: 0.1
A40: 10 | B40: Total revenue | C40: % | D40: C | G40: =SUM(G31:G39) -> 1 | H40: 1 | I40: 1 | O40: =SUM(O31:O39) -> 1
B43: Revenue target: Alternative 2 - Input 1st year, straight line thereafter
B45: % Revenue allocated to Revenue groups (net of non-primary revenue) | C45: Units | D45: Field Type | E45: Additional Info | F45: =+Baseminus1 -> 2017-18 | G45: =+Baseyear -> 2018-19 | H45: =+Baseplus1 -> 2019-20 | I45: =+Baseplus2 -> 2020-21 | J45: =+Baseplus3 -> 2021-22 | K45: =+Baseplus4 -> 2022-23 | L45: =+Baseplus5 -> 2023-24 | M45: =+Baseplus6 -> 2024-25 | N45: =+Baseplus7 -> 2025-26 | O45: =+Baseplus8 -> 2026-27
A46: 1 | B46: Revenue Group 1: domestic measured water | C46: % | D46: I/C | G46: =+'T2'!G19/('T2'!G$29-'T2'!G$28) -> 0 | H46: =+'T2'!H19/('T2'!H$29-'T2'!H$28) -> 0 | I46: =+'T2'!I19/('T2'!I$29-'T2'!I$28) -> 0 | J46: 0 | K46: =+($O46-$J46)/5+J46 -> 0 | L46: =+($O46-$J46)/5+K46 -> 0 | M46: 0 | N46: 0 | O46: 0
A47: 2 | B47: Revenue Group 2: domestic measured sewerage | C47: % | D47: I/C | G47: =+'T2'!G20/('T2'!G$29-'T2'!G$28) -> 0 | H47: =+'T2'!H20/('T2'!H$29-'T2'!H$28) -> 0 | I47: =+'T2'!I20/('T2'!I$29-'T2'!I$28) -> 0 | J47: 0 | K47: 0 | L47: =+($O47-$J47)/5+K47 -> 0 | M47: 0 | N47: 0 | O47: 0
A48: 3 | B48: Revenue Group 3: domestic unmeasured water | C48: % | D48: I/C | G48: =+'T2'!G21/('T2'!G$29-'T2'!G$28) -> 0.3380368404 | H48: =+'T2'!H21/('T2'!H$29-'T2'!H$28) -> 0.345791198 | I48: =+'T2'!I21/('T2'!I$29-'T2'!I$28) -> 0.3586002884 | J48: 0.357 | K48: 0.357 | L48: =+($O48-$J48)/5+K48 -> 0.357 | M48: 0.357 | N48: 0.357 | O48: 0.357
A49: 4 | B49: Revenue Group 4: domestic unmeasured sewerage | C49: % | D49: I/C | G49: =+'T2'!G22/('T2'!G$29-'T2'!G$28) -> 0.4005995473 | H49: =+'T2'!H22/('T2'!H$29-'T2'!H$28) -> 0.3909228626 | I49: =+'T2'!I22/('T2'!I$29-'T2'!I$28) -> 0.3855196445 | J49: 0.387 | K49: 0.387 | L49: =+($O49-$J49)/5+K49 -> 0.387 | M49: 0.387 | N49: 0.387 | O49: 0.387
A50: 5 | B50: Revenue Group 5: non-domestic measured water | C50: % | D50: I/C | G50: =+'T2'!G23/('T2'!G$29-'T2'!G$28) -> 0.1086016183 | H50: =+'T2'!H23/('T2'!H$29-'T2'!H$28) -> 0.110756259 | I50: =+'T2'!I23/('T2'!I$29-'T2'!I$28) -> 0.1097644595 | J50: 0.107 | K50: 0.1074 | L50: =+($O50-$J50)/5+K50 -> 0.1078 | M50: =+($O50-$J50)/5+L50 -> 0.1082 | N50: =+($O50-$J50)/5+M50 -> 0.1086 | O50: 0.109
A51: 6 | B51: Revenue Group 6: non-domestic measured sewerage | C51: % | D51: I/C | G51: =+'T2'!G24/('T2'!G$29-'T2'!G$28) -> 0.06932675063 | H51: =+'T2'!H24/('T2'!H$29-'T2'!H$28) -> 0.07146623197 | I51: =+'T2'!I24/('T2'!I$29-'T2'!I$28) -> 0.06836912682 | J51: 0.067 | K51: 0.0674 | L51: =+($O51-$J51)/5+K51 -> 0.0678 | M51: 0.0682 | N51: 0.0686 | O51: 0.069
A52: 7 | B52: Revenue Group 7: non-domestic unmeasured water | C52: % | D52: I/C | G52: =+'T2'!G25/('T2'!G$29-'T2'!G$28) -> 0.006692504431 | H52: =+'T2'!H25/('T2'!H$29-'T2'!H$28) -> 0.006237046586 | I52: =+'T2'!I25/('T2'!I$29-'T2'!I$28) -> 0.005752674964 | J52: 0.007 | K52: 0.0066 | L52: =+($O52-$J52)/5+K52 -> 0.0062 | M52: 0.0058 | N52: 0.0054 | O52: 0.005
A53: 8 | B53: Revenue Group 8: non-domestic unmeasured sewerage | C53: % | D53: I/C | G53: =+'T2'!G26/('T2'!G$29-'T2'!G$28) -> 0.00837670086 | H53: =+'T2'!H26/('T2'!H$29-'T2'!H$28) -> 0.007617932511 | I53: =+'T2'!I26/('T2'!I$29-'T2'!I$28) -> 0.006770521056 | J53: 0.008 | K53: 0.0076 | L53: =+($O53-$J53)/5+K53 -> 0.0072 | M53: 0.0068 | N53: 0.0064 | O53: 0.006
A54: 9 | B54: Revenue Group 9: trade effluent | C54: % | D54: I/C | G54: =+'T2'!G27/('T2'!G$29-'T2'!G$28) -> 0.06836603812 | H54: =+'T2'!H27/('T2'!H$29-'T2'!H$28) -> 0.0672084693 | I54: =+'T2'!I27/('T2'!I$29-'T2'!I$28) -> 0.06522328474 | J54: 0.067 | K54: 0.067 | L54: =+($O54-$J54)/5+K54 -> 0.067 | M54: 0.067 | N54: 0.067 | O54: 0.067
A55: 10 | B55: Total revenue | C55: % | D55: C | G55: =SUM(G46:G54) -> 1 | H55: 1 | I55: 1 | O55: =SUM(O46:O54) -> 1
B58: Revenue target: Alternative 3 - Custom inputs
B60: % Revenue allocated to Revenue groups (net of non-primary revenue) | C60: Units | D60: Field Type | E60: Additional Info | F60: =+Baseminus1 -> 2017-18 | G60: =+Baseyear -> 2018-19 | H60: =+Baseplus1 -> 2019-20 | I60: =+Baseplus2 -> 2020-21 | J60: =+Baseplus3 -> 2021-22 | K60: =+Baseplus4 -> 2022-23 | L60: =+Baseplus5 -> 2023-24 | M60: =+Baseplus6 -> 2024-25 | N60: =+Baseplus7 -> 2025-26 | O60: =+Baseplus8 -> 2026-27
A61: 1 | B61: Revenue Group 1: domestic measured water | C61: % | D61: I/C | G61: =+'T2'!G19/('T2'!G$29-'T2'!G$28) -> 0 | H61: =+'T2'!H19/('T2'!H$29-'T2'!H$28) -> 0 | I61: =+'T2'!I19/('T2'!I$29-'T2'!I$28) -> 0 | J61: 0 | K61: 0 | L61: 0 | M61: 0 | N61: 0 | O61: 0
A62: 2 | B62: Revenue Group 2: domestic measured sewerage | C62: % | D62: I/C | G62: =+'T2'!G20/('T2'!G$29-'T2'!G$28) -> 0 | H62: =+'T2'!H20/('T2'!H$29-'T2'!H$28) -> 0 | I62: =+'T2'!I20/('T2'!I$29-'T2'!I$28) -> 0 | J62: 0 | K62: 0 | L62: 0 | M62: 0 | N62: 0 | O62: 0
A63: 3 | B63: Revenue Group 3: domestic unmeasured water | C63: % | D63: I/C | G63: =+'T2'!G21/('T2'!G$29-'T2'!G$28) -> 0.3380368404 | H63: =+'T2'!H21/('T2'!H$29-'T2'!H$28) -> 0.345791198 | I63: =+'T2'!I21/('T2'!I$29-'T2'!I$28) -> 0.3586002884 | J63: 0.3374495381 | K63: 0.3373450402 | L63: 0.336585731 | M63: 0.336250199 | N63: 0.3363510629 | O63: 0.3363136482
A64: 4 | B64: Revenue Group 4: domestic unmeasured sewerage | C64: % | D64: I/C | G64: =+'T2'!G22/('T2'!G$29-'T2'!G$28) -> 0.4005995473 | H64: =+'T2'!H22/('T2'!H$29-'T2'!H$28) -> 0.3909228626 | I64: =+'T2'!I22/('T2'!I$29-'T2'!I$28) -> 0.3855196445 | J64: 0.3971593748 | K64: 0.3982761551 | L64: 0.4005867515 | M64: 0.4021402831 | N64: 0.4029681144 | O64: 0.4037933565
A65: 5 | B65: Revenue Group 5: non-domestic measured water | C65: % | D65: I/C | G65: =+'T2'!G23/('T2'!G$29-'T2'!G$28) -> 0.1086016183 | H65: =+'T2'!H23/('T2'!H$29-'T2'!H$28) -> 0.110756259 | I65: =+'T2'!I23/('T2'!I$29-'T2'!I$28) -> 0.1097644595 | J65: 0.1092851232 | K65: 0.1089724627 | L65: 0.1083855495 | M65: 0.1079378573 | N65: 0.1076421941 | O65: 0.1073850161
A66: 6 | B66: Revenue Group 6: non-domestic measured sewerage | C66: % | D66: I/C | G66: =+'T2'!G24/('T2'!G$29-'T2'!G$28) -> 0.06932675063 | H66: =+'T2'!H24/('T2'!H$29-'T2'!H$28) -> 0.07146623197 | I66: =+'T2'!I24/('T2'!I$29-'T2'!I$28) -> 0.06836912682 | J66: 0.07043431456 | K66: 0.07092856859 | L66: 0.07086671183 | M66: 0.07101172048 | N66: 0.07103451519 | O66: 0.07115219059
A67: 7 | B67: Revenue Group 7: non-domestic unmeasured water | C67: % | D67: I/C | G67: =+'T2'!G25/('T2'!G$29-'T2'!G$28) -> 0.006692504431 | H67: =+'T2'!H25/('T2'!H$29-'T2'!H$28) -> 0.006237046586 | I67: =+'T2'!I25/('T2'!I$29-'T2'!I$28) -> 0.005752674964 | J67: 0.006032879763 | K67: 0.005672739995 | L67: 0.005330648422 | M67: 0.005055838528 | N67: 0.004817211521 | O67: 0.004575434434
A68: 8 | B68: Revenue Group 8: non-domestic unmeasured sewerage | C68: % | D68: I/C | G68: =+'T2'!G26/('T2'!G$29-'T2'!G$28) -> 0.00837670086 | H68: =+'T2'!H26/('T2'!H$29-'T2'!H$28) -> 0.007617932511 | I68: =+'T2'!I26/('T2'!I$29-'T2'!I$28) -> 0.006770521056 | J68: 0.007475746798 | K68: 0.007038144461 | L68: 0.006654179047 | M68: 0.006333400504 | N68: 0.006036654612 | O68: 0.00573795659
A69: 9 | B69: Revenue Group 9: trade effluent | C69: % | D69: I/C | G69: =+'T2'!G27/('T2'!G$29-'T2'!G$28) -> 0.06836603812 | H69: =+'T2'!H27/('T2'!H$29-'T2'!H$28) -> 0.0672084693 | I69: =+'T2'!I27/('T2'!I$29-'T2'!I$28) -> 0.06522328474 | J69: 0.07216302277 | K69: 0.07176688904 | L69: 0.07159042871 | M69: 0.07127070109 | N69: 0.07115024724 | O69: 0.0710423976
A70: 10 | B70: Total revenue | C70: % | D70: C | G70: =SUM(G61:G69) -> 1 | H70: =SUM(H61:H69) -> 1 | I70: 1 | J70: 1 | K70: 1 | L70: 1 | M70: =SUM(M61:M69) -> 1 | N70: 1 | O70: 1
B73: Revenue target: Selected alternative
B75: % Revenue allocated to Revenue groups (net of non-primary revenue) | C75: Units | D75: Field Type | E75: Additional Info | F75: =+Baseminus1 -> 2017-18 | G75: =+Baseyear -> 2018-19 | H75: =+Baseplus1 -> 2019-20 | I75: =+Baseplus2 -> 2020-21 | J75: =+Baseplus3 -> 2021-22 | K75: =+Baseplus4 -> 2022-23 | L75: =+Baseplus5 -> 2023-24 | M75: =+Baseplus6 -> 2024-25 | N75: =+Baseplus7 -> 2025-26 | O75: =+Baseplus8 -> 2026-27
A76: 1 | B76: Revenue Group 1: domestic measured water | C76: % | D76: I/C | G76: =+'T2'!G19/('T2'!G$29-'T2'!G$28) -> 0 | H76: =+'T2'!H19/('T2'!H$29-'T2'!H$28) -> 0 | I76: =+'T2'!I19/('T2'!I$29-'T2'!I$28) -> 0 | J76: =IF('K solving'!$C$15=1,J31,IF('K solving'!$C$15=2,J46,IF('K solving'!$C$15=3,J61,0))) -> 0 | K76: =IF('K solving'!$C$15=1,K31,IF('K solving'!$C$15=2,K46,IF('K solving'!$C$15=3,K61,0))) -> 0 | L76: =IF('K solving'!$C$15=1,L31,IF('K solving'!$C$15=2,L46,IF('K solving'!$C$15=3,L61,0))) -> 0 | M76: =IF('K solving'!$C$15=1,M31,IF('K solving'!$C$15=2,M46,IF('K solving'!$C$15=3,M61,0))) -> 0 | N76: =IF('K solving'!$C$15=1,N31,IF('K solving'!$C$15=2,N46,IF('K solving'!$C$15=3,N61,0))) -> 0 | O76: =IF('K solving'!$C$15=1,O31,IF('K solving'!$C$15=2,O46,IF('K solving'!$C$15=3,O61,0))) -> 0
A77: 2 | B77: Revenue Group 2: domestic measured sewerage | C77: % | D77: I/C | G77: =+'T2'!G20/('T2'!G$29-'T2'!G$28) -> 0 | H77: =+'T2'!H20/('T2'!H$29-'T2'!H$28) -> 0 | I77: =+'T2'!I20/('T2'!I$29-'T2'!I$28) -> 0 | J77: =IF('K solving'!$C$15=1,J32,IF('K solving'!$C$15=2,J47,IF('K solving'!$C$15=3,J62,0))) -> 0 | K77: =IF('K solving'!$C$15=1,K32,IF('K solving'!$C$15=2,K47,IF('K solving'!$C$15=3,K62,0))) -> 0 | L77: =IF('K solving'!$C$15=1,L32,IF('K solving'!$C$15=2,L47,IF('K solving'!$C$15=3,L62,0))) -> 0 | M77: =IF('K solving'!$C$15=1,M32,IF('K solving'!$C$15=2,M47,IF('K solving'!$C$15=3,M62,0))) -> 0 | N77: =IF('K solving'!$C$15=1,N32,IF('K solving'!$C$15=2,N47,IF('K solving'!$C$15=3,N62,0))) -> 0 | O77: =IF('K solving'!$C$15=1,O32,IF('K solving'!$C$15=2,O47,IF('K solving'!$C$15=3,O62,0))) -> 0
A78: 3 | B78: Revenue Group 3: domestic unmeasured water | C78: % | D78: I/C | G78: =+'T2'!G21/('T2'!G$29-'T2'!G$28) -> 0.3380368404 | H78: =+'T2'!H21/('T2'!H$29-'T2'!H$28) -> 0.345791198 | I78: =+'T2'!I21/('T2'!I$29-'T2'!I$28) -> 0.3586002884 | J78: =IF('K solving'!$C$15=1,J33,IF('K solving'!$C$15=2,J48,IF('K solving'!$C$15=3,J63,0))) -> 0.3374495381 | K78: =IF('K solving'!$C$15=1,K33,IF('K solving'!$C$15=2,K48,IF('K solving'!$C$15=3,K63,0))) -> 0.3373450402 | L78: =IF('K solving'!$C$15=1,L33,IF('K solving'!$C$15=2,L48,IF('K solving'!$C$15=3,L63,0))) -> 0.336585731 | M78: =IF('K solving'!$C$15=1,M33,IF('K solving'!$C$15=2,M48,IF('K solving'!$C$15=3,M63,0))) -> 0.336250199 | N78: =IF('K solving'!$C$15=1,N33,IF('K solving'!$C$15=2,N48,IF('K solving'!$C$15=3,N63,0))) -> 0.3363510629 | O78: =IF('K solving'!$C$15=1,O33,IF('K solving'!$C$15=2,O48,IF('K solving'!$C$15=3,O63,0))) -> 0.3363136482
A79: 4 | B79: Revenue Group 4: domestic unmeasured sewerage | C79: % | D79: I/C | G79: =+'T2'!G22/('T2'!G$29-'T2'!G$28) -> 0.4005995473 | H79: =+'T2'!H22/('T2'!H$29-'T2'!H$28) -> 0.3909228626 | I79: =+'T2'!I22/('T2'!I$29-'T2'!I$28) -> 0.3855196445 | J79: =IF('K solving'!$C$15=1,J34,IF('K solving'!$C$15=2,J49,IF('K solving'!$C$15=3,J64,0))) -> 0.3971593748 | K79: =IF('K solving'!$C$15=1,K34,IF('K solving'!$C$15=2,K49,IF('K solving'!$C$15=3,K64,0))) -> 0.3982761551 | L79: =IF('K solving'!$C$15=1,L34,IF('K solving'!$C$15=2,L49,IF('K solving'!$C$15=3,L64,0))) -> 0.4005867515 | M79: =IF('K solving'!$C$15=1,M34,IF('K solving'!$C$15=2,M49,IF('K solving'!$C$15=3,M64,0))) -> 0.4021402831 | N79: =IF('K solving'!$C$15=1,N34,IF('K solving'!$C$15=2,N49,IF('K solving'!$C$15=3,N64,0))) -> 0.4029681144 | O79: =IF('K solving'!$C$15=1,O34,IF('K solving'!$C$15=2,O49,IF('K solving'!$C$15=3,O64,0))) -> 0.4037933565
A80: 5 | B80: Revenue Group 5: non-domestic measured water | C80: % | D80: I/C | G80: =+'T2'!G23/('T2'!G$29-'T2'!G$28) -> 0.1086016183 | H80: =+'T2'!H23/('T2'!H$29-'T2'!H$28) -> 0.110756259 | I80: =+'T2'!I23/('T2'!I$29-'T2'!I$28) -> 0.1097644595 | J80: =IF('K solving'!$C$15=1,J35,IF('K solving'!$C$15=2,J50,IF('K solving'!$C$15=3,J65,0))) -> 0.1092851232 | K80: =IF('K solving'!$C$15=1,K35,IF('K solving'!$C$15=2,K50,IF('K solving'!$C$15=3,K65,0))) -> 0.1089724627 | L80: =IF('K solving'!$C$15=1,L35,IF('K solving'!$C$15=2,L50,IF('K solving'!$C$15=3,L65,0))) -> 0.1083855495 | M80: =IF('K solving'!$C$15=1,M35,IF('K solving'!$C$15=2,M50,IF('K solving'!$C$15=3,M65,0))) -> 0.1079378573 | N80: =IF('K solving'!$C$15=1,N35,IF('K solving'!$C$15=2,N50,IF('K solving'!$C$15=3,N65,0))) -> 0.1076421941 | O80: =IF('K solving'!$C$15=1,O35,IF('K solving'!$C$15=2,O50,IF('K solving'!$C$15=3,O65,0))) -> 0.1073850161
A81: 6 | B81: Revenue Group 6: non-domestic measured sewerage | C81: % | D81: I/C | G81: =+'T2'!G24/('T2'!G$29-'T2'!G$28) -> 0.06932675063 | H81: =+'T2'!H24/('T2'!H$29-'T2'!H$28) -> 0.07146623197 | I81: =+'T2'!I24/('T2'!I$29-'T2'!I$28) -> 0.06836912682 | J81: =IF('K solving'!$C$15=1,J36,IF('K solving'!$C$15=2,J51,IF('K solving'!$C$15=3,J66,0))) -> 0.07043431456 | K81: =IF('K solving'!$C$15=1,K36,IF('K solving'!$C$15=2,K51,IF('K solving'!$C$15=3,K66,0))) -> 0.07092856859 | L81: =IF('K solving'!$C$15=1,L36,IF('K solving'!$C$15=2,L51,IF('K solving'!$C$15=3,L66,0))) -> 0.07086671183 | M81: =IF('K solving'!$C$15=1,M36,IF('K solving'!$C$15=2,M51,IF('K solving'!$C$15=3,M66,0))) -> 0.07101172048 | N81: =IF('K solving'!$C$15=1,N36,IF('K solving'!$C$15=2,N51,IF('K solving'!$C$15=3,N66,0))) -> 0.07103451519 | O81: =IF('K solving'!$C$15=1,O36,IF('K solving'!$C$15=2,O51,IF('K solving'!$C$15=3,O66,0))) -> 0.07115219059
A82: 7 | B82: Revenue Group 7: non-domestic unmeasured water | C82: % | D82: I/C | G82: =+'T2'!G25/('T2'!G$29-'T2'!G$28) -> 0.006692504431 | H82: =+'T2'!H25/('T2'!H$29-'T2'!H$28) -> 0.006237046586 | I82: =+'T2'!I25/('T2'!I$29-'T2'!I$28) -> 0.005752674964 | J82: =IF('K solving'!$C$15=1,J37,IF('K solving'!$C$15=2,J52,IF('K solving'!$C$15=3,J67,0))) -> 0.006032879763 | K82: =IF('K solving'!$C$15=1,K37,IF('K solving'!$C$15=2,K52,IF('K solving'!$C$15=3,K67,0))) -> 0.005672739995 | L82: =IF('K solving'!$C$15=1,L37,IF('K solving'!$C$15=2,L52,IF('K solving'!$C$15=3,L67,0))) -> 0.005330648422 | M82: =IF('K solving'!$C$15=1,M37,IF('K solving'!$C$15=2,M52,IF('K solving'!$C$15=3,M67,0))) -> 0.005055838528 | N82: =IF('K solving'!$C$15=1,N37,IF('K solving'!$C$15=2,N52,IF('K solving'!$C$15=3,N67,0))) -> 0.004817211521 | O82: =IF('K solving'!$C$15=1,O37,IF('K solving'!$C$15=2,O52,IF('K solving'!$C$15=3,O67,0))) -> 0.004575434434
A83: 8 | B83: Revenue Group 8: non-domestic unmeasured sewerage | C83: % | D83: I/C | G83: =+'T2'!G26/('T2'!G$29-'T2'!G$28) -> 0.00837670086 | H83: =+'T2'!H26/('T2'!H$29-'T2'!H$28) -> 0.007617932511 | I83: =+'T2'!I26/('T2'!I$29-'T2'!I$28) -> 0.006770521056 | J83: =IF('K solving'!$C$15=1,J38,IF('K solving'!$C$15=2,J53,IF('K solving'!$C$15=3,J68,0))) -> 0.007475746798 | K83: =IF('K solving'!$C$15=1,K38,IF('K solving'!$C$15=2,K53,IF('K solving'!$C$15=3,K68,0))) -> 0.007038144461 | L83: =IF('K solving'!$C$15=1,L38,IF('K solving'!$C$15=2,L53,IF('K solving'!$C$15=3,L68,0))) -> 0.006654179047 | M83: =IF('K solving'!$C$15=1,M38,IF('K solving'!$C$15=2,M53,IF('K solving'!$C$15=3,M68,0))) -> 0.006333400504 | N83: =IF('K solving'!$C$15=1,N38,IF('K solving'!$C$15=2,N53,IF('K solving'!$C$15=3,N68,0))) -> 0.006036654612 | O83: =IF('K solving'!$C$15=1,O38,IF('K solving'!$C$15=2,O53,IF('K solving'!$C$15=3,O68,0))) -> 0.00573795659
A84: 9 | B84: Revenue Group 9: trade effluent | C84: % | D84: I/C | G84: =+'T2'!G27/('T2'!G$29-'T2'!G$28) -> 0.06836603812 | H84: =+'T2'!H27/('T2'!H$29-'T2'!H$28) -> 0.0672084693 | I84: =+'T2'!I27/('T2'!I$29-'T2'!I$28) -> 0.06522328474 | J84: =IF('K solving'!$C$15=1,J39,IF('K solving'!$C$15=2,J54,IF('K solving'!$C$15=3,J69,0))) -> 0.07216302277 | K84: =IF('K solving'!$C$15=1,K39,IF('K solving'!$C$15=2,K54,IF('K solving'!$C$15=3,K69,0))) -> 0.07176688904 | L84: =IF('K solving'!$C$15=1,L39,IF('K solving'!$C$15=2,L54,IF('K solving'!$C$15=3,L69,0))) -> 0.07159042871 | M84: =IF('K solving'!$C$15=1,M39,IF('K solving'!$C$15=2,M54,IF('K solving'!$C$15=3,M69,0))) -> 0.07127070109 | N84: =IF('K solving'!$C$15=1,N39,IF('K solving'!$C$15=2,N54,IF('K solving'!$C$15=3,N69,0))) -> 0.07115024724 | O84: =IF('K solving'!$C$15=1,O39,IF('K solving'!$C$15=2,O54,IF('K solving'!$C$15=3,O69,0))) -> 0.0710423976
A85: 10 | B85: Total revenue | C85: % | D85: C | G85: =SUM(G76:G84) -> 1 | H85: 1 | I85: 1 | J85: 1 | K85: 1 | L85: 1 | M85: =SUM(M76:M84) -> 1 | N85: 1 | O85: 1

Sheet CHECK
A1: ="Checks = "&D16 -> Checks = 3
B2: Modelling Checks
B4: Checks
A5: 1 | B5: Balance Sheet: HCA | C5: Base Historic Data | D5: =IF('B2'!G53*1=1,"OK","Check") -> OK
A6: 2 | B6: Balance Sheet: CCA | C6: Base Historic Data | D6: =IF('B2'!G103*1=1,"OK","Check") -> OK
A7: 3 | B7: Working Capital and other non-trade debtors/creditors | C7: Base Historic Data | D7: =IF('B4'!G18*1=1,"OK","Check") -> Check
A8: 5 | B8: Capital Expenditure | C8: Assumption | D8: ='A3'!B94 -> OK
A9: 6 | B9: Tax | C9: Assumption | D9: ='A7'!E36 -> OK
A10: 8 | B10: Capital Expenditure | C10: Processes | D10: ='P1'!B109 -> OK
A11: 9 | B11: Tax | C11: Processes | D11: ='P7'!B90 -> Check
A12: 10 | B12: Broad Equivalence | C12: Processes | D12: ='P11'!C24 -> OK | F12: new check
A13: 11 | B13: Balance Sheet: HCA | C13: Outputs | D13: ='O2'!D53 -> Check
A14: 12 | B14: Balance Sheet: CCA | C14: Outputs | D14: ='O2'!D104 -> OK
A15: 13 | B15: Cash Flow | C15: Outputs | D15: ='O3'!B63 -> OK
A16: 16 | B16: Number of Checks | D16: =COUNTIF(D5:D15,"Check") -> 3

Sheet Base Historic Data -->
A1: =CHECK!A1 -> Checks = 3

Sheet B1
A1: =CHECK!A1 -> Checks = 3
B2: Base historic data: Profit and Loss account
B4: Historic Cost Accounts
B7: NI Water - Historic Cost Profit and Loss Account | C7: Units | D7: Field type | E7: Additional Info | F7: =+Baseminus1 -> 2017-18 | G7: =+Baseyear -> 2018-19
A8: 1 | B8: Turnover | C8: £m | D8: I | E8: Historic values (outturn) | G8: 366.398
A9: 2 | B9: Operating expenditure (excluding PPP) | C9: £m | D9: I | E9: Historic values (outturn) | G9: -143.994
A10: 3 | B10: PPP operating costs (unitary charge for Off-BS; PPP opex for On-BS) | C10: £m | D10: I | E10: Historic values (outturn) | G10: -31.636
A11: 3a | B11: PPP residual asset credit | C11: £m | D11: I | E11: Historic values (outturn) | G11: 3.303
A12: 4 | B12: Historical Cost Depreciation | C12: £m | D12: I | E12: Historic values (outturn) | G12: -41.598
A13: 5 | B13: Infrastructure Renewals charge | C13: £m | D13: I | E13: Historic values (outturn) | G13: -30.761
A14: 6 | B14: Amortisation of PPP assets | C14: £m | D14: I | E14: Historic values (outturn) | G14: -3.273
A15: 7 | B15: Amortisation of deferred income | C15: £m | D15: I | E15: Historic values (outturn) | G15: 0.772
A16: 8 | B16: Historic cost profit or loss on disposal of fixed assets | C16: £m | D16: I | E16: Historic values (outturn) | G16: 0.334
A17: 9 | B17: Operating income | C17: £m | D17: I | E17: Historic values (outturn) | G17: 0
A18: 10 | B18: Operating profit | C18: £m | D18: C | E18: Historic values (outturn) | G18: =SUM(G8:G17) -> 119.545
A19: 11 | B19: Other income | C19: £m | D19: I | E19: Historic values (outturn) | G19: 0
A20: 12 | B20: Net interest receivable less payable | C20: £m | D20: I | E20: Historic values (outturn) | G20: -43.15378
A21: 12a | B21: PPP interest | C21: £m | D21: I | E21: Historic values (outturn) | G21: -11.91322
A22: 13 | B22: Profit on ordinary activities before taxation | C22: £m | D22: C | E22: Historic values (outturn) | G22: =G18+SUM(G19:G21) -> 64.478
A23: 14 | B23: Taxation - current | C23: £m | D23: I | E23: Historic values (outturn) | G23: 0
A24: 15 | B24: Taxation - deferred | C24: £m | D24: I | E24: Historic values (outturn) | G24: -24.872
A25: 16 | B25: Profit on ordinary activities after taxation | C25: £m | D25: C | E25: Historic values (outturn) | G25: =+G22+SUM(G23:G24) -> 39.606
A26: 17 | B26: Extraordinary items | C26: £m | D26: I | E26: Historic values (outturn) | G26: 0
A27: 18 | B27: Historic cost profit for the year | C27: £m | D27: C | E27: Historic values (outturn) | G27: =+G25+G26 -> 39.606
A28: 19 | B28: Dividends | C28: £m | D28: I | E28: Historic values (outturn) | G28: -26.587
A29: 20 | B29: Historic Cost retained profit for year | C29: £m | D29: C | E29: Historic values (outturn) | G29: =SUM(G27:G28) -> 13.019
B32: Current Cost Accounts
B35: NI Water - Current Cost Profit and Loss Account | C35: Units | D35: Field type | E35: Additional Info | F35: =+Baseminus1 -> 2017-18 | G35: =+Baseyear -> 2018-19
A36: 21 | B36: Turnover | C36: £m | D36: B | E36: Historic values (outturn) | G36: =+G8 -> 366.398
A37: 22 | B37: Current cost operating expenditure (excluding PPP) | C37: £m | D37: I | E37: Historic values (outturn) | G37: -143.994
A38: 23 | B38: PPP operating costs (unitary charge for Off-BS; PPP opex for On-BS) | C38: £m | D38: B | E38: Historic values (outturn) | G38: =+G10 -> -31.636
A39: 23a | B39: PPP residual asset credit | C39: £m | D39: B | E39: Historic values (outturn) | G39: =G11 -> 3.303
A40: 24 | B40: Current Cost Depreciation | C40: £m | D40: I | E40: Historic values (outturn) | G40: -146.888
A41: 25 | B41: Infrastructure Renewals Charge | C41: £m | D41: B | E41: Historic values (outturn) | G41: =+G13 -> -30.761
A42: 26 | B42: Amortisation of PPP assets | C42: £m | D42: B | E42: Historic values (outturn) | G42: -4.007
A43: 27 | B43: Amortisation of deferred income | C43: £m | D43: I | E43: Historic values (outturn) | G43: 4.513
A44: 28 | B44: Current cost profit or loss on disposal of fixed assets | C44: £m | D44: I | E44: Historic values (outturn) | G44: 0.303
A45: 29 | B45: Operating income | C45: £m | D45: B | E45: Historic values (outturn) | G45: =+G17 -> 0
A46: 30 | B46: Current cost operating profit before working capital adjustment | C46: £m | D46: C | E46: Historic values (outturn) | G46: =SUM(G36:G45) -> 17.231
A47: 31 | B47: Working capital adjustment | C47: £m | D47: I | E47: Historic values (outturn) | G47: 2.641
A48: 32 | B48: Current cost operating profit | C48: £m | D48: C | E48: Historic values (outturn) | G48: =+G46+G47 -> 19.872
A49: 33 | B49: Other income | C49: £m | D49: B | E49: Historic values (outturn) | G49: =+'B1'!G19 -> 0
A50: 34 | B50: Net interest receivable less payable | C50: £m | D50: B | E50: Historic values (outturn) | G50: =+'B1'!G20 -> -43.15378
A51: 34a | B51: PPP interest | C51: £m | D51: B | E51: Historic values (outturn) | G51: =G21 -> -11.91322
A52: 35 | B52: Financing adjustment | C52: £m | D52: I | E52: Historic values (outturn) | G52: 30.464
A53: 36 | B53: Current cost profit before taxation | C53: £m | D53: C | E53: Historic values (outturn) | G53: =SUM(G48:G52) -> -4.731
A54: 37 | B54: Taxation - Current taxation | C54: £m | D54: B | E54: Historic values (outturn) | G54: =+'B1'!G23 -> 0
A55: 38 | B55: Taxation - Deferred | C55: £m | D55: B | E55: Historic values (outturn) | G55: =+'B1'!G24 -> -24.872
A56: 39 | B56: Current cost profit on ordinary activities | C56: £m | D56: C | E56: Historic values (outturn) | G56: =+G53+G54+G55 -> -29.603
A57: 40 | B57: Extraordinary items | C57: £m | D57: B | E57: Historic values (outturn) | G57: =+'B1'!G26 -> 0
A58: 41 | B58: Current cost profit for the year | C58: £m | D58: C | E58: Historic values (outturn) | G58: =+G56+G57 -> -29.603
A59: 42 | B59: Dividends | C59: £m | D59: B | E59: Historic values (outturn) | G59: =+'B1'!G28 -> -26.587
A60: 43 | B60: Current cost retained profit | C60: £m | D60: C | E60: Historic values (outturn) | G60: =+G58+G59 -> -56.19
A63: Return to 'Opening' Sheet

Sheet B2
A1: =CHECK!A1 -> Checks = 3
B2: Base historic data: Balance Sheet
B4: Historic Cost Accounts
A7: Line | B7: Description | C7: Units | D7: Field | E7: Additional Info | F7: =+Baseminus1 -> 2017-18 | G7: =+Baseyear -> 2018-19 | I7: Opening value 2017-18
B9: Fixed Assets
A10: 1 | B10: Tangible Assets | C10: £m | D10: I/B | E10: Historic values (outturn) | G10: ='B7'!$G$9 -> 1792.503
A11: 1a | B11: PPP assets | C11: £m | D11: I/B | E11: Historic values (outturn) | G11: ='B7'!G35 -> 99.84
A12: 2 | B12: Investment - loan to group company | C12: £m | D12: I | E12: Historic values (outturn) | G12: 0
A13: 3 | B13: Investment - Other | C13: £m | D13: I | E13: Historic values (outturn) | G13: 0.106
A14: 4 | B14: Total fixed assets | C14: £m | D14: C | E14: Historic values (outturn) | G14: =SUM(G10:G13) -> 1892.449
B16: Current Assets
A17: 5 | B17: Stocks | C17: £m | D17: B | E17: Historic values (outturn) | G17: =+'B4'!G7 -> 2.379
A18: 6 | B18: Debtors | C18: £m | D18: I | E18: Historic values (outturn) | G18: 28.825
A19: 7 | B19: Cash (net of overdrafts) | C19: £m | D19: I | E19: Historic values (outturn) | G19: 9.102 | I19: -2.34
A20: 8 | B20: Short term deposits | C20: £m | D20: I | E20: Historic values (outturn) | G20: 5.3 | I20: 0
A21: 9 | B21: Financial Reserves | C21: £m | D21: I | E21: Historic values (outturn) | G21: 0
A22: 10 | B22: PPP assets | C22: £m | D22: I | E22: Historic values (outturn) | G22: 15.182
A23: 11 | B23: Infrastructure Renewals prepayment/accrual | C23: £m | D23: I | E23: Historic values (outturn) | G23: 3.341
A24: 12 | B24: Total current assets | C24: £m | D24: C | E24: Historic values (outturn) | G24: =SUM(G17:G23) -> 64.129
B26: Creditors: amounts falling due within one year
A27: 13 | B27: Creditors (including corporation tax and dividends payable) | C27: £m | D27: I | E27: Historic values (outturn) | G27: -118.023
A28: 14 | B28: Non government loans | C28: £m | D28: I/B | E28: Historic values (outturn) | G28: =-'B6'!H34 -> 0 | I28: 0
A29: 14a | B29: Government loans | C29: £m | D29: I/B | E29: Historic values (outturn) | G29: =-'B6'!H18 -> 0 | I29: 0
A30: 15 | B30: Total creditors | C30: £m | D30: C | E30: Historic values (outturn) | G30: =SUM(G27:G28) -> -118.023
A31: 16 | B31: Net current assets | C31: £m | D31: C | E31: Historic values (outturn) | G31: =+G24+G30 -> -53.894
A32: 17 | B32: Total assets less current liabilities | C32: £m | D32: C | E32: Historic values (outturn) | G32: =+G14+G31 -> 1838.555
B34: Creditors: amounts falling due after one year
A35: 18 | B35: Non government loans | C35: £m | D35: I/B | E35: Historic values (outturn) | G35: =-'B6'!T34+'B6'!H34 -> 0 | I35: 0
A36: 18a | B36: Government loans | C36: £m | D36: I/B | E36: Historic values (outturn) | G36: =-'B6'!T18+'B6'!H18 -> -882.56 | I36: -807.56
A37: 18b | B37: PPP Creditor | C37: £m | D37: I | E37: Historic values (outturn) | G37: -95.111
A38: 19 | B38: Other creditors | C38: £m | D38: I | E38: Historic values (outturn) | G38: -1.076
A39: 20 | B39: Total creditors | C39: £m | D39: C | E39: Historic values (outturn) | G39: =SUM(G35:G38) -> -978.747
B41: Provisions for liabilities & charges
A42: 21 | B42: Deferred tax provision | C42: £m | D42: I | E42: Historic values (outturn) | G42: -187.416
A43: 22 | B43: Deferred income - grants and contributions | C43: £m | D43: I | E43: Historic values (outturn) | G43: -19.456
A44: 23 | B44: Post employment assets / (liabilities) | C44: £m | D44: I | E44: Historic values (outturn) | G44: -4.123 | I44: 7.253
A45: 24 | B45: Other provisions | C45: £m | D45: I | E45: Historic values (outturn) | G45: -9.589 | I45: -20.679
A46: 25 | B46: Net Assets employed | C46: £m | D46: C | E46: Historic values (outturn) | G46: =+G14+G24+G30+G39+SUM(G42:G45) -> 639.224
B48: Capital and reserves
A49: 26 | B49: Income and Expenditure account | C49: £m | D49: I | E49: Historic values (outturn) | G49: -32.466
A50: 27 | B50: Other reserves and share capital | C50: £m | D50: I | E50: Historic values (outturn) | G50: 671.69
A51: 28 | B51: Capital & reserves | C51: £m | D51: C | E51: Historic values (outturn) | G51: =SUM(G49:G50) -> 639.224
G53: =ROUND(G51,1)=ROUND(G46,1) -> TRUE
B55: Current Cost Accounts
A58: Line | B58: Description | C58: Units | D58: Field | E58: Additional Info | F58: =+Baseminus1 -> 2017-18 | G58: =+Baseyear -> 2018-19
B60: Fixed Assets
A61: 29 | B61: Tangible Assets | C61: £m | D61: B | E61: Historic values (outturn) | G61: ='B7'!G22 -> 8304.538
A62: 29a | B62: PPP assets | C62: £m | D62: B | E62: Historic values (outturn) | G62: ='B7'!G41 -> 119.272
A63: 30 | B63: Third party contributions | C63: £m | D63: I | E63: Historic values (outturn) | G63: -313.278
B65: Other Operating Assets and liabilities
A66: 31 | B66: Working capital | C66: £m | D66: B | E66: Historic values (outturn) | G66: ='B4'!G13 -> -81.59
A67: 32 | B67: Cash (net of overdrafts) | C67: £m | D67: B | E67: Historic values (outturn) | G67: =+G19 -> 9.102
A68: 33 | B68: Short term deposits | C68: £m | D68: B | E68: Historic values (outturn) | G68: =+G20 -> 5.3
A69: 34 | B69: Infrastructure renewals prepayment/(accrual) | C69: £m | D69: B | E69: Historic values (outturn) | G69: =+G23 -> 3.341
A70: 35 | B70: Net operating assets | C70: £m | D70: C | E70: Historic values (outturn) | G70: =SUM(G61:G69) -> 8046.685
B72: Non-operating assets and liabilities
A73: 36 | B73: Non government loans | C73: £m | D73: B | E73: Historic values (outturn) | G73: =+G28 -> 0
A74: 36a | B74: Government loans | C74: £m | D74: I/B | E74: Historic values (outturn) | G74: =G29 -> 0
A75: 37 | B75: Financial Reserves | C75: £m | D75: B | E75: Historic values (outturn) | G75: =+G21 -> 0
A76: 38 | B76: PPP assets | C76: £m | D76: B | E76: Historic values (outturn) | G76: =+G22 -> 15.182
A77: 39 | B77: Non-trade debtors | C77: £m | D77: I | E77: Historic values (outturn) | G77: 0.007
A78: 40 | B78: Non-trade creditors due within one year | C78: £m | D78: I | E78: Historic values (outturn) | G78: -5.218
A79: 41 | B79: Investment - loan to group company | C79: £m | D79: B | E79: Historic values (outturn) | G79: =+G12 -> 0
A80: 42 | B80: Investment - Other | C80: £m | D80: B | E80: Historic values (outturn) | G80: =+G13 -> 0.106
A81: 43 | B81: Total non-operating assets and liabilities | C81: £m | D81: C | E81: Historic values (outturn) | G81: =SUM(G73:G80) -> 10.077
B83: Creditors - amounts falling due after more than one year
A84: 44 | B84: Non government loans | C84: £m | D84: B | E84: Historic values (outturn) | G84: =+G35 -> 0
A85: 44a | B85: Government loans | C85: £m | D85: I/B | E85: Historic values (outturn) | G85: =G36 -> -882.56
A86: 44b | B86: PPP Creditor | C86: £m | D86: I/B | E86: Historic values (outturn) | G86: =G37 -> -95.111
A87: 45 | B87: Other Creditors | C87: £m | D87: I/B | E87: Historic values (outturn) | G87: =G38 -> -1.076
A88: 46 | B88: Total Creditors falling due after more than one year | C88: £m | D88: C | E88: Historic values (outturn) | G88: =SUM(G84:G87) -> -978.747
B90: Provisions for liabilities & charges
A91: 47 | B91: Deferred tax provision | C91: £m | D91: B | E91: Historic values (outturn) | G91: =+G42 -> -187.416
A92: 48 | B92: Post employment asset / (liabilities) | C92: £m | D92: B | E92: Historic values (outturn) | G92: =+G44 -> -4.123 | I92: =I44 -> 7.253
A93: 49 | B93: Other provisions | C93: £m | D93: B | E93: Historic values (outturn) | G93: =+G45 -> -9.589 | I93: =I45 -> -20.679
A94: 50 | B94: Total provisions | C94: £m | D94: C | E94: Historic values (outturn) | G94: =SUM(G91:G93) -> -201.128
A95: 51 | B95: Net assets employed | C95: £m | D95: C | E95: Historic values (outturn) | G95: =+G70+G81+G88+G94 -> 6876.887
B97: Capital and reserves
A98: 52 | B98: Income and expenditure account | C98: £m | D98: I | E98: Historic values (outturn) | G98: -355.723
A99: 53 | B99: Current cost reserve | C99: £m | D99: I | E99: Historic values (outturn) | G99: 6560.92
A100: 54 | B100: Other reserves and share capital | C100: £m | D100: C | E100: Historic values (outturn) | G100: =+G50 -> 671.69
A101: 55 | B101: Total capital & reserves | C101: £m | D101: C | E101: Historic values (outturn) | G101: =SUM(G98:G100) -> 6876.887
G103: =ROUND(G101,1)=ROUND(G95,1) -> TRUE
G104: =ROUND(G101,3)-ROUND(G95,3) -> 0
A105: Return to 'Opening' Sheet

Sheet B3
A1: =CHECK!A1 -> Checks = 3
B2: Base historic data: Cash Flow
B4: Reconciliation of Current cost operating profit to net cash flow from operating activities
B7: Deriving Net cash flow from operating activities | C7: Units | D7: Field | E7: Additional Info | F7: =+Baseminus1 -> 2017-18 | G7: =+Baseyear -> 2018-19
A8: 1 | B8: Current cost operating profit | C8: £m | D8: B | E8: Historic values (outturn) | G8: =+'B1'!G48 -> 19.872
A9: 2 | B9: Working capital adjustment | C9: £m | D9: B | E9: Historic values (outturn) | G9: =+'B1'!G47*-1 -> -2.641
A10: 3 | B10: Movement in working capital | C10: £m | D10: I | E10: Historic values (outturn) | G10: 0.595
A11: 4 | B11: Receipts from other income | C11: £m | D11: I | E11: Historic values (outturn) | G11: 0
A12: 5 | B12: Current Cost depreciation | C12: £m | D12: B | E12: Historic values (outturn) | G12: =+'B1'!G40*-1 -> 146.888
A13: 6 | B13: Amortisation of PPP assets | C13: £m | D13: B | E13: Historic values (outturn) | G13: =+'B1'!G42*-1 -> 4.007
A14: 7 | B14: Amortisation of deferred income | C14: £m | D14: B | E14: Historic values (outturn) | G14: =+'B1'!G43*-1 -> -4.513
A15: 8 | B15: Current cost profit/(loss) on sale of assets | C15: £m | D15: B | E15: Historic values (outturn) | G15: =-'B1'!G44 -> -0.303
A16: 9 | B16: Infrastructure renewals charge | C16: £m | D16: B | E16: Historic values (outturn) | G16: =+'B1'!G41*-1 -> 30.761
A17: 10 | B17: Other non-cash profit and loss items | C17: £m | D17: I | E17: Historic values (outturn) | G17: -13.651
A18: 11 | B18: Net cash flow from operating activities | C18: £m | D18: C | E18: Historic values (outturn) | G18: =+G8+SUM(G9:G17) -> 181.015
B21: Cash Flow
B24: Net cash flow from operating activities | C24: Units | D24: Field | E24: Additional Info | F24: =+Baseminus1 -> 2017-18 | G24: =+Baseyear -> 2018-19
A25: 12 | B25: Net cash flow from operating activities | C25: £m | D25: B | E25: Historic values (outturn) | G25: =+G18 -> 181.015
B27: Cash changes in non-operating debtors/creditors and extraordinary items | C27: Units | D27: Field | E27: Additional Info | F27: =+Baseminus1 -> 2017-18 | G27: =+Baseyear -> 2018-19
A28: 13 | B28: Cash inflow/outflow from changes in non-trade debtors/creditors | C28: £m | D28: I | E28: Historic values (outturn) | G28: 0
A29: 14 | B29: Cash inflow/outflow from extraodinary items | C29: £m | D29: I | E29: Historic values (outturn) | G29: 0
B31: Returns on investments and servicing of finance
A32: 15 | B32: Interest received | C32: £m | D32: I | E32: Historic values (outturn) | G32: 0.134
A33: 16 | B33: Interest paid | C33: £m | D33: I | E33: Historic values (outturn) | G33: -42.208
A34: 16a | B34: PPP interest | C34: £m | D34: C | E34: Historic values (outturn) | G34: ='B1'!G21 -> -11.91322
A35: 17 | B35: Net cash flow from returns on Investment & servicing of finance | C35: £m | D35: C | E35: Historic values (outturn) | G35: =SUM(G32:G34) -> -53.98722
B37: Taxation
A38: 18 | B38: Taxation paid | C38: £m | D38: I | E38: Historic values (outturn) | G38: 0
B40: Capital expenditure and financial investment
A41: 19 | B41: Gross cost of purchase of fixed assets | C41: £m | D41: I | E41: Historic values (outturn) | G41: -130.59
A42: 20 | B42: Receipt of grants and contributions | C42: £m | D42: I | E42: Historic values (outturn) | G42: 5.757
A43: 21 | B43: Infrastructure renewals expenditure | C43: £m | D43: I | E43: Historic values (outturn) | G43: -31.368
A44: 22 | B44: Disposal of fixed assets | C44: £m | D44: I | E44: Historic values (outturn) | G44: 1.177
A45: 23 | B45: Movements on long term loans to group companies | C45: £m | D45: I | E45: Historic values (outturn) | G45: 0
A46: 24 | B46: Net cash flow from investing activities | C46: £m | D46: C | E46: Historic values (outturn) | G46: =SUM(G41:G45) -> -155.024
A47: 25 | B47: Acquisitions and disposals | C47: £m | D47: I | E47: Historic values (outturn) | G47: 0
A48: 26 | B48: Shareholder dividends paid | C48: £m | D48: I | E48: Historic values (outturn) | G48: -26.587
B50: Management of liquid resources
A51: 27 | B51: Net cash flow from management of liquid resources | C51: £m | D51: I | E51: Historic values (outturn) | G51: -5.3
A52: 28 | B52: Net Cash flow before financing | C52: £m | D52: C | E52: Historic values (outturn) | G52: =+G25+G28+G29+G35+G38+G46+G47+G48+G51 -> -59.88322
B55: Financing
A56: 29 | B56: New Government loans | C56: £m | D56: I | E56: Historic values (outturn) | G56: 75
A57: 30 | B57: Non-Government loans repayments | C57: £m | D57: I | E57: Historic values (outturn) | G57: 0
A58: 31 | B58: Government loans repayments | C58: £m | D58: I | E58: Historic values (outturn) | G58: 0
A59: 31a | B59: PPP Capital Repayments | C59: £m | D59: I | E59: Historic values (outturn) | G59: -3.675
A60: 32 | B60: Financial reserve | C60: £m | D60: I | E60: Historic values (outturn) | G60: 0
A61: 33 | B61: Net cash inflow from financing | C61: £m | D61: C | E61: Historic values (outturn) | G61: =SUM(G56:G60) -> 71.325
A62: 34 | B62: Increase (decrease) in cash and cash equivalents | C62: £m | D62: C | E62: Historic values (outturn) | G62: =+G52+G61 -> 11.44178
A66: Return to 'Opening' Sheet

Sheet B4
A1: =CHECK!A1 -> Checks = 3
B2: Base historic data: Working Capital and other non-trade debtors/creditors
B6: Description | C6: Units | D6: Field | E6: Additional Info | F6: =+Baseminus1 -> 2017-18 | G6: =+Baseyear -> 2018-19
A7: 1 | B7: Stocks | C7: £m | D7: I | E7: Historic values (outturn) | G7: 2.379
A8: 2 | B8: Trade debtors | C8: £m | D8: I | E8: Historic values (outturn) | G8: 7.998
A9: 3 | B9: Prepayments and other short term debtors | C9: £m | D9: I | E9: Historic values (outturn) | G9: 20.82
A10: 4 | B10: Trade creditors | C10: £m | D10: I | E10: Historic values (outturn) | G10: -2.62
A11: 5 | B11: Short-term capital creditors | C11: £m | D11: I | E11: Historic values (outturn) | G11: -56.699
A12: 6 | B12: Accruals, other creditors and deferred income | C12: £m | D12: I | E12: Historic values (outturn) | G12: -53.468
A13: 7 | B13: Total working capital | C13: £m | D13: C | E13: Calculated field | G13: =SUM(G7:G12) -> -81.59
A14: 8 | B14: Non-trade debtors | C14: £m | D14: B | E14: Calculated field | G14: ='B2'!G77 -> 0.007
A15: 9 | B15: Non-trade creditors | C15: £m | D15: B | E15: Calculated field | G15: ='B2'!G78 -> -5.218
A16: 10 | B16: Total Debtors + Creditors | C16: £m | D16: C | E16: Calculated field | G16: =+G13-G7+G14+G15 -> -89.18
B18: Check against Historic Cost Debtors + Creditors | F18: =F16=('B2'!F18+'B2'!F27) -> TRUE | G18: =G16=('B2'!G18+'B2'!G27) -> FALSE
E20: DIFF IN REG ACCTS | G20: =G16-('B2'!G18+'B2'!G27) -> 0.018
A22: Return to 'Opening' Sheet

Sheet B5
A1: =CHECK!A1 -> Checks = 3
B2: Base historic data: Tax
B6: Allocation of capital expenditure for tax purposes | C6: Units | D6: Field | E6: Additional Info | F6: =+Baseminus1 -> 2017-18 | G6: =+Baseyear -> 2018-19
A7: 1 | B7: Work in progress - Opening amount | C7: £m | D7: I | E7: Historic values (outturn) | G7: 0
A8: 2 | B8: Work in progress (portion where capital allowances have not been claimed) - opening | C8: £m | D8: I | E8: Historic values (outturn) | G8: 0
A9: 3 | B9: Total capitalised expenditure including IRE (outturn prices) including grants (less infra receipts) | C9: £m | D9: I | E9: Historic values (outturn) | G9: 162.2691507
A10: 3a | B10: IFRS Capex to Opex | C10: £m | D10: I | E10: Historic values (outturn) | G10: 0.985
A11: 3b | B11: Infrastructure Renewals Expenditure | C11: £m | D11: I | E11: Historic values (outturn) | G11: 30.18
A12: 3c | B12: Software | C12: £m | D12: I | E12: Historic values (outturn) | G12: 11.674
A13: 3d | B13: Non Engineering and Procurement | C13: £m | D13: I | E13: Historic values (outturn) | G13: 19.97122
A14: 4 | B14: Capitalised expenditure allocated for capital allowances (including Work in progress) | C14: £m | D14: C | E14: Calculated field | G14: =SUM(G9-G10-G11-G12-G13) -> 99.45893074
A15: 5 | B15: Work in progress (portion where capital allowances have not been claimed) - closing | C15: £m | D15: C | E15: Calculated field | G15: =+G9-G10-G11-G12-G13-G14 -> 0
A16: 6 | B16: Assets qualifying for 100% first year allowances | C16: £m | D16: I | E16: Historic values (outturn) | G16: 0
A17: 7 | B17: Assets to be included in the general (25%) pool | C17: £m | D17: I | E17: Historic values (outturn) | G17: 45.00552132
A18: 8 | B18: Assets qualifying for long life (6%) pool | C18: £m | D18: I | E18: Historic values (outturn) | G18: 47.13442461
A19: 9 | B19: Assets qualifying for Industrial Buildings Allowance | C19: £m | D19: I | E19: Historic values (outturn) | G19: 0
A20: 10 | B20: Assets purchased under finance leasing | C20: £m | D20: I | E20: Historic values (outturn) | G20: 0
A21: 11 | B21: Capitalised revenue expenditure deducted in year of spend | C21: £m | D21: I | E21: Historic values (outturn) | G21: 0
A22: 12 | B22: Capitalised revenue expenditure depreciated - non – infrastructure | C22: £m | D22: I | E22: Historic values (outturn) | G22: 0
A23: 13 | B23: Capitalised revenue expenditure depreciated – infrastructure | C23: £m | D23: I | E23: Historic values (outturn) | G23: 0
A24: 14 | B24: Capitalised revenue expenditure not depreciated | C24: £m | D24: I | E24: Historic values (outturn) | G24: 0
A25: 15 | B25: Other assets not qualifying for capital allowances or revenue deductions | C25: £m | D25: I | E25: Historic values (outturn) | G25: 7.4931603
B28: Opening position
A29: 17 | B29: Opening pool of capital allowances – asset life < 25 years | C29: £m | D29: I | E29: Historic values (outturn) | G29: 221.3414351
A30: 18 | B30: Opening pool of capital allowances – asset life >= 25 years | C30: £m | D30: I | E30: Historic values (outturn) | G30: 730.9961888
A31: 19 | B31: Residual IBA’s | C31: £m | D31: I | E31: Historic values (outturn) | G31: 0
A32: 20 | B32: General provisions – opening balance | C32: £m | D32: I | E32: Historic values (outturn) | G32: 0
A33: 21 | B33: Losses brought forward | C33: £m | D33: I | E33: Historic values (outturn) | G33: 229.6155632
A34: 22 | B34: Average asset life – non - infrastructure | C34: Years | D34: I | E34: Historic values (outturn) | G34: 60
A35: 23 | B35: Average asset life – infrastructure | C35: Years | D35: I | E35: Historic values (outturn) | G35: 100
B37: Calculation of trading profit
A38: 24 | B38: HCA Operating profit | C38: £m | D38: C | E38: Calculated field | G38: =+'B1'!G18+'B1'!G19 -> 119.545
A39: 25 | B39: Total HCA Depreciation | C39: £m | D39: B | E39: Calculated field | G39: ='B1'!G12*-1 -> 41.598
A40: 26 | B40: Infrastructure renewals charge | C40: £m | D40: B | E40: Calculated field | G40: =+'B1'!G13*-1 -> 30.761
A41: 27 | B41: Amortisation of PPP assets | C41: £m | D41: B | E41: Calculated field | G41: =+'B1'!G14*-1 -> 3.273
A42: 28 | B42: Amortisation of grants | C42: £m | D42: B | E42: Calculated field | G42: =+'B1'!G15*-1*0-0.425 -> -0.425
A43: 29 | B43: Deduction for capitalised revenue expenditure | C43: £m | D43: I | E43: Historic values (outturn) | G43: 0
A44: 29a | B44: IFRS capex to opex repairs | C44: £m | D44: I | E44: Historic values (outturn) | G44: -0.986
A45: 29b | B45: Customer Contributions (infrastructure receipts) | C45: £m | D45: I | E45: Historic values (outturn) | G45: 0
A46: 29c | B46: PPP opex (IFRS) Omega and Kinnegar | C46: £m | D46: I | E46: Historic values (outturn) | G46: 3.319
A47: 30 | B47: Trading profit | C47: £m | D47: C | E47: Calculated field | G47: =SUM(G38:G46) -> 197.085
B49: Deductions to trading profit
A50: 31 | B50: Depreciation on capitalised revenue expenditure – non – infrastructure | C50: £m | D50: I | E50: Historic values (outturn) | G50: 4.433
A51: 32 | B51: Depreciation on capitalised revenue expenditure – infrastructure | C51: £m | D51: I | E51: Historic values (outturn) | G51: 1.883
A52: 33 | B52: Total interest paid | C52: £m | D52: I | E52: Historic values (outturn) | G52: 55.067
A53: 34 | B53: Capital allowances - asset life <25 years | C53: £m | D53: I | E53: Historic values (outturn) | G53: 50.0378576
A54: 35 | B54: Capital allowances - asset life >=25 years | C54: £m | D54: I | E54: Historic values (outturn) | G54: 62.00071139
A55: 36 | B55: Industrial building allowance utilised | C55: £m | D55: I | E55: Historic values (outturn) | G55: 0
A56: 37 | B56: Other deductions | C56: £m | D56: I | E56: Historic values (outturn) | G56: 8.708074
A57: 38 | B57: Total deductions | C57: £m | D57: C | E57: Calculated field | G57: =SUM(G50:G56) -> 182.129643
B59: Additions to trading profit
A60: 39 | B60: Grants and contributions taxable on receipt | C60: £m | D60: B | E60: Calculated field | G60: =+G26*-1 -> 0
A61: 40 | B61: Other additions | C61: £m | D61: I | E61: Historic values (outturn) | G61: 0
A62: 41 | B62: Total additions | C62: £m | D62: C | E62: Calculated field | G62: =SUM(G60:G61) -> 0
B64: Taxation
A65: 42 | B65: Trading profit for tax | C65: £m | D65: C | E65: Calculated field | G65: =+G47+G62-G57 -> 14.955357
A66: 43 | B66: Adjusted trading profit for tax | C66: £m | D66: I | E66: Historic values (outturn) | G66: 0
A67: 44 | B67: Current tax charge | C67: £m | D67: I | E67: Historic values (outturn) | G67: 0
A68: 45 | B68: Prior Year adjustments | C68: £m | D68: I | E68: Historic values (outturn) | G68: 0
A69: 46 | B69: Total current tax charge | C69: £m | D69: C | E69: Calculated field | G69: =+G67+G68 -> 0
A73: Return to 'Opening' Sheet

Sheet B6
A1: =CHECK!A1 -> Checks = 3
B2: Base historic data: Maturity profile of closing (embedded) debt (as of 31 March 2018)
H4: Maturity of Base year closing debt
B5: Government loans | C5: Units | D5: Field | E5: Additional Info | F5: =+Baseminus1 -> 2017-18 | G5: =+Baseyear -> 2018-19 | H5: =+Baseplus1 -> 2019-20 | I5: =+Baseplus2 -> 2020-21 | J5: =+Baseplus3 -> 2021-22 | K5: =+Baseplus4 -> 2022-23 | L5: =+Baseplus5 -> 2023-24 | M5: =+Baseplus6 -> 2024-25 | N5: =+Baseplus7 -> 2025-26 | O5: =+Baseplus8 -> 2026-27 | P5: =+Baseplus9 -> 2027-28 | Q5: =+Baseplus10 -> 2028-29 | R5: =+Baseplus11 -> 2029-30 | S5: beyond 2024-25 | T5: Total
A6: 1 | B6: 3-3.99% | C6: £m | D6: I, C | H6: 0 | I6: 0 | J6: 0 | K6: 0 | L6: 0 | M6: 0 | N6: 0 | O6: 0 | P6: 0 | Q6: 0 | R6: 0 | S6: 0 | T6: =SUM(H6:S6) -> 0
A7: 2 | B7: 4-4.99% | C7: £m | D7: I, C | H7: 0 | I7: 0 | J7: 0 | K7: 0 | L7: 0 | M7: 0 | N7: 0 | O7: 0 | P7: 0 | Q7: 0 | R7: 0 | S7: 882.56 | T7: =SUM(H7:S7) -> 882.56
A8: 3 | B8: 5-5.99% | C8: £m | D8: I, C | H8: 0 | I8: 0 | J8: 0 | K8: 0 | L8: 0 | M8: 0 | N8: 0 | O8: 0 | P8: 0 | Q8: 0 | R8: 0 | S8: 0 | T8: 0
A9: 4 | B9: 6-6.99% | C9: £m | D9: I, C | H9: 0 | I9: 0 | J9: 0 | K9: 0 | L9: 0 | M9: 0 | N9: 0 | O9: 0 | P9: 0 | Q9: 0 | R9: 0 | S9: 0 | T9: 0
A10: 5 | B10: 7-7.99% | C10: £m | D10: I, C | H10: 0 | I10: 0 | J10: 0 | K10: 0 | L10: 0 | M10: 0 | N10: 0 | O10: 0 | P10: 0 | Q10: 0 | R10: 0 | S10: 0 | T10: 0
A11: 6 | B11: 8-8.99% | C11: £m | D11: I, C | H11: 0 | I11: 0 | J11: 0 | K11: 0 | L11: 0 | M11: 0 | N11: 0 | O11: 0 | P11: 0 | Q11: 0 | R11: 0 | S11: 0 | T11: 0
A12: 7 | B12: 9-9.99% | C12: £m | D12: I, C | H12: 0 | I12: 0 | J12: 0 | K12: 0 | L12: 0 | M12: 0 | N12: 0 | O12: 0 | P12: 0 | Q12: 0 | R12: 0 | S12: 0 | T12: 0
A13: 8 | B13: 10-10.99% | C13: £m | D13: I, C | H13: 0 | I13: 0 | J13: 0 | K13: 0 | L13: 0 | M13: 0 | N13: 0 | O13: 0 | P13: 0 | Q13: 0 | R13: 0 | S13: 0 | T13: 0
A14: 9 | B14: 11-11.99% | C14: £m | D14: I, C | H14: 0 | I14: 0 | J14: 0 | K14: 0 | L14: 0 | M14: 0 | N14: 0 | O14: 0 | P14: 0 | Q14: 0 | R14: 0 | S14: 0 | T14: 0
A15: 10 | B15: 12-12.99% | C15: £m | D15: I, C | H15: 0 | I15: 0 | J15: 0 | K15: 0 | L15: 0 | M15: 0 | N15: 0 | O15: 0 | P15: 0 | Q15: 0 | R15: 0 | S15: 0 | T15: 0
A16: 11 | B16: 13-13.99% | C16: £m | D16: I, C | H16: 0 | I16: 0 | J16: 0 | K16: 0 | L16: 0 | M16: 0 | N16: 0 | O16: 0 | P16: 0 | Q16: 0 | R16: 0 | S16: 0 | T16: 0
A17: 12 | B17: 14-14.99% | C17: £m | D17: I, C | H17: 0 | I17: 0 | J17: 0 | K17: 0 | L17: 0 | M17: 0 | N17: 0 | O17: 0 | P17: 0 | Q17: 0 | R17: 0 | S17: 0 | T17: 0
A18: 13 | B18: Total | C18: £m | D18: C | H18: =SUM(H6:H17) -> 0 | I18: 0 | J18: 0 | K18: 0 | L18: 0 | M18: 0 | N18: 0 | O18: 0 | P18: 0 | Q18: 0 | R18: 0 | S18: =SUM(S6:S17) -> 882.56 | T18: =SUM(H18:S18) -> 882.56
B21: Non - Government loans | C21: Units | D21: Field | E21: Additional Info | F21: =+Baseminus1 -> 2017-18 | G21: =+Baseyear -> 2018-19 | H21: =+Baseplus1 -> 2019-20 | I21: =+Baseplus2 -> 2020-21 | J21: =+Baseplus3 -> 2021-22 | K21: =+Baseplus4 -> 2022-23 | L21: =+Baseplus5 -> 2023-24 | M21: =+Baseplus6 -> 2024-25 | N21: =+Baseplus7 -> 2025-26 | O21: =+Baseplus8 -> 2026-27 | P21: =+Baseplus9 -> 2027-28 | Q21: =+Baseplus10 -> 2028-29 | R21: =+Baseplus11 -> 2029-30 | S21: beyond 2024-25 | T21: Total
A22: 14 | B22: 3-3.99% | C22: £m | D22: I, C | H22: 0 | I22: 0 | J22: 0 | K22: 0 | L22: 0 | M22: 0 | N22: 0 | O22: 0 | P22: 0 | Q22: 0 | R22: 0 | S22: 0 | T22: =SUM(H22:S22) -> 0
A23: 15 | B23: 4-4.99% | C23: £m | D23: I, C | H23: 0 | I23: 0 | J23: 0 | K23: 0 | L23: 0 | M23: 0 | N23: 0 | O23: 0 | P23: 0 | Q23: 0 | R23: 0 | S23: 0 | T23: =SUM(H23:S23) -> 0
A24: 16 | B24: 5-5.99% | C24: £m | D24: I, C | H24: 0 | I24: 0 | J24: 0 | K24: 0 | L24: 0 | M24: 0 | N24: 0 | O24: 0 | P24: 0 | Q24: 0 | R24: 0 | S24: 0 | T24: 0
A25: 17 | B25: 6-6.99% | C25: £m | D25: I, C | H25: 0 | I25: 0 | J25: 0 | K25: 0 | L25: 0 | M25: 0 | N25: 0 | O25: 0 | P25: 0 | Q25: 0 | R25: 0 | S25: 0 | T25: 0
A26: 18 | B26: 7-7.99% | C26: £m | D26: I, C | H26: 0 | I26: 0 | J26: 0 | K26: 0 | L26: 0 | M26: 0 | N26: 0 | O26: 0 | P26: 0 | Q26: 0 | R26: 0 | S26: 0 | T26: 0
A27: 19 | B27: 8-8.99% | C27: £m | D27: I, C | H27: 0 | I27: 0 | J27: 0 | K27: 0 | L27: 0 | M27: 0 | N27: 0 | O27: 0 | P27: 0 | Q27: 0 | R27: 0 | S27: 0 | T27: 0
A28: 20 | B28: 9-9.99% | C28: £m | D28: I, C | H28: 0 | I28: 0 | J28: 0 | K28: 0 | L28: 0 | M28: 0 | N28: 0 | O28: 0 | P28: 0 | Q28: 0 | R28: 0 | S28: 0 | T28: 0
A29: 21 | B29: 10-10.99% | C29: £m | D29: I, C | H29: 0 | I29: 0 | J29: 0 | K29: 0 | L29: 0 | M29: 0 | N29: 0 | O29: 0 | P29: 0 | Q29: 0 | R29: 0 | S29: 0 | T29: 0
A30: 22 | B30: 11-11.99% | C30: £m | D30: I, C | H30: 0 | I30: 0 | J30: 0 | K30: 0 | L30: 0 | M30: 0 | N30: 0 | O30: 0 | P30: 0 | Q30: 0 | R30: 0 | S30: 0 | T30: 0
A31: 23 | B31: 12-12.99% | C31: £m | D31: I, C | H31: 0 | I31: 0 | J31: 0 | K31: 0 | L31: 0 | M31: 0 | N31: 0 | O31: 0 | P31: 0 | Q31: 0 | R31: 0 | S31: 0 | T31: 0
A32: 24 | B32: 13-13.99% | C32: £m | D32: I, C | H32: 0 | I32: 0 | J32: 0 | K32: 0 | L32: 0 | M32: 0 | N32: 0 | O32: 0 | P32: 0 | Q32: 0 | R32: 0 | S32: 0 | T32: 0
A33: 25 | B33: 14-14.99% | C33: £m | D33: I, C | H33: 0 | I33: 0 | J33: 0 | K33: 0 | L33: 0 | M33: 0 | N33: 0 | O33: 0 | P33: 0 | Q33: 0 | R33: 0 | S33: 0 | T33: 0
A34: 26 | B34: Total | C34: £m | D34: C | H34: =SUM(H22:H33) -> 0 | I34: 0 | J34: 0 | K34: 0 | L34: 0 | M34: 0 | N34: 0 | O34: 0 | P34: 0 | Q34: 0 | R34: 0 | S34: =SUM(S22:S33) -> 0 | T34: 0
A38: Return to 'Opening' Sheet

Sheet B7
A1: =CHECK!A1 -> Checks = 3
B2: Base historic data: Depreciation and amortisation of closing assets
B4: Historic Cost Accounts
B6: Historic cost Fixed Assets | C6: Units | D6: Field Type | E6: Additional Info | F6: =+Baseminus1 -> 2017-18 | G6: =+Baseyear -> 2018-19
A7: 1 | B7: Gross Fixed Assets - assets existing at 31 March 2013 | C7: £m | D7: I | G7: 1907.708399
A8: 2 | B8: Accumulated depreciation - assets existing at 31 March 2013 | C8: £m | D8: I | E8: Input negative | G8: -115.2053994
A9: 3 | B9: Net book value - assets existing at 31 March 2013 | C9: £m | D9: C | G9: =SUM(G7:G8) -> 1792.503
B11: Expected Historic cost depreciation | C11: Units | D11: Field Type | E11: Additional Info | F11: =+Baseminus1 -> 2017-18 | G11: =+Baseyear -> 2018-19 | H11: =+Baseplus1 -> 2019-20 | I11: =+Baseplus2 -> 2020-21 | J11: =+Baseplus3 -> 2021-22 | K11: =+Baseplus4 -> 2022-23 | L11: =+Baseplus5 -> 2023-24 | M11: =+Baseplus6 -> 2024-25 | N11: =+Baseplus7 -> 2025-26 | O11: =+Baseplus8 -> 2026-27 | P11: =+Baseplus9 -> 2027-28 | Q11: =+Baseplus10 -> 2028-29
A12: 4 | B12: Expected historic cost depreciation on assets existing at 31 March 2013 | C12: £m | D12: I | E12: Input negative | H12: -43.13812947 | I12: -38.45942888 | J12: -38.12646526 | K12: -33.86481138 | L12: -30.9819737 | M12: -27.46686766 | N12: -25.45583771 | O12: -24.3649912 | P12: -24.3649912 | Q12: -24.3649912
B14: Expected Historic Cost amortisation | C14: Units | D14: Field Type | E14: Additional Info | F14: =+Baseminus1 -> 2017-18 | G14: =+Baseyear -> 2018-19 | H14: =+Baseplus1 -> 2019-20 | I14: =+Baseplus2 -> 2020-21 | J14: =+Baseplus3 -> 2021-22 | K14: =+Baseplus4 -> 2022-23 | L14: =+Baseplus5 -> 2023-24 | M14: =+Baseplus6 -> 2024-25 | N14: =+Baseplus7 -> 2025-26 | O14: =+Baseplus8 -> 2026-27 | P14: =+Baseplus9 -> 2027-28 | Q14: =+Baseplus10 -> 2028-29
A15: 5 | B15: Amortisation of existing grants and contributions (31 March 2013) | C15: £m | D15: I | E15: Input negative | H15: -0.8073258693 | I15: -0.8073258693 | J15: -0.7985649263 | K15: -0.76652652 | L15: -0.7469816861 | M15: -0.7107665734 | N15: -0.6851346097 | O15: -0.6540944174 | P15: -0.6540944174 | Q15: -0.6540944174
B17: Current Cost accounts
B19: Current cost Fixed assets | C19: Units | D19: Field Type | E19: Additional Info | F19: =+Baseminus1 -> 2017-18 | G19: =+Baseyear -> 2018-19
A20: 6 | B20: Gross Fixed Assets - assets existing at 31 March 2013 | C20: £m | D20: I | G20: 8933.987
A21: 7 | B21: Accumulated depreciation - assets existing at 31 March 2013 | C21: £m | D21: I | E21: Input negative | G21: -629.449
A22: 8 | B22: Net book value - assets existing at 31 March 2013 | C22: £m | D22: C | G22: =SUM(G20:G21) -> 8304.538
B24: Expected current cost depreciation | C24: Units | D24: Field Type | E24: Additional Info | F24: =+Baseminus1 -> 2017-18 | G24: =+Baseyear -> 2018-19 | H24: =+Baseplus1 -> 2019-20 | I24: =+Baseplus2 -> 2020-21 | J24: =+Baseplus3 -> 2021-22 | K24: =+Baseplus4 -> 2022-23 | L24: =+Baseplus5 -> 2023-24 | M24: =+Baseplus6 -> 2024-25 | N24: =+Baseplus7 -> 2025-26 | O24: =+Baseplus8 -> 2026-27 | P24: =+Baseplus9 -> 2027-28 | Q24: =+Baseplus10 -> 2028-29
A25: 9 | B25: Expected current cost depreciation on assets existing at 31 March 2013 | C25: £m | D25: I | E25: Base year prices / Input negative | H25: -124.931581 | I25: -94.72566989 | J25: -98.51929267 | K25: -85.71375425 | L25: -80.98662074 | M25: -76.21204994 | N25: -73.04853527 | O25: -71.04534659 | P25: -71.04534659 | Q25: -71.04534659
A26: 10 | B26: Current cost depreciation on WIP assets (commissioned after 31 March 2013) | C26: £m | D26: I | E26: Base year prices / Input negative | H26: -1.349792823 | I26: -5.631235086 | J26: -5.678088028 | K26: -5.702285984 | L26: -5.630968642 | M26: -5.482978136 | N26: -5.158887106 | O26: -4.794418568 | P26: -4.794418568 | Q26: -4.794418568
B28: Amortisation of existing current cost Third Party Contributions | C28: Units | D28: Field Type | E28: Additional Info | F28: =+Baseminus1 -> 2017-18 | G28: =+Baseyear -> 2018-19 | H28: =+Baseplus1 -> 2019-20 | I28: =+Baseplus2 -> 2020-21 | J28: =+Baseplus3 -> 2021-22 | K28: =+Baseplus4 -> 2022-23 | L28: =+Baseplus5 -> 2023-24 | M28: =+Baseplus6 -> 2024-25 | N28: =+Baseplus7 -> 2025-26 | O28: =+Baseplus8 -> 2026-27 | P28: =+Baseplus9 -> 2027-28 | Q28: =+Baseplus10 -> 2028-29
A29: 11 | B29: Amortisation of existing current cost Third Party Contributions | C29: £m | D29: I | E29: Base year prices / Input negative | H29: -3.667831362 | I29: -3.667831362 | J29: -3.589133972 | K29: -3.301340873 | L29: -3.125774452 | M29: -2.80046303 | N29: -2.570217423 | O29: -2.291391034 | P29: -2.291391034 | Q29: -2.291391034
B31: Historic Cost Accounts
A33: 12 | B33: PPP assets (GBV) | C33: £m | D33: I | G33: 115.09
A34: 13 | B34: Accumulated depreciation - PPP existing at 31 March 2013 | C34: £m | D34: I | E34: Input negative | G34: -15.25
A35: 14 | B35: Net book value - PPP assets existing at 31 March 2013 | C35: £m | D35: C | G35: =SUM(G33:G34) -> 99.84
A36: 15 | B36: PPP Addition | H36: 0
B37: Current Cost accounts
A39: 16 | B39: PPP assets (GBV) | C39: £m | D39: I | G39: 136.733
A40: 17 | B40: Accumulated depreciation - PPP existing at 31 March 2013 | C40: £m | D40: I | E40: Input negative | G40: -17.461
A41: 18 | B41: Net book value - PPP assets existing at 31 March 2013 | C41: £m | D41: C | G41: =SUM(G39:G40) -> 119.272
A42: 19 | B42: PPP Addition | H42: 0
A44: Return to 'Opening' Sheet

Sheet Assumptions -->
A1: =CHECK!A1 -> Checks = 3

Sheet A1
A1: =CHECK!A1 -> Checks = 3
B2: Assumptions: Inflation
B4: Retail price Index (RPI)
G5: Base year
C6: =+Baseminus4 -> 2014-15 | D6: =+Baseminus3 -> 2015-16 | E6: =+Baseminus2 -> 2016-17 | F6: =+Baseminus1 -> 2017-18 | G6: =+Baseyear -> 2018-19 | H6: =+Baseplus1 -> 2019-20 | I6: =+Baseplus2 -> 2020-21 | J6: =+Baseplus3 -> 2021-22 | K6: =+Baseplus4 -> 2022-23 | L6: =+Baseplus5 -> 2023-24 | M6: =+Baseplus6 -> 2024-25 | N6: =+Baseplus7 -> 2025-26 | O6: =+Baseplus8 -> 2026-27 | P6: =+Baseplus9 -> 2027-28 | Q6: =+Baseplus10 -> 2028-29
A7: 1 | B7: Financial Year Average | C7: 251.7333333 | D7: 256.6666667 | E7: 259.4333333 | F7: 264.9916667 | G7: 274.9083333 | H7: =+G7*(1+H8) -> 284.2552167 | I7: =+H7*(1+I8) -> 293.919894 | J7: =+I7*(1+J8) -> 303.9131704 | K7: 314.2462182 | L7: 324.9305896 | M7: 335.9782297 | N7: 347.4014895 | O7: 359.2131401 | P7: 371.4263869 | Q7: 384.0548841
A8: 2 | B8: % increase | D8: =+D7/C7-1 -> 0.01959745763 | E8: =+E7/D7-1 -> 0.01077922078 | F8: =+F7/E7-1 -> 0.02142490042 | G8: =+G7/F7-1 -> 0.03742256046 | H8: 0.034 | I8: 0.034 | J8: 0.034 | K8: =+J8 -> 0.034 | L8: 0.034 | M8: 0.034 | N8: 0.034 | O8: 0.034 | P8: 0.034 | Q8: 0.034
B10: Capital index (RPI)
G11: Base year
C12: =+Baseminus4 -> 2014-15 | D12: =+Baseminus3 -> 2015-16 | E12: =+Baseminus2 -> 2016-17 | F12: =+Baseminus1 -> 2017-18 | G12: =+Baseyear -> 2018-19 | H12: =+Baseplus1 -> 2019-20 | I12: =+Baseplus2 -> 2020-21 | J12: =+Baseplus3 -> 2021-22 | K12: =+Baseplus4 -> 2022-23 | L12: =+Baseplus5 -> 2023-24 | M12: =+Baseplus6 -> 2024-25 | N12: =+Baseplus7 -> 2025-26 | O12: =+Baseplus8 -> 2026-27 | P12: =+Baseplus9 -> 2027-28 | Q12: =+Baseplus10 -> 2028-29
A13: 3 | B13: Financial Year Average | C13: 251.7333333 | D13: 256.6666667 | E13: 259.4333333 | F13: 264.9916667 | G13: 274.9083333 | H13: =+G13*(1+H14) -> 284.2552167 | I13: =+H13*(1+I14) -> 293.919894 | J13: 303.9131704 | K13: 314.2462182 | L13: 324.9305896 | M13: 335.9782297 | N13: 347.4014895 | O13: 359.2131401 | P13: 371.4263869 | Q13: 384.0548841
A14: 4 | B14: % increase | D14: =+D13/C13-1 -> 0.01959745763 | E14: =+E13/D13-1 -> 0.01077922078 | F14: =+F13/E13-1 -> 0.02142490042 | G14: =+G13/F13-1 -> 0.03742256046 | H14: 0.034 | I14: 0.034 | J14: 0.034 | K14: 0.034 | L14: 0.034 | M14: 0.034 | N14: 0.034 | O14: 0.034 | P14: 0.034 | Q14: 0.034
C16: 113.975 | D16: 110.475 | E16: 107.375 | F16: 109.95 | G16: 113.575
B17: Inflation assumption (embedded debt calculations)
A19: 5 | B19: Inflation assumption for embedded debt | J19: =+J8 -> 0.034 | K19: =+K8 -> 0.034 | L19: =+L8 -> 0.034 | M19: =+M8 -> 0.034 | N19: 0.034 | O19: 0.034 | P19: 0.034 | Q19: 0.034
A21: Return to 'Opening' Sheet

Sheet A2
A1: =CHECK!A1 -> Checks = 3
B2: Assumptions: Financing
B5: Cost of Capital | C5: Units | D5: Field | E5: Additional Info | F5: =+Baseminus1 -> 2017-18 | G5: =+Baseyear -> 2018-19 | H5: All years
A6: 1 | B6: Cost of Debt | C6: % | D6: I | E6: Input real | H6: =(1+4.72376520786859%)/(1+3.4%)-1 -> 0.01280237145
A7: 2 | B7: Cost of Equity | C7: % | D7: I | E7: Input real | H7: 0.0565
A8: 3 | B8: Gearing | C8: % | D8: I | H8: 0.5
B10: Financing and borrowing | C10: Units | D10: Field | E10: Additional Info | F10: =+Baseminus1 -> 2017-18 | G10: =+Baseyear -> 2018-19 | H10: =+Baseplus1 -> 2019-20 | I10: =+Baseplus2 -> 2020-21 | J10: =+Baseplus3 -> 2021-22 | K10: =+Baseplus4 -> 2022-23 | L10: =+Baseplus5 -> 2023-24 | M10: =+Baseplus6 -> 2024-25 | N10: =+Baseplus7 -> 2025-26 | O10: =+Baseplus8 -> 2026-27 | P10: =+Baseplus9 -> 2027-28 | Q10: =+Baseplus10 -> 2028-29
A11: 4 | B11: Financing cost | C11: % | D11: I | E11: Input nominal | H11: 0.0472 | I11: 0.0472 | J11: 0.0472 | K11: 0.0472 | L11: 0.0472 | M11: 0.0472 | N11: 0.0472 | O11: 0.0472 | P11: 0.0472 | Q11: 0.0472
A12: 5 | B12: New Public Borrowing available* | C12: £m | D12: I | E12: Input nominal
A13: 6 | B13: Interest on cash balances/short term investments | C13: % | D13: I | E13: Input nominal | H13: 0.0025 | I13: 0.0025 | J13: 0.0025 | K13: 0.0025 | L13: 0.0025 | M13: 0.0025 | N13: 0.0025 | O13: 0.0025 | P13: 0.0025 | Q13: 0.0025
A14: 7 | B14: Interest on liquid financial reserves | C14: % | D14: I | E14: Input nominal | H14: 0 | I14: 0 | J14: 0 | K14: 0 | L14: 0 | M14: 0 | N14: 0 | O14: 0 | P14: 0 | Q14: 0
B16: * The 2008-09 figure includes any carry-over of unused Public borrowing
B18: Dividends foregone and Financial reserve | C18: Units | D18: Field | E18: Additional Info | F18: =+Baseminus1 -> 2017-18 | G18: =+Baseyear -> 2018-19 | H18: =+Baseplus1 -> 2019-20 | I18: =+Baseplus2 -> 2020-21 | J18: =+Baseplus3 -> 2021-22 | K18: =+Baseplus4 -> 2022-23 | L18: =+Baseplus5 -> 2023-24 | M18: =+Baseplus6 -> 2024-25 | N18: =+Baseplus7 -> 2025-26 | O18: =+Baseplus8 -> 2026-27 | P18: =+Baseplus9 -> 2027-28 | Q18: =+Baseplus10 -> 2028-29
A19: 8 | B19: Dividends foregone by the Government | C19: % | D19: I | E19: % unleveraged portion RCV | J19: 0 | K19: 0 | L19: 0 | M19: 0 | N19: 0 | O19: 0 | P19: 0 | Q19: 0
A20: 9 | B20: Increase in liquid financial reserve levels | C20: £m | D20: I | E20: Change in the year (Outturn) | H20: 0 | I20: 0 | J20: 0 | K20: 0 | L20: 0 | M20: 0 | N20: 0 | O20: 0 | P20: 0 | Q20: 0
B23: Benchmark ratios | C23: Units | D23: Field | E23: Additional Info | F23: =+Baseminus1 -> 2017-18 | G23: =+Baseyear -> 2018-19 | H23: Reference
A24: 10 | B24: Cash interest cover | C24: number | D24: F | E24: Around | H24: 3
A25: 11 | B25: Adjusted cash interest cover I (maintenance charges) | C25: number | D25: F | E25: Around | H25: 1.6
A26: 12 | B26: Adjusted cash interest cover II (maintenance expenditure) | C26: number | D26: F | E26: Around | H26: 2
A27: 13 | B27: Funds from operations:debt | C27: % | D27: F | E27: Greater than | H27: 0.13
A28: 14 | B28: Retained cashflow:debt | C28: % | D28: F | E28: Greater than | H28: 0.08
A29: 15 | B29: Gearing | C29: % | D29: F | E29: Less than | H29: 0.55
A30: 16 | B30: 'Around' bandings | C30: % | D30: F | E30: +/- % of target | H30: 0.2
B33: NI Water RCV
B35: Regulatory Capital Value | C35: Units | D35: Field | E35: Additional Info | F35: =+Baseminus1 -> 2017-18 | G35: =+Baseyear -> 2018-19 | H35: =+Baseplus1 -> 2019-20 | I35: =+Baseplus2 -> 2020-21 | J35: =+Baseplus3 -> 2021-22 | K35: =+Baseplus4 -> 2022-23 | L35: =+Baseplus5 -> 2023-24 | M35: =+Baseplus6 -> 2024-25 | N35: =+Baseplus7 -> 2025-26 | O35: =+Baseplus8 -> 2026-27 | P35: =+Baseplus9 -> 2027-28 | Q35: =+Baseplus10 -> 2028-29
A36: 17 | B36: Closing RCV (2020-21) | C36: £m | D36: I | E36: 2018-19 price base | I36: 2054.753
A37: 18 | B37: Adjustments | C37: £m | D37: I | E37: Base year | J37: 0 | K37: 0 | L37: 0 | M37: 0 | N37: 0 | O37: 0 | P37: 0 | Q37: 0
A41: Return to 'Opening' Sheet

Sheet A3
A3: =CHECK!A1 -> Checks = 3
B4: Assumptions: Capital expenditure
B6: Total capital expenditure
B8: Total capital expenditure - post efficiency | C8: Units | D8: Field Type | E8: Additional Info | F8: =+Baseminus1 -> 2017-18 | G8: =+Baseyear -> 2018-19 | H8: =+Baseplus1 -> 2019-20 | I8: =+Baseplus2 -> 2020-21 | J8: =+Baseplus3 -> 2021-22 | K8: =+Baseplus4 -> 2022-23 | L8: =+Baseplus5 -> 2023-24 | M8: =+Baseplus6 -> 2024-25 | N8: =+Baseplus7 -> 2025-26 | O8: =+Baseplus8 -> 2026-27 | P8: =+Baseplus9 -> 2027-28 | Q8: =+Baseplus10 -> 2028-29
A9: 1 | B9: Capital expenditure: Maintenance Non-Infrastructure (net of grants) | C9: £m | D9: I | E9: Enter amount (Base year prices) | H9: 59.938 | I9: 38.67359485 | J9: 55.37942016 | K9: 55.04714364 | L9: 54.71686078 | M9: 54.38855961 | N9: 54.06222826 | O9: 53.73785489 | P9: 98.037 | Q9: 98.716
A10: 2 | B10: Capital expenditure: Enhancement Non-Infrastructure (net of grants) | C10: £m | D10: I | E10: Enter amount (Base year prices) | H10: 34.629 | I10: 37.70179962 | J10: 30.39397195 | K10: 29.99734158 | L10: 29.56058189 | M10: 29.31038041 | N10: 28.79423557 | O10: 29.23331036 | P10: 147.104 | Q10: 147.05
A11: 3 | B11: Capital expenditure: Maintenance Infrastructure (net of grants) | C11: £m | D11: I | E11: Enter amount (Base year prices) | H11: 33.36 | I11: 30.40283445 | J11: 23.18920256 | K11: 23.05006734 | L11: 22.91176694 | M11: 22.77429634 | N11: 22.63765056 | O11: 22.50182466 | P11: 80.669 | Q11: 80.659
A12: 4 | B12: Capital expenditure: Enhancement Infrastructure (net of grants) | C12: £m | D12: I | E12: Enter amount (Base year prices) | H12: 29.857 | I12: 34.44439567 | J12: 29.04093905 | K12: 28.60667905 | L12: 28.12847795 | M12: 28.05947073 | N12: 27.495507 | O12: 27.97365807 | P12: 106.251 | Q12: 103.811
A13: 5 | B13: Capital Expenditure c/f: Non infrastructure | C13: £m | D13: I | E13: Enter amount (Base year prices) | H13: 0 | I13: 0 | J13: 0 | K13: 0 | L13: 0 | M13: 0 | N13: 0 | O13: 0 | P13: 0 | Q13: 0
A14: 6 | B14: Capital Expenditure c/f: infrastructure | C14: £m | D14: I | E14: Enter amount (Base year prices) | H14: 0 | I14: 0 | J14: 0 | K14: 0 | L14: 0 | M14: 0 | N14: 0 | O14: 0 | P14: 0 | Q14: 0
A15: 7 | B15: Grants and Third Party Contributions | C15: £m | D15: I | E15: Enter amount (Base year prices) | H15: 5.701 | I15: 5.619357367 | J15: 5.784869209 | K15: 5.784869209 | L15: 5.784869209 | M15: 5.584869209 | N15: 5.584869209 | O15: 5.584869209 | P15: 5.032 | Q15: 5.032
A16: 7a | B16: Infrastructure charge receipts | C16: £m | D16: I | E16: Enter amount (Base year prices) | H16: 2.258 | I16: 2.417 | J16: 2.497 | K16: 2.581 | L16: 2.669 | M16: 2.76 | N16: 2.859 | O16: 2.962 | P16: 3.068 | Q16: 3.178
A17: 8 | B17: Total Capital Programme | C17: £m | D17: C | E17: Calculated Field | H17: =SUM(H9:H15) -> 163.485 | I17: =SUM(I9:I15) -> 146.841982 | J17: 143.7884029 | K17: 142.4861008 | L17: 141.1025568 | M17: 140.1175763 | N17: 138.5744906 | O17: 139.0315172 | P17: 437.093 | Q17: 435.268
B19: Deductions from Capital Expenditure for tax calcs | C19: Units | D19: Field Type | E19: Additional Info | F19: =+Baseminus1 -> 2017-18 | G19: =+Baseyear -> 2018-19 | H19: =+Baseplus1 -> 2019-20 | I19: =+Baseplus2 -> 2020-21 | J19: =+Baseplus3 -> 2021-22 | K19: =+Baseplus4 -> 2022-23 | L19: =+Baseplus5 -> 2023-24 | M19: =+Baseplus6 -> 2024-25 | N19: =+Baseplus7 -> 2025-26 | O19: =+Baseplus8 -> 2026-27 | P19: =+Baseplus9 -> 2027-28 | Q19: =+Baseplus10 -> 2028-29
A20: 8a | B20: IFRS Capex to Opex | C20: £m | D20: I | E20: Enter amount (Base year prices) | H20: 0.9609756098 | I20: 0.9348011768 | J20: 0.9379994159 | K20: 0.9379967868 | L20: 0.9080014528 | M20: 0.9080002091 | N20: 0.8780027984 | O20: 0.8779992562 | P20: 0.8779998842 | Q20: 0.8780010966
A21: 8b | B21: Software | C21: £m | D21: I/C/B | E21: Base year prices | H21: =4.699/('A1'!H13/'A1'!Copibaseavg) -> 4.544487427 | I21: =3.679/('A1'!I13/'A1'!Copibaseavg) -> 3.441031992 | J21: =+I21 -> 3.441031992 | K21: =+J21 -> 3.441031992 | L21: 3.441031992 | M21: 3.441031992 | N21: 3.441031992 | O21: 3.441031992 | P21: 3.441031992 | Q21: 3.441031992
A22: 8c | B22: Non Engineering and Procurement Expenditure | C22: £m | D22: I/C/B | E22: Base year prices | H22: 17 | I22: 17 | J22: 17 | K22: 17 | L22: 17 | M22: 17 | N22: 17 | O22: 17 | P22: 17 | Q22: 17
B24: Non infrastructure: Allocation of capital expenditure into asset life categories
B26: Allocation of capital maintenance - non infrastructure | C26: Units | D26: Field Type | E26: Additional Info | F26: =+Baseminus1 -> 2017-18 | G26: =+Baseyear -> 2018-19 | H26: =+Baseplus1 -> 2019-20 | I26: =+Baseplus2 -> 2020-21 | J26: =+Baseplus3 -> 2021-22 | K26: =+Baseplus4 -> 2022-23 | L26: =+Baseplus5 -> 2023-24 | M26: =+Baseplus6 -> 2024-25 | N26: =+Baseplus7 -> 2025-26 | O26: =+Baseplus8 -> 2026-27 | P26: =+Baseplus9 -> 2027-28 | Q26: =+Baseplus10 -> 2028-29
A27: 9 | B27: Very Short | C27: % | D27: I | E27: % apportioned to this life category | H27: 0 | I27: 0 | J27: 0.02836431085 | K27: 0.03451873963 | L27: 0.03912395648 | M27: 0.06042232666 | N27: 0.03156520201 | O27: 0.02543212561 | P27: 0.02742833266 | Q27: 0.02742833266
A28: 10 | B28: Short | C28: % | D28: I | E28: % apportioned to this life category | H28: 0.1421672546 | I28: 0.1364895935 | J28: 0.2402548646 | K28: 0.2282519777 | L28: 0.2788223393 | M28: 0.3033326458 | N28: 0.247925834 | O28: 0.2214250971 | P28: 0.2248337008 | Q28: 0.2248337008
A29: 11 | B29: Medium | C29: % | D29: I | E29: % apportioned to this life category | H29: 0.4563169192 | I29: 0.4760574869 | J29: 0.3960571836 | K29: 0.3921609327 | L29: 0.3545362566 | M29: 0.3404726543 | N29: 0.4076649963 | O29: 0.4312988057 | P29: 0.4068206544 | Q29: 0.4068206544
A30: 12 | B30: Medium long | C30: % | D30: I | E30: % apportioned to this life category | H30: 0 | I30: 0 | J30: 0 | K30: 0 | L30: 0 | M30: 0 | N30: 0 | O30: 0 | P30: 0 | Q30: 0
A31: 13 | B31: Long | C31: % | D31: I | E31: % apportioned to this life category | H31: 0.4015158263 | I31: 0.3874529196 | J31: 0.3353236409 | K31: 0.3450683499 | L31: 0.3275174476 | M31: 0.2957723732 | N31: 0.3128439676 | O31: 0.3218439716 | P31: 0.3409173121 | Q31: 0.3409173121
A32: 14 | B32: Infinite (land) | C32: % | D32: I | E32: % apportioned to this life category | H32: 0 | I32: 0 | J32: 0 | K32: 0 | L32: 0 | M32: 0 | N32: 0 | O32: 0 | P32: 0 | Q32: 0
A33: 15 | B33: Total | C33: % | D33: C | E33: Calculated field (should equal 100%) | H33: =SUM(H27:H32) -> 1 | I33: =SUM(I27:I32) -> 1 | J33: 1 | K33: 1 | L33: 1 | M33: 1 | N33: 1 | O33: 1 | P33: 1 | Q33: 1
B34: =IF(COUNTIF(H34:Q34,"False")=0,"OK","Check") -> OK | H34: =ROUND(H33, 0.1)=100% -> TRUE | I34: =ROUND(I33, 0.1)=100% -> TRUE | J34: TRUE | K34: TRUE | L34: TRUE | M34: TRUE | N34: TRUE | O34: TRUE | P34: TRUE | Q34: TRUE
B36: Allocation of capital enhancement - non infrastructure | C36: Units | D36: Field Type | E36: Additional Info | F36: =+Baseminus1 -> 2017-18 | G36: =+Baseyear -> 2018-19 | H36: =+Baseplus1 -> 2019-20 | I36: =+Baseplus2 -> 2020-21 | J36: =+Baseplus3 -> 2021-22 | K36: =+Baseplus4 -> 2022-23 | L36: =+Baseplus5 -> 2023-24 | M36: =+Baseplus6 -> 2024-25 | N36: =+Baseplus7 -> 2025-26 | O36: =+Baseplus8 -> 2026-27 | P36: =+Baseplus9 -> 2027-28 | Q36: =+Baseplus10 -> 2028-29
A37: 16 | B37: Very Short | C37: % | D37: I | E37: % apportioned to this life category | H37: 0 | I37: 0 | J37: 0.0160329666 | K37: 0.01530008063 | L37: 0.02128751635 | M37: 0.007800125065 | N37: 0.007942252104 | O37: 0.004659621619 | P37: 0.009127820295 | Q37: 0.009127820295
A38: 17 | B38: Short | C38: % | D38: I | E38: % apportioned to this life category | H38: 0.2524160433 | I38: 0.1912708921 | J38: 0.3204204504 | K38: 0.305859247 | L38: 0.3551027476 | M38: 0.3268221128 | N38: 0.2627071628 | O38: 0.2501192167 | P38: 0.2830897341 | Q38: 0.2830897341
A39: 18 | B39: Medium | C39: % | D39: I | E39: % apportioned to this life category | H39: 0.3205188496 | I39: 0.4071740891 | J39: 0.3795774995 | K39: 0.346927804 | L39: 0.3952363245 | M39: 0.3537096059 | N39: 0.3073625139 | O39: 0.3066354304 | P39: 0.3521427646 | Q39: 0.3521427646
A40: 19 | B40: Medium long | C40: % | D40: I | E40: % apportioned to this life category | H40: 0.00425204293 | I40: 0 | J40: 0 | K40: 0 | L40: 0 | M40: 0 | N40: 0 | O40: 0 | P40: 0.0005315053662 | Q40: 0.0005315053662
A41: 20 | B41: Long | C41: % | D41: I | E41: % apportioned to this life category | H41: 0.4228130642 | I41: 0.4015550189 | J41: 0.2839690836 | K41: 0.3319128683 | L41: 0.2283734115 | M41: 0.3116681562 | N41: 0.4219880713 | O41: 0.4385857314 | P41: 0.3551081757 | Q41: 0.3551081757
A42: 21 | B42: Infinite (land) | C42: % | D42: I | E42: % apportioned to this life category | H42: 0 | I42: 0 | J42: 0 | K42: 0 | L42: 0 | M42: 0 | N42: 0 | O42: 0 | P42: 0 | Q42: 0
A43: 22 | B43: Total | C43: % | D43: C | E43: Calculated field (should equal 100%) | H43: =SUM(H37:H42) -> 1 | I43: =SUM(I37:I42) -> 1 | J43: 1 | K43: 1 | L43: 1 | M43: 1 | N43: 1 | O43: 1 | P43: 1 | Q43: 1
B44: =IF(COUNTIF(H44:Q44,"False")=0,"OK","Check") -> OK | H44: =ROUND(H43, 0.1)=100% -> TRUE | I44: =ROUND(I43, 0.1)=100% -> TRUE | J44: TRUE | K44: TRUE | L44: TRUE | M44: TRUE | N44: TRUE | O44: TRUE | P44: TRUE | Q44: TRUE
B46: Non infrastructure c/f - Allocation of capital expenditure into asset life categories
B48: Allocation of capital maintenance - non infrastructure | C48: Units | D48: Field Type | E48: Additional Info | F48: =+Baseminus1 -> 2017-18 | G48: =+Baseyear -> 2018-19 | H48: =+Baseplus1 -> 2019-20 | I48: =+Baseplus2 -> 2020-21 | J48: =+Baseplus3 -> 2021-22 | K48: =+Baseplus4 -> 2022-23 | L48: =+Baseplus5 -> 2023-24 | M48: =+Baseplus6 -> 2024-25 | N48: =+Baseplus7 -> 2025-26 | O48: =+Baseplus8 -> 2026-27 | P48: =+Baseplus9 -> 2027-28 | Q48: =+Baseplus10 -> 2028-29
A49: 23 | B49: Very Short | C49: % | D49: I/B | E49: % apportioned to this life category | H49: 0 | I49: 0 | J49: 0 | K49: 0 | L49: 0 | M49: 0 | N49: 0 | O49: 0 | P49: 0 | Q49: 0
A50: 24 | B50: Short | C50: % | D50: I/B | E50: % apportioned to this life category | H50: 0 | I50: 0 | J50: 0 | K50: 0 | L50: 0 | M50: 0 | N50: 0 | O50: 0 | P50: 0 | Q50: 0
A51: 25 | B51: Medium | C51: % | D51: I/B | E51: % apportioned to this life category | H51: 0 | I51: 0 | J51: 0 | K51: 0 | L51: 0 | M51: 0 | N51: 0 | O51: 0 | P51: 0 | Q51: 0
A52: 26 | B52: Medium long | C52: % | D52: I/B | E52: % apportioned to this life category | H52: 0 | I52: 0 | J52: 0 | K52: 0 | L52: 0 | M52: 0 | N52: 0 | O52: 0 | P52: 0 | Q52: 0
A53: 27 | B53: Long | C53: % | D53: I/B | E53: % apportioned to this life category | H53: 0 | I53: 0 | J53: 0 | K53: 0 | L53: 0 | M53: 0 | N53: 0 | O53: 0 | P53: 0 | Q53: 0
A54: 28 | B54: Infinite (land) | C54: % | D54: I/B | E54: % apportioned to this life category | H54: 0 | I54: 0 | J54: 0 | K54: 0 | L54: 0 | M54: 0 | N54: 0 | O54: 0 | P54: 0 | Q54: 0
A55: 29 | B55: Sub-total | C55: % | D55: C | E55: Calculated field | H55: =SUM(H49:H54) -> 0 | I55: =SUM(I49:I54) -> 0 | J55: 0 | K55: 0 | L55: 0 | M55: 0 | N55: 0 | O55: 0 | P55: 0 | Q55: 0
B58: Allocation of capital enhancement - non infrastructure | C58: Units | D58: Field Type | E58: Additional Info | F58: =+Baseminus1 -> 2017-18 | G58: =+Baseyear -> 2018-19 | H58: =+Baseplus1 -> 2019-20 | I58: =+Baseplus2 -> 2020-21 | J58: =+Baseplus3 -> 2021-22 | K58: =+Baseplus4 -> 2022-23 | L58: =+Baseplus5 -> 2023-24 | M58: =+Baseplus6 -> 2024-25 | N58: =+Baseplus7 -> 2025-26 | O58: =+Baseplus8 -> 2026-27 | P58: =+Baseplus9 -> 2027-28 | Q58: =+Baseplus10 -> 2028-29
A59: 30 | B59: Very Short | C59: % | D59: I/B | E59: % apportioned to this life category | H59: 0 | I59: 0 | J59: 0 | K59: 0 | L59: 0 | M59: 0 | N59: 0 | O59: 0 | P59: 0 | Q59: 0
A60: 31 | B60: Short | C60: % | D60: I/B | E60: % apportioned to this life category | H60: 0 | I60: 0 | J60: 0 | K60: 0 | L60: 0 | M60: 0 | N60: 0 | O60: 0 | P60: 0 | Q60: 0
A61: 32 | B61: Medium | C61: % | D61: I/B | E61: % apportioned to this life category | H61: 0 | I61: 0 | J61: 0 | K61: 0 | L61: 0 | M61: 0 | N61: 0 | O61: 0 | P61: 0 | Q61: 0
A62: 33 | B62: Medium long | C62: % | D62: I/B | E62: % apportioned to this life category | H62: 0 | I62: 0 | J62: 0 | K62: 0 | L62: 0 | M62: 0 | N62: 0 | O62: 0 | P62: 0 | Q62: 0
A63: 34 | B63: Long | C63: % | D63: I/B | E63: % apportioned to this life category | H63: 0 | I63: 0 | J63: 0 | K63: 0 | L63: 0 | M63: 0 | N63: 0 | O63: 0 | P63: 0 | Q63: 0
A64: 35 | B64: Infinite (land) | C64: % | D64: I/B | E64: % apportioned to this life category | H64: 0 | I64: 0 | J64: 0 | K64: 0 | L64: 0 | M64: 0 | N64: 0 | O64: 0 | P64: 0 | Q64: 0
A65: 36 | B65: Sub-total | C65: % | D65: C | E65: Calculated field | H65: =SUM(H59:H64) -> 0 | I65: =SUM(I59:I64) -> 0 | J65: 0 | K65: 0 | L65: 0 | M65: 0 | N65: 0 | O65: 0 | P65: 0 | Q65: 0
A66: 37 | B66: Total | C66: % | D66: C | E66: Calculated field (should equal 100%) | H66: =H55+H65 -> 0 | I66: =I55+I65 -> 0 | J66: 0 | K66: 0 | L66: 0 | M66: 0 | N66: 0 | O66: 0 | P66: 0 | Q66: 0
B67: =IF(COUNTIF(H67:Q67,"False")=0,"OK","Check") -> OK | H67: =H66=0% -> TRUE | I67: =I66=0% -> TRUE | J67: TRUE | K67: TRUE | L67: TRUE | M67: TRUE | N67: TRUE | O67: TRUE | P67: TRUE | Q67: TRUE
B69: Capital Expenditure c/f Infrastructure
B71: Capital expenditure carried forward - infrastructure | C71: Units | D71: Field Type | E71: Additional Info | F71: =+Baseminus1 -> 2017-18 | G71: =+Baseyear -> 2018-19 | H71: =+Baseplus1 -> 2019-20 | I71: =+Baseplus2 -> 2020-21 | J71: =+Baseplus3 -> 2021-22 | K71: =+Baseplus4 -> 2022-23 | L71: =+Baseplus5 -> 2023-24 | M71: =+Baseplus6 -> 2024-25 | N71: =+Baseplus7 -> 2025-26 | O71: =+Baseplus8 -> 2026-27 | P71: =+Baseplus9 -> 2027-28 | Q71: =+Baseplus10 -> 2028-29
A72: 38 | B72: Infrastructure Maintenance | C72: % | D72: I | E72: % apportioned to this life category | H72: 0 | I72: 0 | J72: 0 | K72: 0 | L72: 0 | M72: 0 | N72: 0 | O72: 0 | P72: 0 | Q72: 0
A73: 39 | B73: Infrastructure Enhancement | C73: % | D73: I | E73: % apportioned to this life category | H73: 0 | I73: 0 | J73: 0 | K73: 0 | L73: 0 | M73: 0 | N73: 0 | O73: 0 | P73: 0 | Q73: 0
A74: 40 | B74: Total | C74: % | D74: C | E74: Calculated field (should equal 100%) | H74: =SUM(H72:H73) -> 0 | I74: =SUM(I72:I73) -> 0 | J74: 0 | K74: 0 | L74: 0 | M74: 0 | N74: 0 | O74: 0 | P74: 0 | Q74: =SUM(Q72:Q73) -> 0
B75: =IF(COUNTIF(H75:Q75,"False")=0,"OK","Check") -> OK | H75: =H74=0% -> TRUE | I75: =I74=0% -> TRUE | J75: TRUE | K75: TRUE | L75: TRUE | M75: TRUE | N75: TRUE | O75: TRUE | P75: TRUE | Q75: TRUE
B77: Grants and Contributions - Allocation of capital expenditure into asset life categories
B79: Grants and Third Party Contributions | C79: Units | D79: Field Type | E79: Additional Info | F79: =+Baseminus1 -> 2017-18 | G79: =+Baseyear -> 2018-19 | H79: =+Baseplus1 -> 2019-20 | I79: =+Baseplus2 -> 2020-21 | J79: =+Baseplus3 -> 2021-22 | K79: =+Baseplus4 -> 2022-23 | L79: =+Baseplus5 -> 2023-24 | M79: =+Baseplus6 -> 2024-25 | N79: =+Baseplus7 -> 2025-26 | O79: =+Baseplus8 -> 2026-27 | P79: =+Baseplus9 -> 2027-28 | Q79: =+Baseplus10 -> 2028-29
A80: 41 | B80: Very Short | C80: % | D80: I | E80: % apportioned to this life category | H80: 0 | I80: 0 | J80: 0 | K80: 0 | L80: 0 | M80: 0 | N80: 0 | O80: 0 | P80: =+AVERAGE(H80:O80) -> 0 | Q80: =+P80 -> 0
A81: 42 | B81: Short | C81: % | D81: I | E81: % apportioned to this life category | H81: 0 | I81: 0 | J81: 0 | K81: 0 | L81: 0 | M81: 0 | N81: 0 | O81: 0 | P81: 0 | Q81: 0
A82: 43 | B82: Medium | C82: % | D82: I | E82: % apportioned to this life category | H82: 0.1158453114 | I82: 0.1356661677 | J82: 0.131773399 | K82: 0.13172226 | L82: 0.1316655695 | M82: 0.1367690783 | N82: 0.1367984694 | O82: 0.1366364056 | P82: 0.1321095826 | Q82: 0.1321095826
A83: 44 | B83: Medium long | C83: % | D83: I | E83: % apportioned to this life category | H83: 0 | I83: 0 | J83: 0 | K83: 0 | L83: 0 | M83: 0 | N83: 0 | O83: 0 | P83: 0 | Q83: 0
A84: 45 | B84: Long | C84: % | D84: I | E84: % apportioned to this life category | H84: 0 | I84: 0 | J84: 0 | K84: 0 | L84: 0 | M84: 0 | N84: 0 | O84: 0 | P84: 0 | Q84: 0
A85: 46 | B85: Infinite (land) | C85: % | D85: I | E85: % apportioned to this life category | H85: 0.8841546886 | I85: 0.8643338323 | J85: 0.868226601 | K85: 0.86827774 | L85: 0.8683344305 | M85: 0.8632309217 | N85: 0.8632015306 | O85: 0.8633635944 | P85: 0.8678904174 | Q85: 0.8678904174
A86: 47 | B86: Total | C86: % | D86: C | E86: Calculated field (should equal 100%) | H86: =SUM(H80:H85) -> 1 | I86: 1 | J86: 1 | K86: 1 | L86: 1 | M86: 1 | N86: 1 | O86: 1 | P86: 1 | Q86: 1
B87: =IF(COUNTIF(H87:Q87,"False")=0,"OK","Check") -> OK | H87: =ROUND(H86, 0.1)=100% -> TRUE | I87: =ROUND(I86, 0.1)=100% -> TRUE | J87: TRUE | K87: TRUE | L87: TRUE | M87: TRUE | N87: TRUE | O87: TRUE | P87: TRUE | Q87: TRUE
B88: Infrastructure Renewals Charge
B90: Infrastructure Renewals | C90: Units | D90: Field Type | E90: Additional Info | F90: =+Baseminus1 -> 2017-18 | G90: =+Baseyear -> 2018-19 | H90: =+Baseplus1 -> 2019-20 | I90: =+Baseplus2 -> 2020-21 | J90: =+Baseplus3 -> 2021-22 | K90: =+Baseplus4 -> 2022-23 | L90: =+Baseplus5 -> 2023-24 | M90: =+Baseplus6 -> 2024-25 | N90: =+Baseplus7 -> 2025-26 | O90: =+Baseplus8 -> 2026-27 | P90: =+Baseplus9 -> 2027-28 | Q90: =+Baseplus10 -> 2028-29
A91: 48 | B91: Infrastructure Renewals Expenditure | C91: £m | D91: C | E91: Calculated field | H91: =H11+H14*H72 -> 33.36 | I91: 30.40283445 | J91: 23.18920256 | K91: 23.05006734 | L91: 22.91176694 | M91: 22.77429634 | N91: 22.63765056 | O91: 22.50182466 | P91: 80.669 | Q91: 80.659
A92: 49 | B92: Infrastructure Renewals Charge | C92: £m | D92: I | E92: Enter amount (Base year prices) | H92: 32.59376317 | I92: 30.66254834 | J92: =J91 -> 23.18920256 | K92: =K91 -> 23.05006734 | L92: =+L91 -> 22.91176694 | M92: 22.77429634 | N92: 22.63765056 | O92: 22.50182466 | P92: 80.669 | Q92: 80.659
B94: =IF(COUNTIF(B33:B87,"Check")>0,"Check","OK") -> OK
A96: Return to 'Opening' Sheet

Sheet A4
A1: =CHECK!A1 -> Checks = 3
B2: Assumptions: Asset Disposals
B4: Historic Cost Accounts
B6: Asset disposals - Historic Cost Accounts | C6: Units | D6: Field Type | E6: Additional Info | F6: =+Baseminus1 -> 2017-18 | G6: =+Baseyear -> 2018-19 | H6: =+Baseplus1 -> 2019-20 | I6: =+Baseplus2 -> 2020-21 | J6: =+Baseplus3 -> 2021-22 | K6: =+Baseplus4 -> 2022-23 | L6: =+Baseplus5 -> 2023-24 | M6: =+Baseplus6 -> 2024-25 | N6: =+Baseplus7 -> 2025-26 | O6: =+Baseplus8 -> 2026-27 | P6: =+Baseplus9 -> 2027-28 | Q6: =+Baseplus10 -> 2028-29
A7: 1 | B7: Gross cost of disposed assets | C7: £m | D7: I | E7: Historic Cost | H7: 6.10611864 | I7: 1.816349741 | J7: 0.5 | K7: 0.5 | L7: 0.5 | M7: 0.5 | N7: 0.5 | O7: 0.5 | P7: 0.5 | Q7: 0.5
A8: 2 | B8: Accumulated depreciation of disposed assets | C8: £m | D8: I | E8: Historic Cost / Input negative | H8: -4.91462198 | I8: -0.6163497414 | J8: 0 | K8: 0 | L8: 0 | M8: 0 | N8: 0 | O8: 0 | P8: 0 | Q8: 0
A9: 3 | B9: Net cost of disposed assets | C9: £m | D9: C | E9: Calculated field | H9: =SUM(H7:H8) -> 1.19149666 | I9: =SUM(I7:I8) -> 1.2 | J9: 0.5 | K9: 0.5 | L9: 0.5 | M9: 0.5 | N9: 0.5 | O9: 0.5 | P9: 0.5 | Q9: 0.5
A10: 4 | B10: Annual Depreciation foregone by disposal of assets | C10: £m | D10: I | E10: Historic Cost / Cumulative / Input negative | H10: -0.02028248 | I10: -0.02773886474 | J10: -0.03353834278 | K10: -0.03933782083 | L10: -0.04513729887 | M10: -0.05093677691 | N10: -0.05673625495 | O10: -0.062535733 | P10: -0.06833521104 | Q10: -0.07413468908
A11: 5 | B11: Cash income from asset disposals | C11: £m | D11: I | E11: Enter amount (outturn) | H11: 1.4464 | I11: 1.255 | J11: 0.5 | K11: 0.5 | L11: 0.5 | M11: 0.5 | N11: 0.5 | O11: 0.5 | P11: 0.5 | Q11: 0.5
B13: Current Cost Accounts
B15: Asset disposals - Current Cost Accounts | C15: Units | D15: Field Type | E15: Additional Info | F15: =+Baseminus1 -> 2017-18 | G15: =+Baseyear -> 2018-19 | H15: =+Baseplus1 -> 2019-20 | I15: =+Baseplus2 -> 2020-21 | J15: =+Baseplus3 -> 2021-22 | K15: =+Baseplus4 -> 2022-23 | L15: =+Baseplus5 -> 2023-24 | M15: =+Baseplus6 -> 2024-25 | N15: =+Baseplus7 -> 2025-26 | O15: =+Baseplus8 -> 2026-27 | P15: =+Baseplus9 -> 2027-28 | Q15: =+Baseplus10 -> 2028-29
A16: 6 | B16: Gross cost of disposed assets | C16: £m | D16: I | E16: Base Year prices | H16: 7.44323445 | I16: 6.77908722 | J16: 1.147016692 | K16: 1.147016692 | L16: 1.147016692 | M16: 1.147016692 | N16: 1.147016692 | O16: 1.147016692 | P16: 1.147016692 | Q16: 1.147016692
A17: 7 | B17: Accumulated depreciation of disposed assets | C17: £m | D17: I | E17: Base Year prices / Input negative | H17: -6.20748511 | I17: -4.026247159 | J17: 0 | K17: 0 | L17: 0 | M17: 0 | N17: 0 | O17: 0 | P17: 0 | Q17: 0
A18: 8 | B18: Net cost of disposed assets | C18: £m | D18: C | E18: Calculated field | H18: =SUM(H16:H17) -> 1.23574934 | I18: 2.752840061 | J18: 1.147016692 | K18: 1.147016692 | L18: 1.147016692 | M18: 1.147016692 | N18: 1.147016692 | O18: 1.147016692 | P18: 1.147016692 | Q18: 1.147016692
A19: 9 | B19: Annual Depreciation foregone by disposal of assets | C19: £m | D19: I | E19: Base Year prices / Cumulative / Input negative | H19: -0.02116091 | I19: -0.09993643292 | J19: -0.1286756049 | K19: -0.1574147769 | L19: -0.1861539488 | M19: -0.2148931208 | N19: -0.2436322928 | O19: -0.2723714647 | P19: -0.3011106367 | Q19: -0.3298498087
A23: Return to 'Opening' Sheet

Sheet A5
A1: =CHECK!A1 -> Checks = 3
B2: Assumptions: Miscellaneous Accounting Assumptions | G2: 1 | H2: ='A1'!H7/'A1'!Rpibaseavg -> 1.034 | I2: ='A1'!I7/'A1'!Rpibaseavg -> 1.069156 | J2: ='A1'!J7/'A1'!Rpibaseavg -> 1.105507304 | K2: ='A1'!K7/'A1'!Rpibaseavg -> 1.143094552 | L2: ='A1'!L7/'A1'!Rpibaseavg -> 1.181959767 | M2: ='A1'!M7/'A1'!Rpibaseavg -> 1.222146399 | N2: ='A1'!N7/'A1'!Rpibaseavg -> 1.263699377 | O2: ='A1'!O7/'A1'!Rpibaseavg -> 1.306665156
B4: Profit and loss assumptions
B6: Profit and Loss assumptions | C6: Units | D6: Field Type | E6: Additional Info | F6: =+Baseminus1 -> 2017-18 | G6: =+Baseyear -> 2018-19 | H6: =+Baseplus1 -> 2019-20 | I6: =+Baseplus2 -> 2020-21 | J6: =+Baseplus3 -> 2021-22 | K6: =+Baseplus4 -> 2022-23 | L6: =+Baseplus5 -> 2023-24 | M6: =+Baseplus6 -> 2024-25 | N6: =+Baseplus7 -> 2025-26 | O6: =+Baseplus8 -> 2026-27 | P6: =+Baseplus9 -> 2027-28 | Q6: =+Baseplus10 -> 2028-29 | T6: =+Baseplus4 -> 2022-23 | U6: =+Baseplus5 -> 2023-24 | V6: =+Baseplus6 -> 2024-25 | W6: =+Baseplus7 -> 2025-26 | X6: =+Baseplus8 -> 2026-27 | Y6: =+Baseplus9 -> 2027-28 | Z6: =+Baseplus10 -> 2028-29
A7: 1 | B7: Revenue | C7: £m | D7: I | E7: Base year prices | H7: 351.974 | I7: 337.574
A8: 2 | B8: Operating costs | C8: £m | D8: I/C/B | E8: Base year prices | G8: -143.994 | H8: -141.651 | I8: -135.667 | J8: -144.878 | K8: -142.725 | L8: -138.243 | M8: -133.931 | N8: -131.371 | O8: -128.81 | P8: =+O8 -> -128.81 | Q8: =+P8 -> -128.81 | S8: Roy Figures
A9: 3 | B9: PPP Operating Costs | C9: £m | D9: I/C/B | E9: Base year prices | G9: -28.333 | H9: -31.46827475 | I9: -31.5307469 | J9: -30.90043265 | K9: -30.77459586 | L9: -30.46342618 | M9: -30.21613296 | N9: -30.04775502 | O9: -29.76949489 | P9: -31.62702634 | Q9: -31.62702634 | S9: PPY Closing RCV | T9: =+'P4'!J7 -> 2054.753 | U9: =+'P4'!K7 -> 2193.955108 | V9: =+'P4'!L7 -> 2339.007282 | W9: =+'P4'!M7 -> 2490.13753 | X9: =+'P4'!N7 -> 2648.094179 | Y9: =+'P4'!O7 -> 2812.300029 | Z9: =+'P4'!P7 -> 2985.488958
A10: 4 | B10: Operating income (excluding sale of fixed assets) | C10: £m | D10: I/C/B | E10: Base year prices | G10: ='B1'!G17 -> 0 | H10: 5.157271845 | I10: 0.3770383637 | J10: 0 | K10: 0 | L10: 0 | M10: 0 | N10: 0 | O10: 0 | P10: 0 | Q10: 0 | S10: PY Closing RCV | T10: =+'P4'!J28 -> 2193.955108 | U10: =+'P4'!K28 -> 2339.007282 | V10: =+'P4'!L28 -> 2490.13753 | W10: =+'P4'!M28 -> 2648.094179 | X10: =+'P4'!N28 -> 2812.300029 | Y10: =+'P4'!O28 -> 2985.488958 | Z10: =+'P4'!P28 -> 3433.082528
A11: 5 | B11: Other income | C11: £m | D11: I/C/B | E11: Base year prices | G11: ='B1'!G19 -> 0 | H11: 0 | I11: 0 | J11: 0 | K11: 0 | L11: 0 | M11: 0 | N11: 0 | O11: 0 | P11: 0 | Q11: 0 | S11: Average RCV | T11: =+SUM(T9:T10)/2 -> 2124.354054 | U11: =+SUM(U9:U10)/2 -> 2266.481195 | V11: 2414.572406 | W11: 2569.115854 | X11: 2730.197104 | Y11: 2898.894493 | Z11: 3209.285743
A12: 6 | B12: Extraordinary items | C12: £m | D12: I/C/B | E12: Base year prices | G12: ='B1'!G26 -> 0 | H12: 0 | I12: 0 | J12: 0 | K12: 0 | L12: 0 | M12: 0 | N12: 0 | O12: 0 | P12: 0 | Q12: 0
A13: 7 | B13: Earnings/ dividends paid | C13: £m | D13: I/C/B | E13: Base year prices / enter negative | G13: ='B1'!G28 -> -26.587 | H13: =-21.001/('A1'!H7/'A1'!Rpibaseavg) -> -20.31044487 | I13: =-21.956/('A1'!I7/'A1'!Rpibaseavg) -> -20.53582452 | J13: =-23.147/('A1'!J7/'A1'!Rpibaseavg) -> -20.93789875 | K13: =-T19/('A1'!K7/'A1'!Rpibaseavg) -> -17.38550403 | L13: =-U19/('A1'!L7/'A1'!Rpibaseavg) -> -11.41407298 | M13: =-V19/('A1'!M7/'A1'!Rpibaseavg) -> -5.560988426 | N13: =-W19/('A1'!N7/'A1'!Rpibaseavg) -> 0.395428565 | O13: =-X19/('A1'!O7/'A1'!Rpibaseavg) -> 6.238335419 | P13: =-Y19/('A1'!P7/'A1'!Rpibaseavg) -> 11.97896672 | Q13: =-Z19/('A1'!Q7/'A1'!Rpibaseavg) -> 17.3001627 | S13: PPY Debt | T13: =+'O2'!I36 -> -971.4125206 | U13: =+'O2'!J36 -> -1415.45031 | V13: =+'O2'!K36 -> -1853.598194 | W13: =+'O2'!L36 -> -2338.82533 | X13: =+'O2'!M36 -> -2846.221479 | Y13: =+'O2'!N36 -> -3377.845277 | Z13: =+'O2'!O36 -> -3936.220035
A14: 8 | B14: Amortisation of PPP assets | C14: £m | D14: I/B | E14: Historic Cost / enter negative | G14: =+'B1'!G14 -> -3.273 | H14: -3.2344185 | I14: -3.23077713 | J14: -3.22007257 | K14: -3.21548763 | L14: -3.20861435 | M14: -3.20164339 | N14: -3.19495596 | O14: -3.19155568 | P14: =+O14 -> -3.19155568 | Q14: =+P14 -> -3.19155568 | S14: PY Net Debt | T14: =+'O2'!J36 -> -1415.45031 | U14: =+'O2'!K36 -> -1853.598194 | V14: =+'O2'!L36 -> -2338.82533 | W14: =+'O2'!M36 -> -2846.221479 | X14: =+'O2'!N36 -> -3377.845277 | Y14: =+'O2'!O36 -> -3936.220035 | Z14: =+'O2'!P36 -> -4773.235537
A15: 8a | B15: PPP interest | C15: £m | D15: I/B | E15: Outturn prices / enter negative | G15: -11.913 | H15: -6.924921775 | I15: -6.783321854 | J15: -6.660905018 | K15: -6.510249401 | L15: -6.331041858 | M15: -6.12314039 | N15: -5.93212491 | O15: -5.719863507 | P15: -5.581815601 | Q15: -5.262570245 | S15: Average Net Debt | T15: =+AVERAGE(T13:T14) -> -1193.431415 | U15: =+AVERAGE(U13:U14) -> -1634.524252 | V15: -2096.211762 | W15: -2592.523404 | X15: -3112.033378 | Y15: -3657.032656 | Z15: =+AVERAGE(Z13:Z14) -> -4354.727786
S17: Average RCV less Average Net Debt | T17: =+T11+T15 -> 930.9226386 | U17: =+U11+U15 -> 631.9569432 | V17: 318.3606441 | W17: -23.40755006 | X17: -381.8362734 | Y17: -758.1381621 | Z17: -1145.442043
B18: Balance Sheet Assumptions | T18: ='Dividend calc'!C14 -> 0.02134793389 | U18: ='Dividend calc'!D14 -> 0.02134793389 | V18: ='Dividend calc'!E14 -> 0.02134793389 | W18: ='Dividend calc'!F14 -> 0.02134793389 | X18: ='Dividend calc'!G14 -> 0.02134793389 | Y18: ='Dividend calc'!H14 -> 0.02134793389 | Z18: 0.0211
T19: =+T17*T18 -> 19.87327494 | U19: 13.49097504 | V19: 6.796341981 | W19: -0.4997028312 | X19: -8.15141552 | Y19: -16.18468336 | Z19: -24.16882711
B20: Working capital | C20: Units | D20: Field Type | E20: Additional Info | F20: =+Baseminus1 -> 2017-18 | P20: =+Baseplus9 -> 2027-28 | Q20: =+Baseplus10 -> 2028-29
A21: 9 | B21: Stocks | C21: % | D21: I/C | E21: % of operating costs | G21: =-'B4'!G7/'B1'!G37 -> 0.01652152173 | H21: 0.01389211025 | I21: 0.01376503299 | J21: 0.01376503299 | K21: 0.01376503299 | L21: 0.01376503299 | M21: 0.01376503299 | N21: 0.01376503299 | O21: 0.01376503299 | P21: 0.01376503299 | Q21: 0.01376503299 | S21: Check to UR calcs | T21: =T19-'Dividend calc'!C15 -> 0 | U21: =U19-'Dividend calc'!D15 -> 0 | V21: =V19-'Dividend calc'!E15 -> 0 | W21: =W19-'Dividend calc'!F15 -> 0 | X21: =X19-'Dividend calc'!G15 -> 0 | Y21: =Y19-'Dividend calc'!H15 -> 0 | Z21: =Z19-'Dividend calc'!I15 -> -24.16882711
A22: 10 | B22: Trade debtors | C22: Days | D22: I/C | E22: Debtor days | G22: =+'B4'!G8/'B1'!G36*365 -> 7.967483447 | H22: 9.069263479 | I22: 9.165446155 | J22: 9.165446155 | K22: 9.165446155 | L22: 9.165446155 | M22: 9.165446155 | N22: 9.165446155 | O22: 9.165446155 | P22: 9.165446155 | Q22: 9.165446155
A23: 11 | B23: Prepayments and other short term debtors | C23: % | D23: I/C | E23: % of total revenue | G23: =+'B4'!G9/'B1'!G36 -> 0.05682345428 | H23: 0.04889906141 | I23: 0.04701465125 | J23: 0.04701465125 | K23: 0.04701465125 | L23: 0.04701465125 | M23: 0.04701465125 | N23: 0.04701465125 | O23: 0.04701465125 | P23: 0.04701465125 | Q23: 0.04701465125
A24: 12 | B24: Trade creditors | C24: Days | D24: I/C | E24: Creditor days | G24: =+'B4'!G10/'B1'!G37*365 -> 6.641248941 | H24: 10.4340398 | I24: 14.99093704 | J24: 14.99093704 | K24: 14.99093704 | L24: 14.99093704 | M24: 14.99093704 | N24: 14.99093704 | O24: 14.99093704 | P24: 14.99093704 | Q24: 14.99093704
A25: 13 | B25: Short-term capital creditors | C25: % | D25: I/C | E25: % of capital expenditure | G25: =-'B4'!G11/'B5'!G9 -> 0.3494133034 | H25: 0.3978594829 | I25: 0.4186801948 | J25: 0.4084343579 | K25: 0.4084343579 | L25: 0.4084343579 | M25: 0.4084343579 | N25: 0.4084343579 | O25: 0.4084343579 | P25: 0.4084343579 | Q25: 0.4084343579
A26: 14 | B26: Accruals and other creditors | C26: % | D26: I/C | E26: % of operating costs (incl. PPP) | G26: ='B4'!G12/('B1'!G37+'B1'!G38) -> 0.3044354609 | H26: 0.2761823017 | I26: 0.2408466297 | J26: 0.2277153548 | K26: 0.2277153548 | L26: 0.2277153548 | M26: 0.2277153548 | N26: 0.2277153548 | O26: 0.2277153548 | P26: 0.2277153548 | Q26: 0.2277153548
B28: Other Balance Sheet accounts | C28: Units | D28: Field Type | E28: Additional Info | F28: =+Baseminus1 -> 2017-18 | G28: =+Baseyear -> 2018-19 | H28: =+Baseplus1 -> 2019-20 | I28: =+Baseplus2 -> 2020-21 | J28: =+Baseplus3 -> 2021-22 | K28: =+Baseplus4 -> 2022-23 | L28: =+Baseplus5 -> 2023-24 | M28: =+Baseplus6 -> 2024-25 | N28: =+Baseplus7 -> 2025-26 | O28: =+Baseplus8 -> 2026-27 | P28: =+Baseplus9 -> 2027-28 | Q28: =+Baseplus10 -> 2028-29
A29: 15 | B29: Cash (net of overdrafts) | C29: £m | D29: I/B | E29: Enter amount (Outturn prices) | G29: =+'B2'!G19 -> 9.102 | H29: 0 | I29: 0.72 | J29: 2 | K29: 2 | L29: 2 | M29: 2 | N29: 2 | O29: 2 | P29: 2 | Q29: 2
A30: 16 | B30: Short term deposits | C30: £m | D30: I/B | E30: Enter amount (Outturn prices) | G30: =+'B2'!G20 -> 5.3 | H30: 0 | I30: 0 | J30: 0 | K30: 0 | L30: 0 | M30: 0 | N30: 0 | O30: 0 | P30: 0 | Q30: 0
A31: 17 | B31: Non-trade debtors | C31: £m | D31: I/B | E31: Enter amount (Outturn prices) | G31: =+'B2'!G77 -> 0.007 | H31: 0 | I31: 0 | J31: 0 | K31: 0 | L31: 0 | M31: 0 | N31: 0 | O31: 0 | P31: 0 | Q31: 0
A32: 18 | B32: Non-trade creditors due within one year | C32: £m | D32: I/B | E32: Enter amount (Outturn prices) / negative | G32: =+'B2'!G78 -> -5.218 | H32: -2.936250635 | I32: -2.935635635 | J32: -2.935635635 | K32: -2.935635635 | L32: -2.935635635 | M32: -2.935635635 | N32: -2.935635635 | O32: -2.935635635 | P32: -2.935635635 | Q32: -2.935635635
A33: 19 | B33: Investment - loan to group company | C33: £m | D33: I/B | E33: Enter amount (Outturn prices) | G33: =+'B2'!G79 -> 0 | H33: 0 | I33: 0 | J33: 0 | K33: 0 | L33: 0 | M33: 0 | N33: 0 | O33: 0 | P33: 0 | Q33: 0
A34: 20 | B34: Investment - Other | C34: £m | D34: I/B | E34: Enter amount (Outturn prices) | G34: =+'B2'!G80 -> 0.106 | H34: 0.10638766 | I34: 0.10638766 | J34: 0.10638766 | K34: 0.10638766 | L34: 0.10638766 | M34: 0.10638766 | N34: 0.10638766 | O34: 0.10638766 | P34: 0.10638766 | Q34: 0.10638766
A35: 21 | B35: Other Creditors - greater than one year | C35: £m | D35: I/B | E35: Enter amount (Outturn prices) / negative | G35: =+'B2'!G87 -> -1.076 | H35: -0.33137611 | I35: -0.33137611 | J35: -0.33137611 | K35: -0.33137611 | L35: -0.33137611 | M35: -0.33137611 | N35: -0.33137611 | O35: -0.33137611 | P35: -0.33137611 | Q35: -0.33137611
A36: 21a | B36: PPP capital repayments | C36: £m | D36: I/B | E36: Enter amount (Outturn prices) / negative | G36: -7.468 | H36: -6.366869729 | I36: -6.617273767 | J36: -6.918465588 | K36: -7.225562115 | L36: -7.538678083 | M36: -7.85579572 | N36: -8.242935621 | O36: -8.653657649 | P36: -9.759257 | Q36: -10.79567113
B38: Provisions for liabilities and charges | C38: Units | D38: Field Type | E38: Additional Info | F38: =+Baseminus1 -> 2017-18 | G38: =+Baseyear -> 2018-19 | H38: =+Baseplus1 -> 2019-20 | I38: =+Baseplus2 -> 2020-21 | J38: =+Baseplus3 -> 2021-22 | K38: =+Baseplus4 -> 2022-23 | L38: =+Baseplus5 -> 2023-24 | M38: =+Baseplus6 -> 2024-25 | N38: =+Baseplus7 -> 2025-26 | O38: =+Baseplus8 -> 2026-27 | P38: =+Baseplus9 -> 2027-28 | Q38: =+Baseplus10 -> 2028-29
A39: 22 | B39: Change in Post employment asset / (liabilities) | C39: £m | D39: I/B | E39: Enter amount (Outturn prices) | G39: =+'B2'!G92-'B2'!I92 -> -11.376 | H39: -1.226655 | I39: 0.45 | J39: 0 | K39: 0 | L39: 0 | M39: 0 | N39: 0 | O39: 0 | P39: 0 | Q39: 0
A40: 23 | B40: Change in other provisions | C40: £m | D40: I/B | E40: Enter amount (Outturn prices) | G40: =+'B2'!G93-'B2'!I93 -> 11.09 | H40: -3.5 | I40: 6.8 | J40: 2.4 | K40: 0 | L40: 0 | M40: 0 | N40: 0 | O40: 0 | P40: 0 | Q40: 0
A44: Return to 'Opening' Sheet

Sheet A7
A1: =CHECK!A1 -> Checks = 3
B2: Assumptions: Tax
B5: Tax rate | C5: Units | D5: Field Type | E5: Additional Info | F5: =+Baseminus1 -> 2017-18 | G5: =+Baseyear -> 2018-19 | H5: =+Baseplus1 -> 2019-20 | I5: =+Baseplus2 -> 2020-21 | J5: =+Baseplus3 -> 2021-22 | K5: =+Baseplus4 -> 2022-23 | L5: =+Baseplus5 -> 2023-24 | M5: =+Baseplus6 -> 2024-25 | N5: =+Baseplus7 -> 2025-26 | O5: =+Baseplus8 -> 2026-27 | P5: =+Baseplus9 -> 2027-28 | Q5: =+Baseplus10 -> 2028-29
A6: 1 | B6: Tax rate | C6: % | D6: I | H6: 0.23 | I6: 0.21 | J6: 0.2 | K6: 0.2 | L6: 0.2 | M6: 0.2 | N6: 0.2 | O6: 0.2 | P6: 0.2 | Q6: 0.2
B8: Capital Allowances Rates | C8: Units | D8: Field Type | E8: Additional Info | F8: =+Baseminus1 -> 2017-18 | G8: =+Baseyear -> 2018-19 | H8: =+Baseplus1 -> 2019-20 | I8: =+Baseplus2 -> 2020-21 | J8: =+Baseplus3 -> 2021-22 | K8: =+Baseplus4 -> 2022-23 | L8: =+Baseplus5 -> 2023-24 | M8: =+Baseplus6 -> 2024-25 | N8: =+Baseplus7 -> 2025-26 | O8: =+Baseplus8 -> 2026-27 | P8: =+Baseplus9 -> 2027-28 | Q8: =+Baseplus10 -> 2028-29
A9: 2 | B9: Plant and Machinery Short life - less than 25 years - allowance rate (reducing balance) | C9: % | D9: I | H9: 0.18 | I9: 0.18 | J9: 0.18 | K9: 0.18 | L9: 0.18 | M9: 0.18 | N9: 0.18 | O9: 0.18 | P9: 0.18 | Q9: 0.18
A10: 2a | B10: Plant and Machinery Short life - New expenditure 14/15 (less than 25 years) - allowance rate (reducing balance) | I10: 0
A11: 3 | B11: Plant and Machinery Long life - more than 25 years - allowance rate (reducing balance) | C11: % | D11: I | H11: 0.08 | I11: 0.08 | J11: 0.08 | K11: 0.08 | L11: 0.08 | M11: 0.08 | N11: 0.08 | O11: 0.08 | P11: 0.08 | Q11: 0.08
A12: 4 | B12: Industrial Buildings Allowance rate (straight line) | C12: % | D12: I | H12: 0 | I12: 0 | J12: 0 | K12: 0 | L12: 0 | M12: 0 | N12: 0 | O12: 0 | P12: 0 | Q12: 0
B14: Allocation of capital expenditure for tax purposes | C14: Units | D14: Field | E14: Additional Info | F14: =+Baseminus1 -> 2017-18 | G14: =+Baseyear -> 2018-19 | H14: =+Baseplus1 -> 2019-20 | I14: =+Baseplus2 -> 2020-21 | J14: =+Baseplus3 -> 2021-22 | K14: =+Baseplus4 -> 2022-23 | L14: =+Baseplus5 -> 2023-24 | M14: =+Baseplus6 -> 2024-25 | N14: =+Baseplus7 -> 2025-26 | O14: =+Baseplus8 -> 2026-27 | P14: =+Baseplus9 -> 2027-28 | Q14: =+Baseplus10 -> 2028-29
A15: 5 | B15: Work in progress - Opening amount | C15: £m | D15: I/C | G15: =+'B5'!G7 -> 0 | H15: 0
A16: 6 | B16: Work in progress (portion where capital allowances have not been claimed) - opening | C16: £m | D16: C | G16: =+'B5'!G8 -> 0 | H16: =+G24 -> 0 | I16: =+H24 -> 0 | J16: 0 | K16: 0 | L16: 0 | M16: 0 | N16: 0 | O16: 0 | P16: 0 | Q16: 0
A17: 7 | B17: Total capitalised expenditure including IRE (outturn prices) including contributions less infrastruture receipts | C17: £m | D17: C | G17: =+'B5'!G9 -> 162.2691507 | H17: =+'P1'!H17-'P1'!H16 -> 166.708718 | I17: =+'P1'!I17-'P1'!I16 -> 154.412836 | J17: =+'P1'!J17-'P1'!J16 -> 156.1986779 | K17: =+'P1'!K17-'P1'!K16 -> 159.9247586 | L17: =+'P1'!L17-'P1'!L16 -> 163.6228945 | M17: =+'P1'!M17-'P1'!M16 -> 167.8710673 | N17: =+'P1'!N17-'P1'!N16 -> 171.5035809 | O17: =+'P1'!O17-'P1'!O16 -> 177.7972968 | P17: =+'P1'!P17-'P1'!P16 -> 586.4076059 | Q17: =+'P1'!Q17-'P1'!Q16 -> 603.6422135
A18: 7b | B18: IFRS Capex to Opex | C18: £m | D18: C | G18: =+'B5'!G10 -> 0.985 | H18: =+'P1'!H20 -> 0.9936487805 | I18: =+'P1'!I20 -> 0.999448287 | J18: =+'P1'!J20 -> 1.036965205 | K18: =+'P1'!K20 -> 1.072219017 | L18: =+'P1'!L20 -> 1.073221186 | M18: =+'P1'!M20 -> 1.109709186 | N18: =+'P1'!N20 -> 1.109531589 | O18: =+'P1'!O20 -> 1.147251035 | P18: =+'P1'!P20 -> 1.186258418 | Q18: =+'P1'!Q20 -> 1.226592898
A19: 7c | B19: Infrastructure Renewals Expenditure | C19: £m | D19: I/C | E19: link to P1 top line | G19: ='B5'!G11 -> 30.18 | H19: =+'P1'!H7 -> 34.49424 | I19: =+'P1'!I7 -> 32.50537287 | J19: =+'P1'!J7 -> 25.6358328 | K19: =+'P1'!K7 -> 26.34840641 | L19: =+'P1'!L7 -> 27.08078672 | M19: =+'P1'!M7 -> 27.83352426 | N19: =+'P1'!N7 -> 28.6071849 | O19: =+'P1'!O7 -> 29.40235022 | P19: =+'P1'!P7 -> 108.9912221 | Q19: =+'P1'!Q7 -> 112.6829533
A20: 7d | B20: Software | C20: £m | D20: I/C | G20: =+'B5'!G12 -> 11.674 | H20: =+'P1'!H21 -> 4.699 | I20: =+'P1'!I21 -> 3.679 | J20: =+'P1'!J21 -> 3.804086 | K20: =+'P1'!K21 -> 3.933424924 | L20: =+'P1'!L21 -> 4.067161371 | M20: =+'P1'!M21 -> 4.205444858 | N20: =+'P1'!N21 -> 4.348429983 | O20: =+'P1'!O21 -> 4.496276603 | P20: =+'P1'!P21 -> 4.649150007 | Q20: =+'P1'!Q21 -> 4.807221107
A21: 7e | B21: Non Engineering and Procurement expenditure | C21: £m | D21: I/C | G21: =+'B5'!G13 -> 19.97122 | H21: =+'P1'!H22 -> 17.578 | I21: =+'P1'!I22 -> 18.175652 | J21: =+'P1'!J22 -> 18.79362417 | K21: =+'P1'!K22 -> 19.43260739 | L21: =+'P1'!L22 -> 20.09331604 | M21: =+'P1'!M22 -> 20.77648879 | N21: =+'P1'!N22 -> 21.48288941 | O21: =+'P1'!O22 -> 22.21330764 | P21: =+'P1'!P22 -> 22.9685601 | Q21: =+'P1'!Q22 -> 23.74949115
A22: 7e | B22: Total capitalised expenditure including IRE (outturn prices) including contributions less IFRS capex to opex | C22: £m | D22: C | G22: =SUM(G17-G18-G19-G20-G21) -> 99.45893074 | H22: =SUM(H17-H18-H19-H20-H21) -> 108.9438292 | I22: =SUM(I17-I18-I19-I20-I21) -> 99.05336284 | J22: 106.9281697 | K22: 109.1381009 | L22: 111.3084092 | M22: 113.9459002 | N22: 115.955545 | O22: 120.5381113 | P22: 448.6124153 | Q22: 461.1759551
A23: 8 | B23: Capitalised expenditure allocated for capital allowances (including Work in progress) | C23: % | D23: I/C | E23: % of Opening + capitalised exp. | G23: ='B5'!G14/('B5'!G9-'B5'!G10-'B5'!G11-'B5'!G12-'B5'!G13) -> 1 | H23: 1 | I23: 1 | J23: 1 | K23: 1 | L23: 1 | M23: 1 | N23: 1 | O23: 1 | P23: 1 | Q23: 1
A24: 9 | B24: Work in progress (portion where capital allowances have not been claimed) - closing | C24: £m | D24: C | E24: Calculated Field | G24: =+'B5'!G15 -> 0 | H24: =+H16+H17-(H16+H17)*H23 -> 0 | I24: 0 | J24: 0 | K24: 0 | L24: 0 | M24: 0 | N24: 0 | O24: 0 | P24: 0 | Q24: 0
A25: 10 | B25: Assets qualifying for 100% first year allowances | C25: % | D25: I/C | E25: % allocated to this category | G25: =+'B5'!G16/'B5'!G$14 -> 0 | H25: 0 | I25: 0 | J25: 0 | K25: 0 | L25: 0 | M25: 0 | N25: 0 | O25: 0 | P25: 0 | Q25: 0
A26: 11 | B26: Assets to be included in the general (18%) pool | C26: % | D26: I/C | E26: % allocated to this category | G26: =+'B5'!G17/'B5'!G$9 -> 0.2773510622 | H26: 0.4316326531 | I26: 0.4316326531 | J26: 0.4316326531 | K26: 0.4316326531 | L26: 0.4316326531 | M26: 0.4316326531 | N26: 0.4316326531 | O26: 0.4316326531 | P26: 0.4316326531 | Q26: 0.4316326531
A27: 12 | B27: Assets qualifying for long life (8%) pool | C27: % | D27: I/C | E27: % allocated to this category | G27: =+'B5'!G18/'B5'!G$9 -> 0.2904706433 | H27: 0.4826530612 | I27: 0.4826530612 | J27: 0.4826530612 | K27: 0.4826530612 | L27: 0.4826530612 | M27: 0.4826530612 | N27: 0.4826530612 | O27: 0.4826530612 | P27: 0.4826530612 | Q27: 0.4826530612
A28: 13 | B28: Assets qualifying for Industrial Buildings Allowance | C28: % | D28: I/C | E28: % allocated to this category | G28: =+'B5'!G19/'B5'!G$14 -> 0 | H28: 0 | I28: 0 | J28: 0 | K28: 0 | L28: 0 | M28: 0 | N28: 0 | O28: 0 | P28: 0 | Q28: 0
A29: 14 | B29: Assets purchased under finance leasing | C29: % | D29: I/C | E29: % allocated to this category | G29: =+'B5'!G20/'B5'!G$14 -> 0 | H29: 0 | I29: 0 | J29: 0 | K29: 0 | L29: 0 | M29: 0 | N29: 0 | O29: 0 | P29: 0 | Q29: 0
A30: 15 | B30: Capitalised revenue expenditure deducted in year of spend | C30: % | D30: I/C | E30: % allocated to this category | G30: =+'B5'!G21/'B5'!G$14 -> 0 | H30: 0 | I30: 0 | J30: 0 | K30: 0 | L30: 0 | M30: 0 | N30: 0 | O30: 0 | P30: 0 | Q30: 0
A31: 16 | B31: Capitalised revenue expenditure depreciated - non – infrastructure | C31: % | D31: I/C | E31: % allocated to this category | G31: =+'B5'!G22/'B5'!G$9 -> 0 | H31: 0 | I31: 0 | J31: 0 | K31: 0 | L31: 0 | M31: 0 | N31: 0 | O31: 0 | P31: 0 | Q31: 0
A32: 17 | B32: Capitalised revenue expenditure depreciated – infrastructure | C32: % | D32: I/C | E32: % allocated to this category | G32: =+'B5'!G23/'B5'!G$9 -> 0 | H32: 0 | I32: 0 | J32: 0 | K32: 0 | L32: 0 | M32: 0 | N32: 0 | O32: 0 | P32: 0 | Q32: 0
A33: 18 | B33: Capitalised revenue expenditure not depreciated | C33: % | D33: I/C | E33: % allocated to this category | G33: =+'B5'!G24/'B5'!G$14 -> 0 | H33: 0 | I33: 0 | J33: 0 | K33: 0 | L33: 0 | M33: 0 | N33: 0 | O33: 0 | P33: 0 | Q33: 0
A34: 19 | B34: Other assets not qualifying for capital allowances or revenue deductions | C34: % | D34: I/C | E34: % allocated to this category | G34: =+'B5'!G25/'B5'!G$9 -> 0.04617735574 | H34: 0.08571428571 | I34: 0.08571428571 | J34: 0.08571428571 | K34: 0.08571428571 | L34: 0.08571428571 | M34: 0.08571428571 | N34: 0.08571428571 | O34: 0.08571428571 | P34: 0.08571428571 | Q34: 0.08571428571
A35: 20 | B35: Grants and contributions taxable on receipt | C35: % | D35: I/C | E35: % allocated to this category | G35: =+'B5'!G26/'B5'!G$14 -> 0 | H35: 0 | I35: 0 | J35: 0 | K35: 0 | L35: 0 | M35: 0 | N35: 0 | O35: 0 | P35: 0 | Q35: 0
E36: =IF(COUNTIF(H36:Q36,"False")=0,"OK","Check") -> OK | H36: =IF(SUM(H25:H35)=1,"ok","error") -> ok | I36: =IF(SUM(I25:I35)=1,"ok","error") -> ok | J36: ok | K36: ok | L36: ok | M36: ok | N36: ok | O36: ok | P36: ok | Q36: ok
G37: =SUM(G25:G35) -> 0.6139990613
B38: Opening position (£ Million) | C38: Units | D38: Field | E38: Additional Info | F38: =+Baseminus1 -> 2017-18 | G38: =+Baseyear -> 2018-19 | H38: =+Baseplus1 -> 2019-20
A39: 21 | B39: Opening pool of capital allowances – asset life < 25 years | C39: £m | D39: C | G39: =+'B5'!G29 -> 221.3414351 | H39: =+G39+'B5'!G17-'B5'!G53+(+'B5'!G12-0.033) -> 227.9500988 | J39: formula amended
A40: 22 | B40: Opening pool of capital allowances – asset life >= 25 years | C40: £m | D40: C | G40: =+'B5'!G30 -> 730.9961888 | H40: =+G40+'B5'!G18-'B5'!G54+(-5.757+2.607+0.028) -> 713.007902 | J40: formula amended
A41: 23 | B41: Residual IBA’s | C41: £m | D41: C | G41: =+'B5'!G31 -> 0 | H41: =+G41+'B5'!G19-'B5'!G55 -> 0
A42: 24 | B42: General provisions – opening balance | C42: £m | D42: I/C | G42: =+'B5'!G32 -> 0 | H42: 0
A43: 25 | B43: Losses brought forward | C43: £m | D43: I/C | G43: =+'B5'!G33 -> 229.6155632 | H43: 214.6382373
B45: Deductions for capital expenditure (£ Million) | C45: Units | D45: Field | E45: Additional Info | F45: =+Baseminus1 -> 2017-18 | G45: =+Baseyear -> 2018-19 | H45: =+Baseplus1 -> 2019-20 | I45: =+Baseplus2 -> 2020-21 | J45: =+Baseplus3 -> 2021-22 | K45: =+Baseplus4 -> 2022-23 | L45: =+Baseplus5 -> 2023-24 | M45: =+Baseplus6 -> 2024-25 | N45: =+Baseplus7 -> 2025-26 | O45: =+Baseplus8 -> 2026-27 | P45: =+Baseplus9 -> 2027-28 | Q45: =+Baseplus10 -> 2028-29
A46: 26 | B46: Existing IBA claims (Outturn) | C46: £m | D46: I/C | E46: Input positive | G46: =+'B5'!G55 -> 0 | H46: 0 | I46: 0 | J46: 0 | K46: 0 | L46: 0 | M46: 0 | N46: 0 | O46: 0 | P46: 0 | Q46: 0
A47: 27 | B47: Depreciation on capitalised revenue expenditure – non – infrastructure (outturn) - Assets capitalised by 31/03/13 | C47: £m | D47: I/C | E47: Input positive | G47: =+'B5'!G50 -> 4.433 | H47: 4.432935105 | I47: 4.432935105 | J47: 4.432935105 | K47: 4.432935105 | L47: 4.432935105 | M47: 4.432935105 | N47: 4.432935105 | O47: 4.432935105 | P47: 4.432935105 | Q47: 4.432935105
A48: 28 | B48: Depreciation on capitalised revenue expenditure – infrastructure (outturn) Assets existing @ 31/03/13 | C48: £m | D48: I/C | E48: Input positive | G48: =+'B5'!G51 -> 1.883 | H48: 1.882606045 | I48: 1.882606045 | J48: 1.882606045 | K48: 1.882606045 | L48: 1.882606045 | M48: 1.882606045 | N48: 1.882606045 | O48: 1.882606045 | P48: 1.882606045 | Q48: 1.882606045
A49: 29 | B49: Average asset life – non - infrastructure (new assets) | C49: Years | D49: I/C | E49: Life of capitalised asset in the year | G49: =+'B5'!G34 -> 60 | H49: 60 | I49: 60 | J49: 60 | K49: 60 | L49: 60 | M49: 60 | N49: 60 | O49: 60 | P49: 60 | Q49: 60
A50: 30 | B50: Average asset life – infrastructure (new assets) | C50: Years | D50: I/C | E50: Life of capitalised asset in the year | G50: =+'B5'!G35 -> 100 | H50: 100 | I50: 100 | J50: 100 | K50: 100 | L50: 100 | M50: 100 | N50: 100 | O50: 100 | P50: 100 | Q50: 100
B52: Other Deductions/Adjustments (£ Million) | C52: Units | D52: Field | E52: Additional Info | F52: =+Baseminus1 -> 2017-18 | G52: =+Baseyear -> 2018-19 | H52: =+Baseplus1 -> 2019-20 | I52: =+Baseplus2 -> 2020-21 | J52: =+Baseplus3 -> 2021-22 | K52: =+Baseplus4 -> 2022-23 | L52: =+Baseplus5 -> 2023-24 | M52: =+Baseplus6 -> 2024-25 | N52: =+Baseplus7 -> 2025-26 | O52: =+Baseplus8 -> 2026-27 | P52: =+Baseplus9 -> 2027-28 | Q52: =+Baseplus10 -> 2028-29
A53: 31 | B53: Revenue expenditure not allowable for tax purposes | C53: £m | D53: I | H53: 0 | I53: 0 | J53: 0 | K53: 0 | L53: 0 | M53: 0 | N53: 0 | O53: 0 | P53: 0 | Q53: 0
A54: 32 | B54: Permanently disallowed expenditure | C54: £m | D54: I | H54: 0 | I54: 0 | J54: 0 | K54: 0 | L54: 0 | M54: 0 | N54: 0 | O54: 0 | P54: 0 | Q54: 0
A55: 33 | B55: Profit/income not subject to tax/not taxed as trading income | C55: £m | D55: I | H55: 0 | I55: 0 | J55: 0 | K55: 0 | L55: 0 | M55: 0 | N55: 0 | O55: 0 | P55: 0 | Q55: 0
A56: 34 | B56: Increase/(decrease) in general provisions (outturn) | C56: £m | D56: I | H56: 0 | I56: 0 | J56: 0 | K56: 0 | L56: 0 | M56: 0 | N56: 0 | O56: 0 | P56: 0 | Q56: 0
A57: 35 | B57: PPP Opex (IFRS) Omega and Kinnegar | C57: £m | D57: I | E57: input nominal | H57: -8.49292553 | I57: -8.20577711 | J57: -7.83688905 | K57: -7.10420277 | L57: -6.49956238 | M57: -5.98727536 | N57: -5.35848739 | O57: -4.63239058 | P57: -4.63239058 | Q57: -4.63239058
A60: Return to 'Opening' Sheet

Sheet Process Sheets -->
A1: =CHECK!A1 -> Checks = 3

Sheet P1
A1: =CHECK!A1 -> Checks = 3
B2: Process sheet: Capital Expenditure
B4: Total capital expenditure
B6: Total Allowed for Investment - post efficiency | C6: Units | D6: Field Type | E6: Criteria | F6: =+Baseminus1 -> 2017-18 | G6: =+Baseyear -> 2018-19 | H6: =+Baseplus1 -> 2019-20 | I6: =+Baseplus2 -> 2020-21 | J6: =+Baseplus3 -> 2021-22 | K6: =+Baseplus4 -> 2022-23 | L6: =+Baseplus5 -> 2023-24 | M6: =+Baseplus6 -> 2024-25 | N6: =+Baseplus7 -> 2025-26 | O6: =+Baseplus8 -> 2026-27 | P6: =+Baseplus9 -> 2027-28 | Q6: =+Baseplus10 -> 2028-29
A7: 1 | B7: Capital Maintenance - Infrastructure (net of grants) | C7: £m | D7: C | H7: =+'A3'!H11*('A1'!H$13/Copibaseavg) -> 34.49424 | I7: =+'A3'!I11*('A1'!I$13/Copibaseavg) -> 32.50537287 | J7: =+'A3'!J11*('A1'!J$13/Copibaseavg) -> 25.6358328 | K7: =+'A3'!K11*('A1'!K$13/Copibaseavg) -> 26.34840641 | L7: =+'A3'!L11*('A1'!L$13/Copibaseavg) -> 27.08078672 | M7: =+'A3'!M11*('A1'!M$13/Copibaseavg) -> 27.83352426 | N7: =+'A3'!N11*('A1'!N$13/Copibaseavg) -> 28.6071849 | O7: =+'A3'!O11*('A1'!O$13/Copibaseavg) -> 29.40235022 | P7: =+'A3'!P11*('A1'!P$13/Copibaseavg) -> 108.9912221 | Q7: =+'A3'!Q11*('A1'!Q$13/Copibaseavg) -> 112.6829533
A8: 2 | B8: Capital Maintenance - Non-Infrastructure (net of grants) | C8: £m | D8: C | H8: =+'A3'!H9*('A1'!H$13/Copibaseavg) -> 61.975892 | I8: =+'A3'!I9*('A1'!I$13/Copibaseavg) -> 41.34810597 | J8: =+'A3'!J9*('A1'!J$13/Copibaseavg) -> 61.22235348 | K8: =+'A3'!K9*('A1'!K$13/Copibaseavg) -> 62.92409002 | L8: =+'A3'!L9*('A1'!L$13/Copibaseavg) -> 64.67312802 | M8: =+'A3'!M9*('A1'!M$13/Copibaseavg) -> 66.47078229 | N8: =+'A3'!N9*('A1'!N$13/Copibaseavg) -> 68.31840415 | O8: =+'A3'!O9*('A1'!O$13/Copibaseavg) -> 70.21738252 | P8: =+'A3'!P9*('A1'!P$13/Copibaseavg) -> 132.4569839 | Q8: =+'A3'!Q9*('A1'!Q$13/Copibaseavg) -> 137.909104
A9: 3 | B9: Capital Enhancement - Infrastructure (net of grants) | C9: £m | D9: C | H9: =+'A3'!H12*('A1'!H$13/Copibaseavg) -> 30.872138 | I9: =+'A3'!I12*('A1'!I$13/Copibaseavg) -> 36.82643229 | J9: =+'A3'!J12*('A1'!J$13/Copibaseavg) -> 32.10497023 | K9: =+'A3'!K12*('A1'!K$13/Copibaseavg) -> 32.70013898 | L9: =+'A3'!L12*('A1'!L$13/Copibaseavg) -> 33.24672924 | M9: =+'A3'!M12*('A1'!M$13/Copibaseavg) -> 34.29278112 | N9: =+'A3'!N12*('A1'!N$13/Copibaseavg) -> 34.74605507 | O9: =+'A3'!O12*('A1'!O$13/Copibaseavg) -> 36.55220427 | P9: =+'A3'!P12*('A1'!P$13/Copibaseavg) -> 143.5548517 | Q9: =+'A3'!Q12*('A1'!Q$13/Copibaseavg) -> 145.0269662
A10: 4 | B10: Capital Enhancement - Non Infrastructure (net of grants) | C10: £m | D10: C | H10: =+'A3'!H10*('A1'!H$13/Copibaseavg) -> 35.806386 | I10: =+'A3'!I10*('A1'!I$13/Copibaseavg) -> 40.30910527 | J10: =+'A3'!J10*('A1'!J$13/Copibaseavg) -> 33.60075798 | K10: =+'A3'!K10*('A1'!K$13/Copibaseavg) -> 34.28979775 | L10: =+'A3'!L10*('A1'!L$13/Copibaseavg) -> 34.93941848 | M10: =+'A3'!M10*('A1'!M$13/Copibaseavg) -> 35.82157588 | N10: =+'A3'!N10*('A1'!N$13/Copibaseavg) -> 36.38725755 | O10: =+'A3'!O10*('A1'!O$13/Copibaseavg) -> 38.19814804 | P10: =+'A3'!P10*('A1'!P$13/Copibaseavg) -> 198.7510039 | Q10: =+'A3'!Q10*('A1'!Q$13/Copibaseavg) -> 205.4330984
A11: 5 | B11: Capital Maintenance c/f - Infrastructure (net of grants) | C11: £m | D11: C | H11: =+'A3'!H14*'A3'!H72 -> 0 | I11: =+'A3'!I14*'A3'!I72 -> 0 | J11: =+'A3'!J14*'A3'!J72 -> 0 | K11: =+'A3'!K14*'A3'!K72 -> 0 | L11: =+'A3'!L14*'A3'!L72 -> 0 | M11: =+'A3'!M14*'A3'!M72 -> 0 | N11: =+'A3'!N14*'A3'!N72 -> 0 | O11: =+'A3'!O14*'A3'!O72 -> 0 | P11: =+'A3'!P14*'A3'!P72 -> 0 | Q11: =+'A3'!Q14*'A3'!Q72 -> 0
A12: 6 | B12: Capital Maintenance c/f- Non-Infrastructure (net of grants) | C12: £m | D12: C | H12: =+'A3'!H13*'A3'!H55 -> 0 | I12: =+'A3'!I13*'A3'!I55 -> 0 | J12: =+'A3'!J13*'A3'!J55 -> 0 | K12: =+'A3'!K13*'A3'!K55 -> 0 | L12: =+'A3'!L13*'A3'!L55 -> 0 | M12: =+'A3'!M13*'A3'!M55 -> 0 | N12: =+'A3'!N13*'A3'!N55 -> 0 | O12: =+'A3'!O13*'A3'!O55 -> 0 | P12: =+'A3'!P13*'A3'!P55 -> 0 | Q12: =+'A3'!Q13*'A3'!Q55 -> 0
A13: 7 | B13: Capital Enhancement c/f - Infrastructure (net of grants) | C13: £m | D13: C | H13: =+'A3'!H14*'A3'!H73 -> 0 | I13: =+'A3'!I14*'A3'!I73 -> 0 | J13: =+'A3'!J14*'A3'!J73 -> 0 | K13: =+'A3'!K14*'A3'!K73 -> 0 | L13: =+'A3'!L14*'A3'!L73 -> 0 | M13: =+'A3'!M14*'A3'!M73 -> 0 | N13: =+'A3'!N14*'A3'!N73 -> 0 | O13: =+'A3'!O14*'A3'!O73 -> 0 | P13: =+'A3'!P14*'A3'!P73 -> 0 | Q13: =+'A3'!Q14*'A3'!Q73 -> 0
A14: 8 | B14: Capital Enhancement c/f- Non Infrastructure (net of grants) | C14: £m | D14: C | H14: =+'A3'!H13*'A3'!H65 -> 0 | I14: =+'A3'!I13*'A3'!I65 -> 0 | J14: =+'A3'!J13*'A3'!J65 -> 0 | K14: =+'A3'!K13*'A3'!K65 -> 0 | L14: =+'A3'!L13*'A3'!L65 -> 0 | M14: =+'A3'!M13*'A3'!M65 -> 0 | N14: =+'A3'!N13*'A3'!N65 -> 0 | O14: =+'A3'!O13*'A3'!O65 -> 0 | P14: =+'A3'!P13*'A3'!P65 -> 0 | Q14: =+'A3'!Q13*'A3'!Q65 -> 0
A15: 9 | B15: Grants and Third Party Contributions | C15: £m | D15: C | H15: =+'A3'!H15*('A1'!H$13/Copibaseavg) -> 5.894834 | I15: =+'A3'!I15*('A1'!I$13/Copibaseavg) -> 6.007969645 | J15: =+'A3'!J15*('A1'!J$13/Copibaseavg) -> 6.395215163 | K15: =+'A3'!K15*('A1'!K$13/Copibaseavg) -> 6.612652478 | L15: =+'A3'!L15*('A1'!L$13/Copibaseavg) -> 6.837482662 | M15: =+'A3'!M15*('A1'!M$13/Copibaseavg) -> 6.825527793 | N15: =+'A3'!N15*('A1'!N$13/Copibaseavg) -> 7.057595738 | O15: =+'A3'!O15*('A1'!O$13/Copibaseavg) -> 7.297553993 | P15: =+'A3'!P15*('A1'!P$13/Copibaseavg) -> 6.798693791 | Q15: =+'A3'!Q15*('A1'!Q$13/Copibaseavg) -> 7.02984938
A16: 9a | B16: Infrastructure charge receipts | C16: £m | D16: C | H16: =+'A3'!H16*('A1'!H$13/Copibaseavg) -> 2.334772 | I16: =+'A3'!I16*('A1'!I$13/Copibaseavg) -> 2.584150052 | J16: =+'A3'!J16*('A1'!J$13/Copibaseavg) -> 2.760451738 | K16: =+'A3'!K16*('A1'!K$13/Copibaseavg) -> 2.95032704 | L16: =+'A3'!L16*('A1'!L$13/Copibaseavg) -> 3.154650618 | M16: =+'A3'!M16*('A1'!M$13/Copibaseavg) -> 3.373124062 | N16: =+'A3'!N16*('A1'!N$13/Copibaseavg) -> 3.612916518 | O16: =+'A3'!O16*('A1'!O$13/Copibaseavg) -> 3.870342191 | P16: =+'A3'!P16*('A1'!P$13/Copibaseavg) -> 4.145149553 | Q16: =+'A3'!Q16*('A1'!Q$13/Copibaseavg) -> 4.439757816
A17: 10 | B17: Total Capital Programme | C17: £m | D17: C | H17: =SUM(H7:H15) -> 169.04349 | I17: =SUM(I7:I15) -> 156.9969861 | J17: =SUM(J7:J15) -> 158.9591297 | K17: 162.8750856 | L17: 166.7775451 | M17: 171.2441914 | N17: 175.1164974 | O17: 181.667639 | P17: 590.5527554 | Q17: 608.0819714
B19: Deductions from Capital Expenditure for tax calcs | C19: Units | D19: Field Type | E19: Additional Info | F19: =+Baseminus1 -> 2017-18 | G19: =+Baseyear -> 2018-19 | H19: =+Baseplus1 -> 2019-20 | I19: =+Baseplus2 -> 2020-21 | J19: =+Baseplus3 -> 2021-22 | K19: =+Baseplus4 -> 2022-23 | L19: =+Baseplus5 -> 2023-24 | M19: =+Baseplus6 -> 2024-25 | N19: =+Baseplus7 -> 2025-26 | O19: =+Baseplus8 -> 2026-27 | P19: =+Baseplus9 -> 2027-28 | Q19: =+Baseplus10 -> 2028-29
A20: 10a | B20: IFRS Capex to Opex | C20: £m | D20: C | H20: =+'A3'!H20*('A1'!H$13/Copibaseavg) -> 0.9936487805 | I20: =+'A3'!I20*('A1'!I$13/Copibaseavg) -> 0.999448287 | J20: =+'A3'!J20*('A1'!J$13/Copibaseavg) -> 1.036965205 | K20: =+'A3'!K20*('A1'!K$13/Copibaseavg) -> 1.072219017 | L20: =+'A3'!L20*('A1'!L$13/Copibaseavg) -> 1.073221186 | M20: =+'A3'!M20*('A1'!M$13/Copibaseavg) -> 1.109709186 | N20: =+'A3'!N20*('A1'!N$13/Copibaseavg) -> 1.109531589 | O20: =+'A3'!O20*('A1'!O$13/Copibaseavg) -> 1.147251035 | P20: =+'A3'!P20*('A1'!P$13/Copibaseavg) -> 1.186258418 | Q20: =+'A3'!Q20*('A1'!Q$13/Copibaseavg) -> 1.226592898
A21: 10b | B21: Software | C21: £m | D21: I/C/B | E21: Base year prices | H21: =+'A3'!H21*('A1'!H$13/Copibaseavg) -> 4.699 | I21: =+'A3'!I21*('A1'!I$13/Copibaseavg) -> 3.679 | J21: =+'A3'!J21*('A1'!J$13/Copibaseavg) -> 3.804086 | K21: =+'A3'!K21*('A1'!K$13/Copibaseavg) -> 3.933424924 | L21: =+'A3'!L21*('A1'!L$13/Copibaseavg) -> 4.067161371 | M21: =+'A3'!M21*('A1'!M$13/Copibaseavg) -> 4.205444858 | N21: =+'A3'!N21*('A1'!N$13/Copibaseavg) -> 4.348429983 | O21: =+'A3'!O21*('A1'!O$13/Copibaseavg) -> 4.496276603 | P21: =+'A3'!P21*('A1'!P$13/Copibaseavg) -> 4.649150007 | Q21: =+'A3'!Q21*('A1'!Q$13/Copibaseavg) -> 4.807221107
A22: 10c | B22: Non Engineering and Procurement Expenditure | C22: £m | D22: I/C/B | E22: Base year prices | H22: =+'A3'!H22*('A1'!H$13/Copibaseavg) -> 17.578 | I22: =+'A3'!I22*('A1'!I$13/Copibaseavg) -> 18.175652 | J22: =+'A3'!J22*('A1'!J$13/Copibaseavg) -> 18.79362417 | K22: =+'A3'!K22*('A1'!K$13/Copibaseavg) -> 19.43260739 | L22: =+'A3'!L22*('A1'!L$13/Copibaseavg) -> 20.09331604 | M22: =+'A3'!M22*('A1'!M$13/Copibaseavg) -> 20.77648879 | N22: =+'A3'!N22*('A1'!N$13/Copibaseavg) -> 21.48288941 | O22: =+'A3'!O22*('A1'!O$13/Copibaseavg) -> 22.21330764 | P22: =+'A3'!P22*('A1'!P$13/Copibaseavg) -> 22.9685601 | Q22: =+'A3'!Q22*('A1'!Q$13/Copibaseavg) -> 23.74949115
B25: Non-infrastructure - Allocation of capital expenditure into asset life categories
B27: Allocation of Non-Infrastructure Capital Maintenance | C27: Units | D27: Field Type | E27: Criteria | F27: =+Baseminus1 -> 2017-18 | G27: =+Baseyear -> 2018-19 | H27: =+Baseplus1 -> 2019-20 | I27: =+Baseplus2 -> 2020-21 | J27: =+Baseplus3 -> 2021-22 | K27: =+Baseplus4 -> 2022-23 | L27: =+Baseplus5 -> 2023-24 | M27: =+Baseplus6 -> 2024-25 | N27: =+Baseplus7 -> 2025-26 | O27: =+Baseplus8 -> 2026-27 | P27: =+Baseplus9 -> 2027-28 | Q27: =+Baseplus10 -> 2028-29
A28: 11 | B28: Very Short | C28: £m | D28: C | H28: =+(H$8)*('A3'!H27) -> 0 | I28: =+(I$8)*('A3'!I27) -> 0 | J28: =+(J$8)*('A3'!J27) -> 1.736529865 | K28: =+(K$8)*('A3'!K27) -> 2.17206028 | L28: =+(L$8)*('A3'!L27) -> 2.530268646 | M28: =+(M$8)*('A3'!M27) -> 4.016319321 | N28: =+(N$8)*('A3'!N27) -> 2.156484228 | O28: =+(O$8)*('A3'!O27) -> 1.785777292 | P28: =+(P$8)*('A3'!P27) -> 3.633074218 | Q28: =+(Q$8)*('A3'!Q27) -> 3.782616781
A29: 12 | B29: Short | C29: £m | D29: C | H29: =+(H$8)*('A3'!H28) -> 8.810942414 | I29: =+(I$8)*('A3'!I28) -> 5.643586176 | J29: =+(J$8)*('A3'!J28) -> 14.70896825 | K29: =+(K$8)*('A3'!K28) -> 14.36254799 | L29: =+(L$8)*('A3'!L28) -> 18.03231284 | M29: =+(M$8)*('A3'!M28) -> 20.16275826 | N29: =+(N$8)*('A3'!N28) -> 16.93789733 | O29: =+(O$8)*('A3'!O28) -> 15.54789074 | P29: =+(P$8)*('A3'!P28) -> 29.7807939 | Q29: =+(Q$8)*('A3'!Q28) -> 31.00661423
A30: 13 | B30: Medium | C30: £m | D30: C | H30: =+(H$8)*('A3'!H29) -> 28.2806481 | I30: =+(I$8)*('A3'!I29) -> 19.68407542 | J30: =+(J$8)*('A3'!J29) -> 24.24755289 | K30: =+(K$8)*('A3'!K29) -> 24.67636983 | L30: =+(L$8)*('A3'!L29) -> 22.92896871 | M30: =+(M$8)*('A3'!M29) -> 22.63148368 | N30: =+(N$8)*('A3'!N29) -> 27.85102198 | O30: =+(O$8)*('A3'!O29) -> 30.28467322 | P30: =+(P$8)*('A3'!P29) -> 53.88623689 | Q30: =+(Q$8)*('A3'!Q29) -> 56.10427195
A31: 14 | B31: Medium long | C31: £m | D31: C | H31: =+(H$8)*('A3'!H30) -> 0 | I31: =+(I$8)*('A3'!I30) -> 0 | J31: =+(J$8)*('A3'!J30) -> 0 | K31: =+(K$8)*('A3'!K30) -> 0 | L31: =+(L$8)*('A3'!L30) -> 0 | M31: =+(M$8)*('A3'!M30) -> 0 | N31: =+(N$8)*('A3'!N30) -> 0 | O31: =+(O$8)*('A3'!O30) -> 0 | P31: =+(P$8)*('A3'!P30) -> 0 | Q31: =+(Q$8)*('A3'!Q30) -> 0
A32: 15 | B32: Long | C32: £m | D32: C | H32: =+(H$8)*('A3'!H31) -> 24.88430148 | I32: =+(I$8)*('A3'!I31) -> 16.02044438 | J32: =+(J$8)*('A3'!J31) -> 20.52930247 | K32: =+(K$8)*('A3'!K31) -> 21.71311191 | L32: =+(L$8)*('A3'!L31) -> 21.18157782 | M32: =+(M$8)*('A3'!M31) -> 19.66022103 | N32: =+(N$8)*('A3'!N31) -> 21.37300062 | O32: =+(O$8)*('A3'!O31) -> 22.59904126 | P32: =+(P$8)*('A3'!P31) -> 45.15687893 | Q32: =+(Q$8)*('A3'!Q31) -> 47.01560105
A33: 16 | B33: Infinite (land) | C33: £m | D33: C | H33: =+(H$8)*('A3'!H32) -> 0 | I33: =+(I$8)*('A3'!I32) -> 0 | J33: =+(J$8)*('A3'!J32) -> 0 | K33: =+(K$8)*('A3'!K32) -> 0 | L33: =+(L$8)*('A3'!L32) -> 0 | M33: =+(M$8)*('A3'!M32) -> 0 | N33: =+(N$8)*('A3'!N32) -> 0 | O33: =+(O$8)*('A3'!O32) -> 0 | P33: =+(P$8)*('A3'!P32) -> 0 | Q33: =+(Q$8)*('A3'!Q32) -> 0
A34: 17 | B34: Total | C34: £m | D34: C | H34: =SUM(H28:H33) -> 61.975892 | I34: =SUM(I28:I33) -> 41.34810597 | J34: 61.22235348 | K34: 62.92409002 | L34: 64.67312802 | M34: 66.47078229 | N34: 68.31840415 | O34: 70.21738252 | P34: 132.4569839 | Q34: 137.909104
B36: Allocation of Non-Infrastructure Capital Enhancement | C36: Units | D36: Field Type | E36: Criteria | F36: =+Baseminus1 -> 2017-18 | G36: =+Baseyear -> 2018-19 | H36: =+Baseplus1 -> 2019-20 | I36: =+Baseplus2 -> 2020-21 | J36: =+Baseplus3 -> 2021-22 | K36: =+Baseplus4 -> 2022-23 | L36: =+Baseplus5 -> 2023-24 | M36: =+Baseplus6 -> 2024-25 | N36: =+Baseplus7 -> 2025-26 | O36: =+Baseplus8 -> 2026-27 | P36: =+Baseplus9 -> 2027-28 | Q36: =+Baseplus10 -> 2028-29
A37: 18 | B37: Very Short | C37: £m | D37: C | H37: =(H$10)*'A3'!H37 -> 0 | I37: =(I$10)*'A3'!I37 -> 0 | J37: =(J$10)*'A3'!J37 -> 0.5387198304 | K37: =(K$10)*'A3'!K37 -> 0.5246366704 | L37: =(L$10)*'A3'!L37 -> 0.743773442 | M37: =(M$10)*'A3'!M37 -> 0.2794127719 | N37: =(N$10)*'A3'!N37 -> 0.2889967728 | O37: =(O$10)*'A3'!O37 -> 0.1779889164 | P37: =(P$10)*'A3'!P37 -> 1.814163447 | Q37: =(Q$10)*'A3'!Q37 -> 1.875156405
A38: 19 | B38: Short | C38: £m | D38: C | H38: =(H$10)*'A3'!H38 -> 9.038106278 | I38: =(I$10)*'A3'!I38 -> 7.709958524 | J38: =(J$10)*'A3'!J38 -> 10.76637001 | K38: =(K$10)*'A3'!K38 -> 10.48785172 | L38: =(L$10)*'A3'!L38 -> 12.4070835 | M38: =(M$10)*'A3'!M38 -> 11.70728311 | N38: =(N$10)*'A3'!N38 -> 9.559193191 | O38: =(O$10)*'A3'!O38 -> 9.554090864 | P38: =(P$10)*'A3'!P38 -> 56.26436883 | Q38: =(Q$10)*'A3'!Q38 -> 58.15600121
A39: 20 | B39: Medium | C39: £m | D39: C | H39: =(H$10)*'A3'!H39 -> 11.47662165 | I39: =(I$10)*'A3'!I39 -> 16.41282322 | J39: =(J$10)*'A3'!J39 -> 12.7540917 | K39: =(K$10)*'A3'!K39 -> 11.89608423 | L39: =(L$10)*'A3'!L39 -> 13.80932734 | M39: =(M$10)*'A3'!M39 -> 12.67043549 | N39: =(N$10)*'A3'!N39 -> 11.18407895 | O39: =(O$10)*'A3'!O39 -> 11.71290556 | P39: =(P$10)*'A3'!P39 -> 69.98872797 | Q39: =(Q$10)*'A3'!Q39 -> 72.34177922
A40: 21 | B40: Medium long | C40: £m | D40: C | H40: =(H$10)*'A3'!H40 -> 0.1522502904 | I40: =(I$10)*'A3'!I40 -> 0 | J40: =(J$10)*'A3'!J40 -> 0 | K40: =(K$10)*'A3'!K40 -> 0 | L40: =(L$10)*'A3'!L40 -> 0 | M40: =(M$10)*'A3'!M40 -> 0 | N40: =(N$10)*'A3'!N40 -> 0 | O40: =(O$10)*'A3'!O40 -> 0 | P40: =(P$10)*'A3'!P40 -> 0.1056372251 | Q40: =(Q$10)*'A3'!Q40 -> 0.1091887942
A41: 22 | B41: Long | C41: £m | D41: C | H41: =(H$10)*'A3'!H41 -> 15.13940778 | I41: =(I$10)*'A3'!I41 -> 16.18632353 | J41: =(J$10)*'A3'!J41 -> 9.541576452 | K41: =(K$10)*'A3'!K41 -> 11.38122512 | L41: =(L$10)*'A3'!L41 -> 7.979234194 | M41: =(M$10)*'A3'!M41 -> 11.16444451 | N41: =(N$10)*'A3'!N41 -> 15.35498863 | O41: =(O$10)*'A3'!O41 -> 16.75316269 | P41: =(P$10)*'A3'!P41 -> 70.57810639 | Q41: =(Q$10)*'A3'!Q41 -> 72.95097281
A42: 23 | B42: Infinite (land) | C42: £m | D42: C | H42: =(H$10)*'A3'!H42 -> 0 | I42: =(I$10)*'A3'!I42 -> 0 | J42: =(J$10)*'A3'!J42 -> 0 | K42: =(K$10)*'A3'!K42 -> 0 | L42: =(L$10)*'A3'!L42 -> 0 | M42: =(M$10)*'A3'!M42 -> 0 | N42: =(N$10)*'A3'!N42 -> 0 | O42: =(O$10)*'A3'!O42 -> 0 | P42: =(P$10)*'A3'!P42 -> 0 | Q42: =(Q$10)*'A3'!Q42 -> 0
A43: 24 | B43: Total | C43: £m | D43: C | H43: =SUM(H37:H42) -> 35.806386 | I43: =SUM(I37:I42) -> 40.30910527 | J43: 33.60075798 | K43: 34.28979775 | L43: 34.93941848 | M43: 35.82157588 | N43: 36.38725755 | O43: 38.19814804 | P43: 198.7510039 | Q43: 205.4330984
B46: Non-infrastructure c/f - Allocation of capital expenditure into asset life categories
B48: Allocation of Non-Infrastructure Capital Maintenance | C48: Units | D48: Field Type | E48: Criteria | F48: =+Baseminus1 -> 2017-18 | G48: =+Baseyear -> 2018-19 | H48: =+Baseplus1 -> 2019-20 | I48: =+Baseplus2 -> 2020-21 | J48: =+Baseplus3 -> 2021-22 | K48: =+Baseplus4 -> 2022-23 | L48: =+Baseplus5 -> 2023-24 | M48: =+Baseplus6 -> 2024-25 | N48: =+Baseplus7 -> 2025-26 | O48: =+Baseplus8 -> 2026-27 | P48: =+Baseplus9 -> 2027-28 | Q48: =+Baseplus10 -> 2028-29
A49: 25 | B49: Very Short | C49: £m | D49: C | H49: =+'A3'!H13*('A3'!H49) -> 0 | I49: =+'A3'!I13*('A3'!I49) -> 0 | J49: =+'A3'!J13*('A3'!J49) -> 0 | K49: =+'A3'!K13*('A3'!K49) -> 0 | L49: =+'A3'!L13*('A3'!L49) -> 0 | M49: =+'A3'!M13*('A3'!M49) -> 0 | N49: =+'A3'!N13*('A3'!N49) -> 0 | O49: =+'A3'!O13*('A3'!O49) -> 0 | P49: =+'A3'!P13*('A3'!P49) -> 0 | Q49: =+'A3'!Q13*('A3'!Q49) -> 0
A50: 26 | B50: Short | C50: £m | D50: C | H50: =+'A3'!H13*('A3'!H50) -> 0 | I50: =+'A3'!I13*('A3'!I50) -> 0 | J50: =+'A3'!J13*('A3'!J50) -> 0 | K50: =+'A3'!K13*('A3'!K50) -> 0 | L50: =+'A3'!L13*('A3'!L50) -> 0 | M50: =+'A3'!M13*('A3'!M50) -> 0 | N50: =+'A3'!N13*('A3'!N50) -> 0 | O50: =+'A3'!O13*('A3'!O50) -> 0 | P50: =+'A3'!P13*('A3'!P50) -> 0 | Q50: =+'A3'!Q13*('A3'!Q50) -> 0
A51: 27 | B51: Medium | C51: £m | D51: C | H51: =+'A3'!H13*('A3'!H51) -> 0 | I51: =+'A3'!I13*('A3'!I51) -> 0 | J51: =+'A3'!J13*('A3'!J51) -> 0 | K51: =+'A3'!K13*('A3'!K51) -> 0 | L51: =+'A3'!L13*('A3'!L51) -> 0 | M51: =+'A3'!M13*('A3'!M51) -> 0 | N51: =+'A3'!N13*('A3'!N51) -> 0 | O51: =+'A3'!O13*('A3'!O51) -> 0 | P51: =+'A3'!P13*('A3'!P51) -> 0 | Q51: =+'A3'!Q13*('A3'!Q51) -> 0
A52: 28 | B52: Medium long | C52: £m | D52: C | H52: =+'A3'!H13*('A3'!H52) -> 0 | I52: =+'A3'!I13*('A3'!I52) -> 0 | J52: =+'A3'!J13*('A3'!J52) -> 0 | K52: =+'A3'!K13*('A3'!K52) -> 0 | L52: =+'A3'!L13*('A3'!L52) -> 0 | M52: =+'A3'!M13*('A3'!M52) -> 0 | N52: =+'A3'!N13*('A3'!N52) -> 0 | O52: =+'A3'!O13*('A3'!O52) -> 0 | P52: =+'A3'!P13*('A3'!P52) -> 0 | Q52: =+'A3'!Q13*('A3'!Q52) -> 0
A53: 29 | B53: Long | C53: £m | D53: C | H53: =+'A3'!H13*('A3'!H53) -> 0 | I53: =+'A3'!I13*('A3'!I53) -> 0 | J53: =+'A3'!J13*('A3'!J53) -> 0 | K53: =+'A3'!K13*('A3'!K53) -> 0 | L53: =+'A3'!L13*('A3'!L53) -> 0 | M53: =+'A3'!M13*('A3'!M53) -> 0 | N53: =+'A3'!N13*('A3'!N53) -> 0 | O53: =+'A3'!O13*('A3'!O53) -> 0 | P53: =+'A3'!P13*('A3'!P53) -> 0 | Q53: =+'A3'!Q13*('A3'!Q53) -> 0
A54: 30 | B54: Infinite (land) | C54: £m | D54: C | H54: =+'A3'!H13*('A3'!H54) -> 0 | I54: =+'A3'!I13*('A3'!I54) -> 0 | J54: =+'A3'!J13*('A3'!J54) -> 0 | K54: =+'A3'!K13*('A3'!K54) -> 0 | L54: =+'A3'!L13*('A3'!L54) -> 0 | M54: =+'A3'!M13*('A3'!M54) -> 0 | N54: =+'A3'!N13*('A3'!N54) -> 0 | O54: =+'A3'!O13*('A3'!O54) -> 0 | P54: =+'A3'!P13*('A3'!P54) -> 0 | Q54: =+'A3'!Q13*('A3'!Q54) -> 0
A55: 31 | B55: Total | C55: £m | D55: C | H55: =SUM(H49:H54) -> 0 | I55: 0 | J55: 0 | K55: 0 | L55: 0 | M55: 0 | N55: 0 | O55: 0 | P55: 0 | Q55: 0
B57: Allocation of Non-Infrastructure Capital Enhancement | C57: Units | D57: Field Type | E57: Criteria | F57: =+Baseminus1 -> 2017-18 | G57: =+Baseyear -> 2018-19 | H57: =+Baseplus1 -> 2019-20 | I57: =+Baseplus2 -> 2020-21 | J57: =+Baseplus3 -> 2021-22 | K57: =+Baseplus4 -> 2022-23 | L57: =+Baseplus5 -> 2023-24 | M57: =+Baseplus6 -> 2024-25 | N57: =+Baseplus7 -> 2025-26 | O57: =+Baseplus8 -> 2026-27 | P57: =+Baseplus9 -> 2027-28 | Q57: =+Baseplus10 -> 2028-29
A58: 32 | B58: Very Short | C58: £m | D58: C | H58: =+'A3'!H13*('A3'!H59) -> 0 | I58: =+'A3'!I13*('A3'!I59) -> 0 | J58: =+'A3'!J13*('A3'!J59) -> 0 | K58: =+'A3'!K13*('A3'!K59) -> 0 | L58: =+'A3'!L13*('A3'!L59) -> 0 | M58: =+'A3'!M13*('A3'!M59) -> 0 | N58: =+'A3'!N13*('A3'!N59) -> 0 | O58: =+'A3'!O13*('A3'!O59) -> 0 | P58: =+'A3'!P13*('A3'!P59) -> 0 | Q58: =+'A3'!Q13*('A3'!Q59) -> 0
A59: 33 | B59: Short | C59: £m | D59: C | H59: =+'A3'!H13*('A3'!H60) -> 0 | I59: =+'A3'!I13*('A3'!I60) -> 0 | J59: =+'A3'!J13*('A3'!J60) -> 0 | K59: =+'A3'!K13*('A3'!K60) -> 0 | L59: =+'A3'!L13*('A3'!L60) -> 0 | M59: =+'A3'!M13*('A3'!M60) -> 0 | N59: =+'A3'!N13*('A3'!N60) -> 0 | O59: =+'A3'!O13*('A3'!O60) -> 0 | P59: =+'A3'!P13*('A3'!P60) -> 0 | Q59: =+'A3'!Q13*('A3'!Q60) -> 0
A60: 34 | B60: Medium | C60: £m | D60: C | H60: =+'A3'!H13*('A3'!H61) -> 0 | I60: =+'A3'!I13*('A3'!I61) -> 0 | J60: =+'A3'!J13*('A3'!J61) -> 0 | K60: =+'A3'!K13*('A3'!K61) -> 0 | L60: =+'A3'!L13*('A3'!L61) -> 0 | M60: =+'A3'!M13*('A3'!M61) -> 0 | N60: =+'A3'!N13*('A3'!N61) -> 0 | O60: =+'A3'!O13*('A3'!O61) -> 0 | P60: =+'A3'!P13*('A3'!P61) -> 0 | Q60: =+'A3'!Q13*('A3'!Q61) -> 0
A61: 35 | B61: Medium long | C61: £m | D61: C | H61: =+'A3'!H13*('A3'!H62) -> 0 | I61: =+'A3'!I13*('A3'!I62) -> 0 | J61: =+'A3'!J13*('A3'!J62) -> 0 | K61: =+'A3'!K13*('A3'!K62) -> 0 | L61: =+'A3'!L13*('A3'!L62) -> 0 | M61: =+'A3'!M13*('A3'!M62) -> 0 | N61: =+'A3'!N13*('A3'!N62) -> 0 | O61: =+'A3'!O13*('A3'!O62) -> 0 | P61: =+'A3'!P13*('A3'!P62) -> 0 | Q61: =+'A3'!Q13*('A3'!Q62) -> 0
A62: 36 | B62: Long | C62: £m | D62: C | H62: =+'A3'!H13*('A3'!H63) -> 0 | I62: =+'A3'!I13*('A3'!I63) -> 0 | J62: =+'A3'!J13*('A3'!J63) -> 0 | K62: =+'A3'!K13*('A3'!K63) -> 0 | L62: =+'A3'!L13*('A3'!L63) -> 0 | M62: =+'A3'!M13*('A3'!M63) -> 0 | N62: =+'A3'!N13*('A3'!N63) -> 0 | O62: =+'A3'!O13*('A3'!O63) -> 0 | P62: =+'A3'!P13*('A3'!P63) -> 0 | Q62: =+'A3'!Q13*('A3'!Q63) -> 0
A63: 37 | B63: Infinite (land) | C63: £m | D63: C | H63: =+'A3'!H13*('A3'!H64) -> 0 | I63: =+'A3'!I13*('A3'!I64) -> 0 | J63: =+'A3'!J13*('A3'!J64) -> 0 | K63: =+'A3'!K13*('A3'!K64) -> 0 | L63: =+'A3'!L13*('A3'!L64) -> 0 | M63: =+'A3'!M13*('A3'!M64) -> 0 | N63: =+'A3'!N13*('A3'!N64) -> 0 | O63: =+'A3'!O13*('A3'!O64) -> 0 | P63: =+'A3'!P13*('A3'!P64) -> 0 | Q63: =+'A3'!Q13*('A3'!Q64) -> 0
A64: 38 | B64: Total | C64: £m | D64: C | H64: =SUM(H58:H63) -> 0 | I64: =SUM(I58:I63) -> 0 | J64: 0 | K64: 0 | L64: 0 | M64: 0 | N64: 0 | O64: 0 | P64: 0 | Q64: 0
B67: Grants and Contributions - Allocation of capital expenditure into asset life categories
B69: Grants and Third Party Contributions | C69: Units | D69: Field Type | E69: Criteria | F69: =+Baseminus1 -> 2017-18 | G69: =+Baseyear -> 2018-19 | H69: =+Baseplus1 -> 2019-20 | I69: =+Baseplus2 -> 2020-21 | J69: =+Baseplus3 -> 2021-22 | K69: =+Baseplus4 -> 2022-23 | L69: =+Baseplus5 -> 2023-24 | M69: =+Baseplus6 -> 2024-25 | N69: =+Baseplus7 -> 2025-26 | O69: =+Baseplus8 -> 2026-27 | P69: =+Baseplus9 -> 2027-28 | Q69: =+Baseplus10 -> 2028-29
A70: 39 | B70: Very Short | C70: £m | D70: C | H70: =+H$15*'A3'!H80 -> 0 | I70: =+I$15*'A3'!I80 -> 0 | J70: =+J$15*'A3'!J80 -> 0 | K70: =+K$15*'A3'!K80 -> 0 | L70: =+L$15*'A3'!L80 -> 0 | M70: =+M$15*'A3'!M80 -> 0 | N70: =+N$15*'A3'!N80 -> 0 | O70: =+O$15*'A3'!O80 -> 0 | P70: =+P$15*'A3'!P80 -> 0 | Q70: =+Q$15*'A3'!Q80 -> 0
A71: 40 | B71: Short | C71: £m | D71: C | H71: =+H$15*'A3'!H81 -> 0 | I71: =+I$15*'A3'!I81 -> 0 | J71: =+J$15*'A3'!J81 -> 0 | K71: =+K$15*'A3'!K81 -> 0 | L71: =+L$15*'A3'!L81 -> 0 | M71: =+M$15*'A3'!M81 -> 0 | N71: =+N$15*'A3'!N81 -> 0 | O71: =+O$15*'A3'!O81 -> 0 | P71: =+P$15*'A3'!P81 -> 0 | Q71: =+Q$15*'A3'!Q81 -> 0
A72: 41 | B72: Medium | C72: £m | D72: C | H72: =+H$15*'A3'!H82 -> 0.6828888806 | I72: =+I$15*'A3'!I82 -> 0.8150782172 | J72: =+J$15*'A3'!J82 -> 0.8427192394 | K72: =+K$15*'A3'!K82 -> 0.8710335293 | L72: =+L$15*'A3'!L82 -> 0.9002610484 | M72: =+M$15*'A3'!M82 -> 0.9335211452 | N72: =+N$15*'A3'!N82 -> 0.9654682945 | O72: =+O$15*'A3'!O82 -> 0.9971115473 | P72: =+P$15*'A3'!P82 -> 0.898172599 | Q72: =+Q$15*'A3'!Q82 -> 0.9287104674
A73: 42 | B73: Medium long | C73: £m | D73: C | H73: =+H$15*'A3'!H83 -> 0 | I73: =+I$15*'A3'!I83 -> 0 | J73: =+J$15*'A3'!J83 -> 0 | K73: =+K$15*'A3'!K83 -> 0 | L73: =+L$15*'A3'!L83 -> 0 | M73: =+M$15*'A3'!M83 -> 0 | N73: =+N$15*'A3'!N83 -> 0 | O73: =+O$15*'A3'!O83 -> 0 | P73: =+P$15*'A3'!P83 -> 0 | Q73: =+Q$15*'A3'!Q83 -> 0
A74: 43 | B74: Long | C74: £m | D74: C | H74: =+H$15*'A3'!H84 -> 0 | I74: =+I$15*'A3'!I84 -> 0 | J74: =+J$15*'A3'!J84 -> 0 | K74: =+K$15*'A3'!K84 -> 0 | L74: =+L$15*'A3'!L84 -> 0 | M74: =+M$15*'A3'!M84 -> 0 | N74: =+N$15*'A3'!N84 -> 0 | O74: =+O$15*'A3'!O84 -> 0 | P74: =+P$15*'A3'!P84 -> 0 | Q74: =+Q$15*'A3'!Q84 -> 0
A75: 44 | B75: Infinite (land) | C75: £m | D75: C | H75: =+H$15*'A3'!H85 -> 5.211945119 | I75: =+I$15*'A3'!I85 -> 5.192891428 | J75: =+J$15*'A3'!J85 -> 5.552495923 | K75: =+K$15*'A3'!K85 -> 5.741618949 | L75: =+L$15*'A3'!L85 -> 5.937221614 | M75: =+M$15*'A3'!M85 -> 5.892006648 | N75: =+N$15*'A3'!N85 -> 6.092127444 | O75: =+O$15*'A3'!O85 -> 6.300442446 | P75: =+P$15*'A3'!P85 -> 5.900521192 | Q75: =+Q$15*'A3'!Q85 -> 6.101138913
A76: 46 | B76: Total | C76: £m | D76: C | H76: =SUM(H70:H75) -> 5.894834 | I76: 6.007969645 | J76: 6.395215163 | K76: 6.612652478 | L76: 6.837482662 | M76: 6.825527793 | N76: 7.057595738 | O76: 7.297553993 | P76: 6.798693791 | Q76: 7.02984938
B79: Infrastructure Renewals Charge
B81: Infrastructure Renewals Charge | C81: Units | D81: Field Type | E81: Criteria | F81: =+Baseminus1 -> 2017-18 | G81: =+Baseyear -> 2018-19 | H81: =+Baseplus1 -> 2019-20 | I81: =+Baseplus2 -> 2020-21 | J81: =+Baseplus3 -> 2021-22 | K81: =+Baseplus4 -> 2022-23 | L81: =+Baseplus5 -> 2023-24 | M81: =+Baseplus6 -> 2024-25 | N81: =+Baseplus7 -> 2025-26 | O81: =+Baseplus8 -> 2026-27 | P81: =+Baseplus9 -> 2027-28 | Q81: =+Baseplus10 -> 2028-29
A82: 47 | B82: Infrastructure Renewals Charge | C82: £m | D82: C | H82: =+'A3'!H92*'A1'!H13/Copibaseavg -> 33.70195112 | I82: =+'A3'!I92*'A1'!I13/Copibaseavg -> 32.78304754 | J82: =+'A3'!J92*'A1'!J13/Copibaseavg -> 25.6358328 | K82: =+'A3'!K92*'A1'!K13/Copibaseavg -> 26.34840641 | L82: =+'A3'!L92*'A1'!L13/Copibaseavg -> 27.08078672 | M82: =+'A3'!M92*'A1'!M13/Copibaseavg -> 27.83352426 | N82: =+'A3'!N92*'A1'!N13/Copibaseavg -> 28.6071849 | O82: =+'A3'!O92*'A1'!O13/Copibaseavg -> 29.40235022 | P82: =+'A3'!P92*'A1'!P13/Copibaseavg -> 108.9912221 | Q82: =+'A3'!Q92*'A1'!Q13/Copibaseavg -> 112.6829533
B85: Total Asset additions
B87: Total asset additions - Historic Cost | C87: Units | D87: Field Type | E87: Criteria | F87: =+Baseminus1 -> 2017-18 | G87: =+Baseyear -> 2018-19 | H87: =+Baseplus1 -> 2019-20 | I87: =+Baseplus2 -> 2020-21 | J87: =+Baseplus3 -> 2021-22 | K87: =+Baseplus4 -> 2022-23 | L87: =+Baseplus5 -> 2023-24 | M87: =+Baseplus6 -> 2024-25 | N87: =+Baseplus7 -> 2025-26 | O87: =+Baseplus8 -> 2026-27 | P87: =+Baseplus9 -> 2027-28 | Q87: =+Baseplus10 -> 2028-29
A88: 48 | B88: Very Short | C88: £m | D88: C | H88: =+H28+H37+H70+H49+H58 -> 0 | I88: 0 | J88: 2.275249696 | K88: 2.69669695 | L88: 3.274042088 | M88: 4.295732093 | N88: 2.445481001 | O88: =+O28+O37+O70+O49+O58 -> 1.963766209 | P88: 5.447237665 | Q88: 5.657773186
A89: 49 | B89: Short | C89: £m | D89: C | H89: =+H29+H38+H71+H50+H59 -> 17.84904869 | I89: =+I29+I38+I71+I50+I59 -> 13.3535447 | J89: 25.47533825 | K89: 24.85039971 | L89: 30.43939635 | M89: 31.87004138 | N89: 26.49709052 | O89: 25.1019816 | P89: 86.04516273 | Q89: 89.16261544
A90: 50 | B90: Medium | C90: £m | D90: C | H90: =+H30+H39+H72+H51+H60 -> 40.44015863 | I90: 36.91197685 | J90: 37.84436383 | K90: 37.44348759 | L90: 37.6385571 | M90: 36.23544031 | N90: 40.00056922 | O90: 42.99469033 | P90: 124.7731375 | Q90: 129.3747616
A91: 51 | B91: Medium long | C91: £m | D91: C | H91: =+H31+H40+H73+H52+H61 -> 0.1522502904 | I91: 0 | J91: 0 | K91: 0 | L91: 0 | M91: 0 | N91: 0 | O91: 0 | P91: 0.1056372251 | Q91: 0.1091887942
A92: 52 | B92: Long | C92: £m | D92: C | H92: =+H32+H41+H74+H53+H62 -> 40.02370927 | I92: 32.20676791 | J92: 30.07087892 | K92: 33.09433704 | L92: 29.16081201 | M92: 30.82466553 | N92: 36.72798925 | O92: 39.35220396 | P92: 115.7349853 | Q92: 119.9665739
A93: 53 | B93: Infinite (land) | C93: £m | D93: C | H93: =+H33+H42+H75+H54+H63 -> 5.211945119 | I93: 5.192891428 | J93: 5.552495923 | K93: 5.741618949 | L93: 5.937221614 | M93: 5.892006648 | N93: 6.092127444 | O93: 6.300442446 | P93: 5.900521192 | Q93: 6.101138913
A94: 54 | B94: Infrastructure Enhancement | C94: £m | D94: C | H94: =+H9+H13 -> 30.872138 | I94: =+I9+I13 -> 36.82643229 | J94: 32.10497023 | K94: 32.70013898 | L94: 33.24672924 | M94: 34.29278112 | N94: 34.74605507 | O94: 36.55220427 | P94: 143.5548517 | Q94: 145.0269662
A95: 55 | B95: Infrastructure Renewals expenditure | C95: £m | D95: C | H95: =+H7+H11 -> 34.49424 | I95: =+I7+I11 -> 32.50537287 | J95: =+J7+J11 -> 25.6358328 | K95: 26.34840641 | L95: 27.08078672 | M95: 27.83352426 | N95: 28.6071849 | O95: 29.40235022 | P95: 108.9912221 | Q95: 112.6829533
A96: 56 | B96: Total | C96: £m | D96: C | H96: =SUM(H88:H95) -> 169.04349 | I96: =SUM(I88:I95) -> 156.9969861 | J96: 158.9591297 | K96: 162.8750856 | L96: 166.7775451 | M96: 171.2441914 | N96: 175.1164974 | O96: 181.667639 | P96: 590.5527554 | Q96: 608.0819714
B98: Total asset additions - Current Cost | C98: Units | D98: Field Type | E98: Criteria | F98: =+Baseminus1 -> 2017-18 | G98: =+Baseyear -> 2018-19 | H98: =+Baseplus1 -> 2019-20 | I98: =+Baseplus2 -> 2020-21 | J98: =+Baseplus3 -> 2021-22 | K98: =+Baseplus4 -> 2022-23 | L98: =+Baseplus5 -> 2023-24 | M98: =+Baseplus6 -> 2024-25 | N98: =+Baseplus7 -> 2025-26 | O98: =+Baseplus8 -> 2026-27 | P98: =+Baseplus9 -> 2027-28 | Q98: =+Baseplus10 -> 2028-29
A99: 57 | B99: Very Short | C99: £m | D99: C | H99: =+H28+H37+H70+H49+H58 -> 0 | I99: 0 | J99: 2.275249696 | K99: 2.69669695 | L99: 3.274042088 | M99: 4.295732093 | N99: 2.445481001 | O99: 1.963766209 | P99: 5.447237665 | Q99: 5.657773186
A100: 58 | B100: Short | C100: £m | D100: C | H100: =+H29+H38+H71+H50+H59 -> 17.84904869 | I100: 13.3535447 | J100: 25.47533825 | K100: 24.85039971 | L100: 30.43939635 | M100: 31.87004138 | N100: 26.49709052 | O100: 25.1019816 | P100: 86.04516273 | Q100: 89.16261544
A101: 59 | B101: Medium | C101: £m | D101: C | H101: =+H30+H39+H72+H51+H60 -> 40.44015863 | I101: =+I30+I39+I72+I51+I60 -> 36.91197685 | J101: 37.84436383 | K101: 37.44348759 | L101: 37.6385571 | M101: 36.23544031 | N101: 40.00056922 | O101: 42.99469033 | P101: 124.7731375 | Q101: 129.3747616
A102: 60 | B102: Medium long | C102: £m | D102: C | H102: =+H31+H40+H73+H52+H61 -> 0.1522502904 | I102: 0 | J102: 0 | K102: 0 | L102: 0 | M102: 0 | N102: 0 | O102: 0 | P102: 0.1056372251 | Q102: 0.1091887942
A103: 61 | B103: Long | C103: £m | D103: C | H103: =+H32+H41+H74+H53+H62 -> 40.02370927 | I103: 32.20676791 | J103: 30.07087892 | K103: 33.09433704 | L103: 29.16081201 | M103: 30.82466553 | N103: 36.72798925 | O103: 39.35220396 | P103: 115.7349853 | Q103: 119.9665739
A104: 62 | B104: Infinite (land) | C104: £m | D104: C | H104: =+H33+H42+H75+H54+H63 -> 5.211945119 | I104: =+I33+I42+I75+I54+I63 -> 5.192891428 | J104: 5.552495923 | K104: =+K33+K42+K75+K54+K63 -> 5.741618949 | L104: 5.937221614 | M104: 5.892006648 | N104: 6.092127444 | O104: 6.300442446 | P104: 5.900521192 | Q104: 6.101138913
A105: 63 | B105: Infrastructure Enhancement | C105: £m | D105: C | H105: =+H9+H13 -> 30.872138 | I105: =+I9+I13 -> 36.82643229 | J105: 32.10497023 | K105: 32.70013898 | L105: 33.24672924 | M105: 34.29278112 | N105: 34.74605507 | O105: 36.55220427 | P105: 143.5548517 | Q105: 145.0269662
A106: 64 | B106: Infrastructure Renewals expenditure | C106: £m | D106: C | H106: =+H7+H11 -> 34.49424 | I106: 32.50537287 | J106: 25.6358328 | K106: 26.34840641 | L106: 27.08078672 | M106: 27.83352426 | N106: 28.6071849 | O106: 29.40235022 | P106: 108.9912221 | Q106: 112.6829533
A107: 65 | B107: Total | C107: £m | D107: C | H107: =SUM(H99:H106) -> 169.04349 | I107: =SUM(I99:I106) -> 156.9969861 | J107: 158.9591297 | K107: 162.8750856 | L107: 166.7775451 | M107: 171.2441914 | N107: 175.1164974 | O107: 181.667639 | P107: 590.5527554 | Q107: 608.0819714
B109: =IF(COUNTIF(H109:Q109,"False")=0,"OK","Check") -> OK | H109: =ROUND(H107,0.1)=ROUND(H17,0.1) -> TRUE | I109: TRUE | J109: TRUE | K109: TRUE | L109: TRUE | M109: TRUE | N109: TRUE | O109: TRUE | P109: TRUE | Q109: TRUE
A113: Return to 'Opening' Sheet

Sheet P2
A1: =CHECK!A1 -> Checks = 3
B2: Process sheet: Depreciation
B4: Depreciation rates
B6: Asset Depreciation rates | C6: Rate | D6: Years
A7: 1 | B7: Very Short | C7: 0.2 | D7: 5
A8: 2 | B8: Short | C8: 0.1 | D8: 10
A9: 3 | B9: Medium | C9: 0.05 | D9: 20
A10: 4 | B10: Medium long | C10: 0.025 | D10: 40
A11: 5 | B11: Long | C11: 0.01666666667 | D11: 60
A12: 6 | B12: Infinite | C12: 0 | D12: Inf.
A13: 7 | B13: Infrastructure | C13: 0 | D13: Inf.
B16: Tangible Assets - Historic Cost Accounting
B18: HC depreciation on opening assets | C18: Units | D18: Field Type | E18: Criteria | F18: =+Baseminus1 -> 2017-18 | G18: =+Baseyear -> 2018-19 | H18: =+Baseplus1 -> 2019-20 | I18: =+Baseplus2 -> 2020-21 | J18: =+Baseplus3 -> 2021-22 | K18: =+Baseplus4 -> 2022-23 | L18: =+Baseplus5 -> 2023-24 | M18: =+Baseplus6 -> 2024-25 | N18: =+Baseplus7 -> 2025-26 | O18: =+Baseplus8 -> 2026-27 | P18: =+Baseplus9 -> 2027-28 | Q18: =+Baseplus10 -> 2028-29
A19: 8 | B19: Depreciation on opening assets | C19: £m | D19: B | H19: =-'B7'!H12 -> 43.13812947 | I19: =-'B7'!I12 -> 38.45942888 | J19: =-'B7'!J12 -> 38.12646526 | K19: =-'B7'!K12 -> 33.86481138 | L19: =-'B7'!L12 -> 30.9819737 | M19: =-'B7'!M12 -> 27.46686766 | N19: =-'B7'!N12 -> 25.45583771 | O19: =-'B7'!O12 -> 24.3649912 | P19: =-'B7'!P12 -> 24.3649912 | Q19: =-'B7'!Q12 -> 24.3649912
B21: Depreciation annual rate on asset added in the year (outturn) | C21: Units | D21: Field Type | E21: Criteria | F21: =+Baseminus1 -> 2017-18 | G21: =+Baseyear -> 2018-19 | H21: =+Baseplus1 -> 2019-20 | I21: =+Baseplus2 -> 2020-21 | J21: =+Baseplus3 -> 2021-22 | K21: =+Baseplus4 -> 2022-23 | L21: =+Baseplus5 -> 2023-24 | M21: =+Baseplus6 -> 2024-25 | N21: =+Baseplus7 -> 2025-26 | O21: =+Baseplus8 -> 2026-27 | P21: =+Baseplus9 -> 2027-28 | Q21: =+Baseplus10 -> 2028-29
A22: 9 | B22: Very Short | C22: £m | D22: C | H22: =+'P1'!H88*'P2'!$C7 -> 0 | I22: =+'P1'!I88*'P2'!$C7 -> 0 | J22: =+'P1'!J88*'P2'!$C7 -> 0.4550499391 | K22: =+'P1'!K88*'P2'!$C7 -> 0.53933939 | L22: =+'P1'!L88*'P2'!$C7 -> 0.6548084176 | M22: =+'P1'!M88*'P2'!$C7 -> 0.8591464186 | N22: =+'P1'!N88*'P2'!$C7 -> 0.4890962002 | O22: =+'P1'!O88*'P2'!$C7 -> 0.3927532418 | P22: =+'P1'!P88*'P2'!$C7 -> 1.089447533 | Q22: =+'P1'!Q88*'P2'!$C7 -> 1.131554637
A23: 10 | B23: Short | C23: £m | D23: C | H23: =+'P1'!H89*'P2'!$C8 -> 1.784904869 | I23: =+'P1'!I89*'P2'!$C8 -> 1.33535447 | J23: =+'P1'!J89*'P2'!$C8 -> 2.547533825 | K23: =+'P1'!K89*'P2'!$C8 -> 2.485039971 | L23: =+'P1'!L89*'P2'!$C8 -> 3.043939635 | M23: =+'P1'!M89*'P2'!$C8 -> 3.187004138 | N23: =+'P1'!N89*'P2'!$C8 -> 2.649709052 | O23: =+'P1'!O89*'P2'!$C8 -> 2.51019816 | P23: =+'P1'!P89*'P2'!$C8 -> 8.604516273 | Q23: =+'P1'!Q89*'P2'!$C8 -> 8.916261544
A24: 11 | B24: Medium | C24: £m | D24: C | H24: =+'P1'!H90*'P2'!$C9 -> 2.022007932 | I24: =+'P1'!I90*'P2'!$C9 -> 1.845598843 | J24: =+'P1'!J90*'P2'!$C9 -> 1.892218191 | K24: =+'P1'!K90*'P2'!$C9 -> 1.87217438 | L24: =+'P1'!L90*'P2'!$C9 -> 1.881927855 | M24: =+'P1'!M90*'P2'!$C9 -> 1.811772016 | N24: =+'P1'!N90*'P2'!$C9 -> 2.000028461 | O24: =+'P1'!O90*'P2'!$C9 -> 2.149734516 | P24: =+'P1'!P90*'P2'!$C9 -> 6.238656873 | Q24: =+'P1'!Q90*'P2'!$C9 -> 6.468738082
A25: 12 | B25: Medium long | C25: £m | D25: C | H25: =+'P1'!H91*'P2'!$C10 -> 0.003806257261 | I25: =+'P1'!I91*'P2'!$C10 -> 0 | J25: =+'P1'!J91*'P2'!$C10 -> 0 | K25: =+'P1'!K91*'P2'!$C10 -> 0 | L25: =+'P1'!L91*'P2'!$C10 -> 0 | M25: =+'P1'!M91*'P2'!$C10 -> 0 | N25: =+'P1'!N91*'P2'!$C10 -> 0 | O25: =+'P1'!O91*'P2'!$C10 -> 0 | P25: =+'P1'!P91*'P2'!$C10 -> 0.002640930627 | Q25: =+'P1'!Q91*'P2'!$C10 -> 0.002729719856
A26: 13 | B26: Long | C26: £m | D26: C | H26: =+'P1'!H92*'P2'!$C11 -> 0.6670618211 | I26: =+'P1'!I92*'P2'!$C11 -> 0.5367794651 | J26: =+'P1'!J92*'P2'!$C11 -> 0.5011813154 | K26: =+'P1'!K92*'P2'!$C11 -> 0.5515722839 | L26: =+'P1'!L92*'P2'!$C11 -> 0.4860135335 | M26: =+'P1'!M92*'P2'!$C11 -> 0.5137444256 | N26: =+'P1'!N92*'P2'!$C11 -> 0.6121331542 | O26: =+'P1'!O92*'P2'!$C11 -> 0.655870066 | P26: =+'P1'!P92*'P2'!$C11 -> 1.928916422 | Q26: =+'P1'!Q92*'P2'!$C11 -> 1.999442898
A27: 14 | B27: Total depreciation on asset additions | C27: £m | D27: C | H27: =SUM(H22:H26) -> 4.477780879 | I27: =SUM(I22:I26) -> 3.717732778 | J27: 5.395983271 | K27: 5.448126025 | L27: 6.066689441 | M27: 6.371666997 | N27: 5.750966868 | O27: 5.708555984 | P27: 17.86417803 | Q27: 18.51872688
B29: HC depreciation on asset additions | C29: Units | D29: Field Type | E29: Criteria | F29: =+Baseminus1 -> 2017-18 | G29: =+Baseyear -> 2018-19 | H29: =+Baseplus1 -> 2019-20 | I29: =+Baseplus2 -> 2020-21 | J29: =+Baseplus3 -> 2021-22 | K29: =+Baseplus4 -> 2022-23 | L29: =+Baseplus5 -> 2023-24 | M29: =+Baseplus6 -> 2024-25 | N29: =+Baseplus7 -> 2025-26 | O29: =+Baseplus8 -> 2026-27 | P29: =+Baseplus9 -> 2027-28 | Q29: =+Baseplus10 -> 2028-29
A30: 15 | B30: Very Short | C30: £m | D30: C | H30: =+H22/2 -> 0 | I30: =SUM($H22:H22)+I22/2 -> 0 | J30: =SUM($H22:I22)+J22/2 -> 0.2275249696 | K30: =SUM($H22:J22)+K22/2 -> 0.7247196341 | L30: =SUM($H22:K22)+L22/2 -> 1.321793538 | M30: =SUM(I22:L22)+(M22+H22)/2 -> 2.078770956 | N30: =SUM(J22:M22)+(N22+I22)/2 -> 2.752892265 | O30: =SUM(K22:N22)+(O22+J22)/2 -> 2.966292017 | P30: =SUM(L22:O22)+(P22+K22)/2 -> 3.21019774 | Q30: =SUM(M22:P22)+(Q22+L22)/2 -> 3.723624921
A31: 16 | B31: Short | C31: £m | D31: C | H31: =+H23/2 -> 0.8924524346 | I31: =SUM($H23:H23)+I23/2 -> 2.452582104 | J31: =SUM($H23:I23)+J23/2 -> 4.394026252 | K31: =SUM($H23:J23)+K23/2 -> 6.91031315 | L31: =SUM($H23:K23)+L23/2 -> 9.674802953 | M31: =SUM($H23:L23)+M23/2 -> 12.79027484 | N31: =SUM($H23:M23)+N23/2 -> 15.70863143 | O31: =SUM($H23:N23)+O23/2 -> 18.28858504 | P31: =SUM($H23:O23)+P23/2 -> 23.84594226 | Q31: =SUM($H23:P23)+Q23/2 -> 32.60633117
A32: 17 | B32: Medium | C32: £m | D32: C | H32: =+H24/2 -> 1.011003966 | I32: =SUM($H24:H24)+I24/2 -> 2.944807353 | J32: =SUM($H24:I24)+J24/2 -> 4.81371587 | K32: =SUM($H24:J24)+K24/2 -> 6.695912156 | L32: =SUM($H24:K24)+L24/2 -> 8.572963273 | M32: =SUM($H24:L24)+M24/2 -> 10.41981321 | N32: =SUM($H24:M24)+N24/2 -> 12.32571345 | O32: =SUM($H24:N24)+O24/2 -> 14.40059494 | P32: =SUM($H24:O24)+P24/2 -> 18.59479063 | Q32: =SUM($H24:P24)+Q24/2 -> 24.94848811
A33: 18 | B33: Medium long | C33: £m | D33: C | H33: =+H25/2 -> 0.00190312863 | I33: =SUM($H25:H25)+I25/2 -> 0.003806257261 | J33: =SUM($H25:I25)+J25/2 -> 0.003806257261 | K33: =SUM($H25:J25)+K25/2 -> 0.003806257261 | L33: =SUM($H25:K25)+L25/2 -> 0.003806257261 | M33: =SUM($H25:L25)+M25/2 -> 0.003806257261 | N33: =SUM($H25:M25)+N25/2 -> 0.003806257261 | O33: =SUM($H25:N25)+O25/2 -> 0.003806257261 | P33: =SUM($H25:O25)+P25/2 -> 0.005126722575 | Q33: =SUM($H25:P25)+Q25/2 -> 0.007812047816
A34: 19 | B34: Long | C34: £m | D34: C | H34: =+H26/2 -> 0.3335309106 | I34: =SUM($H26:H26)+I26/2 -> 0.9354515537 | J34: =SUM($H26:I26)+J26/2 -> 1.454431944 | K34: =SUM($H26:J26)+K26/2 -> 1.980808744 | L34: =SUM($H26:K26)+L26/2 -> 2.499601652 | M34: =SUM($H26:L26)+M26/2 -> 2.999480632 | N34: =SUM($H26:M26)+N26/2 -> 3.562419422 | O34: =SUM($H26:N26)+O26/2 -> 4.196421032 | P34: =SUM($H26:O26)+P26/2 -> 5.488814276 | Q34: =SUM($H26:P26)+Q26/2 -> 7.452993936
A35: 20 | B35: Total depreciation on asset additions | C35: £m | D35: C | H35: =SUM(H30:H34) -> 2.23889044 | I35: =SUM(I30:I34) -> 6.336647268 | J35: 10.89350529 | K35: 16.31555994 | L35: 22.07296767 | M35: 28.29214589 | N35: 34.35346283 | O35: 39.85569928 | P35: 51.14487163 | Q35: 68.73925018
B37: HC depreciation forgone on asset disposals | C37: Units | D37: Field Type | E37: Criteria | F37: =+Baseminus1 -> 2017-18 | G37: =+Baseyear -> 2018-19 | H37: =+Baseplus1 -> 2019-20 | I37: =+Baseplus2 -> 2020-21 | J37: =+Baseplus3 -> 2021-22 | K37: =+Baseplus4 -> 2022-23 | L37: =+Baseplus5 -> 2023-24 | M37: =+Baseplus6 -> 2024-25 | N37: =+Baseplus7 -> 2025-26 | O37: =+Baseplus8 -> 2026-27 | P37: =+Baseplus9 -> 2027-28 | Q37: =+Baseplus10 -> 2028-29
A38: 21 | B38: HC depreciation forgone on asset disposals | C38: £m | D38: B | H38: =+'A4'!H10 -> -0.02028248 | I38: =+'A4'!I10 -> -0.02773886474 | J38: =+'A4'!J10 -> -0.03353834278 | K38: =+'A4'!K10 -> -0.03933782083 | L38: =+'A4'!L10 -> -0.04513729887 | M38: =+'A4'!M10 -> -0.05093677691 | N38: =+'A4'!N10 -> -0.05673625495 | O38: =+'A4'!O10 -> -0.062535733 | P38: =+'A4'!P10 -> -0.06833521104 | Q38: =+'A4'!Q10 -> -0.07413468908
B40: Total HC depreciation charge in the year | C40: Units | D40: Field Type | E40: Criteria | F40: =+Baseminus1 -> 2017-18 | G40: =+Baseyear -> 2018-19 | H40: =+Baseplus1 -> 2019-20 | I40: =+Baseplus2 -> 2020-21 | J40: =+Baseplus3 -> 2021-22 | K40: =+Baseplus4 -> 2022-23 | L40: =+Baseplus5 -> 2023-24 | M40: =+Baseplus6 -> 2024-25 | N40: =+Baseplus7 -> 2025-26 | O40: =+Baseplus8 -> 2026-27 | P40: =+Baseplus9 -> 2027-28 | Q40: =+Baseplus10 -> 2028-29
A41: 22 | B41: Total depreciation charge in the year | C41: £m | D41: C | H41: =+H19+H35+H38 -> 45.35673743 | I41: =+I19+I35+I38 -> 44.76833728 | J41: =+J19+J35+J38 -> 48.98643221 | K41: =+K19+K35+K38 -> 50.1410335 | L41: 53.00980408 | M41: =+M19+M35+M38 -> 55.70807678 | N41: 59.75256428 | O41: =+O19+O35+O38 -> 64.15815475 | P41: 75.44152762 | Q41: 93.03010669
B44: Tangible Assets - Current Cost Accounting
B46: CC Depreciation on opening assets | C46: Units | D46: Field Type | E46: Criteria | F46: =+Baseminus1 -> 2017-18 | G46: =+Baseyear -> 2018-19 | H46: =+Baseplus1 -> 2019-20 | I46: =+Baseplus2 -> 2020-21 | J46: =+Baseplus3 -> 2021-22 | K46: =+Baseplus4 -> 2022-23 | L46: =+Baseplus5 -> 2023-24 | M46: =+Baseplus6 -> 2024-25 | N46: =+Baseplus7 -> 2025-26 | O46: =+Baseplus8 -> 2026-27 | P46: =+Baseplus9 -> 2027-28 | Q46: =+Baseplus10 -> 2028-29
A47: 23 | B47: Depreciation on opening assets | C47: £m | D47: C | H47: =(-'B7'!H25)*'A1'!H7/Rpibaseavg -> 129.1792547 | I47: =(-'B7'!I25)*'A1'!I7/Rpibaseavg -> 101.2765183 | J47: =(-'B7'!J25)*'A1'!J7/Rpibaseavg -> 108.9137976 | K47: =(-'B7'!K25)*'A1'!K7/Rpibaseavg -> 97.97892554 | L47: =(-'B7'!L25)*'A1'!L7/Rpibaseavg -> 95.72292739 | M47: =(-'B7'!M25)*'A1'!M7/Rpibaseavg -> 93.14228241 | N47: =(-'B7'!N25)*'A1'!N7/Rpibaseavg -> 92.3113885 | O47: =(-'B7'!O25)*'A1'!O7/Rpibaseavg -> 92.83247886 | P47: =(-'B7'!P25)*'A1'!P7/Rpibaseavg -> 95.98878314 | Q47: =(-'B7'!Q25)*'A1'!Q7/Rpibaseavg -> 99.25240176
B49: CC Depreciation on asset additions | C49: Units | D49: Field Type | E49: Criteria | F49: =+Baseminus1 -> 2017-18 | G49: =+Baseyear -> 2018-19 | H49: =+Baseplus1 -> 2019-20 | I49: =+Baseplus2 -> 2020-21 | J49: =+Baseplus3 -> 2021-22 | K49: =+Baseplus4 -> 2022-23 | L49: =+Baseplus5 -> 2023-24 | M49: =+Baseplus6 -> 2024-25 | N49: =+Baseplus7 -> 2025-26 | O49: =+Baseplus8 -> 2026-27 | P49: =+Baseplus9 -> 2027-28 | Q49: =+Baseplus10 -> 2028-29
A50: 24 | B50: Very Short | C50: £m | D50: C | H50: =+H30 -> 0 | I50: =+(H50+H22/2)*'A1'!I$7/'A1'!H$7+I22/2 -> 0 | J50: =+(I50+I22/2)*'A1'!J$7/'A1'!I$7+J22/2 -> 0.2275249696 | K50: =+(J50+J22/2)*'A1'!K$7/'A1'!J$7+K22/2 -> 0.740191332 | L50: =+(K50+K22/2)*'A1'!L$7/'A1'!K$7+L22/2 -> 1.371600511 | M50: =+(L50+L22/2)*'A1'!M$7/'A1'!L$7+M22/2-(H22/2)*'A1'!M7/'A1'!H7 -> 2.186344089 | N50: =+(M50+M22/2)*'A1'!N$7/'A1'!M$7+N22/2-(I22/2)*'A1'!N7/'A1'!I7-(H22/2)*'A1'!N7/'A1'!H7 -> 2.949406587 | O50: =+(N50+N22/2)*'A1'!O$7/'A1'!N$7+O22/2-(J22/2)*'A1'!O7/'A1'!J7-(I22/2)*'A1'!O7/'A1'!I7 -> 3.230000407 | P50: =+(O50+O22/2)*'A1'!P$7/'A1'!O$7+P22/2-(K22/2)*'A1'!P7/'A1'!K7-(J22/2)*'A1'!P7/'A1'!J7 -> 3.490790061 | Q50: =+(P50+P22/2)*'A1'!Q$7/'A1'!P$7+Q22/2-(L22/2)*'A1'!Q7/'A1'!L7-(K22/2)*'A1'!Q7/'A1'!K7 -> 4.021944168
A51: 25 | B51: Short | C51: £m | D51: C | H51: =+H31 -> 0.8924524346 | I51: =+(H51+H23/2)*'A1'!I$7/'A1'!H$7+I23/2 -> 2.51326887 | J51: =+(I51+I23/2)*'A1'!J$7/'A1'!I$7+J23/2 -> 4.562865185 | K51: =+(J51+J23/2)*'A1'!K$7/'A1'!J$7+K23/2 -> 7.277597575 | L51: =+(K51+K23/2)*'A1'!L$7/'A1'!K$7+L23/2 -> 10.33177137 | M51: =+(L51+L23/2)*'A1'!M$7/'A1'!L$7+M23/2 -> 13.85027046 | N51: =+(M51+M23/2)*'A1'!N$7/'A1'!M$7+N23/2 -> 17.29371532 | O51: =+(N51+N23/2)*'A1'!O$7/'A1'!N$7+O23/2 -> 20.5067003 | P51: =+(O51+O23/2)*'A1'!P$7/'A1'!O$7+P23/2 -> 26.8039587 | Q51: =+(P51+P23/2)*'A1'!Q$7/'A1'!P$7+Q23/2 -> 36.62195898
A52: 26 | B52: Medium | C52: £m | D52: C | H52: =+H32 -> 1.011003966 | I52: =+(H52+H24/2)*'A1'!I$7/'A1'!H$7+I24/2 -> 3.013555623 | J52: =+(I52+I24/2)*'A1'!J$7/'A1'!I$7+J24/2 -> 5.016300211 | K52: =+(J52+J24/2)*'A1'!K$7/'A1'!J$7+K24/2 -> 7.101218413 | L52: =+(K52+K24/2)*'A1'!L$7/'A1'!K$7+L24/2 -> 9.251537921 | M52: =+(L52+L24/2)*'A1'!M$7/'A1'!L$7+M24/2 -> 11.44493292 | N52: =+(M52+M24/2)*'A1'!N$7/'A1'!M$7+N24/2 -> 13.770761 | O52: =+(N52+N24/2)*'A1'!O$7/'A1'!N$7+O24/2 -> 16.34784885 | P52: =+(O52+O24/2)*'A1'!P$7/'A1'!O$7+P24/2 -> 21.13441689 | Q52: =+(P52+P24/2)*'A1'!Q$7/'A1'!P$7+Q24/2 -> 28.31274171
A53: 27 | B53: Medium long | C53: £m | D53: C | H53: =+H33 -> 0.00190312863 | I53: =+(H53+H25/2)*'A1'!I$7/'A1'!H$7+I25/2 -> 0.003935670008 | J53: =+(I53+I25/2)*'A1'!J$7/'A1'!I$7+J25/2 -> 0.004069482788 | K53: =+(J53+J25/2)*'A1'!K$7/'A1'!J$7+K25/2 -> 0.004207845203 | L53: =+(K53+K25/2)*'A1'!L$7/'A1'!K$7+L25/2 -> 0.00435091194 | M53: =+(L53+L25/2)*'A1'!M$7/'A1'!L$7+M25/2 -> 0.004498842946 | N53: =+(M53+M25/2)*'A1'!N$7/'A1'!M$7+N25/2 -> 0.004651803606 | O53: =+(N53+N25/2)*'A1'!O$7/'A1'!N$7+O25/2 -> 0.004809964928 | P53: =+(O53+O25/2)*'A1'!P$7/'A1'!O$7+P25/2 -> 0.00629396905 | Q53: =+(P53+P25/2)*'A1'!Q$7/'A1'!P$7+Q25/2 -> 0.00923818506
A54: 28 | B54: Long | C54: £m | D54: C | H54: =+H34 -> 0.3335309106 | I54: =+(H54+H26/2)*'A1'!I$7/'A1'!H$7+I26/2 -> 0.9581316556 | J54: =+(I54+I26/2)*'A1'!J$7/'A1'!I$7+J26/2 -> 1.518813773 | K54: =+(J54+J26/2)*'A1'!K$7/'A1'!J$7+K26/2 -> 2.105350323 | L54: =+(K54+K26/2)*'A1'!L$7/'A1'!K$7+L26/2 -> 2.705101872 | M54: =+(L54+L26/2)*'A1'!M$7/'A1'!L$7+M26/2 -> 3.305216545 | N54: =+(M54+M26/2)*'A1'!N$7/'A1'!M$7+N26/2 -> 3.989266353 | O54: =+(N54+N26/2)*'A1'!O$7/'A1'!N$7+O26/2 -> 4.769309282 | P54: =+(O54+O26/2)*'A1'!P$7/'A1'!O$7+P26/2 -> 6.235008833 | Q54: =+(P54+P26/2)*'A1'!Q$7/'A1'!P$7+Q26/2 -> 8.443970373
A55: 29 | B55: Total depreciation on asset additions | C55: £m | D55: C | H55: =SUM(H50:H54) -> 2.23889044 | I55: =SUM(I50:I54) -> 6.488891818 | J55: 11.32957362 | K55: 17.22856549 | L55: 23.66436259 | M55: 30.79126286 | N55: 38.00780107 | O55: 44.85866881 | P55: 57.67046845 | Q55: 77.40985341
B57: CC Depreciation forgone on asset disposals | C57: Units | D57: Field Type | E57: Criteria | F57: =+Baseminus1 -> 2017-18 | G57: =+Baseyear -> 2018-19 | H57: =+Baseplus1 -> 2019-20 | I57: =+Baseplus2 -> 2020-21 | J57: =+Baseplus3 -> 2021-22 | K57: =+Baseplus4 -> 2022-23 | L57: =+Baseplus5 -> 2023-24 | M57: =+Baseplus6 -> 2024-25 | N57: =+Baseplus7 -> 2025-26 | O57: =+Baseplus8 -> 2026-27 | P57: =+Baseplus9 -> 2027-28 | Q57: =+Baseplus10 -> 2028-29
A58: 30 | B58: CC depreciation forgone on asset disposals | C58: £m | D58: C | H58: ='A4'!H19*'A1'!H7/Rpibaseavg -> -0.02188038094 | I58: ='A4'!I19*'A1'!I7/Rpibaseavg -> -0.1068476369 | J58: ='A4'!J19*'A1'!J7/Rpibaseavg -> -0.1422518211 | K58: ='A4'!K19*'A1'!K7/Rpibaseavg -> -0.1799399739 | L58: ='A4'!L19*'A1'!L7/Rpibaseavg -> -0.220026478 | M58: ='A4'!M19*'A1'!M7/Rpibaseavg -> -0.2626308538 | N58: ='A4'!N19*'A1'!N7/Rpibaseavg -> -0.3078779765 | O58: ='A4'!O19*'A1'!O7/Rpibaseavg -> -0.3558983023 | P58: ='A4'!P19*'A1'!P7/Rpibaseavg -> -0.4068281034 | Q58: ='A4'!Q19*'A1'!Q7/Rpibaseavg -> -0.4608097124
B60: CC depreciation on WIP commissioned after 31/03/08 | C60: Units | D60: Field Type | E60: Criteria | F60: =+Baseminus1 -> 2017-18 | G60: =+Baseyear -> 2018-19 | H60: =+Baseplus1 -> 2019-20 | I60: =+Baseplus2 -> 2020-21 | J60: =+Baseplus3 -> 2021-22 | K60: =+Baseplus4 -> 2022-23 | L60: =+Baseplus5 -> 2023-24 | M60: =+Baseplus6 -> 2024-25 | N60: =+Baseplus7 -> 2025-26 | O60: =+Baseplus8 -> 2026-27 | P60: =+Baseplus9 -> 2027-28 | Q60: =+Baseplus10 -> 2028-29
A61: 31 | B61: CC depreciation on WIP commissioned after 31/03/08 | C61: £m | D61: C | H61: =-'B7'!H26*'A1'!H7/Rpibaseavg -> 1.395685779 | I61: =-'B7'!I26*'A1'!I7/Rpibaseavg -> 6.02066878 | J61: =-'B7'!J26*'A1'!J7/Rpibaseavg -> 6.277167787 | K61: =-'B7'!K26*'A1'!K7/Rpibaseavg -> 6.518252044 | L61: =-'B7'!L26*'A1'!L7/Rpibaseavg -> 6.655578385 | M61: =-'B7'!M26*'A1'!M7/Rpibaseavg -> 6.701001985 | N61: =-'B7'!N26*'A1'!N7/Rpibaseavg -> 6.51928242 | O61: =-'B7'!O26*'A1'!O7/Rpibaseavg -> 6.264699684 | P61: =-'B7'!P26*'A1'!P7/Rpibaseavg -> 6.477699473 | Q61: =-'B7'!Q26*'A1'!Q7/Rpibaseavg -> 6.697941255
B63: Total CC depreciation charge in the year | C63: Units | D63: Field Type | E63: Criteria | F63: =+Baseminus1 -> 2017-18 | G63: =+Baseyear -> 2018-19 | H63: =+Baseplus1 -> 2019-20 | I63: =+Baseplus2 -> 2020-21 | J63: =+Baseplus3 -> 2021-22 | K63: =+Baseplus4 -> 2022-23 | L63: =+Baseplus5 -> 2023-24 | M63: =+Baseplus6 -> 2024-25 | N63: =+Baseplus7 -> 2025-26 | O63: =+Baseplus8 -> 2026-27 | P63: =+Baseplus9 -> 2027-28 | Q63: =+Baseplus10 -> 2028-29
A64: 32 | B64: Total CC depreciation charge in the year | C64: £m | D64: C | H64: =+H47+H55+H58+H61 -> 132.7919506 | I64: =+I47+I55+I58+I61 -> 113.6792313 | J64: 126.3782872 | K64: 121.5458031 | L64: 125.8228419 | M64: 130.3719164 | N64: 136.530594 | O64: 143.599949 | P64: 159.730123 | Q64: 182.8993867
B67: Infrastructure Renewals Charge
B69: Infrastructure Renewals Charge | C69: Units | D69: Field Type | E69: Criteria | F69: =+Baseminus1 -> 2017-18 | G69: =+Baseyear -> 2018-19 | H69: =+Baseplus1 -> 2019-20 | I69: =+Baseplus2 -> 2020-21 | J69: =+Baseplus3 -> 2021-22 | K69: =+Baseplus4 -> 2022-23 | L69: =+Baseplus5 -> 2023-24 | M69: =+Baseplus6 -> 2024-25 | N69: =+Baseplus7 -> 2025-26 | O69: =+Baseplus8 -> 2026-27 | P69: =+Baseplus9 -> 2027-28 | Q69: =+Baseplus10 -> 2028-29
A70: 33 | B70: Infrastructure Renewals charge | C70: £m | D70: C/I | H70: =+'A3'!H92*('A1'!H13/Copibaseavg) -> 33.70195112 | I70: =+'A3'!I92*('A1'!I13/Copibaseavg) -> 32.78304754 | J70: =+'A3'!J92*('A1'!J13/Copibaseavg) -> 25.6358328 | K70: =+'A3'!K92*('A1'!K13/Copibaseavg) -> 26.34840641 | L70: =+'A3'!L92*('A1'!L13/Copibaseavg) -> 27.08078672 | M70: =+'A3'!M92*('A1'!M13/Copibaseavg) -> 27.83352426 | N70: =+'A3'!N92*('A1'!N13/Copibaseavg) -> 28.6071849 | O70: =+'A3'!O92*('A1'!O13/Copibaseavg) -> 29.40235022 | P70: =+'A3'!P92*('A1'!P13/Copibaseavg) -> 108.9912221 | Q70: =+'A3'!Q92*('A1'!Q13/Copibaseavg) -> 112.6829533
B73: Grants and Contributions - Historic Cost Accounting
B75: Historic Cost Amortisation of Existing Grants (£ Million) | C75: Units | D75: Field Type | E75: Criteria | F75: =+Baseminus1 -> 2017-18 | G75: =+Baseyear -> 2018-19 | H75: =+Baseplus1 -> 2019-20 | I75: =+Baseplus2 -> 2020-21 | J75: =+Baseplus3 -> 2021-22 | K75: =+Baseplus4 -> 2022-23 | L75: =+Baseplus5 -> 2023-24 | M75: =+Baseplus6 -> 2024-25 | N75: =+Baseplus7 -> 2025-26 | O75: =+Baseplus8 -> 2026-27 | P75: =+Baseplus9 -> 2027-28 | Q75: =+Baseplus10 -> 2028-29
A76: 34 | B76: Amortisation of Existing Grants (31/03/2008) | C76: £m | D76: B | H76: =-'B7'!H15 -> 0.8073258693 | I76: =-'B7'!I15 -> 0.8073258693 | J76: =-'B7'!J15 -> 0.7985649263 | K76: =-'B7'!K15 -> 0.76652652 | L76: =-'B7'!L15 -> 0.7469816861 | M76: =-'B7'!M15 -> 0.7107665734 | N76: =-'B7'!N15 -> 0.6851346097 | O76: =-'B7'!O15 -> 0.6540944174 | P76: =-'B7'!P15 -> 0.6540944174 | Q76: =-'B7'!Q15 -> 0.6540944174
B78: Amortisation of new grants | C78: Units | D78: Field Type | E78: Criteria | F78: =+Baseminus1 -> 2017-18 | G78: =+Baseyear -> 2018-19 | H78: =+Baseplus1 -> 2019-20 | I78: =+Baseplus2 -> 2020-21 | J78: =+Baseplus3 -> 2021-22 | K78: =+Baseplus4 -> 2022-23 | L78: =+Baseplus5 -> 2023-24 | M78: =+Baseplus6 -> 2024-25 | N78: =+Baseplus7 -> 2025-26 | O78: =+Baseplus8 -> 2026-27 | P78: =+Baseplus9 -> 2027-28 | Q78: =+Baseplus10 -> 2028-29
A79: 35 | B79: Very Short | C79: £m | D79: C | H79: =+'P1'!H70*'P2'!$C7/2 -> 0 | I79: =+'P1'!I70*'P2'!$C7/2+SUM('P1'!$H70:H70)*'P2'!$C7 -> 0 | J79: =+'P1'!J70*'P2'!$C7/2+SUM('P1'!$H70:I70)*'P2'!$C7 -> 0 | K79: =+'P1'!K70*'P2'!$C7/2+SUM('P1'!$H70:J70)*'P2'!$C7 -> 0 | L79: =+'P1'!L70*'P2'!$C7/2+SUM('P1'!$H70:K70)*'P2'!$C7 -> 0 | M79: =+'P1'!M70*'P2'!$C7/2+SUM('P1'!I70:L70)*'P2'!$C7+'P1'!H70*'P2'!$C7/2 -> 0 | N79: =+'P1'!N70*'P2'!$C7/2+SUM('P1'!J70:M70)*'P2'!$C7+'P1'!I70*'P2'!$C7/2 -> 0 | O79: =+'P1'!O70*'P2'!$C7/2+SUM('P1'!K70:N70)*'P2'!$C7+'P1'!J70*'P2'!$C7/2 -> 0 | P79: =+'P1'!P70*'P2'!$C7/2+SUM('P1'!L70:O70)*'P2'!$C7+'P1'!K70*'P2'!$C7/2 -> 0 | Q79: =+'P1'!Q70*'P2'!$C7/2+SUM('P1'!M70:P70)*'P2'!$C7+'P1'!L70*'P2'!$C7/2 -> 0
A80: 36 | B80: Short | C80: £m | D80: C | H80: =+'P1'!H71*'P2'!$C8/2 -> 0 | I80: =+'P1'!I71*'P2'!$C8/2+SUM('P1'!$H71:H71)*'P2'!$C8 -> 0 | J80: =+'P1'!J71*'P2'!$C8/2+SUM('P1'!$H71:I71)*'P2'!$C8 -> 0 | K80: =+'P1'!K71*'P2'!$C8/2+SUM('P1'!$H71:J71)*'P2'!$C8 -> 0 | L80: =+'P1'!L71*'P2'!$C8/2+SUM('P1'!$H71:K71)*'P2'!$C8 -> 0 | M80: =+'P1'!M71*'P2'!$C8/2+SUM('P1'!$H71:L71)*'P2'!$C8 -> 0 | N80: =+'P1'!N71*'P2'!$C8/2+SUM('P1'!$H71:M71)*'P2'!$C8 -> 0 | O80: =+'P1'!O71*'P2'!$C8/2+SUM('P1'!$H71:N71)*'P2'!$C8 -> 0 | P80: =+'P1'!P71*'P2'!$C8/2+SUM('P1'!$H71:O71)*'P2'!$C8 -> 0 | Q80: =+'P1'!Q71*'P2'!$C8/2+SUM('P1'!$H71:P71)*'P2'!$C8 -> 0
A81: 37 | B81: Medium | C81: £m | D81: C | H81: =+'P1'!H72*'P2'!$C9/2 -> 0.01707222201 | I81: =+'P1'!I72*'P2'!$C9/2+SUM('P1'!$H72:H72)*'P2'!$C9 -> 0.05452139946 | J81: =+'P1'!J72*'P2'!$C9/2+SUM('P1'!$H72:I72)*'P2'!$C9 -> 0.09596633587 | K81: =+'P1'!K72*'P2'!$C9/2+SUM('P1'!$H72:J72)*'P2'!$C9 -> 0.1388101551 | L81: =+'P1'!L72*'P2'!$C9/2+SUM('P1'!$H72:K72)*'P2'!$C9 -> 0.1830925195 | M81: =+'P1'!M72*'P2'!$C9/2+SUM('P1'!$H72:L72)*'P2'!$C9 -> 0.2289370744 | N81: =+'P1'!N72*'P2'!$C9/2+SUM('P1'!$H72:M72)*'P2'!$C9 -> 0.2764118104 | O81: =+'P1'!O72*'P2'!$C9/2+SUM('P1'!$H72:N72)*'P2'!$C9 -> 0.3254763064 | P81: =+'P1'!P72*'P2'!$C9/2+SUM('P1'!$H72:O72)*'P2'!$C9 -> 0.3728584101 | Q81: =+'P1'!Q72*'P2'!$C9/2+SUM('P1'!$H72:P72)*'P2'!$C9 -> 0.4185304867
A82: 38 | B82: Medium long | C82: £m | D82: C | H82: =+'P1'!H73*'P2'!$C10/2 -> 0 | I82: =+'P1'!I73*'P2'!$C10/2+SUM('P1'!$H73:H73)*'P2'!$C10 -> 0 | J82: =+'P1'!J73*'P2'!$C10/2+SUM('P1'!$H73:I73)*'P2'!$C10 -> 0 | K82: =+'P1'!K73*'P2'!$C10/2+SUM('P1'!$H73:J73)*'P2'!$C10 -> 0 | L82: =+'P1'!L73*'P2'!$C10/2+SUM('P1'!$H73:K73)*'P2'!$C10 -> 0 | M82: =+'P1'!M73*'P2'!$C10/2+SUM('P1'!$H73:L73)*'P2'!$C10 -> 0 | N82: =+'P1'!N73*'P2'!$C10/2+SUM('P1'!$H73:M73)*'P2'!$C10 -> 0 | O82: =+'P1'!O73*'P2'!$C10/2+SUM('P1'!$H73:N73)*'P2'!$C10 -> 0 | P82: =+'P1'!P73*'P2'!$C10/2+SUM('P1'!$H73:O73)*'P2'!$C10 -> 0 | Q82: =+'P1'!Q73*'P2'!$C10/2+SUM('P1'!$H73:P73)*'P2'!$C10 -> 0
A83: 39 | B83: Long | C83: £m | D83: C | H83: =+'P1'!H74*'P2'!$C11/2 -> 0 | I83: =+'P1'!I74*'P2'!$C11/2+SUM('P1'!$H74:H74)*'P2'!$C11 -> 0 | J83: =+'P1'!J74*'P2'!$C11/2+SUM('P1'!$H74:I74)*'P2'!$C11 -> 0 | K83: =+'P1'!K74*'P2'!$C11/2+SUM('P1'!$H74:J74)*'P2'!$C11 -> 0 | L83: =+'P1'!L74*'P2'!$C11/2+SUM('P1'!$H74:K74)*'P2'!$C11 -> 0 | M83: =+'P1'!M74*'P2'!$C11/2+SUM('P1'!$H74:L74)*'P2'!$C11 -> 0 | N83: =+'P1'!N74*'P2'!$C11/2+SUM('P1'!$H74:M74)*'P2'!$C11 -> 0 | O83: =+'P1'!O74*'P2'!$C11/2+SUM('P1'!$H74:N74)*'P2'!$C11 -> 0 | P83: =+'P1'!P74*'P2'!$C11/2+SUM('P1'!$H74:O74)*'P2'!$C11 -> 0 | Q83: =+'P1'!Q74*'P2'!$C11/2+SUM('P1'!$H74:P74)*'P2'!$C11 -> 0
A84: 40 | B84: Infinite (land) | C84: £m | D84: C | H84: =+'P1'!H75*'P2'!$C12/2 -> 0 | I84: =+'P1'!I75*'P2'!$C12/2+SUM('P1'!$H75:H75)*'P2'!$C12 -> 0 | J84: =+'P1'!J75*'P2'!$C12/2+SUM('P1'!$H75:I75)*'P2'!$C12 -> 0 | K84: =+'P1'!K75*'P2'!$C12/2+SUM('P1'!$H75:J75)*'P2'!$C12 -> 0 | L84: =+'P1'!L75*'P2'!$C12/2+SUM('P1'!$H75:K75)*'P2'!$C12 -> 0 | M84: =+'P1'!M75*'P2'!$C12/2+SUM('P1'!$H75:L75)*'P2'!$C12 -> 0 | N84: =+'P1'!N75*'P2'!$C12/2+SUM('P1'!$H75:M75)*'P2'!$C12 -> 0 | O84: =+'P1'!O75*'P2'!$C12/2+SUM('P1'!$H75:N75)*'P2'!$C12 -> 0 | P84: =+'P1'!P75*'P2'!$C12/2+SUM('P1'!$H75:O75)*'P2'!$C12 -> 0 | Q84: =+'P1'!Q75*'P2'!$C12/2+SUM('P1'!$H75:P75)*'P2'!$C12 -> 0
A85: 41 | B85: Total | C85: £m | D85: C | H85: =SUM(H79:H84) -> 0.01707222201 | I85: 0.05452139946 | J85: 0.09596633587 | K85: 0.1388101551 | L85: 0.1830925195 | M85: 0.2289370744 | N85: 0.2764118104 | O85: 0.3254763064 | P85: 0.3728584101 | Q85: 0.4185304867
B87: Total amortisation of grants and contributions | C87: Units | D87: Field Type | E87: Criteria | F87: =+Baseminus1 -> 2017-18 | G87: =+Baseyear -> 2018-19 | H87: =+Baseplus1 -> 2019-20 | I87: =+Baseplus2 -> 2020-21 | J87: =+Baseplus3 -> 2021-22 | K87: =+Baseplus4 -> 2022-23 | L87: =+Baseplus5 -> 2023-24 | M87: =+Baseplus6 -> 2024-25 | N87: =+Baseplus7 -> 2025-26 | O87: =+Baseplus8 -> 2026-27 | P87: =+Baseplus9 -> 2027-28 | Q87: =+Baseplus10 -> 2028-29
A88: 42 | B88: Total amortisation of grants and contributions | C88: £m | D88: C | H88: =+H76+H85 -> 0.8243980913 | I88: =+I76+I85 -> 0.8618472688 | J88: =+J76+J85 -> 0.8945312621 | K88: 0.9053366751 | L88: 0.9300742056 | M88: 0.9397036478 | N88: 0.96154642 | O88: 0.9795707238 | P88: 1.026952827 | Q88: 1.072624904
B91: Third Party Contributions - Current Cost Accounting
B93: Current Cost Amortisation of Existing Grants (£ Million) | C93: Units | D93: Field Type | E93: Criteria | F93: =+Baseminus1 -> 2017-18 | G93: =+Baseyear -> 2018-19 | H93: =+Baseplus1 -> 2019-20 | I93: =+Baseplus2 -> 2020-21 | J93: =+Baseplus3 -> 2021-22 | K93: =+Baseplus4 -> 2022-23 | L93: =+Baseplus5 -> 2023-24 | M93: =+Baseplus6 -> 2024-25 | N93: =+Baseplus7 -> 2025-26 | O93: =+Baseplus8 -> 2026-27 | P93: =+Baseplus9 -> 2027-28 | Q93: =+Baseplus10 -> 2028-29
A94: 43 | B94: Amortisation of Existing Grants (31/03/2008) | C94: £m | D94: C | H94: =-'B7'!H29*'A1'!H7/Rpibaseavg -> 3.792537629 | I94: =-'B7'!I29*'A1'!I7/Rpibaseavg -> 3.921483908 | J94: =-'B7'!J29*'A1'!J7/Rpibaseavg -> 3.967813822 | K94: =-'B7'!K29*'A1'!K7/Rpibaseavg -> 3.773744767 | L94: =-'B7'!L29*'A1'!L7/Rpibaseavg -> 3.694539643 | M94: =-'B7'!M29*'A1'!M7/Rpibaseavg -> 3.422575808 | N94: =-'B7'!N29*'A1'!N7/Rpibaseavg -> 3.247982156 | O94: =-'B7'!O29*'A1'!O7/Rpibaseavg -> 2.994080822 | P94: =-'B7'!P29*'A1'!P7/Rpibaseavg -> 3.09587957 | Q94: =-'B7'!Q29*'A1'!Q7/Rpibaseavg -> 3.201139475
B96: Amortisation of new grants added in the period | C96: Units | D96: Field Type | E96: Criteria | F96: =+Baseminus1 -> 2017-18 | G96: =+Baseyear -> 2018-19 | H96: =+Baseplus1 -> 2019-20 | I96: =+Baseplus2 -> 2020-21 | J96: =+Baseplus3 -> 2021-22 | K96: =+Baseplus4 -> 2022-23 | L96: =+Baseplus5 -> 2023-24 | M96: =+Baseplus6 -> 2024-25 | N96: =+Baseplus7 -> 2025-26 | O96: =+Baseplus8 -> 2026-27 | P96: =+Baseplus9 -> 2027-28 | Q96: =+Baseplus10 -> 2028-29
A97: 44 | B97: Very Short | C97: £m | D97: C | H97: =+'P1'!H70*'P2'!$C7/2 -> 0 | I97: =+'P1'!I70*'P2'!$C7/2 -> 0 | J97: =+'P1'!J70*'P2'!$C7/2 -> 0 | K97: =+'P1'!K70*'P2'!$C7/2 -> 0 | L97: =+'P1'!L70*'P2'!$C7/2 -> 0 | M97: =+'P1'!M70*'P2'!$C7/2 -> 0 | N97: =+'P1'!N70*'P2'!$C7/2 -> 0 | O97: =+'P1'!O70*'P2'!$C7/2 -> 0 | P97: =+'P1'!P70*'P2'!$C7/2 -> 0 | Q97: =+'P1'!Q70*'P2'!$C7/2 -> 0
A98: 45 | B98: Short | C98: £m | D98: C | H98: =+'P1'!H71*'P2'!$C8/2 -> 0 | I98: =+'P1'!I71*'P2'!$C8/2 -> 0 | J98: =+'P1'!J71*'P2'!$C8/2 -> 0 | K98: =+'P1'!K71*'P2'!$C8/2 -> 0 | L98: =+'P1'!L71*'P2'!$C8/2 -> 0 | M98: =+'P1'!M71*'P2'!$C8/2 -> 0 | N98: =+'P1'!N71*'P2'!$C8/2 -> 0 | O98: =+'P1'!O71*'P2'!$C8/2 -> 0 | P98: =+'P1'!P71*'P2'!$C8/2 -> 0 | Q98: =+'P1'!Q71*'P2'!$C8/2 -> 0
A99: 46 | B99: Medium | C99: £m | D99: C | H99: =+'P1'!H72*'P2'!$C9/2 -> 0.01707222201 | I99: =+'P1'!I72*'P2'!$C9/2 -> 0.02037695543 | J99: =+'P1'!J72*'P2'!$C9/2 -> 0.02106798099 | K99: =+'P1'!K72*'P2'!$C9/2 -> 0.02177583823 | L99: =+'P1'!L72*'P2'!$C9/2 -> 0.02250652621 | M99: =+'P1'!M72*'P2'!$C9/2 -> 0.02333802863 | N99: =+'P1'!N72*'P2'!$C9/2 -> 0.02413670736 | O99: =+'P1'!O72*'P2'!$C9/2 -> 0.02492778868 | P99: =+'P1'!P72*'P2'!$C9/2 -> 0.02245431498 | Q99: =+'P1'!Q72*'P2'!$C9/2 -> 0.02321776168
A100: 47 | B100: Medium long | C100: £m | D100: C | H100: =+'P1'!H73*'P2'!$C10/2 -> 0 | I100: =+'P1'!I73*'P2'!$C10/2 -> 0 | J100: =+'P1'!J73*'P2'!$C10/2 -> 0 | K100: =+'P1'!K73*'P2'!$C10/2 -> 0 | L100: =+'P1'!L73*'P2'!$C10/2 -> 0 | M100: =+'P1'!M73*'P2'!$C10/2 -> 0 | N100: =+'P1'!N73*'P2'!$C10/2 -> 0 | O100: =+'P1'!O73*'P2'!$C10/2 -> 0 | P100: =+'P1'!P73*'P2'!$C10/2 -> 0 | Q100: =+'P1'!Q73*'P2'!$C10/2 -> 0
A101: 48 | B101: Long | C101: £m | D101: C | H101: =+'P1'!H74*'P2'!$C11/2 -> 0 | I101: =+'P1'!I74*'P2'!$C11/2 -> 0 | J101: =+'P1'!J74*'P2'!$C11/2 -> 0 | K101: =+'P1'!K74*'P2'!$C11/2 -> 0 | L101: =+'P1'!L74*'P2'!$C11/2 -> 0 | M101: =+'P1'!M74*'P2'!$C11/2 -> 0 | N101: =+'P1'!N74*'P2'!$C11/2 -> 0 | O101: =+'P1'!O74*'P2'!$C11/2 -> 0 | P101: =+'P1'!P74*'P2'!$C11/2 -> 0 | Q101: =+'P1'!Q74*'P2'!$C11/2 -> 0
A102: 49 | B102: Infinite (land) | C102: £m | D102: C | H102: =+'P1'!H75*'P2'!$C12/2 -> 0 | I102: =+'P1'!I75*'P2'!$C12/2 -> 0 | J102: =+'P1'!J75*'P2'!$C12/2 -> 0 | K102: =+'P1'!K75*'P2'!$C12/2 -> 0 | L102: =+'P1'!L75*'P2'!$C12/2 -> 0 | M102: =+'P1'!M75*'P2'!$C12/2 -> 0 | N102: =+'P1'!N75*'P2'!$C12/2 -> 0 | O102: =+'P1'!O75*'P2'!$C12/2 -> 0 | P102: =+'P1'!P75*'P2'!$C12/2 -> 0 | Q102: =+'P1'!Q75*'P2'!$C12/2 -> 0
A103: 51 | B103: Total | C103: £m | D103: C | H103: =SUM(H97:H102) -> 0.01707222201 | I103: 0.02037695543 | J103: 0.02106798099 | K103: 0.02177583823 | L103: 0.02250652621 | M103: 0.02333802863 | N103: 0.02413670736 | O103: 0.02492778868 | P103: 0.02245431498 | Q103: 0.02321776168
B105: Cummulative amortisation of new grants | C105: Units | D105: Field Type | E105: Criteria | F105: =+Baseminus1 -> 2017-18 | G105: =+Baseyear -> 2018-19 | H105: =+Baseplus1 -> 2019-20 | I105: =+Baseplus2 -> 2020-21 | J105: =+Baseplus3 -> 2021-22 | K105: =+Baseplus4 -> 2022-23 | L105: =+Baseplus5 -> 2023-24 | M105: =+Baseplus6 -> 2024-25 | N105: =+Baseplus7 -> 2025-26 | O105: =+Baseplus8 -> 2026-27 | P105: =+Baseplus9 -> 2027-28 | Q105: =+Baseplus10 -> 2028-29
A106: 52 | B106: Very Short | C106: £m | D106: C | H106: =+H97 -> 0 | I106: =+(H106+H97)*'A1'!I$7/'A1'!H$7+I97 -> 0 | J106: =+(I106+I97)*'A1'!J$7/'A1'!I$7+J97 -> 0 | K106: =+(J106+J97)*'A1'!K$7/'A1'!J$7+K97 -> 0 | L106: =+(K106+K97)*'A1'!L$7/'A1'!K$7+L97 -> 0 | M106: =+(L106+L97)*'A1'!M$7/'A1'!L$7+M97-H97*'A1'!M$7/'A1'!H$7 -> 0 | N106: =+(M106+M97)*'A1'!N$7/'A1'!M$7+N97-I97*'A1'!N$7/'A1'!I$7-H97*'A1'!N$7/'A1'!H$7 -> 0 | O106: =+(N106+N97)*'A1'!O$7/'A1'!N$7+O97-J97*'A1'!O$7/'A1'!J$7-I97*'A1'!O$7/'A1'!I$7 -> 0 | P106: =+(O106+O97)*'A1'!P$7/'A1'!O$7+P97-K97*'A1'!P$7/'A1'!K$7-J97*'A1'!P$7/'A1'!J$7 -> 0 | Q106: =+(P106+P97)*'A1'!Q$7/'A1'!P$7+Q97-L97*'A1'!Q$7/'A1'!L$7-K97*'A1'!Q$7/'A1'!K$7 -> 0
A107: 53 | B107: Short | C107: £m | D107: C | H107: 0 | I107: =+(H107+H98)*'A1'!I$7/'A1'!H$7+I98 -> 0 | J107: =+(I107+I98)*'A1'!J$7/'A1'!I$7+J98 -> 0 | K107: =+(J107+J98)*'A1'!K$7/'A1'!J$7+K98 -> 0 | L107: =+(K107+K98)*'A1'!L$7/'A1'!K$7+L98 -> 0 | M107: =+(L107+L98)*'A1'!M$7/'A1'!L$7+M98 -> 0 | N107: =+(M107+M98)*'A1'!N$7/'A1'!M$7+N98 -> 0 | O107: =+(N107+N98)*'A1'!O$7/'A1'!N$7+O98 -> 0 | P107: =+(O107+O98)*'A1'!P$7/'A1'!O$7+P98 -> 0 | Q107: =+(P107+P98)*'A1'!Q$7/'A1'!P$7+Q98 -> 0
A108: 54 | B108: Medium | C108: £m | D108: C | H108: 0.01707222201 | I108: =+(H108+H99)*'A1'!I$7/'A1'!H$7+I99 -> 0.05568231055 | J108: =+(I108+I99)*'A1'!J$7/'A1'!I$7+J99 -> 0.09971326201 | K108: =+(J108+J99)*'A1'!K$7/'A1'!J$7+K99 -> 0.1466636435 | L108: =+(K108+K99)*'A1'!L$7/'A1'!K$7+L99 -> 0.1966729503 | M108: =+(L108+L99)*'A1'!M$7/'A1'!L$7+M99 -> 0.2499696074 | N108: =+(M108+M99)*'A1'!N$7/'A1'!M$7+N99 -> 0.306736803 | O108: =+(N108+N99)*'A1'!O$7/'A1'!N$7+O99 -> 0.3670509984 | P108: =+(O108+O99)*'A1'!P$7/'A1'!O$7+P99 -> 0.4277603808 | Q108: =+(P108+P99)*'A1'!Q$7/'A1'!P$7+Q99 -> 0.4887397571
A109: 55 | B109: Medium long | C109: £m | D109: C | H109: 0 | I109: =+(H109+H100)*'A1'!I$7/'A1'!H$7+I100 -> 0 | J109: =+(I109+I100)*'A1'!J$7/'A1'!I$7+J100 -> 0 | K109: =+(J109+J100)*'A1'!K$7/'A1'!J$7+K100 -> 0 | L109: =+(K109+K100)*'A1'!L$7/'A1'!K$7+L100 -> 0 | M109: =+(L109+L100)*'A1'!M$7/'A1'!L$7+M100 -> 0 | N109: =+(M109+M100)*'A1'!N$7/'A1'!M$7+N100 -> 0 | O109: =+(N109+N100)*'A1'!O$7/'A1'!N$7+O100 -> 0 | P109: =+(O109+O100)*'A1'!P$7/'A1'!O$7+P100 -> 0 | Q109: =+(P109+P100)*'A1'!Q$7/'A1'!P$7+Q100 -> 0
A110: 56 | B110: Long | C110: £m | D110: C | H110: 0 | I110: =+(H110+H101)*'A1'!I$7/'A1'!H$7+I101 -> 0 | J110: =+(I110+I101)*'A1'!J$7/'A1'!I$7+J101 -> 0 | K110: =+(J110+J101)*'A1'!K$7/'A1'!J$7+K101 -> 0 | L110: =+(K110+K101)*'A1'!L$7/'A1'!K$7+L101 -> 0 | M110: =+(L110+L101)*'A1'!M$7/'A1'!L$7+M101 -> 0 | N110: =+(M110+M101)*'A1'!N$7/'A1'!M$7+N101 -> 0 | O110: =+(N110+N101)*'A1'!O$7/'A1'!N$7+O101 -> 0 | P110: =+(O110+O101)*'A1'!P$7/'A1'!O$7+P101 -> 0 | Q110: =+(P110+P101)*'A1'!Q$7/'A1'!P$7+Q101 -> 0
A111: 57 | B111: Infinite (land) | C111: £m | D111: C | H111: 0 | I111: =+(H111+H102)*'A1'!I$7/'A1'!H$7+I102 -> 0 | J111: =+(I111+I102)*'A1'!J$7/'A1'!I$7+J102 -> 0 | K111: =+(J111+J102)*'A1'!K$7/'A1'!J$7+K102 -> 0 | L111: =+(K111+K102)*'A1'!L$7/'A1'!K$7+L102 -> 0 | M111: =+(L111+L102)*'A1'!M$7/'A1'!L$7+M102 -> 0 | N111: =+(M111+M102)*'A1'!N$7/'A1'!M$7+N102 -> 0 | O111: =+(N111+N102)*'A1'!O$7/'A1'!N$7+O102 -> 0 | P111: =+(O111+O102)*'A1'!P$7/'A1'!O$7+P102 -> 0 | Q111: =+(P111+P102)*'A1'!Q$7/'A1'!P$7+Q102 -> 0
A112: 59 | B112: Total | C112: £m | D112: C | H112: =SUM(H106:H111) -> 0.01707222201 | I112: 0.05568231055 | J112: 0.09971326201 | K112: 0.1466636435 | L112: 0.1966729503 | M112: 0.2499696074 | N112: 0.306736803 | O112: 0.3670509984 | P112: 0.4277603808 | Q112: 0.4887397571
B114: Total amortisation of grants and contributions | C114: Units | D114: Field Type | E114: Criteria | F114: =+Baseminus1 -> 2017-18 | G114: =+Baseyear -> 2018-19 | H114: =+Baseplus1 -> 2019-20 | I114: =+Baseplus2 -> 2020-21 | J114: =+Baseplus3 -> 2021-22 | K114: =+Baseplus4 -> 2022-23 | L114: =+Baseplus5 -> 2023-24 | M114: =+Baseplus6 -> 2024-25 | N114: =+Baseplus7 -> 2025-26 | O114: =+Baseplus8 -> 2026-27 | P114: =+Baseplus9 -> 2027-28 | Q114: =+Baseplus10 -> 2028-29
A115: 60 | B115: Total amortisation of grants and contributions | C115: £m | D115: C | H115: =+H94+H112 -> 3.809609851 | I115: =+I94+I112 -> 3.977166219 | J115: =+J94+J112 -> 4.067527084 | K115: 3.920408411 | L115: 3.891212594 | M115: 3.672545415 | N115: 3.554718959 | O115: 3.361131821 | P115: 3.523639951 | Q115: 3.689879233
A119: Return to 'Opening' Sheet

Sheet P3
A1: =CHECK!A1 -> Checks = 3
B2: Process sheet: Book Value
B4: Fixed Assets - Historic Cost Accounting
B6: Gross fixed assets | C6: Units | D6: Field Type | E6: Additional Info | F6: =+Baseminus1 -> 2017-18 | G6: =+Baseyear -> 2018-19 | H6: =+Baseplus1 -> 2019-20 | I6: =+Baseplus2 -> 2020-21 | J6: =+Baseplus3 -> 2021-22 | K6: =+Baseplus4 -> 2022-23 | L6: =+Baseplus5 -> 2023-24 | M6: =+Baseplus6 -> 2024-25 | N6: =+Baseplus7 -> 2025-26 | O6: =+Baseplus8 -> 2026-27 | P6: =+Baseplus9 -> 2027-28 | Q6: =+Baseplus10 -> 2028-29
A7: 1 | B7: Opening Gross cost of fixed assets | C7: £m | D7: B | H7: =+'B7'!G7 -> 1907.708399 | I7: =+H10 -> 2036.151531 | J7: =+I10 -> 2158.826794 | K7: 2291.650091 | L7: 2427.67677 | M7: 2566.873529 | N7: 2709.784196 | O7: 2855.793508 | P7: 3007.558797 | Q7: 3488.62033
A8: 2 | B8: Asset additions | C8: £m | D8: C | H8: =+'P1'!H96-'P1'!H95 -> 134.54925 | I8: =+'P1'!I96-'P1'!I95 -> 124.4916132 | J8: =+'P1'!J96-'P1'!J95 -> 133.3232969 | K8: =+'P1'!K96-'P1'!K95 -> 136.5266792 | L8: =+'P1'!L96-'P1'!L95 -> 139.6967584 | M8: =+'P1'!M96-'P1'!M95 -> 143.4106671 | N8: =+'P1'!N96-'P1'!N95 -> 146.5093125 | O8: =+'P1'!O96-'P1'!O95 -> 152.2652888 | P8: =+'P1'!P96-'P1'!P95 -> 481.5615333 | Q8: =+'P1'!Q96-'P1'!Q95 -> 495.399018
A9: 3 | B9: Asset disposals | C9: £m | D9: B | H9: =-'A4'!H7 -> -6.10611864 | I9: =-'A4'!I7 -> -1.816349741 | J9: =-'A4'!J7 -> -0.5 | K9: =-'A4'!K7 -> -0.5 | L9: =-'A4'!L7 -> -0.5 | M9: =-'A4'!M7 -> -0.5 | N9: =-'A4'!N7 -> -0.5 | O9: =-'A4'!O7 -> -0.5 | P9: =-'A4'!P7 -> -0.5 | Q9: =-'A4'!Q7 -> -0.5
A10: 4 | B10: Closing Gross cost of fixed assets | C10: £m | D10: C | H10: =SUM(H7:H9) -> 2036.151531 | I10: 2158.826794 | J10: 2291.650091 | K10: 2427.67677 | L10: 2566.873529 | M10: 2709.784196 | N10: 2855.793508 | O10: 3007.558797 | P10: 3488.62033 | Q10: 3983.519348
B12: Accumulated Depreciation | C12: Units | D12: Field Type | E12: Additional Info | F12: =+Baseminus1 -> 2017-18 | G12: =+Baseyear -> 2018-19 | H12: =+Baseplus1 -> 2019-20 | I12: =+Baseplus2 -> 2020-21 | J12: =+Baseplus3 -> 2021-22 | K12: =+Baseplus4 -> 2022-23 | L12: =+Baseplus5 -> 2023-24 | M12: =+Baseplus6 -> 2024-25 | N12: =+Baseplus7 -> 2025-26 | O12: =+Baseplus8 -> 2026-27 | P12: =+Baseplus9 -> 2027-28 | Q12: =+Baseplus10 -> 2028-29
A13: 5 | B13: Opening accummulated depreciation | C13: £m | D13: B | H13: =+'B7'!G8 -> -115.2053994 | I13: =+H16 -> -155.6475148 | J13: =+I16 -> -199.7995023 | K13: -248.7859346 | L13: -298.9269681 | M13: -351.9367721 | N13: -407.6448489 | O13: -467.3974132 | P13: -531.555568 | Q13: -606.9970956
A14: 6 | B14: Depreciation in the year | C14: £m | D14: B | H14: =-'P2'!H41 -> -45.35673743 | I14: =-'P2'!I41 -> -44.76833728 | J14: =-'P2'!J41 -> -48.98643221 | K14: =-'P2'!K41 -> -50.1410335 | L14: =-'P2'!L41 -> -53.00980408 | M14: =-'P2'!M41 -> -55.70807678 | N14: =-'P2'!N41 -> -59.75256428 | O14: =-'P2'!O41 -> -64.15815475 | P14: =-'P2'!P41 -> -75.44152762 | Q14: =-'P2'!Q41 -> -93.03010669
A15: 7 | B15: Disposals | C15: £m | D15: B | H15: =-'A4'!H8 -> 4.91462198 | I15: =-'A4'!I8 -> 0.6163497414 | J15: =-'A4'!J8 -> 0 | K15: =-'A4'!K8 -> 0 | L15: =-'A4'!L8 -> 0 | M15: =-'A4'!M8 -> 0 | N15: =-'A4'!N8 -> 0 | O15: =-'A4'!O8 -> 0 | P15: =-'A4'!P8 -> 0 | Q15: =-'A4'!Q8 -> 0
A16: 8 | B16: Closing accummulated depreciation | C16: £m | D16: C | H16: =SUM(H13:H15) -> -155.6475148 | I16: =SUM(I13:I15) -> -199.7995023 | J16: -248.7859346 | K16: -298.9269681 | L16: -351.9367721 | M16: -407.6448489 | N16: -467.3974132 | O16: -531.555568 | P16: -606.9970956 | Q16: -700.0272023
B18: Net book value | C18: Units | D18: Field Type | E18: Additional Info | F18: =+Baseminus1 -> 2017-18 | G18: =+Baseyear -> 2018-19 | H18: =+Baseplus1 -> 2019-20 | I18: =+Baseplus2 -> 2020-21 | J18: =+Baseplus3 -> 2021-22 | K18: =+Baseplus4 -> 2022-23 | L18: =+Baseplus5 -> 2023-24 | M18: =+Baseplus6 -> 2024-25 | N18: =+Baseplus7 -> 2025-26 | O18: =+Baseplus8 -> 2026-27 | P18: =+Baseplus9 -> 2027-28 | Q18: =+Baseplus10 -> 2028-29
A19: 9 | B19: Net book value | C19: £m | D19: C | H19: =+H10+H16 -> 1880.504016 | I19: =+I10+I16 -> 1959.027292 | J19: =+J10+J16 -> 2042.864156 | K19: 2128.749802 | L19: 2214.936757 | M19: 2302.139347 | N19: 2388.396095 | O19: 2476.003229 | P19: 2881.623235 | Q19: 3283.492146
B21: PPP Assets - Historic Cost Accounting
B23: Gross PPP fixed assets | C23: Units | D23: Field Type | E23: Additional Info | F23: =+Baseminus1 -> 2017-18 | G23: =+Baseyear -> 2018-19 | H23: =+Baseplus1 -> 2019-20 | I23: =+Baseplus2 -> 2020-21 | J23: =+Baseplus3 -> 2021-22 | K23: =+Baseplus4 -> 2022-23 | L23: =+Baseplus5 -> 2023-24 | M23: =+Baseplus6 -> 2024-25 | N23: =+Baseplus7 -> 2025-26 | O23: =+Baseplus8 -> 2026-27 | P23: =+Baseplus9 -> 2027-28 | Q23: =+Baseplus10 -> 2028-29
A24: 1a | B24: Opening Gross cost of fixed assets | C24: £m | D24: B | H24: ='B7'!G33 -> 115.09 | I24: =H27 -> 115.09 | J24: =I27 -> 115.09 | K24: 115.09 | L24: 115.09 | M24: 115.09 | N24: 115.09 | O24: 115.09 | P24: 115.09 | Q24: 115.09
A25: 2a | B25: Asset additions | C25: £m | D25: C | H25: ='B7'!H36 -> 0
A26: 3a | B26: Asset disposals | C26: £m | D26: B
A27: 4a | B27: Closing Gross cost of fixed assets | C27: £m | D27: C | H27: =SUM(H24:H26) -> 115.09 | I27: =SUM(I24:I26) -> 115.09 | J27: 115.09 | K27: 115.09 | L27: 115.09 | M27: 115.09 | N27: 115.09 | O27: 115.09 | P27: 115.09 | Q27: 115.09
B29: Accummulated PPP amortisation | C29: Units | D29: Field Type | E29: Additional Info | F29: =+Baseminus1 -> 2017-18 | G29: =+Baseyear -> 2018-19 | H29: =+Baseplus1 -> 2019-20 | I29: =+Baseplus2 -> 2020-21 | J29: =+Baseplus3 -> 2021-22 | K29: =+Baseplus4 -> 2022-23 | L29: =+Baseplus5 -> 2023-24 | M29: =+Baseplus6 -> 2024-25 | N29: =+Baseplus7 -> 2025-26 | O29: =+Baseplus8 -> 2026-27 | P29: =+Baseplus9 -> 2027-28 | Q29: =+Baseplus10 -> 2028-29
A30: 5a | B30: Opening accummulated depreciation | C30: £m | D30: B | H30: ='B7'!G34 -> -15.25 | I30: =H33 -> -18.4844185 | J30: =I33 -> -21.71519563 | K30: -24.9352682 | L30: -28.15075583 | M30: -31.35937018 | N30: -34.56101357 | O30: -37.75596953 | P30: -40.94752521 | Q30: -44.13908089
A31: 6a | B31: Depreciation in the year | C31: £m | D31: B | H31: ='O1'!H13 -> -3.2344185 | I31: ='O1'!I13 -> -3.23077713 | J31: ='O1'!J13 -> -3.22007257 | K31: ='O1'!K13 -> -3.21548763 | L31: ='O1'!L13 -> -3.20861435 | M31: ='O1'!M13 -> -3.20164339 | N31: ='O1'!N13 -> -3.19495596 | O31: ='O1'!O13 -> -3.19155568 | P31: ='O1'!P13 -> -3.19155568 | Q31: ='O1'!Q13 -> -3.19155568
A32: 7a | B32: Disposals | C32: £m | D32: B
A33: 8a | B33: Closing accummulated depreciation | C33: £m | D33: C | H33: =SUM(H30:H32) -> -18.4844185 | I33: =SUM(I30:I32) -> -21.71519563 | J33: -24.9352682 | K33: -28.15075583 | L33: -31.35937018 | M33: -34.56101357 | N33: -37.75596953 | O33: -40.94752521 | P33: -44.13908089 | Q33: -47.33063657
B35: Net book value PPP assets | C35: Units | D35: Field Type | E35: Additional Info | F35: =+Baseminus1 -> 2017-18 | G35: =+Baseyear -> 2018-19 | H35: =+Baseplus1 -> 2019-20 | I35: =+Baseplus2 -> 2020-21 | J35: =+Baseplus3 -> 2021-22 | K35: =+Baseplus4 -> 2022-23 | L35: =+Baseplus5 -> 2023-24 | M35: =+Baseplus6 -> 2024-25 | N35: =+Baseplus7 -> 2025-26 | O35: =+Baseplus8 -> 2026-27 | P35: =+Baseplus9 -> 2027-28 | Q35: =+Baseplus10 -> 2028-29
A36: 9a | B36: Net book value | C36: £m | D36: C | H36: =H27+H33 -> 96.6055815 | I36: =I27+I33 -> 93.37480437 | J36: 90.1547318 | K36: 86.93924417 | L36: 83.73062982 | M36: 80.52898643 | N36: 77.33403047 | O36: 74.14247479 | P36: 70.95091911 | Q36: 67.75936343
B38: Fixed Assets - Current Cost Accounting
B40: Gross fixed assets | C40: Units | D40: Field Type | E40: Additional Info | F40: =+Baseminus1 -> 2017-18 | G40: =+Baseyear -> 2018-19 | H40: =+Baseplus1 -> 2019-20 | I40: =+Baseplus2 -> 2020-21 | J40: =+Baseplus3 -> 2021-22 | K40: =+Baseplus4 -> 2022-23 | L40: =+Baseplus5 -> 2023-24 | M40: =+Baseplus6 -> 2024-25 | N40: =+Baseplus7 -> 2025-26 | O40: =+Baseplus8 -> 2026-27 | P40: =+Baseplus9 -> 2027-28 | Q40: =+Baseplus10 -> 2028-29
A41: 10 | B41: Opening Gross cost of fixed assets | C41: £m | D41: B | H41: =+'B7'!G20 -> 8933.987 | I41: =+H45 -> 9364.595504 | J41: =+I45 -> 9800.235462 | K41: 10265.49873 | L41: 10749.74122 | M41: 11253.57345 | N41: 11778.20379 | O41: 12323.72255 | P41: 12893.49564 | Q41: 13811.8863
A42: 11 | B42: Inflation adjustment | C42: £m | D42: C | H42: =+H41*('A1'!H$7/Rpibaseavg-1) -> 303.755558 | I42: =+I41*('A1'!I7/'A1'!H7-1) -> 318.3962471 | J42: =+J41*('A1'!J7/'A1'!I7-1) -> 333.2080057 | K42: =+K41*('A1'!K7/'A1'!J7-1) -> 349.0269568 | L42: =+L41*('A1'!L7/'A1'!K7-1) -> 365.4912014 | M42: =+M41*('A1'!M7/'A1'!L7-1) -> 382.6214973 | N42: =+N41*('A1'!N7/'A1'!M7-1) -> 400.4589289 | O42: =+O41*('A1'!O7/'A1'!N7-1) -> 419.0065666 | P42: =+P41*('A1'!P7/'A1'!O7-1) -> 438.3788517 | Q42: =+Q41*('A1'!Q7/'A1'!P7-1) -> 469.6041341
A43: 12 | B43: Asset additions | C43: £m | D43: C | H43: =+'P1'!H107-'P1'!H106 -> 134.54925 | I43: =+'P1'!I107-'P1'!I106 -> 124.4916132 | J43: =+'P1'!J107-'P1'!J106 -> 133.3232969 | K43: =+'P1'!K107-'P1'!K106 -> 136.5266792 | L43: =+'P1'!L107-'P1'!L106 -> 139.6967584 | M43: =+'P1'!M107-'P1'!M106 -> 143.4106671 | N43: =+'P1'!N107-'P1'!N106 -> 146.5093125 | O43: =+'P1'!O107-'P1'!O106 -> 152.2652888 | P43: =+'P1'!P107-'P1'!P106 -> 481.5615333 | Q43: =+'P1'!Q107-'P1'!Q106 -> 495.399018
A44: 13 | B44: Asset disposals | C44: £m | D44: C | H44: =-'A4'!H16*'A1'!H7/Rpibaseavg -> -7.696304421 | I44: =-'A4'!I16*'A1'!I7/Rpibaseavg -> -7.247901776 | J44: =-'A4'!J16*'A1'!J7/Rpibaseavg -> -1.268035331 | K44: =-'A4'!K16*'A1'!K7/Rpibaseavg -> -1.311148532 | L44: =-'A4'!L16*'A1'!L7/Rpibaseavg -> -1.355727582 | M44: =-'A4'!M16*'A1'!M7/Rpibaseavg -> -1.40182232 | N44: =-'A4'!N16*'A1'!N7/Rpibaseavg -> -1.449484279 | O44: =-'A4'!O16*'A1'!O7/Rpibaseavg -> -1.498766744 | P44: =-'A4'!P16*'A1'!P7/Rpibaseavg -> -1.549724814 | Q44: =-'A4'!Q16*'A1'!Q7/Rpibaseavg -> -1.602415457
A45: 14 | B45: Closing Gross cost of fixed assets | C45: £m | D45: C | H45: =SUM(H41:H44) -> 9364.595504 | I45: 9800.235462 | J45: 10265.49873 | K45: 10749.74122 | L45: 11253.57345 | M45: 11778.20379 | N45: 12323.72255 | O45: 12893.49564 | P45: 13811.8863 | Q45: 14775.28703
B47: Accummulated depreciation | C47: Units | D47: Field Type | E47: Additional Info | F47: =+Baseminus1 -> 2017-18 | G47: =+Baseyear -> 2018-19 | H47: =+Baseplus1 -> 2019-20 | I47: =+Baseplus2 -> 2020-21 | J47: =+Baseplus3 -> 2021-22 | K47: =+Baseplus4 -> 2022-23 | L47: =+Baseplus5 -> 2023-24 | M47: =+Baseplus6 -> 2024-25 | N47: =+Baseplus7 -> 2025-26 | O47: =+Baseplus8 -> 2026-27 | P47: =+Baseplus9 -> 2027-28 | Q47: =+Baseplus10 -> 2028-29
A48: 15 | B48: Opening accummulated depreciation | C48: £m | D48: B | H48: =+'B7'!G21 -> -629.449 | I48: =+H52 -> -777.223677 | J48: =+I52 -> -913.023827 | K48: -1070.444924 | L48: -1228.385855 | M48: -1395.973816 | N48: -1573.808842 | O48: -1763.848937 | P48: -1967.419749 | Q48: -2194.042144
A49: 16 | B49: Inflation adjustment | C49: £m | D49: C | H49: =+H48*('A1'!H7/Rpibaseavg-1) -> -21.401266 | I49: =+I48*('A1'!I7/'A1'!H7-1) -> -26.42560502 | J49: =+J48*('A1'!J7/'A1'!I7-1) -> -31.04281012 | K49: =+K48*('A1'!K7/'A1'!J7-1) -> -36.39512743 | L49: =+L48*('A1'!L7/'A1'!K7-1) -> -41.76511906 | M49: =+M48*('A1'!M7/'A1'!L7-1) -> -47.46310974 | N49: =+N48*('A1'!N7/'A1'!M7-1) -> -53.50950063 | O49: =+O48*('A1'!O7/'A1'!N7-1) -> -59.97086384 | P49: =+P48*('A1'!P7/'A1'!O7-1) -> -66.89227148 | Q49: =+Q48*('A1'!Q7/'A1'!P7-1) -> -74.59743289
A50: 17 | B50: Depreciation in the year | C50: £m | D50: B | H50: =-'P2'!H64 -> -132.7919506 | I50: =-'P2'!I64 -> -113.6792313 | J50: =-'P2'!J64 -> -126.3782872 | K50: =-'P2'!K64 -> -121.5458031 | L50: =-'P2'!L64 -> -125.8228419 | M50: =-'P2'!M64 -> -130.3719164 | N50: =-'P2'!N64 -> -136.530594 | O50: =-'P2'!O64 -> -143.599949 | P50: =-'P2'!P64 -> -159.730123 | Q50: =-'P2'!Q64 -> -182.8993867
A51: 18 | B51: Disposals | C51: £m | D51: C | H51: =-'A4'!H17*'A1'!H7/Rpibaseavg -> 6.418539604 | I51: =-'A4'!I17*'A1'!I7/Rpibaseavg -> 4.304686308 | J51: =-'A4'!J17*'A1'!J7/Rpibaseavg -> 0 | K51: =-'A4'!K17*'A1'!K7/Rpibaseavg -> 0 | L51: =-'A4'!L17*'A1'!L7/Rpibaseavg -> 0 | M51: =-'A4'!M17*'A1'!M7/Rpibaseavg -> 0 | N51: =-'A4'!N17*'A1'!N7/Rpibaseavg -> 0 | O51: =-'A4'!O17*'A1'!O7/Rpibaseavg -> 0 | P51: =-'A4'!P17*'A1'!P7/Rpibaseavg -> 0 | Q51: =-'A4'!Q17*'A1'!Q7/Rpibaseavg -> 0
A52: 19 | B52: Closing accummulated depreciation | C52: £m | D52: C | H52: =SUM(H48:H51) -> -777.223677 | I52: -913.023827 | J52: -1070.444924 | K52: -1228.385855 | L52: -1395.973816 | M52: -1573.808842 | N52: -1763.848937 | O52: -1967.419749 | P52: -2194.042144 | Q52: -2451.538963
B54: Net book value | C54: Units | D54: Field Type | E54: Additional Info | F54: =+Baseminus1 -> 2017-18 | G54: =+Baseyear -> 2018-19 | H54: =+Baseplus1 -> 2019-20 | I54: =+Baseplus2 -> 2020-21 | J54: =+Baseplus3 -> 2021-22 | K54: =+Baseplus4 -> 2022-23 | L54: =+Baseplus5 -> 2023-24 | M54: =+Baseplus6 -> 2024-25 | N54: =+Baseplus7 -> 2025-26 | O54: =+Baseplus8 -> 2026-27 | P54: =+Baseplus9 -> 2027-28 | Q54: =+Baseplus10 -> 2028-29
A55: 20 | B55: Net book value | C55: £m | D55: C | H55: =+H45+H52 -> 8587.371827 | I55: =+I45+I52 -> 8887.211635 | J55: 9195.053805 | K55: 9521.355362 | L55: 9857.599633 | M55: 10204.39495 | N55: 10559.87361 | O55: 10926.07589 | P55: 11617.84415 | Q55: 12323.74807
B57: PPP Assets - Current Cost Accounting
B59: Gross PPP fixed assets | C59: Units | D59: Field Type | E59: Additional Info | F59: =+Baseminus1 -> 2017-18 | G59: =+Baseyear -> 2018-19 | H59: =+Baseplus1 -> 2019-20 | I59: =+Baseplus2 -> 2020-21 | J59: =+Baseplus3 -> 2021-22 | K59: =+Baseplus4 -> 2022-23 | L59: =+Baseplus5 -> 2023-24 | M59: =+Baseplus6 -> 2024-25 | N59: =+Baseplus7 -> 2025-26 | O59: =+Baseplus8 -> 2026-27 | P59: =+Baseplus9 -> 2027-28 | Q59: =+Baseplus10 -> 2028-29
A60: 10a | B60: Opening Gross cost of fixed assets | C60: £m | D60: B | H60: =+'B7'!G39 -> 136.733 | I60: =+H64 -> 141.381922 | J60: 146.1889073 | K60: 151.1593302 | L60: 156.2987474 | M60: 161.6129048 | N60: 167.1077436 | O60: 172.7894069 | P60: 178.6642467 | Q60: 184.7388311
A61: 11a | B61: Inflation adjustment | C61: £m | D61: C | H61: =+H60*('A1'!H$7/Rpibaseavg-1) -> 4.648922 | I61: =+I60*('A1'!I$7/'A1'!H$7-1) -> 4.806985348 | J61: =+J60*('A1'!J$7/'A1'!I$7-1) -> 4.97042285 | K61: =+K60*('A1'!K$7/'A1'!J$7-1) -> 5.139417227 | L61: =+L60*('A1'!L$7/'A1'!K$7-1) -> 5.314157412 | M61: =+M60*('A1'!M$7/'A1'!L$7-1) -> 5.494838764 | N61: =+N60*('A1'!N$7/'A1'!M$7-1) -> 5.681663282 | O61: =+O60*('A1'!O$7/'A1'!N$7-1) -> 5.874839834 | P61: =+P60*('A1'!P$7/'A1'!O$7-1) -> 6.074584388 | Q61: =+Q60*('A1'!Q$7/'A1'!P$7-1) -> 6.281120258
A62: 12a | B62: PPP additions | C62: £m | D62: C | H62: ='B7'!H42 -> 0
A63: 13a | B63: PPP disposals | C63: £m | D63: C
A64: 14a | B64: Closing Gross cost of fixed assets | C64: £m | D64: C | H64: =SUM(H60:H63) -> 141.381922 | I64: 146.1889073 | J64: 151.1593302 | K64: 156.2987474 | L64: 161.6129048 | M64: 167.1077436 | N64: 172.7894069 | O64: 178.6642467 | P64: 184.7388311 | Q64: 191.0199514
B66: Accummulated PPP amortisation | C66: Units | D66: Field Type | E66: Additional Info | F66: =+Baseminus1 -> 2017-18 | G66: =+Baseyear -> 2018-19 | H66: =+Baseplus1 -> 2019-20 | I66: =+Baseplus2 -> 2020-21 | J66: =+Baseplus3 -> 2021-22 | K66: =+Baseplus4 -> 2022-23 | L66: =+Baseplus5 -> 2023-24 | M66: =+Baseplus6 -> 2024-25 | N66: =+Baseplus7 -> 2025-26 | O66: =+Baseplus8 -> 2026-27 | P66: =+Baseplus9 -> 2027-28 | Q66: =+Baseplus10 -> 2028-29
A67: 15a | B67: Opening accummulated depreciation | C67: £m | D67: B | H67: ='B7'!G40 -> -17.461 | I67: =+H71 -> -21.39906273 | J67: -25.58083561 | K67: -30.01039777 | L67: -34.70635769 | M67: -39.67882692 | N67: -44.94078398 | O67: -50.50623449 | P67: -56.39374106 | Q67: -62.62321287
A68: 16a | B68: Inflation adjustment | C68: £m | D68: C | H68: =+H67*('A1'!H7/Rpibaseavg-1) -> -0.593674 | I68: =+I67*('A1'!I7/'A1'!H$7-1) -> -0.7275681328 | J68: =+J67*('A1'!J7/'A1'!I$7-1) -> -0.8697484109 | K68: =+K67*('A1'!K7/'A1'!J$7-1) -> -1.020353524 | L68: =+L67*('A1'!L7/'A1'!K$7-1) -> -1.180016161 | M68: =+M67*('A1'!M7/'A1'!L$7-1) -> -1.349080115 | N68: =+N67*('A1'!N7/'A1'!M$7-1) -> -1.527986655 | O68: =+O67*('A1'!O7/'A1'!N$7-1) -> -1.717211973 | P68: =+P67*('A1'!P7/'A1'!O$7-1) -> -1.917387196 | Q68: =+Q67*('A1'!Q7/'A1'!P$7-1) -> -2.129189238
A69: 17a | B69: Depreciation in the year | C69: £m | D69: B | H69: ='A5'!H14*'A1'!H7/Rpibaseavg -> -3.344388729 | I69: ='A5'!I14*'A1'!I7/Rpibaseavg -> -3.454204753 | J69: ='A5'!J14*'A1'!J7/Rpibaseavg -> -3.559813746 | K69: ='A5'!K14*'A1'!K7/Rpibaseavg -> -3.675606393 | L69: ='A5'!L14*'A1'!L7/Rpibaseavg -> -3.79245307 | M69: ='A5'!M14*'A1'!M7/Rpibaseavg -> -3.912876941 | N69: ='A5'!N14*'A1'!N7/Rpibaseavg -> -4.037463855 | O69: ='A5'!O14*'A1'!O7/Rpibaseavg -> -4.170294599 | P69: ='A5'!P14*'A1'!P7/Rpibaseavg -> -4.312084616 | Q69: ='A5'!Q14*'A1'!Q7/Rpibaseavg -> -4.458695492
A70: 18a | B70: Disposals | C70: £m | D70: C
A71: 19a | B71: Closing accummulated depreciation | C71: £m | D71: C | H71: =SUM(H67:H70) -> -21.39906273 | I71: -25.58083561 | J71: -30.01039777 | K71: -34.70635769 | L71: -39.67882692 | M71: -44.94078398 | N71: -50.50623449 | O71: -56.39374106 | P71: -62.62321287 | Q71: -69.2110976
B73: Net book value PPP assets | C73: Units | D73: Field Type | E73: Additional Info | F73: =+Baseminus1 -> 2017-18 | G73: =+Baseyear -> 2018-19 | H73: =+Baseplus1 -> 2019-20 | I73: =+Baseplus2 -> 2020-21 | J73: =+Baseplus3 -> 2021-22 | K73: =+Baseplus4 -> 2022-23 | L73: =+Baseplus5 -> 2023-24 | M73: =+Baseplus6 -> 2024-25 | N73: =+Baseplus7 -> 2025-26 | O73: =+Baseplus8 -> 2026-27 | P73: =+Baseplus9 -> 2027-28 | Q73: =+Baseplus10 -> 2028-29
A74: 20a | B74: Net book value | C74: £m | D74: C | H74: =+H64+H71 -> 119.9828593 | I74: =+I64+I71 -> 120.6080717 | J74: =+J64+J71 -> 121.1489324 | K74: 121.5923897 | L74: =+L64+L71 -> 121.9340779 | M74: 122.1669596 | N74: 122.2831724 | O74: 122.2705057 | P74: 122.1156182 | Q74: 121.8088538
B76: Infrastructure Renewals Calculations
B78: Infrastructure renewals prepayment/accrual | C78: Units | D78: Field Type | E78: Additional Info | F78: =+Baseminus1 -> 2017-18 | G78: =+Baseyear -> 2018-19 | H78: =+Baseplus1 -> 2019-20 | I78: =+Baseplus2 -> 2020-21 | J78: =+Baseplus3 -> 2021-22 | K78: =+Baseplus4 -> 2022-23 | L78: =+Baseplus5 -> 2023-24 | M78: =+Baseplus6 -> 2024-25 | N78: =+Baseplus7 -> 2025-26 | O78: =+Baseplus8 -> 2026-27 | P78: =+Baseplus9 -> 2027-28 | Q78: =+Baseplus10 -> 2028-29
A79: 21 | B79: Infrastructure Renewals prepayment/accrual (opening) | C79: £m | D79: B | H79: =+'B2'!G69 -> 3.341 | I79: =+H82 -> 4.133288884 | J79: =+I82 -> 3.855614221 | K79: 3.855614221 | L79: 3.855614221 | M79: 3.855614221 | N79: 3.855614221 | O79: 3.855614221 | P79: 3.855614221 | Q79: 3.855614221
A80: 22 | B80: Infrastructure Renewals Expenditure | C80: £m | D80: B | H80: =+'P1'!H95 -> 34.49424 | I80: =+'P1'!I95 -> 32.50537287 | J80: =+'P1'!J95 -> 25.6358328 | K80: =+'P1'!K95 -> 26.34840641 | L80: =+'P1'!L95 -> 27.08078672 | M80: =+'P1'!M95 -> 27.83352426 | N80: =+'P1'!N95 -> 28.6071849 | O80: =+'P1'!O95 -> 29.40235022 | P80: =+'P1'!P95 -> 108.9912221 | Q80: =+'P1'!Q95 -> 112.6829533
A81: 23 | B81: Infrastructure Renewals Charge | C81: £m | D81: B | H81: =-'P1'!H82 -> -33.70195112 | I81: =-'P1'!I82 -> -32.78304754 | J81: =-'P1'!J82 -> -25.6358328 | K81: =-'P1'!K82 -> -26.34840641 | L81: =-'P1'!L82 -> -27.08078672 | M81: =-'P1'!M82 -> -27.83352426 | N81: =-'P1'!N82 -> -28.6071849 | O81: =-'P1'!O82 -> -29.40235022 | P81: =-'P1'!P82 -> -108.9912221 | Q81: =-'P1'!Q82 -> -112.6829533
A82: 24 | B82: Infrastructure Renewals prepayment/accrual (closing) | C82: £m | D82: C | H82: =SUM(H79:H81) -> 4.133288884 | I82: =SUM(I79:I81) -> 3.855614221 | J82: 3.855614221 | K82: 3.855614221 | L82: 3.855614221 | M82: 3.855614221 | N82: 3.855614221 | O82: 3.855614221 | P82: 3.855614221 | Q82: 3.855614221
B85: Grants and Deferred income - Historic Cost accounting
B87: Amortisation of new grants | C87: Units | D87: Field Type | E87: Additional Info | F87: =+Baseminus1 -> 2017-18 | G87: =+Baseyear -> 2018-19 | H87: =+Baseplus1 -> 2019-20 | I87: =+Baseplus2 -> 2020-21 | J87: =+Baseplus3 -> 2021-22 | K87: =+Baseplus4 -> 2022-23 | L87: =+Baseplus5 -> 2023-24 | M87: =+Baseplus6 -> 2024-25 | N87: =+Baseplus7 -> 2025-26 | O87: =+Baseplus8 -> 2026-27 | P87: =+Baseplus9 -> 2027-28 | Q87: =+Baseplus10 -> 2028-29
A88: 25 | B88: Deferred Income - opening amount | C88: £m | D88: B | H88: =+'B2'!G43 -> -19.456 | I88: =+H91 -> -24.52643591 | J88: =+I91 -> -29.67255828 | K88: -35.17324219 | L88: -40.88055799 | M88: -46.78796645 | N88: -52.67379059 | O88: -58.76983991 | P88: -65.08782318 | Q88: -70.85956414
A89: 26 | B89: Additions on year | C89: £m | D89: C | H89: =-'P1'!H76 -> -5.894834 | I89: =-'P1'!I76 -> -6.007969645 | J89: =-'P1'!J76 -> -6.395215163 | K89: =-'P1'!K76 -> -6.612652478 | L89: =-'P1'!L76 -> -6.837482662 | M89: =-'P1'!M76 -> -6.825527793 | N89: =-'P1'!N76 -> -7.057595738 | O89: =-'P1'!O76 -> -7.297553993 | P89: =-'P1'!P76 -> -6.798693791 | Q89: =-'P1'!Q76 -> -7.02984938
A90: 27 | B90: Amortisation | C90: £m | D90: B | H90: =+'P2'!H88 -> 0.8243980913 | I90: =+'P2'!I88 -> 0.8618472688 | J90: =+'P2'!J88 -> 0.8945312621 | K90: =+'P2'!K88 -> 0.9053366751 | L90: =+'P2'!L88 -> 0.9300742056 | M90: =+'P2'!M88 -> 0.9397036478 | N90: =+'P2'!N88 -> 0.96154642 | O90: =+'P2'!O88 -> 0.9795707238 | P90: =+'P2'!P88 -> 1.026952827 | Q90: =+'P2'!Q88 -> 1.072624904
A91: 28 | B91: Deferred Income - closing amount | C91: £m | D91: C | H91: =SUM(H88:H90) -> -24.52643591 | I91: =SUM(I88:I90) -> -29.67255828 | J91: -35.17324219 | K91: -40.88055799 | L91: -46.78796645 | M91: -52.67379059 | N91: -58.76983991 | O91: -65.08782318 | P91: -70.85956414 | Q91: -76.81678862
B94: Third Party contributions - Current Cost accounting
B96: Amortisation of new grants | C96: Units | D96: Field Type | E96: Additional Info | F96: =+Baseminus1 -> 2017-18 | G96: =+Baseyear -> 2018-19 | H96: =+Baseplus1 -> 2019-20 | I96: =+Baseplus2 -> 2020-21 | J96: =+Baseplus3 -> 2021-22 | K96: =+Baseplus4 -> 2022-23 | L96: =+Baseplus5 -> 2023-24 | M96: =+Baseplus6 -> 2024-25 | N96: =+Baseplus7 -> 2025-26 | O96: =+Baseplus8 -> 2026-27 | P96: =+Baseplus9 -> 2027-28 | Q96: =+Baseplus10 -> 2028-29
A97: 29 | B97: Third Party Contributions - opening amount | C97: £m | D97: B | H97: ='B2'!G63 -> -313.278 | I97: =+H101 -> -326.0146761 | J97: =+I101 -> -339.1299786 | K97: -352.9880859 | L97: -367.6819249 | M97: -383.1293804 | N97: -399.3087617 | O97: -416.3881364 | P97: -434.4817552 | Q97: -452.5291887
A98: 30 | B98: Inflation adjustment | C98: £m | D98: C | H98: =+H97*('A1'!H7/Rpibaseavg-1) -> -10.651452 | I98: =+I97*('A1'!I7/'A1'!H7-1) -> -11.08449899 | J98: =+J97*('A1'!J7/'A1'!I7-1) -> -11.53041927 | K98: =+K97*('A1'!K7/'A1'!J7-1) -> -12.00159492 | L98: =+L97*('A1'!L7/'A1'!K7-1) -> -12.50118545 | M98: =+M97*('A1'!M7/'A1'!L7-1) -> -13.02639893 | N98: =+N97*('A1'!N7/'A1'!M7-1) -> -13.5764979 | O98: =+O97*('A1'!O7/'A1'!N7-1) -> -14.15719664 | P98: =+P97*('A1'!P7/'A1'!O7-1) -> -14.77237968 | Q98: =+Q97*('A1'!Q7/'A1'!P7-1) -> -15.38599242
A99: 31 | B99: Additions on year | C99: £m | D99: B | H99: =-'P1'!H76 -> -5.894834 | I99: =-'P1'!I76 -> -6.007969645 | J99: =-'P1'!J76 -> -6.395215163 | K99: =-'P1'!K76 -> -6.612652478 | L99: =-'P1'!L76 -> -6.837482662 | M99: =-'P1'!M76 -> -6.825527793 | N99: =-'P1'!N76 -> -7.057595738 | O99: =-'P1'!O76 -> -7.297553993 | P99: =-'P1'!P76 -> -6.798693791 | Q99: =-'P1'!Q76 -> -7.02984938
A100: 32 | B100: Amortisation | C100: £m | D100: B | H100: ='P2'!H115 -> 3.809609851 | I100: ='P2'!I115 -> 3.977166219 | J100: ='P2'!J115 -> 4.067527084 | K100: ='P2'!K115 -> 3.920408411 | L100: ='P2'!L115 -> 3.891212594 | M100: ='P2'!M115 -> 3.672545415 | N100: ='P2'!N115 -> 3.554718959 | O100: ='P2'!O115 -> 3.361131821 | P100: ='P2'!P115 -> 3.523639951 | Q100: ='P2'!Q115 -> 3.689879233
A101: 33 | B101: Third Party Contributions - closing amount | C101: £m | D101: C | H101: =SUM(H97:H100) -> -326.0146761 | I101: -339.1299786 | J101: -352.9880859 | K101: -367.6819249 | L101: -383.1293804 | M101: -399.3087617 | N101: -416.3881364 | O101: -434.4817552 | P101: -452.5291887 | Q101: -471.2551513
A106: Return to 'Opening' Sheet

Sheet P4
A1: =CHECK!A1 -> Checks = 3
B2: Process sheet: Regulatory capital value
B6: RCV | C6: Units | D6: Field Type | E6: Additional Info | F6: =+Baseminus1 -> 2017-18 | G6: =+Baseyear -> 2018-19 | H6: =+Baseplus1 -> 2019-20 | I6: =+Baseplus2 -> 2020-21 | J6: =+Baseplus3 -> 2021-22 | K6: =+Baseplus4 -> 2022-23 | L6: =+Baseplus5 -> 2023-24 | M6: =+Baseplus6 -> 2024-25 | N6: =+Baseplus7 -> 2025-26 | O6: =+Baseplus8 -> 2026-27 | P6: =+Baseplus9 -> 2027-28 | Q6: =+Baseplus10 -> 2028-29
A7: 1 | B7: Closing RCV (previous year) | C7: £m | D7: B | J7: =+'A2'!I36 -> 2054.753 | K7: =+J28 -> 2193.955108 | L7: 2339.007282 | M7: 2490.13753 | N7: 2648.094179 | O7: 2812.300029 | P7: 2985.488958 | Q7: 3433.082528
A8: 2 | B8: Indexation | C8: £m | D8: C | J8: =+J7*'A1'!J8 -> 69.861602 | K8: =+K7*'A1'!K8 -> 74.59447368 | L8: =+L7*'A1'!L8 -> 79.5262476 | M8: =+M7*'A1'!M8 -> 84.66467601 | N8: =+N7*'A1'!N8 -> 90.03520208 | O8: =+O7*'A1'!O8 -> 95.618201 | P8: =+P7*'A1'!P8 -> 101.5066246 | Q8: =+Q7*'A1'!Q8 -> 116.7248059
A9: 3 | B9: Adjustments | C9: £m | D9: C | J9: =+'A2'!J37*'A1'!J7/Rpibaseavg -> 0 | K9: =+'A2'!K37*'A1'!K7/Rpibaseavg -> 0 | L9: =+'A2'!L37*'A1'!L7/Rpibaseavg -> 0 | M9: =+'A2'!M37*'A1'!M7/Rpibaseavg -> 0 | N9: =+'A2'!N37*'A1'!N7/Rpibaseavg -> 0 | O9: =+'A2'!O37*'A1'!O7/Rpibaseavg -> 0 | P9: =+'A2'!P37*'A1'!P7/Rpibaseavg -> 0 | Q9: =+'A2'!Q37*'A1'!Q7/Rpibaseavg -> 0
A10: 4 | B10: Opening RCV | C10: £m | D10: C | J10: =+J7+J8+J9 -> 2124.614602 | K10: 2268.549582 | L10: 2418.53353 | M10: 2574.802206 | N10: 2738.129381 | O10: 2907.91823 | P10: 3086.995582 | Q10: 3549.807334
A12: 5 | B12: Capital Expenditure | C12: £m | D12: C | J12: =+J13+J14 -> 133.3232969 | K12: =+K13+K14 -> 136.5266792 | L12: 139.6967584 | M12: 143.4106671 | N12: 146.5093125 | O12: 152.2652888 | P12: 481.5615333 | Q12: 495.399018
A13: 6 | B13: Non-Infrastructure Assets | C13: £m | D13: C | J13: =+'P1'!J107-'P1'!J105-'P1'!J106 -> 101.2183266 | K13: =+'P1'!K107-'P1'!K105-'P1'!K106 -> 103.8265402 | L13: =+'P1'!L107-'P1'!L105-'P1'!L106 -> 106.4500292 | M13: =+'P1'!M107-'P1'!M105-'P1'!M106 -> 109.117886 | N13: =+'P1'!N107-'P1'!N105-'P1'!N106 -> 111.7632574 | O13: =+'P1'!O107-'P1'!O105-'P1'!O106 -> 115.7130845 | P13: =+'P1'!P107-'P1'!P105-'P1'!P106 -> 338.0066816 | Q13: =+'P1'!Q107-'P1'!Q105-'P1'!Q106 -> 350.3720518
A14: 7 | B14: Infrastructure Enhancement | C14: £m | D14: B | J14: =+'P1'!J105 -> 32.10497023 | K14: =+'P1'!K105 -> 32.70013898 | L14: =+'P1'!L105 -> 33.24672924 | M14: =+'P1'!M105 -> 34.29278112 | N14: =+'P1'!N105 -> 34.74605507 | O14: =+'P1'!O105 -> 36.55220427 | P14: =+'P1'!P105 -> 143.5548517 | Q14: =+'P1'!Q105 -> 145.0269662
A16: 8 | B16: Infrastructure Renewals Expenditure | C16: £m | D16: B | J16: =+'P1'!J106 -> 25.6358328 | K16: =+'P1'!K106 -> 26.34840641 | L16: =+'P1'!L106 -> 27.08078672 | M16: =+'P1'!M106 -> 27.83352426 | N16: =+'P1'!N106 -> 28.6071849 | O16: =+'P1'!O106 -> 29.40235022 | P16: =+'P1'!P106 -> 108.9912221 | Q16: =+'P1'!Q106 -> 112.6829533
A18: 9 | B18: Grants and Contributions | C18: £m | D18: B | J18: =-'P1'!J76 -> -6.395215163 | K18: =-'P1'!K76 -> -6.612652478 | L18: =-'P1'!L76 -> -6.837482662 | M18: =-'P1'!M76 -> -6.825527793 | N18: =-'P1'!N76 -> -7.057595738 | O18: =-'P1'!O76 -> -7.297553993 | P18: =-'P1'!P76 -> -6.798693791 | Q18: =-'P1'!Q76 -> -7.02984938
A20: 10 | B20: Total Depreciation | C20: £m | D20: C | J20: =+J21+J22 -> -56.31954012 | K20: =+K21+K22 -> -58.14517771 | L20: -59.89954856 | M20: -61.89134374 | N20: -63.83158406 | O20: -65.89824087 | P20: -127.1261691 | Q20: -132.337664
A21: 11 | B21: Depreciation (net of PPP depr'n) | C21: £m | D21: B | J21: =-'P2'!J64*0+-'P11'!J8 -> -60.3870672 | K21: =-'P2'!K64*0+-'P11'!K8 -> -62.06558612 | L21: =-'P2'!L64*0+-'P11'!L8 -> -63.79076116 | M21: =-'P2'!M64*0+-'P11'!M8 -> -65.56388915 | N21: =-'P2'!N64*0+-'P11'!N8 -> -67.38630302 | O21: =-'P2'!O64*0+-'P11'!O8 -> -69.2593727 | P21: =-'P2'!P64*0+-'P11'!P8 -> -130.649809 | Q21: =-'P2'!Q64*0+-'P11'!Q8 -> -136.0275432
A22: 12 | B22: Depreciation of Capital Grants | C22: £m | D22: B | J22: =+'P2'!J115 -> 4.067527084 | K22: =+'P2'!K115 -> 3.920408411 | L22: =+'P2'!L115 -> 3.891212594 | M22: =+'P2'!M115 -> 3.672545415 | N22: =+'P2'!N115 -> 3.554718959 | O22: =+'P2'!O115 -> 3.361131821 | P22: =+'P2'!P115 -> 3.523639951 | Q22: =+'P2'!Q115 -> 3.689879233
A24: 13 | B24: Infrastructure Renewals Charge | C24: £m | D24: B | J24: =-'P2'!J70 -> -25.6358328 | K24: =-'P2'!K70 -> -26.34840641 | L24: =-'P2'!L70 -> -27.08078672 | M24: =-'P2'!M70 -> -27.83352426 | N24: =-'P2'!N70 -> -28.6071849 | O24: =-'P2'!O70 -> -29.40235022 | P24: =-'P2'!P70 -> -108.9912221 | Q24: =-'P2'!Q70 -> -112.6829533
A26: 14 | B26: Disposal of Assets | C26: £m | D26: C | J26: =+'P3'!J44+'P3'!J51 -> -1.268035331 | K26: =+'P3'!K44+'P3'!K51 -> -1.311148532 | L26: =+'P3'!L44+'P3'!L51 -> -1.355727582 | M26: =+'P3'!M44+'P3'!M51 -> -1.40182232 | N26: =+'P3'!N44+'P3'!N51 -> -1.449484279 | O26: =+'P3'!O44+'P3'!O51 -> -1.498766744 | P26: =+'P3'!P44+'P3'!P51 -> -1.549724814 | Q26: =+'P3'!Q44+'P3'!Q51 -> -1.602415457
A28: 15 | B28: Closing RCV | C28: £m | D28: C | J28: =+J10+J12+J16+J18+J20+J24+J26 -> 2193.955108 | K28: 2339.007282 | L28: 2490.13753 | M28: 2648.094179 | N28: 2812.300029 | O28: 2985.488958 | P28: 3433.082528 | Q28: 3904.236423
A30: 16 | B30: Average Year RCV | C30: £m | D30: C | J30: =+(J28+J7)/2 -> 2124.354054 | K30: =+(K28+K7)/2 -> 2266.481195 | L30: 2414.572406 | M30: 2569.115854 | N30: 2730.197104 | O30: 2898.894493 | P30: 3209.285743 | Q30: 3668.659475
A34: Return to 'Opening' Sheet

Sheet P5
A1: =CHECK!A1 -> Checks = 3
B2: Process sheet: Interest income and interest expense
B4: Interest payments on embedded debt
B6: Embedded debt | C6: Units | D6: Field Type | E6: Additional Info | F6: =+Baseminus1 -> 2017-18 | G6: =+Baseyear -> 2018-19 | H6: =+Baseplus1 -> 2019-20 | I6: =+Baseplus2 -> 2020-21 | J6: =+Baseplus3 -> 2021-22 | K6: =+Baseplus4 -> 2022-23 | L6: =+Baseplus5 -> 2023-24 | M6: =+Baseplus6 -> 2024-25 | N6: =+Baseplus7 -> 2025-26 | O6: =+Baseplus8 -> 2026-27 | P6: =+Baseplus9 -> 2027-28 | Q6: =+Baseplus10 -> 2028-29
A7: 1 | B7: 3%-3.99% | C7: £m | D7: C | H7: =+'B6'!T6+'B6'!T22 -> 0 | I7: =+H7-H22 -> 0 | J7: =+I7-I22 -> 0 | K7: 0 | L7: 0 | M7: 0 | N7: 0 | O7: 0 | P7: 0 | Q7: 0
A8: 2 | B8: 4%-4.99% | C8: £m | D8: C | H8: =+'B6'!T7+'B6'!T23 -> 882.56 | I8: =+H8-H23 -> 882.56 | J8: 882.56 | K8: 882.56 | L8: 882.56 | M8: 882.56 | N8: 882.56 | O8: 882.56 | P8: 882.56 | Q8: 882.56
A9: 3 | B9: 5%-5.99% | C9: £m | D9: C | H9: =+'B6'!T8+'B6'!T24 -> 0 | I9: 0 | J9: 0 | K9: 0 | L9: 0 | M9: 0 | N9: 0 | O9: 0 | P9: 0 | Q9: 0
A10: 4 | B10: 6%-6.99% | C10: £m | D10: C | H10: =+'B6'!T9+'B6'!T25 -> 0 | I10: 0 | J10: 0 | K10: 0 | L10: 0 | M10: 0 | N10: 0 | O10: 0 | P10: 0 | Q10: 0
A11: 5 | B11: 7%-7.99% | C11: £m | D11: C | H11: =+'B6'!T10+'B6'!T26 -> 0 | I11: 0 | J11: 0 | K11: 0 | L11: 0 | M11: 0 | N11: 0 | O11: 0 | P11: 0 | Q11: 0
A12: 6 | B12: 8%-8.99% | C12: £m | D12: C | H12: =+'B6'!T11+'B6'!T27 -> 0 | I12: 0 | J12: 0 | K12: 0 | L12: 0 | M12: 0 | N12: 0 | O12: 0 | P12: 0 | Q12: 0
A13: 7 | B13: 9%-9.99% | C13: £m | D13: C | H13: =+'B6'!T12+'B6'!T28 -> 0 | I13: 0 | J13: 0 | K13: 0 | L13: 0 | M13: 0 | N13: 0 | O13: 0 | P13: 0 | Q13: 0
A14: 8 | B14: 10%-10.99% | C14: £m | D14: C | H14: =+'B6'!T13+'B6'!T29 -> 0 | I14: 0 | J14: 0 | K14: 0 | L14: 0 | M14: 0 | N14: 0 | O14: 0 | P14: 0 | Q14: 0
A15: 9 | B15: 11%-11.99% | C15: £m | D15: C | H15: =+'B6'!T14+'B6'!T30 -> 0 | I15: 0 | J15: 0 | K15: 0 | L15: 0 | M15: 0 | N15: 0 | O15: 0 | P15: 0 | Q15: 0
A16: 10 | B16: 12%-12.99% | C16: £m | D16: C | H16: =+'B6'!T15+'B6'!T31 -> 0 | I16: 0 | J16: 0 | K16: 0 | L16: 0 | M16: 0 | N16: 0 | O16: 0 | P16: 0 | Q16: 0
A17: 11 | B17: 13%-13.99% | C17: £m | D17: C | H17: =+'B6'!T16+'B6'!T32 -> 0 | I17: 0 | J17: 0 | K17: 0 | L17: 0 | M17: 0 | N17: 0 | O17: 0 | P17: 0 | Q17: 0
A18: 12 | B18: 14%-14.99% | C18: £m | D18: C | H18: =+'B6'!T17+'B6'!T33 -> 0 | I18: 0 | J18: 0 | K18: 0 | L18: 0 | M18: 0 | N18: 0 | O18: 0 | P18: 0 | Q18: 0
A19: 13 | B19: Total Embedded Debt | C19: £m | D19: C | H19: =SUM(H7:H18) -> 882.56 | I19: 882.56 | J19: 882.56 | K19: 882.56 | L19: 882.56 | M19: 882.56 | N19: 882.56 | O19: 882.56 | P19: 882.56 | Q19: 882.56
B21: Embedded Debt Due for Repayment (£ Million) | C21: Units | D21: Field Type | E21: Additional Info | F21: =+Baseminus1 -> 2017-18 | G21: =+Baseyear -> 2018-19 | H21: =+Baseplus1 -> 2019-20 | I21: =+Baseplus2 -> 2020-21 | J21: =+Baseplus3 -> 2021-22 | K21: =+Baseplus4 -> 2022-23 | L21: =+Baseplus5 -> 2023-24 | M21: =+Baseplus6 -> 2024-25 | N21: =+Baseplus7 -> 2025-26 | O21: =+Baseplus8 -> 2026-27 | P21: =+Baseplus9 -> 2027-28 | Q21: =+Baseplus10 -> 2028-29
A22: 14 | B22: 3%-3.99% | C22: £m | D22: C | H22: =+'B6'!H6+'B6'!H22 -> 0 | I22: =+'B6'!I6+'B6'!I22 -> 0 | J22: =+'B6'!J6+'B6'!J22 -> 0 | K22: =+'B6'!K6+'B6'!K22 -> 0 | L22: =+'B6'!L6+'B6'!L22 -> 0 | M22: =+'B6'!M6+'B6'!M22 -> 0 | N22: =+'B6'!N6+'B6'!N22 -> 0 | O22: =+'B6'!O6+'B6'!O22 -> 0 | P22: =+'B6'!P6+'B6'!P22 -> 0 | Q22: =+'B6'!Q6+'B6'!Q22 -> 0
A23: 15 | B23: 4%-4.99% | C23: £m | D23: C | H23: =+'B6'!H7+'B6'!H23 -> 0 | I23: =+'B6'!I7+'B6'!I23 -> 0 | J23: =+'B6'!J7+'B6'!J23 -> 0 | K23: =+'B6'!K7+'B6'!K23 -> 0 | L23: =+'B6'!L7+'B6'!L23 -> 0 | M23: =+'B6'!M7+'B6'!M23 -> 0 | N23: =+'B6'!N7+'B6'!N23 -> 0 | O23: =+'B6'!O7+'B6'!O23 -> 0 | P23: =+'B6'!P7+'B6'!P23 -> 0 | Q23: =+'B6'!Q7+'B6'!Q23 -> 0
A24: 16 | B24: 5%-5.99% | C24: £m | D24: C | H24: =+'B6'!H8+'B6'!H24 -> 0 | I24: =+'B6'!I8+'B6'!I24 -> 0 | J24: =+'B6'!J8+'B6'!J24 -> 0 | K24: =+'B6'!K8+'B6'!K24 -> 0 | L24: =+'B6'!L8+'B6'!L24 -> 0 | M24: =+'B6'!M8+'B6'!M24 -> 0 | N24: =+'B6'!N8+'B6'!N24 -> 0 | O24: =+'B6'!O8+'B6'!O24 -> 0 | P24: =+'B6'!P8+'B6'!P24 -> 0 | Q24: =+'B6'!Q8+'B6'!Q24 -> 0
A25: 17 | B25: 6%-6.99% | C25: £m | D25: C | H25: =+'B6'!H9+'B6'!H25 -> 0 | I25: =+'B6'!I9+'B6'!I25 -> 0 | J25: =+'B6'!J9+'B6'!J25 -> 0 | K25: =+'B6'!K9+'B6'!K25 -> 0 | L25: =+'B6'!L9+'B6'!L25 -> 0 | M25: =+'B6'!M9+'B6'!M25 -> 0 | N25: =+'B6'!N9+'B6'!N25 -> 0 | O25: =+'B6'!O9+'B6'!O25 -> 0 | P25: =+'B6'!P9+'B6'!P25 -> 0 | Q25: =+'B6'!Q9+'B6'!Q25 -> 0
A26: 18 | B26: 7%-7.99% | C26: £m | D26: C | H26: =+'B6'!H10+'B6'!H26 -> 0 | I26: =+'B6'!I10+'B6'!I26 -> 0 | J26: =+'B6'!J10+'B6'!J26 -> 0 | K26: =+'B6'!K10+'B6'!K26 -> 0 | L26: =+'B6'!L10+'B6'!L26 -> 0 | M26: =+'B6'!M10+'B6'!M26 -> 0 | N26: =+'B6'!N10+'B6'!N26 -> 0 | O26: =+'B6'!O10+'B6'!O26 -> 0 | P26: =+'B6'!P10+'B6'!P26 -> 0 | Q26: =+'B6'!Q10+'B6'!Q26 -> 0
A27: 19 | B27: 8%-8.99% | C27: £m | D27: C | H27: =+'B6'!H11+'B6'!H27 -> 0 | I27: =+'B6'!I11+'B6'!I27 -> 0 | J27: =+'B6'!J11+'B6'!J27 -> 0 | K27: =+'B6'!K11+'B6'!K27 -> 0 | L27: =+'B6'!L11+'B6'!L27 -> 0 | M27: =+'B6'!M11+'B6'!M27 -> 0 | N27: =+'B6'!N11+'B6'!N27 -> 0 | O27: =+'B6'!O11+'B6'!O27 -> 0 | P27: =+'B6'!P11+'B6'!P27 -> 0 | Q27: =+'B6'!Q11+'B6'!Q27 -> 0
A28: 20 | B28: 9%-9.99% | C28: £m | D28: C | H28: =+'B6'!H12+'B6'!H28 -> 0 | I28: =+'B6'!I12+'B6'!I28 -> 0 | J28: =+'B6'!J12+'B6'!J28 -> 0 | K28: =+'B6'!K12+'B6'!K28 -> 0 | L28: =+'B6'!L12+'B6'!L28 -> 0 | M28: =+'B6'!M12+'B6'!M28 -> 0 | N28: =+'B6'!N12+'B6'!N28 -> 0 | O28: =+'B6'!O12+'B6'!O28 -> 0 | P28: =+'B6'!P12+'B6'!P28 -> 0 | Q28: =+'B6'!Q12+'B6'!Q28 -> 0
A29: 21 | B29: 10%-10.99% | C29: £m | D29: C | H29: =+'B6'!H13+'B6'!H29 -> 0 | I29: =+'B6'!I13+'B6'!I29 -> 0 | J29: =+'B6'!J13+'B6'!J29 -> 0 | K29: =+'B6'!K13+'B6'!K29 -> 0 | L29: =+'B6'!L13+'B6'!L29 -> 0 | M29: =+'B6'!M13+'B6'!M29 -> 0 | N29: =+'B6'!N13+'B6'!N29 -> 0 | O29: =+'B6'!O13+'B6'!O29 -> 0 | P29: =+'B6'!P13+'B6'!P29 -> 0 | Q29: =+'B6'!Q13+'B6'!Q29 -> 0
A30: 22 | B30: 11%-11.99% | C30: £m | D30: C | H30: =+'B6'!H14+'B6'!H30 -> 0 | I30: =+'B6'!I14+'B6'!I30 -> 0 | J30: =+'B6'!J14+'B6'!J30 -> 0 | K30: =+'B6'!K14+'B6'!K30 -> 0 | L30: =+'B6'!L14+'B6'!L30 -> 0 | M30: =+'B6'!M14+'B6'!M30 -> 0 | N30: =+'B6'!N14+'B6'!N30 -> 0 | O30: =+'B6'!O14+'B6'!O30 -> 0 | P30: =+'B6'!P14+'B6'!P30 -> 0 | Q30: =+'B6'!Q14+'B6'!Q30 -> 0
A31: 23 | B31: 12%-12.99% | C31: £m | D31: C | H31: =+'B6'!H15+'B6'!H31 -> 0 | I31: =+'B6'!I15+'B6'!I31 -> 0 | J31: =+'B6'!J15+'B6'!J31 -> 0 | K31: =+'B6'!K15+'B6'!K31 -> 0 | L31: =+'B6'!L15+'B6'!L31 -> 0 | M31: =+'B6'!M15+'B6'!M31 -> 0 | N31: =+'B6'!N15+'B6'!N31 -> 0 | O31: =+'B6'!O15+'B6'!O31 -> 0 | P31: =+'B6'!P15+'B6'!P31 -> 0 | Q31: =+'B6'!Q15+'B6'!Q31 -> 0
A32: 24 | B32: 13%-13.99% | C32: £m | D32: C | H32: =+'B6'!H16+'B6'!H32 -> 0 | I32: =+'B6'!I16+'B6'!I32 -> 0 | J32: =+'B6'!J16+'B6'!J32 -> 0 | K32: =+'B6'!K16+'B6'!K32 -> 0 | L32: =+'B6'!L16+'B6'!L32 -> 0 | M32: =+'B6'!M16+'B6'!M32 -> 0 | N32: =+'B6'!N16+'B6'!N32 -> 0 | O32: =+'B6'!O16+'B6'!O32 -> 0 | P32: =+'B6'!P16+'B6'!P32 -> 0 | Q32: =+'B6'!Q16+'B6'!Q32 -> 0
A33: 25 | B33: 14%-14.99% | C33: £m | D33: C | H33: =+'B6'!H17+'B6'!H33 -> 0 | I33: =+'B6'!I17+'B6'!I33 -> 0 | J33: =+'B6'!J17+'B6'!J33 -> 0 | K33: =+'B6'!K17+'B6'!K33 -> 0 | L33: =+'B6'!L17+'B6'!L33 -> 0 | M33: =+'B6'!M17+'B6'!M33 -> 0 | N33: =+'B6'!N17+'B6'!N33 -> 0 | O33: =+'B6'!O17+'B6'!O33 -> 0 | P33: =+'B6'!P17+'B6'!P33 -> 0 | Q33: =+'B6'!Q17+'B6'!Q33 -> 0
A34: 26 | B34: Total | C34: £m | D34: C | H34: =SUM(H22:H33) -> 0 | I34: 0 | J34: 0 | K34: 0 | L34: 0 | M34: 0 | N34: 0 | O34: 0 | P34: 0 | Q34: 0
B36: Interest Payable on Embedded Debt (£ Million) | C36: Units | D36: Field Type | E36: Additional Info | F36: =+Baseminus1 -> 2017-18 | G36: Avg. rate | H36: =+Baseplus1 -> 2019-20 | I36: =+Baseplus2 -> 2020-21 | J36: =+Baseplus3 -> 2021-22 | K36: =+Baseplus4 -> 2022-23 | L36: =+Baseplus5 -> 2023-24 | M36: =+Baseplus6 -> 2024-25 | N36: =+Baseplus7 -> 2025-26 | O36: =+Baseplus8 -> 2026-27 | P36: =+Baseplus9 -> 2027-28 | Q36: =+Baseplus10 -> 2028-29
A37: 27 | B37: 3%-3.99% | C37: £m | D37: C | G37: 0.035 | H37: =+$G37*(H7-H22/2) -> 0 | I37: 0 | J37: 0 | K37: 0 | L37: 0 | M37: 0 | N37: 0 | O37: 0 | P37: 0 | Q37: 0
A38: 28 | B38: 4%-4.99% | C38: £m | D38: C | G38: 0.04928516358 | H38: =+$G38*(H8-H23/2) -> 43.49711397 | I38: =+$G38*(I8-I23/2) -> 43.49711397 | J38: 43.49711397 | K38: 43.49711397 | L38: 43.49711397 | M38: 43.49711397 | N38: 43.49711397 | O38: 43.49711397 | P38: 43.49711397 | Q38: 43.49711397
A39: 29 | B39: 5%-5.99% | C39: £m | D39: C | G39: 0.0521 | H39: =+$G39*(H9-H24/2) -> 0 | I39: =+$G39*(I9-I24/2) -> 0 | J39: 0 | K39: 0 | L39: 0 | M39: 0 | N39: 0 | O39: 0 | P39: 0 | Q39: 0
A40: 30 | B40: 6%-6.99% | C40: £m | D40: C | G40: 0.065 | H40: =+$G40*(H10-H25/2) -> 0 | I40: 0 | J40: 0 | K40: 0 | L40: 0 | M40: 0 | N40: 0 | O40: 0 | P40: 0 | Q40: 0
A41: 31 | B41: 7%-7.99% | C41: £m | D41: C | G41: 0.075 | H41: =+$G41*(H11-H26/2) -> 0 | I41: 0 | J41: 0 | K41: 0 | L41: 0 | M41: 0 | N41: 0 | O41: 0 | P41: 0 | Q41: 0
A42: 32 | B42: 8%-8.99% | C42: £m | D42: C | G42: 0.085 | H42: =+$G42*(H12-H27/2) -> 0 | I42: 0 | J42: 0 | K42: 0 | L42: 0 | M42: 0 | N42: 0 | O42: 0 | P42: 0 | Q42: 0
A43: 33 | B43: 9%-9.99% | C43: £m | D43: C | G43: 0.095 | H43: =+$G43*(H13-H28/2) -> 0 | I43: 0 | J43: 0 | K43: 0 | L43: 0 | M43: 0 | N43: 0 | O43: 0 | P43: 0 | Q43: 0
A44: 34 | B44: 10%-10.99% | C44: £m | D44: C | G44: 0.105 | H44: =+$G44*(H14-H29/2) -> 0 | I44: 0 | J44: 0 | K44: 0 | L44: 0 | M44: 0 | N44: 0 | O44: 0 | P44: 0 | Q44: 0
A45: 35 | B45: 11%-11.99% | C45: £m | D45: C | G45: 0.115 | H45: =+$G45*(H15-H30/2) -> 0 | I45: 0 | J45: 0 | K45: 0 | L45: 0 | M45: 0 | N45: 0 | O45: 0 | P45: 0 | Q45: 0
A46: 36 | B46: 12%-12.99% | C46: £m | D46: C | G46: 0.125 | H46: =+$G46*(H16-H31/2) -> 0 | I46: 0 | J46: 0 | K46: 0 | L46: 0 | M46: 0 | N46: 0 | O46: 0 | P46: 0 | Q46: 0
A47: 37 | B47: 13%-13.99% | C47: £m | D47: C | G47: 0.135 | H47: =+$G47*(H17-H32/2) -> 0 | I47: 0 | J47: 0 | K47: 0 | L47: 0 | M47: 0 | N47: 0 | O47: 0 | P47: 0 | Q47: 0
A48: 38 | B48: 14%-14.99% | C48: £m | D48: C | G48: 0.145 | H48: =+$G48*(H18-H33/2) -> 0 | I48: 0 | J48: 0 | K48: 0 | L48: 0 | M48: 0 | N48: 0 | O48: 0 | P48: 0 | Q48: 0
A49: 39 | B49: Total Interest Payable on Embedded Debt | C49: £m | D49: C | H49: =SUM(H37:H48) -> 43.49711397 | I49: =SUM(I37:I48) -> 43.49711397 | J49: 43.49711397 | K49: 43.49711397 | L49: 43.49711397 | M49: 43.49711397 | N49: 43.49711397 | O49: 43.49711397 | P49: 43.49711397 | Q49: 43.49711397
A51: 40 | B51: PPP interest | C51: £m | D51: C | H51: ='A5'!H15 -> -6.924921775 | I51: ='A5'!I15 -> -6.783321854 | J51: ='A5'!J15 -> -6.660905018 | K51: ='A5'!K15 -> -6.510249401 | L51: ='A5'!L15 -> -6.331041858 | M51: ='A5'!M15 -> -6.12314039 | N51: ='A5'!N15 -> -5.93212491 | O51: ='A5'!O15 -> -5.719863507 | P51: ='A5'!P15 -> -5.581815601 | Q51: ='A5'!Q15 -> -5.262570245
B53: Interest payments on new debt
B55: New debt and interest payments on new debt | C55: Units | D55: Field Type | E55: Additional Info | F55: =+Baseminus1 -> 2017-18 | G55: 2007-08 | H55: =+Baseplus1 -> 2019-20 | I55: =+Baseplus2 -> 2020-21 | J55: =+Baseplus3 -> 2021-22 | K55: =+Baseplus4 -> 2022-23 | L55: =+Baseplus5 -> 2023-24 | M55: =+Baseplus6 -> 2024-25 | N55: =+Baseplus7 -> 2025-26 | O55: =+Baseplus8 -> 2026-27 | P55: =+Baseplus9 -> 2027-28 | Q55: =+Baseplus10 -> 2028-29
A56: 46 | B56: Interest rate (nominal) | C56: £m | D56: B | H56: =+'A2'!H11 -> 0.0472 | I56: =+'A2'!I11 -> 0.0472 | J56: =+'A2'!J11 -> 0.0472 | K56: =+'A2'!K11 -> 0.0472 | L56: =+'A2'!L11 -> 0.0472 | M56: =+'A2'!M11 -> 0.0472 | N56: =+'A2'!N11 -> 0.0472 | O56: =+'A2'!O11 -> 0.0472 | P56: =+'A2'!P11 -> 0.0472 | Q56: =+'A2'!Q11 -> 0.0472
B58: New debt required (output to cash flow) | C58: Units | D58: Field Type | E58: Additional Info | F58: =+Baseminus1 -> 2017-18 | G58: 2007-08 | H58: =+Baseplus1 -> 2019-20 | I58: =+Baseplus2 -> 2020-21 | J58: =+Baseplus3 -> 2021-22 | K58: =+Baseplus4 -> 2022-23 | L58: =+Baseplus5 -> 2023-24 | M58: =+Baseplus6 -> 2024-25 | N58: =+Baseplus7 -> 2025-26 | O58: =+Baseplus8 -> 2026-27 | P58: =+Baseplus9 -> 2027-28 | Q58: =+Baseplus10 -> 2028-29
A59: 47 | B59: New Debt | C59: £m | D59: C | H59: =H71-'P7'!H44 -> -27.07236499 | I59: =I71-'P7'!I44 -> -61.78015566 | J59: =IF('E6'!$C$13=2,'P5'!J71+'P5'!J66,'P5'!J71-'P7'!J44) -> -444.0377897 | K59: =IF('E6'!$C$13=2,'P5'!K71+'P5'!K66,'P5'!K71-'P7'!K44) -> -438.1478835 | L59: =IF('E6'!$C$13=2,'P5'!L71+'P5'!L66,'P5'!L71-'P7'!L44) -> -485.2271362 | M59: =IF('E6'!$C$13=2,'P5'!M71+'P5'!M66,'P5'!M71-'P7'!M44) -> -507.3961485 | N59: =IF('E6'!$C$13=2,'P5'!N71+'P5'!N66,'P5'!N71-'P7'!N44) -> -531.623798 | O59: =IF('E6'!$C$13=2,'P5'!O71+'P5'!O66,'P5'!O71-'P7'!O44) -> -558.3747581 | P59: =IF('E6'!$C$13=2,'P5'!P71+'P5'!P66,'P5'!P71-'P7'!P44) -> -837.0155024 | Q59: =IF('E6'!$C$13=2,'P5'!Q71+'P5'!Q66,'P5'!Q71-'P7'!Q44) -> -1059.815378
B61: New debt and interest payments on new debt | C61: Units | D61: Field Type | E61: Additional Info | F61: =+Baseminus1 -> 2017-18 | G61: 2007-08 | H61: =+Baseplus1 -> 2019-20 | I61: =+Baseplus2 -> 2020-21 | J61: =+Baseplus3 -> 2021-22 | K61: =+Baseplus4 -> 2022-23 | L61: =+Baseplus5 -> 2023-24 | M61: =+Baseplus6 -> 2024-25 | N61: =+Baseplus7 -> 2025-26 | O61: =+Baseplus8 -> 2026-27 | P61: =+Baseplus9 -> 2027-28 | Q61: =+Baseplus10 -> 2028-29
A62: 48 | B62: Interest Payable on New Debt (before iterations) | C62: £m | D62: C | H62: 0 | I62: =SUMPRODUCT($H$59:H59,$H$56:H56) -> -1.277815627 | J62: =SUMPRODUCT($H$59:I59,$H$56:I56) -> -4.193838975 | K62: =SUMPRODUCT($H$59:J59,$H$56:J56) -> -25.15242265 | L62: =SUMPRODUCT($H$59:K59,$H$56:K56) -> -45.83300275 | M62: =SUMPRODUCT($H$59:L59,$H$56:L56) -> -68.73572358 | N62: =SUMPRODUCT($H$59:M59,$H$56:M56) -> -92.68482179 | O62: =SUMPRODUCT($H$59:N59,$H$56:N56) -> -117.7774651 | P62: =SUMPRODUCT($H$59:O59,$H$56:O56) -> -144.1327536 | Q62: =SUMPRODUCT($H$59:P59,$H$56:P56) -> -183.6398853
A63: 49 | B63: Interest Payable on New Debt (iterations only) | C63: £m | D63: C | H63: =+H71-H70 -> -0.6389078137 | I63: =+I71-I70 -> -1.458011674 | J63: =+J71-J70 -> -10.47929184 | K63: -10.34029005 | L63: -11.45136041 | M63: -11.9745491 | N63: -12.54632163 | O63: -13.17764429 | P63: =+P71-P70 -> -19.75356586 | Q63: -25.01164291
A64: 50 | B64: Interest on Cumulative New Debt | C64: £m | D64: C | H64: =+H62+H63 -> -0.6389078137 | I64: =+I62+I63 -> -2.735827301 | J64: =+J62+J63 -> -14.67313081 | K64: -35.4927127 | L64: -57.28436316 | M64: -80.71027268 | N64: -105.2311434 | O64: -130.9551093 | P64: =+P62+P63 -> -163.8863195 | Q64: -208.6515283
A65: 51 | B65: Total interest before tax adjustment | C65: £m | D65: C | H65: =-H49+H64+H51 -> -51.06094356 | I65: =-I49+I64+I51 -> -53.01626313 | J65: -64.8311498 | K65: -85.50007607 | L65: -107.112519 | M65: -130.330527 | N65: -154.6603823 | O65: -180.1720868 | P65: -212.9652491 | Q65: -257.4112125
A66: 52 | B66: Adjustments due to tax changes | C66: £m | D66: C | J66: ='P7'!J114 -> 0 | K66: ='P7'!K114 -> 0 | L66: ='P7'!L114 -> 0 | M66: ='P7'!M114 -> 0 | N66: ='P7'!N114 -> 0 | O66: ='P7'!O114 -> 0 | P66: ='P7'!P114 -> 0 | Q66: ='P7'!Q114 -> 0
A67: 53 | B67: Interest payable new debt (after tax changes) | C67: £m | D67: C | H67: =+H64-H66 -> -0.6389078137 | I67: =+I64-I66 -> -2.735827301 | J67: =+J64+J66 -> -14.67313081 | K67: =+K64+K66 -> -35.4927127 | L67: -57.28436316 | M67: -80.71027268 | N67: -105.2311434 | O67: -130.9551093 | P67: -163.8863195 | Q67: -208.6515283
B69: Iterations to calculate new debt required (£ Million) | C69: Units | D69: Field Type | E69: Additional Info | F69: =+Baseminus1 -> 2017-18 | G69: 2007-08 | H69: =+Baseplus1 -> 2019-20 | I69: =+Baseplus2 -> 2020-21 | J69: =+Baseplus3 -> 2021-22 | K69: =+Baseplus4 -> 2022-23 | L69: =+Baseplus5 -> 2023-24 | M69: =+Baseplus6 -> 2024-25 | N69: =+Baseplus7 -> 2025-26 | O69: =+Baseplus8 -> 2026-27 | P69: =+Baseplus9 -> 2027-28 | Q69: =+Baseplus10 -> 2028-29
A70: 54 | B70: New debt before rolled up interest (before tax) | C70: £m | D70: B | H70: =+H90 -> -26.43345717 | I70: =+I90 -> -60.32214398 | J70: =IF('E6'!$C$13=2,'P5'!J91,'P5'!J90) -> -433.5584979 | K70: =IF('E6'!$C$13=2,'P5'!K91,'P5'!K90) -> -427.8075935 | L70: =IF('E6'!$C$13=2,'P5'!L91,'P5'!L90) -> -473.7757758 | M70: =IF('E6'!$C$13=2,'P5'!M91,'P5'!M90) -> -495.4215994 | N70: =IF('E6'!$C$13=2,'P5'!N91,'P5'!N90) -> -519.0774764 | O70: =IF('E6'!$C$13=2,'P5'!O91,'P5'!O90) -> -545.1971138 | P70: =IF('E6'!$C$13=2,'P5'!P91,'P5'!P90) -> -817.2619365 | Q70: =IF('E6'!$C$13=2,'P5'!Q91,'P5'!Q90) -> -1034.803735
A71: 55 | B71: Iteration to infinity | C71: £m | D71: C | H71: =+H70/(1-H56/2) -> -27.07236499 | I71: =+I70/(1-I56/2) -> -61.78015566 | J71: =+J70/(1-J56/2) -> -444.0377897 | K71: -438.1478835 | L71: -485.2271362 | M71: -507.3961485 | N71: -531.623798 | O71: -558.3747581 | P71: =+P70/(1-P56/2) -> -837.0155024 | Q71: -1059.815378
B73: Total interest payments
B75: Total interest payments | C75: Units | D75: Field Type | E75: Additional Info | F75: =+Baseminus1 -> 2017-18 | G75: 2007-08 | H75: =+Baseplus1 -> 2019-20 | I75: =+Baseplus2 -> 2020-21 | J75: =+Baseplus3 -> 2021-22 | K75: =+Baseplus4 -> 2022-23 | L75: =+Baseplus5 -> 2023-24 | M75: =+Baseplus6 -> 2024-25 | N75: =+Baseplus7 -> 2025-26 | O75: =+Baseplus8 -> 2026-27 | P75: =+Baseplus9 -> 2027-28 | Q75: =+Baseplus10 -> 2028-29
A76: 56 | B76: Total interest payments | C76: £m | D76: C | H76: =+H49-H64-H66-H51 -> 51.06094356 | I76: =+I49-I64-I66-I51 -> 53.01626313 | J76: =+J49-J64-J66-J51 -> 64.8311498 | K76: =+K49-K64-K66-K51 -> 85.50007607 | L76: =+L49-L64-L66-L51 -> 107.112519 | M76: 130.330527 | N76: =+N49-N64-N66-N51 -> 154.6603823 | O76: 180.1720868 | P76: =+P49-P64-P66-P51 -> 212.9652491 | Q76: =+Q49-Q64-Q66-Q51 -> 257.4112125
B78: Interest income
B80: Interest income | C80: Units | D80: Field Type | E80: Additional Info | F80: =+Baseminus1 -> 2017-18 | G80: 2007-08 | H80: =+Baseplus1 -> 2019-20 | I80: =+Baseplus2 -> 2020-21 | J80: =+Baseplus3 -> 2021-22 | K80: =+Baseplus4 -> 2022-23 | L80: =+Baseplus5 -> 2023-24 | M80: =+Baseplus6 -> 2024-25 | N80: =+Baseplus7 -> 2025-26 | O80: =+Baseplus8 -> 2026-27 | P80: =+Baseplus9 -> 2027-28 | Q80: =+Baseplus10 -> 2028-29
A81: 57 | B81: Cash and equivalents | C81: £m | D81: C | H81: =+AVERAGE('O2'!G68:H68)*'A2'!H13 -> 0.0113775 | I81: =+AVERAGE('O2'!H68:I68)*'A2'!I13 -> 0.0009 | J81: =+AVERAGE('O2'!I68:J68)*'A2'!J13 -> 0.0034 | K81: =+AVERAGE('O2'!J68:K68)*'A2'!K13 -> 0.005 | L81: =+AVERAGE('O2'!K68:L68)*'A2'!L13 -> 0.005 | M81: =+AVERAGE('O2'!L68:M68)*'A2'!M13 -> 0.005 | N81: =+AVERAGE('O2'!M68:N68)*'A2'!N13 -> 0.005 | O81: =+AVERAGE('O2'!N68:O68)*'A2'!O13 -> 0.005 | P81: =+AVERAGE('O2'!O68:P68)*'A2'!P13 -> 0.005 | Q81: =+AVERAGE('O2'!P68:Q68)*'A2'!Q13 -> 0.005
A82: 58 | B82: Short term deposits | C82: £m | D82: C | H82: =+AVERAGE('O2'!G69:H69)*'A2'!H13 -> 0.006625 | I82: =+AVERAGE('O2'!H69:I69)*'A2'!I13 -> 0 | J82: =+AVERAGE('O2'!I69:J69)*'A2'!J13 -> 0 | K82: =+AVERAGE('O2'!J69:K69)*'A2'!K13 -> 0 | L82: =+AVERAGE('O2'!K69:L69)*'A2'!L13 -> 0 | M82: =+AVERAGE('O2'!L69:M69)*'A2'!M13 -> 0 | N82: =+AVERAGE('O2'!M69:N69)*'A2'!N13 -> 0 | O82: =+AVERAGE('O2'!N69:O69)*'A2'!O13 -> 0 | P82: =+AVERAGE('O2'!O69:P69)*'A2'!P13 -> 0 | Q82: =+AVERAGE('O2'!P69:Q69)*'A2'!Q13 -> 0
A83: 59 | B83: Financial reserve | C83: £m | D83: C | H83: =AVERAGE('O2'!G21+'A2'!H20,'O2'!G21)*'A2'!H14 -> 0 | I83: =AVERAGE('O2'!H21+'A2'!I20,'O2'!H21)*'A2'!I14 -> 0 | J83: =AVERAGE('O2'!I21+'A2'!J20,'O2'!I21)*'A2'!J14 -> 0 | K83: =AVERAGE('O2'!J21+'A2'!K20,'O2'!J21)*'A2'!K14 -> 0 | L83: =AVERAGE('O2'!K21+'A2'!L20,'O2'!K21)*'A2'!L14 -> 0 | M83: =AVERAGE('O2'!L21+'A2'!M20,'O2'!L21)*'A2'!M14 -> 0 | N83: =AVERAGE('O2'!M21+'A2'!N20,'O2'!M21)*'A2'!N14 -> 0 | O83: =AVERAGE('O2'!N21+'A2'!O20,'O2'!N21)*'A2'!O14 -> 0 | P83: =AVERAGE('O2'!O21+'A2'!P20,'O2'!O21)*'A2'!P14 -> 0 | Q83: =AVERAGE('O2'!P21+'A2'!Q20,'O2'!P21)*'A2'!Q14 -> 0
A84: 60 | B84: Total interest income | C84: £m | D84: C | H84: =SUM(H81:H83) -> 0.0180025 | I84: 0.0009 | J84: =SUM(J81:J83) -> 0.0034 | K84: 0.005 | L84: 0.005 | M84: 0.005 | N84: 0.005 | O84: 0.005 | P84: 0.005 | Q84: 0.005
B87: Cash flow calculations adapted for Revenue variance options
B89: Cash flow calcs to avoid circularities | C89: Units | D89: Field Type | E89: Additional Info | F89: =+Baseminus1 -> 2017-18 | G89: 2007-08 | H89: =+Baseplus1 -> 2019-20 | I89: =+Baseplus2 -> 2020-21 | J89: =+Baseplus3 -> 2021-22 | K89: =+Baseplus4 -> 2022-23 | L89: =+Baseplus5 -> 2023-24 | M89: =+Baseplus6 -> 2024-25 | N89: =+Baseplus7 -> 2025-26 | O89: =+Baseplus8 -> 2026-27 | P89: =+Baseplus9 -> 2027-28 | Q89: =+Baseplus10 -> 2028-29
A90: 61 | B90: Revenue inputs or tariff baskets | C90: £m | D90: C | H90: =+('O3'!H25+H84+'O3'!H28+'O3'!H29+'O3'!H45+'O3'!H46+'O3'!H47+'O3'!H50+'O3'!H56+'O3'!H57+'O3'!H59)+('O2'!G19-'O2'!H19)-H49+H62+H51+'O3'!H58 -> -26.43345717 | I90: =+('O3'!I25+I84+'O3'!I28+'O3'!I29+'O3'!I45+'O3'!I46+'O3'!I47+'O3'!I50+'O3'!I56+'O3'!I57+'O3'!I59)+('O2'!H19-'O2'!I19)-I49+I62+I51+'O3'!I58 -> -60.32214398 | J90: =+('O3'!J25+J84+'O3'!J28+'O3'!J29+'O3'!J45+'O3'!J46+'O3'!J47+'O3'!J50+'O3'!J56+'O3'!J57+'O3'!J59)+('O2'!I19-'O2'!J19)-J49+J62+J51+'O3'!J58 -> -433.5584979 | K90: =+('O3'!K25+K84+'O3'!K28+'O3'!K29+'O3'!K45+'O3'!K46+'O3'!K47+'O3'!K50+'O3'!K56+'O3'!K57+'O3'!K59)+('O2'!J19-'O2'!K19)-K49+K62+K51+'O3'!K58 -> -427.8075935 | L90: =+('O3'!L25+L84+'O3'!L28+'O3'!L29+'O3'!L45+'O3'!L46+'O3'!L47+'O3'!L50+'O3'!L56+'O3'!L57+'O3'!L59)+('O2'!K19-'O2'!L19)-L49+L62+L51+'O3'!L58 -> -473.7757758 | M90: =+('O3'!M25+M84+'O3'!M28+'O3'!M29+'O3'!M45+'O3'!M46+'O3'!M47+'O3'!M50+'O3'!M56+'O3'!M57+'O3'!M59)+('O2'!L19-'O2'!M19)-M49+M62+M51+'O3'!M58 -> -495.4215994 | N90: =+('O3'!N25+N84+'O3'!N28+'O3'!N29+'O3'!N45+'O3'!N46+'O3'!N47+'O3'!N50+'O3'!N56+'O3'!N57+'O3'!N59)+('O2'!M19-'O2'!N19)-N49+N62+N51+'O3'!N58 -> -519.0774764 | O90: =+('O3'!O25+O84+'O3'!O28+'O3'!O29+'O3'!O45+'O3'!O46+'O3'!O47+'O3'!O50+'O3'!O56+'O3'!O57+'O3'!O59)+('O2'!N19-'O2'!O19)-O49+O62+O51+'O3'!O58 -> -545.1971138 | P90: =+('O3'!P25+P84+'O3'!P28+'O3'!P29+'O3'!P45+'O3'!P46+'O3'!P47+'O3'!P50+'O3'!P56+'O3'!P57+'O3'!P59)+('O2'!O19-'O2'!P19)-P49+P62+P51+'O3'!P58 -> -817.2619365 | Q90: =+('O3'!Q25+Q84+'O3'!Q28+'O3'!Q29+'O3'!Q45+'O3'!Q46+'O3'!Q47+'O3'!Q50+'O3'!Q56+'O3'!Q57+'O3'!Q59)+('O2'!P19-'O2'!Q19)-Q49+Q62+Q51+'O3'!Q58 -> -1034.803735
A91: 62 | B91: Revenue building blocks | C91: £m | D91: C | J91: ='P11'!J15-'P11'!J9-'P11'!J10+SUM('O3'!J10:J11)+'O3'!J17+J84+'O3'!J28+'O3'!J29+'O3'!J45+'O3'!J46+'O3'!J47+'O3'!J50+'O3'!J56+'O3'!J57+'O3'!J59+'O2'!I19-'O2'!J19-J49+J62+'O3'!J57 -> -65.51601221 | K91: ='P11'!K15-'P11'!K9-'P11'!K10+SUM('O3'!K10:K11)+'O3'!K17+K84+'O3'!K28+'O3'!K29+'O3'!K45+'O3'!K46+'O3'!K47+'O3'!K50+'O3'!K56+'O3'!K57+'O3'!K59+'O2'!J19-'O2'!K19-K49+K62+'O3'!K57 -> -48.37376977 | L91: ='P11'!L15-'P11'!L9-'P11'!L10+SUM('O3'!L10:L11)+'O3'!L17+L84+'O3'!L28+'O3'!L29+'O3'!L45+'O3'!L46+'O3'!L47+'O3'!L50+'O3'!L56+'O3'!L57+'O3'!L59+'O2'!K19-'O2'!L19-L49+L62+'O3'!L57 -> -85.62784805 | M91: ='P11'!M15-'P11'!M9-'P11'!M10+SUM('O3'!M10:M11)+'O3'!M17+M84+'O3'!M28+'O3'!M29+'O3'!M45+'O3'!M46+'O3'!M47+'O3'!M50+'O3'!M56+'O3'!M57+'O3'!M59+'O2'!L19-'O2'!M19-M49+M62+'O3'!M57 -> -98.16629379 | N91: ='P11'!N15-'P11'!N9-'P11'!N10+SUM('O3'!N10:N11)+'O3'!N17+N84+'O3'!N28+'O3'!N29+'O3'!N45+'O3'!N46+'O3'!N47+'O3'!N50+'O3'!N56+'O3'!N57+'O3'!N59+'O2'!M19-'O2'!N19-N49+N62+'O3'!N57 -> -110.1696256 | O91: ='P11'!O15-'P11'!O9-'P11'!O10+SUM('O3'!O10:O11)+'O3'!O17+O84+'O3'!O28+'O3'!O29+'O3'!O45+'O3'!O46+'O3'!O47+'O3'!O50+'O3'!O56+'O3'!O57+'O3'!O59+'O2'!N19-'O2'!O19-O49+O62+'O3'!O57 -> -124.4502022 | P91: ='P11'!P15-'P11'!P9-'P11'!P10+SUM('O3'!P10:P11)+'O3'!P17+P84+'O3'!P28+'O3'!P29+'O3'!P45+'O3'!P46+'O3'!P47+'O3'!P50+'O3'!P56+'O3'!P57+'O3'!P59+'O2'!O19-'O2'!P19-P49+P62+'O3'!P57 -> -234.4395319 | Q91: ='P11'!Q15-'P11'!Q9-'P11'!Q10+SUM('O3'!Q10:Q11)+'O3'!Q17+Q84+'O3'!Q28+'O3'!Q29+'O3'!Q45+'O3'!Q46+'O3'!Q47+'O3'!Q50+'O3'!Q56+'O3'!Q57+'O3'!Q59+'O2'!P19-'O2'!Q19-Q49+Q62+'O3'!Q57 -> -419.1756561
B93: Allowance of embedded debt over Cost of Capital
B95: Cost of capital adjustment | C95: Units | D95: Field Type | E95: Additional Info | F95: =+Baseminus1 -> 2017-18 | G95: 2007-08 | H95: =+Baseplus1 -> 2019-20 | I95: =+Baseplus2 -> 2020-21 | J95: =+Baseplus3 -> 2021-22 | K95: =+Baseplus4 -> 2022-23 | L95: =+Baseplus5 -> 2023-24 | M95: =+Baseplus6 -> 2024-25 | N95: =+Baseplus7 -> 2025-26 | O95: =+Baseplus8 -> 2026-27 | P95: =+Baseplus9 -> 2027-28 | Q95: =+Baseplus10 -> 2028-29
A96: 63 | B96: Cost of Debt (pre-tax) for cost of capital calculations | C96: £m | D96: C | J96: =+J19*'P9'!J7 -> 11.29886095 | K96: =+K19*'P9'!K7 -> 11.29886095 | L96: =+L19*'P9'!L7 -> 11.29886095 | M96: =+M19*'P9'!M7 -> 11.29886095 | N96: =+N19*'P9'!N7 -> 11.29886095 | O96: =+O19*'P9'!O7 -> 11.29886095 | P96: =+P19*'P9'!P7 -> 11.29886095 | Q96: =+Q19*'P9'!Q7 -> 11.29886095
A97: 64 | B97: Weighted average interest rate on embedded debt | C97: % | D97: C | J97: =J49/J19 -> 0.04928516358 | K97: =K49/K19 -> 0.04928516358 | L97: =L49/L19 -> 0.04928516358 | M97: 0.04928516358 | N97: 0.04928516358 | O97: 0.04928516358 | P97: 0.04928516358 | Q97: 0.04928516358
A98: 65 | B98: Notional inflation | C98: % | D98: F | J98: ='A1'!J19 -> 0.034 | K98: ='A1'!K19 -> 0.034 | L98: ='A1'!L19 -> 0.034 | M98: ='A1'!M19 -> 0.034 | N98: ='A1'!N19 -> 0.034 | O98: ='A1'!O19 -> 0.034 | P98: ='A1'!P19 -> 0.034 | Q98: ='A1'!Q19 -> 0.034
A99: 66 | B99: Real weighted average interest rate on embedded debt | C99: % | D99: C | J99: =(1+J97)/(1+J98)-1 -> 0.01478255665 | K99: =(1+K97)/(1+K98)-1 -> 0.01478255665 | L99: 0.01478255665 | M99: 0.01478255665 | N99: 0.01478255665 | O99: 0.01478255665 | P99: 0.01478255665 | Q99: 0.01478255665
A100: 67 | B100: Cost of embedded debt (Real) | C100: £m | D100: C | J100: =J19*J99 -> 13.0464932 | K100: =K19*K99 -> 13.0464932 | L100: =L19*L99 -> 13.0464932 | M100: 13.0464932 | N100: 13.0464932 | O100: 13.0464932 | P100: 13.0464932 | Q100: 13.0464932
A101: 69 | B101: Adjustment to cost of capital | C101: £m | D101: C | J101: =J100-J96 -> 1.747632255 | K101: =K100-K96 -> 1.747632255 | L101: =L100-L96 -> 1.747632255 | M101: 1.747632255 | N101: 1.747632255 | O101: 1.747632255 | P101: 1.747632255 | Q101: 1.747632255
A105: Return to 'Opening' Sheet

Sheet P6
A1: =CHECK!A1 -> Checks = 3
B2: Process sheet: Capital allowances
B4: Capital Allowances Rates | C4: Units | D4: Field Type | E4: Additional Info | F4: =+Baseminus1 -> 2017-18 | G4: =+Baseyear -> 2018-19 | H4: =+Baseplus1 -> 2019-20 | I4: =+Baseplus2 -> 2020-21 | J4: =+Baseplus3 -> 2021-22 | K4: =+Baseplus4 -> 2022-23 | L4: =+Baseplus5 -> 2023-24 | M4: =+Baseplus6 -> 2024-25 | N4: =+Baseplus7 -> 2025-26 | O4: =+Baseplus8 -> 2026-27 | P4: =+Baseplus9 -> 2027-28 | Q4: =+Baseplus10 -> 2028-29
A5: 1 | B5: Plant and Machinery Short life - less than 25 years - allowance rate (reducing balance) | C5: % | D5: B | H5: ='A7'!H9 -> 0.18 | I5: ='A7'!I9 -> 0.18 | J5: ='A7'!J9 -> 0.18 | K5: ='A7'!K9 -> 0.18 | L5: ='A7'!L9 -> 0.18 | M5: ='A7'!M9 -> 0.18 | N5: ='A7'!N9 -> 0.18 | O5: ='A7'!O9 -> 0.18 | P5: ='A7'!P9 -> 0.18 | Q5: ='A7'!Q9 -> 0.18
A6: 1a | B6: Plant and Machinery Short life - New expenditure 09/10 (less than 25 years) - allowance rate (reducing balance) | I6: ='A7'!I10 -> 0
A7: 2 | B7: Plant and Machinery Long life - more than 25 years - allowance rate (reducing balance) | C7: % | D7: B | H7: ='A7'!H11 -> 0.08 | I7: ='A7'!I11 -> 0.08 | J7: ='A7'!J11 -> 0.08 | K7: ='A7'!K11 -> 0.08 | L7: ='A7'!L11 -> 0.08 | M7: ='A7'!M11 -> 0.08 | N7: ='A7'!N11 -> 0.08 | O7: ='A7'!O11 -> 0.08 | P7: ='A7'!P11 -> 0.08 | Q7: ='A7'!Q11 -> 0.08
A8: 3 | B8: Industrial Buildings Allowance rate (straight line) | C8: % | D8: B | H8: 0 | I8: 0 | J8: 0 | K8: 0 | L8: 0 | M8: 0 | N8: 0 | O8: 0 | P8: 0 | Q8: 0
B10: Apportionments of Capital expenditure | C10: Units | D10: Field Type | E10: Additional Info | F10: =+Baseminus1 -> 2017-18 | G10: =+Baseyear -> 2018-19 | H10: =+Baseplus1 -> 2019-20 | I10: =+Baseplus2 -> 2020-21 | J10: =+Baseplus3 -> 2021-22 | K10: =+Baseplus4 -> 2022-23 | L10: =+Baseplus5 -> 2023-24 | M10: =+Baseplus6 -> 2024-25 | N10: =+Baseplus7 -> 2025-26 | O10: =+Baseplus8 -> 2026-27 | P10: =+Baseplus9 -> 2027-28 | Q10: =+Baseplus10 -> 2028-29
A11: 4 | B11: Work in progress - Opening amount | C11: £m | D11: C | H11: ='A7'!H15 -> 0
A12: 5 | B12: Work in progress (portion where capital allowances have not been claimed) - opening | C12: £m | D12: B | H12: ='A7'!H16 -> 0 | I12: =H19 -> -2.331468352e-15 | J12: =I19 -> 2.220446049e-15 | K12: -5.995204333e-15 | L12: -5.995204333e-15 | M12: -5.773159728e-15 | N12: 4.884981308e-15 | O12: -5.773159728e-15 | P12: -3.552713679e-15 | Q12: -2.24265051e-14
A13: 6 | B13: Total capitalised expenditure including IRE (outturn prices) including grants | C13: £m | D13: B | H13: ='A7'!H17 -> 166.708718 | I13: ='A7'!I17 -> 154.412836 | J13: ='A7'!J17 -> 156.1986779 | K13: ='A7'!K17 -> 159.9247586 | L13: ='A7'!L17 -> 163.6228945 | M13: ='A7'!M17 -> 167.8710673 | N13: ='A7'!N17 -> 171.5035809 | O13: ='A7'!O17 -> 177.7972968 | P13: ='A7'!P17 -> 586.4076059 | Q13: ='A7'!Q17 -> 603.6422135
A14: 6a | B14: IFRS Capex to Opex | C14: £m | D14: B | H14: ='A7'!H18 -> 0.9936487805 | I14: ='A7'!I18 -> 0.999448287 | J14: ='A7'!J18 -> 1.036965205 | K14: ='A7'!K18 -> 1.072219017 | L14: ='A7'!L18 -> 1.073221186 | M14: ='A7'!M18 -> 1.109709186 | N14: ='A7'!N18 -> 1.109531589 | O14: ='A7'!O18 -> 1.147251035 | P14: ='A7'!P18 -> 1.186258418 | Q14: ='A7'!Q18 -> 1.226592898
A15: 6b | B15: Infrastucture Renewals Expenditure | C15: £m | D15: B | E15: link to a sheet A7 | H15: ='A7'!H19 -> 34.49424 | I15: ='A7'!I19 -> 32.50537287 | J15: ='A7'!J19 -> 25.6358328 | K15: ='A7'!K19 -> 26.34840641 | L15: ='A7'!L19 -> 27.08078672 | M15: ='A7'!M19 -> 27.83352426 | N15: ='A7'!N19 -> 28.6071849 | O15: ='A7'!O19 -> 29.40235022 | P15: ='A7'!P19 -> 108.9912221 | Q15: ='A7'!Q19 -> 112.6829533
A16: 6c | B16: Software | C16: £m | D16: B | H16: ='A7'!H20 -> 4.699 | I16: ='A7'!I20 -> 3.679 | J16: ='A7'!J20 -> 3.804086 | K16: ='A7'!K20 -> 3.933424924 | L16: ='A7'!L20 -> 4.067161371 | M16: ='A7'!M20 -> 4.205444858 | N16: ='A7'!N20 -> 4.348429983 | O16: ='A7'!O20 -> 4.496276603 | P16: ='A7'!P20 -> 4.649150007 | Q16: ='A7'!Q20 -> 4.807221107
A17: 6d | B17: Non Engineering and Procurement | C17: £m | D17: B | H17: ='A7'!H21 -> 17.578 | I17: ='A7'!I21 -> 18.175652 | J17: ='A7'!J21 -> 18.79362417 | K17: ='A7'!K21 -> 19.43260739 | L17: ='A7'!L21 -> 20.09331604 | M17: ='A7'!M21 -> 20.77648879 | N17: ='A7'!N21 -> 21.48288941 | O17: ='A7'!O21 -> 22.21330764 | P17: ='A7'!P21 -> 22.9685601 | Q17: ='A7'!Q21 -> 23.74949115
A18: 7 | B18: Capitalised expenditure allocated for capital allowances (including Work in progress) | C18: £m | D18: C | H18: =(H12+H13-H15-H16-H17-H14)*'A7'!H23 -> 108.9438292 | I18: =(I12+I13-I15-I16-I17-I14)*'A7'!I23 -> 99.05336284 | J18: =(J12+J13-J15-J16-J17-J14)*'A7'!J23 -> 106.9281697 | K18: =(K12+K13-K15-K16-K17-K14)*'A7'!K23 -> 109.1381009 | L18: =(L12+L13-L15-L16-L17-L14)*'A7'!L23 -> 111.3084092 | M18: =(M12+M13-M15-M16-M17-M14)*'A7'!M23 -> 113.9459002 | N18: =(N12+N13-N15-N16-N17-N14)*'A7'!N23 -> 115.955545 | O18: =(O12+O13-O15-O16-O17-O14)*'A7'!O23 -> 120.5381113 | P18: =(P12+P13-P15-P16-P17-P14)*'A7'!P23 -> 448.6124153 | Q18: =(Q12+Q13-Q15-Q16-Q17-Q14)*'A7'!Q23 -> 461.1759551
A19: 8 | B19: Work in progress (portion where capital allowances have not been claimed) - closing | C19: £m | D19: C | H19: =H13-H15-H16-H17-H18-H14 -> -2.331468352e-15 | I19: =I13-I15-I16-I17-I18-I14 -> 2.220446049e-15 | J19: -5.995204333e-15 | K19: -5.995204333e-15 | L19: -5.773159728e-15 | M19: 4.884981308e-15 | N19: -5.773159728e-15 | O19: -3.552713679e-15 | P19: -2.24265051e-14 | Q19: -2.664535259e-15
A20: 9 | B20: Assets qualifying for 100% first year allowances | C20: £m | D20: C | H20: =H$18*'A7'!H25 -> 0 | I20: =I$18*'A7'!I25 -> 0 | J20: =J$18*'A7'!J25 -> 0 | K20: =K$18*'A7'!K25 -> 0 | L20: =L$18*'A7'!L25 -> 0 | M20: =M$18*'A7'!M25 -> 0 | N20: =N$18*'A7'!N25 -> 0 | O20: =O$18*'A7'!O25 -> 0 | P20: =P$18*'A7'!P25 -> 0 | Q20: =Q$18*'A7'!Q25 -> 0
A21: 10 | B21: Assets to be included in the general (18%) pool | C21: £m | D21: C | H21: =H$18*'A7'!H26 -> 47.02371404 | I21: =I$18*'A7'!I26 -> 42.7546658 | J21: =J$18*'A7'!J26 -> 46.15368959 | K21: =K$18*'A7'!K26 -> 47.10756802 | L21: =L$18*'A7'!L26 -> 48.04434397 | M21: =M$18*'A7'!M26 -> 49.18277121 | N21: =N$18*'A7'!N26 -> 50.05019953 | O21: =O$18*'A7'!O26 -> 52.02818479 | P21: =P$18*'A7'!P26 -> 193.635767 | Q21: =Q$18*'A7'!Q26 -> 199.058601
A22: 11 | B22: Assets qualifying for long life (8%) pool | C22: £m | D22: C | H22: =H$18*'A7'!H27 -> 52.58207267 | I22: =I$18*'A7'!I27 -> 47.8084088 | J22: =J$18*'A7'!J27 -> 51.60920846 | K22: =K$18*'A7'!K27 -> 52.67583847 | L22: =L$18*'A7'!L27 -> 53.72334444 | M22: =M$18*'A7'!M27 -> 54.99633754 | N22: =N$18*'A7'!N27 -> 55.96629876 | O22: =O$18*'A7'!O27 -> 58.17808843 | P22: =P$18*'A7'!P27 -> 216.5241555 | Q22: =Q$18*'A7'!Q27 -> 222.5879865
A23: 12 | B23: Assets qualifying for Industrial Buildings Allowance | C23: £m | D23: C | H23: =H$18*'A7'!H28 -> 0 | I23: =I$18*'A7'!I28 -> 0 | J23: =J$18*'A7'!J28 -> 0 | K23: =K$18*'A7'!K28 -> 0 | L23: =L$18*'A7'!L28 -> 0 | M23: =M$18*'A7'!M28 -> 0 | N23: =N$18*'A7'!N28 -> 0 | O23: =O$18*'A7'!O28 -> 0 | P23: =P$18*'A7'!P28 -> 0 | Q23: =Q$18*'A7'!Q28 -> 0
A24: 13 | B24: Assets purchased under finance leasing | C24: £m | D24: C | H24: =H$18*'A7'!H29 -> 0 | I24: =I$18*'A7'!I29 -> 0 | J24: =J$18*'A7'!J29 -> 0 | K24: =K$18*'A7'!K29 -> 0 | L24: =L$18*'A7'!L29 -> 0 | M24: =M$18*'A7'!M29 -> 0 | N24: =N$18*'A7'!N29 -> 0 | O24: =O$18*'A7'!O29 -> 0 | P24: =P$18*'A7'!P29 -> 0 | Q24: =Q$18*'A7'!Q29 -> 0
A25: 14 | B25: Capitalised revenue expenditure deducted in year of spend | C25: £m | D25: C | H25: =H$18*'A7'!H30 -> 0 | I25: =I$18*'A7'!I30 -> 0 | J25: =J$18*'A7'!J30 -> 0 | K25: =K$18*'A7'!K30 -> 0 | L25: =L$18*'A7'!L30 -> 0 | M25: =M$18*'A7'!M30 -> 0 | N25: =N$18*'A7'!N30 -> 0 | O25: =O$18*'A7'!O30 -> 0 | P25: =P$18*'A7'!P30 -> 0 | Q25: =Q$18*'A7'!Q30 -> 0
A26: 15 | B26: Capitalised revenue expenditure depreciated - non – infrastructure | C26: £m | D26: C | H26: =H$18*'A7'!H31 -> 0 | I26: =I$18*'A7'!I31 -> 0 | J26: =J$18*'A7'!J31 -> 0 | K26: =K$18*'A7'!K31 -> 0 | L26: =L$18*'A7'!L31 -> 0 | M26: =M$18*'A7'!M31 -> 0 | N26: =N$18*'A7'!N31 -> 0 | O26: =O$18*'A7'!O31 -> 0 | P26: =P$18*'A7'!P31 -> 0 | Q26: =Q$18*'A7'!Q31 -> 0
A27: 16 | B27: Capitalised revenue expenditure depreciated – infrastructure | C27: £m | D27: C | H27: =H$18*'A7'!H32 -> 0 | I27: =I$18*'A7'!I32 -> 0 | J27: =J$18*'A7'!J32 -> 0 | K27: =K$18*'A7'!K32 -> 0 | L27: =L$18*'A7'!L32 -> 0 | M27: =M$18*'A7'!M32 -> 0 | N27: =N$18*'A7'!N32 -> 0 | O27: =O$18*'A7'!O32 -> 0 | P27: =P$18*'A7'!P32 -> 0 | Q27: =Q$18*'A7'!Q32 -> 0
A28: 17 | B28: Capitalised revenue expenditure not depreciated | C28: £m | D28: C | H28: =H$18*'A7'!H33 -> 0 | I28: =I$18*'A7'!I33 -> 0 | J28: =J$18*'A7'!J33 -> 0 | K28: =K$18*'A7'!K33 -> 0 | L28: =L$18*'A7'!L33 -> 0 | M28: =M$18*'A7'!M33 -> 0 | N28: =N$18*'A7'!N33 -> 0 | O28: =O$18*'A7'!O33 -> 0 | P28: =P$18*'A7'!P33 -> 0 | Q28: =Q$18*'A7'!Q33 -> 0
A29: 18 | B29: Other assets not qualifying for capital allowances or revenue deductions | C29: £m | D29: C | H29: =H$18*'A7'!H34 -> 9.338042505 | I29: =I$18*'A7'!I34 -> 8.490288244 | J29: =J$18*'A7'!J34 -> 9.165271692 | K29: =K$18*'A7'!K34 -> 9.354694359 | L29: =L$18*'A7'!L34 -> 9.540720788 | M29: =M$18*'A7'!M34 -> 9.766791445 | N29: =N$18*'A7'!N34 -> 9.939046715 | O29: =O$18*'A7'!O34 -> 10.33183811 | P29: =P$18*'A7'!P34 -> 38.45249274 | Q29: =Q$18*'A7'!Q34 -> 39.52936758
A30: 19 | B30: Grants and contributions taxable on receipt | C30: £m | D30: C | H30: =H$18*'A7'!H35 -> 0 | I30: =I$18*'A7'!I35 -> 0 | J30: =J$18*'A7'!J35 -> 0 | K30: =K$18*'A7'!K35 -> 0 | L30: =L$18*'A7'!L35 -> 0 | M30: =M$18*'A7'!M35 -> 0 | N30: =N$18*'A7'!N35 -> 0 | O30: =O$18*'A7'!O35 -> 0 | P30: =P$18*'A7'!P35 -> 0 | Q30: =Q$18*'A7'!Q35 -> 0
A31: 20 | B31: Total | C31: £m | D31: C | H31: =SUM(H20:H30) -> 108.9438292 | I31: =SUM(I20:I30) -> 99.05336284 | J31: 106.9281697 | K31: 109.1381009 | L31: 111.3084092 | M31: 113.9459002 | N31: 115.955545 | O31: 120.5381113 | P31: 448.6124153 | Q31: 461.1759551
B33: 100% Allowances or Capital expenditures deducted from trading profit (£ Million) | C33: Units | D33: Field Type | E33: Additional Info | F33: =+Baseminus1 -> 2017-18 | G33: =+Baseyear -> 2018-19 | H33: =+Baseplus1 -> 2019-20 | I33: =+Baseplus2 -> 2020-21 | J33: =+Baseplus3 -> 2021-22 | K33: =+Baseplus4 -> 2022-23 | L33: =+Baseplus5 -> 2023-24 | M33: =+Baseplus6 -> 2024-25 | N33: =+Baseplus7 -> 2025-26 | O33: =+Baseplus8 -> 2026-27 | P33: =+Baseplus9 -> 2027-28 | Q33: =+Baseplus10 -> 2028-29
A34: 21 | B34: Allowances | C34: £m | D34: B | H34: =-H20 -> 0 | I34: =-I20 -> 0 | J34: 0 | K34: 0 | L34: 0 | M34: 0 | N34: 0 | O34: 0 | P34: 0 | Q34: 0
B36: Short life assets (18%) pool (£ Million) | C36: Units | D36: Field Type | E36: Additional Info | F36: =+Baseminus1 -> 2017-18 | G36: =+Baseyear -> 2018-19 | H36: =+Baseplus1 -> 2019-20 | I36: =+Baseplus2 -> 2020-21 | J36: =+Baseplus3 -> 2021-22 | K36: =+Baseplus4 -> 2022-23 | L36: =+Baseplus5 -> 2023-24 | M36: =+Baseplus6 -> 2024-25 | N36: =+Baseplus7 -> 2025-26 | O36: =+Baseplus8 -> 2026-27 | P36: =+Baseplus9 -> 2027-28 | Q36: =+Baseplus10 -> 2028-29
A37: 22 | B37: Opening Balance | C37: £m | D37: B | H37: ='A7'!H39 -> 227.9500988 | I37: =+H40 -> 229.3317065 | J37: =+I40 -> 226.1276053 | K37: 226.3900123 | L37: 227.4934243 | M37: 229.2760423 | N37: 231.7846919 | O37: 234.6703235 | P37: 238.7797237 | Q37: 358.3930053
A38: 23 | B38: Additions | C38: £m | D38: B | H38: =H21+H16 -> 51.72271404 | I38: =I21+I16 -> 46.4336658 | J38: 49.95777559 | K38: 51.04099294 | L38: 52.11150534 | M38: 53.38821606 | N38: 54.39862951 | O38: 56.5244614 | P38: 198.284917 | Q38: 203.8658221
A39: 24 | B39: Allowances | C39: £m | D39: C | H39: =-(H37+H38)*H5 -> -50.34110631 | I39: =-(I37+I38)*I5 -> -49.63776702 | J39: =-(J37+J38)*J5 -> -49.69536856 | K39: -49.93758095 | L39: -50.32888734 | M39: -50.87956651 | N39: -51.51299785 | O39: -52.41506129 | P39: -78.67163532 | Q39: -101.2065889
A40: 25 | B40: Closing Balance | C40: £m | D40: C | H40: =SUM(H37:H39) -> 229.3317065 | I40: =SUM(I37:I39) -> 226.1276053 | J40: 226.3900123 | K40: 227.4934243 | L40: 229.2760423 | M40: 231.7846919 | N40: 234.6703235 | O40: 238.7797237 | P40: 358.3930053 | Q40: 461.0522385
B42: Long Life Assets (8%) pool (Million) | C42: Units | D42: Field Type | E42: Additional Info | F42: =+Baseminus1 -> 2017-18 | G42: =+Baseyear -> 2018-19 | H42: =+Baseplus1 -> 2019-20 | I42: =+Baseplus2 -> 2020-21 | J42: =+Baseplus3 -> 2021-22 | K42: =+Baseplus4 -> 2022-23 | L42: =+Baseplus5 -> 2023-24 | M42: =+Baseplus6 -> 2024-25 | N42: =+Baseplus7 -> 2025-26 | O42: =+Baseplus8 -> 2026-27 | P42: =+Baseplus9 -> 2027-28 | Q42: =+Baseplus10 -> 2028-29
A43: 26 | B43: Opening Balance | C43: £m | D43: B | H43: ='A7'!H40 -> 713.007902 | I43: =+H47 -> 701.0675197 | J43: =+I47 -> 685.8159402 | K43: 675.0871544 | L43: 666.172614 | M43: 658.9160763 | N43: 653.6232093 | O43: 649.6532425 | P43: 648.0517896 | Q43: 792.9686089
A44: 27 | B44: Additions | C44: £m | D44: B | H44: =H22 -> 52.58207267 | I44: =I22 -> 47.8084088 | J44: 51.60920846 | K44: 52.67583847 | L44: 53.72334444 | M44: 54.99633754 | N44: 55.96629876 | O44: 58.17808843 | P44: 216.5241555 | Q44: 222.5879865
B45: Customer contributions less infrastructure receipts | C45: £m | D45: B | H45: =-'P1'!H15+'P1'!H16 -> -3.560062 | I45: =-'P1'!I15+'P1'!I16 -> -3.423819593 | J45: =-'P1'!J15+'P1'!J16 -> -3.634763425 | K45: =-'P1'!K15+'P1'!K16 -> -3.662325439 | L45: =-'P1'!L15+'P1'!L16 -> -3.682832044 | M45: =-'P1'!M15+'P1'!M16 -> -3.452403731 | N45: =-'P1'!N15+'P1'!N16 -> -3.44467922 | O45: =-'P1'!O15+'P1'!O16 -> -3.427211802 | P45: =-'P1'!P15+'P1'!P16 -> -2.653544238 | Q45: =-'P1'!Q15+'P1'!Q16 -> -2.590091564
A46: 28 | B46: Allowances | C46: £m | D46: C | H46: =-(H43+H44+H45)*H7 -> -60.96239302 | I46: =-(I43+I44+I45)*I7 -> -59.63616871 | J46: -58.70323082 | K46: -57.92805339 | L46: -57.29705011 | M46: -56.83680081 | N46: -56.49158631 | O46: -56.35232953 | P46: -68.95379207 | Q46: -81.0373203
A47: 29 | B47: Closing Balance | C47: £m | D47: C | H47: =SUM(H43:H46) -> 701.0675197 | I47: =SUM(I43:I46) -> 685.8159402 | J47: 675.0871544 | K47: 666.172614 | L47: 658.9160763 | M47: 653.6232093 | N47: 649.6532425 | O47: 648.0517896 | P47: 792.9686089 | Q47: 931.9291835
B49: Industrial Buildings (straight line) (£ Million) | C49: Units | D49: Field Type | E49: Additional Info | F49: =+Baseminus1 -> 2017-18 | G49: =+Baseyear -> 2018-19 | H49: =+Baseplus1 -> 2019-20 | I49: =+Baseplus2 -> 2020-21 | J49: =+Baseplus3 -> 2021-22 | K49: =+Baseplus4 -> 2022-23 | L49: =+Baseplus5 -> 2023-24 | M49: =+Baseplus6 -> 2024-25 | N49: =+Baseplus7 -> 2025-26 | O49: =+Baseplus8 -> 2026-27 | P49: =+Baseplus9 -> 2027-28 | Q49: =+Baseplus10 -> 2028-29
A50: 30 | B50: IBA claims (Base year 2007-08) | C50: £m | D50: B | H50: =-'A7'!H46 -> 0 | I50: =-'A7'!I46 -> 0 | J50: =-'A7'!J46 -> 0 | K50: =-'A7'!K46 -> 0 | L50: =-'A7'!L46 -> 0 | M50: =-'A7'!M46 -> 0 | N50: =-'A7'!N46 -> 0 | O50: =-'A7'!O46 -> 0 | P50: =-'A7'!P46 -> 0 | Q50: =-'A7'!Q46 -> 0
A51: 31 | B51: New IB assets | C51: £m | D51: B | H51: =H23 -> 0 | I51: =I23 -> 0 | J51: 0 | K51: 0 | L51: 0 | M51: 0 | N51: 0 | O51: 0 | P51: 0 | Q51: 0
A52: 32 | B52: Allowances on new IBA assets | C52: £m | D52: C | H52: =-SUM($H$51:H51)*H8 -> 0 | I52: =-SUM($H$51:I51)*I8 -> 0 | J52: =-SUM($H$51:J51)*J8 -> 0 | K52: =-SUM($H$51:K51)*K8 -> 0 | L52: =-SUM($H$51:L51)*L8 -> 0 | M52: =-SUM($H$51:M51)*M8 -> 0 | N52: =-SUM($H$51:N51)*N8 -> 0 | O52: =-SUM($H$51:O51)*O8 -> 0 | P52: =-SUM($H$51:P51)*P8 -> 0 | Q52: =-SUM($H$51:Q51)*Q8 -> 0
A53: 33 | B53: Total Industrial Building Allowances | C53: £m | D53: C | H53: =+H50+H52 -> 0 | I53: =+I50+I52 -> 0 | J53: 0 | K53: 0 | L53: 0 | M53: 0 | N53: 0 | O53: 0 | P53: 0 | Q53: 0
B55: Total Capital Allowances (incl. IBA) (£ Million) | C55: Units | D55: Field Type | E55: Additional Info | F55: =+Baseminus1 -> 2017-18 | G55: =+Baseyear -> 2018-19 | H55: =+Baseplus1 -> 2019-20 | I55: =+Baseplus2 -> 2020-21 | J55: =+Baseplus3 -> 2021-22 | K55: =+Baseplus4 -> 2022-23 | L55: =+Baseplus5 -> 2023-24 | M55: =+Baseplus6 -> 2024-25 | N55: =+Baseplus7 -> 2025-26 | O55: =+Baseplus8 -> 2026-27 | P55: =+Baseplus9 -> 2027-28 | Q55: =+Baseplus10 -> 2028-29
A56: 34 | B56: Total Allowances | C56: £m | D56: C | H56: =+H34+H46+H53+H39 -> -111.3034993 | I56: =+I34+I46+I53+I39 -> -109.2739357 | J56: =+J34+J46+J53+J39 -> -108.3985994 | K56: =+K34+K46+K53+K39 -> -107.8656343 | L56: -107.6259375 | M56: -107.7163673 | N56: -108.0045842 | O56: -108.7673908 | P56: -147.6254274 | Q56: -182.2439092
B58: Infrastucture Renewals Expenditure | C58: Units | D58: Field Type | E58: Additional Info | F58: =+Baseminus1 -> 2017-18 | G58: =+Baseyear -> 2018-19 | H58: =+Baseplus1 -> 2019-20 | I58: =+Baseplus2 -> 2020-21 | J58: =+Baseplus3 -> 2021-22 | K58: =+Baseplus4 -> 2022-23 | L58: =+Baseplus5 -> 2023-24 | M58: =+Baseplus6 -> 2024-25 | N58: =+Baseplus7 -> 2025-26 | O58: =+Baseplus8 -> 2026-27 | P58: =+Baseplus9 -> 2027-28 | Q58: =+Baseplus10 -> 2028-29
A59: 34a | B59: Opening Balance | C59: £m | H59: ='A7'!G48*0 -> 0 | I59: =H62 -> 33.16558531 | J59: =I62 -> 64.0247948 | K59: 87.73742577 | L59: 111.883477 | M59: 136.5121321 | N59: 161.6035877 | O59: 187.2102286 | P59: 213.3106746 | Q59: 317.9044818
A60: 34b | B60: Allowances | C60: £m | H60: =-SUM(H59+H61)/'A7'!H50 -> -0.3350059122 | I60: =-SUM(I59+I61)/'A7'!I50 -> -0.6467150989 | J60: =-SUM(J59+J61)/'A7'!J50 -> -0.8862366239 | K60: =-SUM(K59+K61)/'A7'!K50 -> -1.130136132 | L60: =-SUM(L59+L61)/'A7'!L50 -> -1.378910426 | M60: =-SUM(M59+M61)/'A7'!M50 -> -1.632359472 | N60: =-SUM(N59+N61)/'A7'!N50 -> -1.891012411 | O60: =-SUM(O59+O61)/'A7'!O50 -> -2.154653278 | P60: =-SUM(P59+P61)/'A7'!P50 -> -3.211156382 | Q60: =-SUM(Q59+Q61)/'A7'!Q50 -> -4.293608422
A61: 34c | B61: Additions | C61: £m | H61: =+H15-H14 -> 33.50059122 | I61: =+I15-I14 -> 31.50592459 | J61: 24.5988676 | K61: 25.27618739 | L61: 26.00756553 | M61: 26.72381508 | N61: 27.49765332 | O61: 28.25509918 | P61: 107.8049636 | Q61: 111.4563604
A62: 34d | B62: Closing Balance | C62: £m | H62: =SUM(H59:H61) -> 33.16558531 | I62: =SUM(I59:I61) -> 64.0247948 | J62: =SUM(J59:J61) -> 87.73742577 | K62: 111.883477 | L62: 136.5121321 | M62: 161.6035877 | N62: 187.2102286 | O62: 213.3106746 | P62: 317.9044818 | Q62: 425.0672338
B64: Capitalised Revenue Expenduture: Non-Infrastructure Assets (£ Million) | C64: Units | D64: Field Type | E64: Additional Info | F64: =+Baseminus1 -> 2017-18 | G64: =+Baseyear -> 2018-19 | H64: =+Baseplus1 -> 2019-20 | I64: =+Baseplus2 -> 2020-21 | J64: =+Baseplus3 -> 2021-22 | K64: =+Baseplus4 -> 2022-23 | L64: =+Baseplus5 -> 2023-24 | M64: =+Baseplus6 -> 2024-25 | N64: =+Baseplus7 -> 2025-26 | O64: =+Baseplus8 -> 2026-27 | P64: =+Baseplus9 -> 2027-28 | Q64: =+Baseplus10 -> 2028-29
A65: 35 | B65: Opening Non-Infrastructure Assets (capitalised after 31/03/13) | C65: £m | D65: B | H65: ='A7'!G47*0 -> 0 | I65: =H68 -> 17.28503333 | J65: =I68 -> 34.86479113 | K65: 52.74929403 | L65: 70.94890336 | M65: 89.47433274 | N65: 108.3366601 | O65: 127.5473398 | P65: 147.1182161 | Q65: 167.0615354
A66: 36 | B66: Depreciation of new capitalised Assets | C66: £m | D66: B | H66: =-H93 -> -0.2929666667 | I66: =-I93 -> -0.5958942 | J66: =-J93 -> -0.9091212695 | K66: -1.232998059 | L66: -1.56788666 | M66: -1.914161473 | N66: -2.27220963 | O66: -2.642431424 | P66: -3.025240759 | Q66: -3.421065611
A67: 37 | B67: Capital Additions | C67: £m | D67: B | H67: =+H17 -> 17.578 | I67: =+I17 -> 18.175652 | J67: 18.79362417 | K67: 19.43260739 | L67: 20.09331604 | M67: 20.77648879 | N67: 21.48288941 | O67: 22.21330764 | P67: 22.9685601 | Q67: 23.74949115
A68: 38 | B68: Closing Capitalised Non-Infrastructure Assets | C68: £m | D68: C | H68: =SUM(H65:H67) -> 17.28503333 | I68: =SUM(I65:I67) -> 34.86479113 | J68: 52.74929403 | K68: 70.94890336 | L68: 89.47433274 | M68: 108.3366601 | N68: 127.5473398 | O68: 147.1182161 | P68: 167.0615354 | Q68: 187.3899609
B70: Summary of Depreciation Calculations for Capitalised Revenue Expenditure: NI (£m) | C70: Units | D70: Field Type | E70: Additional Info | F70: =+Baseminus1 -> 2017-18 | G70: =+Baseyear -> 2018-19 | H70: =+Baseplus1 -> 2019-20 | I70: =+Baseplus2 -> 2020-21 | J70: =+Baseplus3 -> 2021-22 | K70: =+Baseplus4 -> 2022-23 | L70: =+Baseplus5 -> 2023-24 | M70: =+Baseplus6 -> 2024-25 | N70: =+Baseplus7 -> 2025-26 | O70: =+Baseplus8 -> 2026-27 | P70: =+Baseplus9 -> 2027-28 | Q70: =+Baseplus10 -> 2028-29
A71: 39 | B71: Non-Infrastructure: Depreciation of capitalised Assets (capitalised before 31/03/13) | C71: £m | D71: B | H71: =-'A7'!H47 -> -4.432935105 | I71: =-'A7'!I47 -> -4.432935105 | J71: =-'A7'!J47 -> -4.432935105 | K71: =-'A7'!K47 -> -4.432935105 | L71: =-'A7'!L47 -> -4.432935105 | M71: =-'A7'!M47 -> -4.432935105 | N71: =-'A7'!N47 -> -4.432935105 | O71: =-'A7'!O47 -> -4.432935105 | P71: =-'A7'!P47 -> -4.432935105 | Q71: =-'A7'!Q47 -> -4.432935105
A72: 40 | B72: Non-Infrastructure: Depreciation of capitalised Assets (capitalised after 31/03/13) | C72: £m | D72: B | H72: =H66 -> -0.2929666667 | I72: =I66 -> -0.5958942 | J72: -0.9091212695 | K72: -1.232998059 | L72: -1.56788666 | M72: -1.914161473 | N72: -2.27220963 | O72: -2.642431424 | P72: -3.025240759 | Q72: -3.421065611
A73: 41 | B73: Total Depreciation | C73: £m | D73: C | H73: =H71+H72 -> -4.725901772 | I73: =I71+I72 -> -5.028829305 | J73: -5.342056375 | K73: -5.665933165 | L73: -6.000821765 | M73: -6.347096578 | N73: -6.705144735 | O73: -7.075366529 | P73: -7.458175864 | Q73: -7.854000717
B75: Depreciation of Capitalised revenue Expenditure - Non Infrastructure Assets (£m) | C75: Units | D75: Field Type | E75: Additional Info | F75: =+Baseminus1 -> 2017-18 | G75: =+Baseyear -> 2018-19 | H75: =+Baseplus1 -> 2019-20 | I75: =+Baseplus2 -> 2020-21 | J75: =+Baseplus3 -> 2021-22 | K75: =+Baseplus4 -> 2022-23 | L75: =+Baseplus5 -> 2023-24 | M75: =+Baseplus6 -> 2024-25 | N75: =+Baseplus7 -> 2025-26 | O75: =+Baseplus8 -> 2026-27 | P75: =+Baseplus9 -> 2027-28 | Q75: =+Baseplus10 -> 2028-29
A76: 42 | B76: Capital Additions | C76: £m | D76: B | H76: =H67 -> 17.578 | I76: =I67 -> 18.175652 | J76: 18.79362417 | K76: 19.43260739 | L76: 20.09331604 | M76: 20.77648879 | N76: 21.48288941 | O76: 22.21330764 | P76: 22.9685601 | Q76: 23.74949115
A77: 43 | B77: Asset Life | C77: £m | D77: C | H77: =ROUND('A7'!H49,0) -> 60 | I77: =ROUND('A7'!I49,0) -> 60 | J77: =ROUND('A7'!J49,0) -> 60 | K77: =ROUND('A7'!K49,0) -> 60 | L77: =ROUND('A7'!L49,0) -> 60 | M77: =ROUND('A7'!M49,0) -> 60 | N77: =ROUND('A7'!N49,0) -> 60 | O77: =ROUND('A7'!O49,0) -> 60 | P77: =ROUND('A7'!P49,0) -> 60 | Q77: =ROUND('A7'!Q49,0) -> 60
A78: 44 | B78: Annual depreciation | C78: £m | D78: C | H78: =H76/H77 -> 0.2929666667 | I78: =I76/I77 -> 0.3029275333 | J78: 0.3132270695 | K78: 0.3238767898 | L78: 0.3348886007 | M78: 0.3462748131 | N78: 0.3580481568 | O78: 0.3702217941 | P78: 0.3828093351 | Q78: 0.3958248525
A79: 45 | B79: 2013-14 | C79: £m | D79: C | I79: =IF(COLUMN(I78)-COLUMN($H$78)<=$H$77,$H$78,0) -> 0.2929666667 | J79: =IF(COLUMN(J78)-COLUMN($H$78)<=$H$77,$H$78,0) -> 0.2929666667 | K79: 0.2929666667 | L79: 0.2929666667 | M79: 0.2929666667 | N79: 0.2929666667 | O79: 0.2929666667 | P79: 0.2929666667 | Q79: 0.2929666667
A80: 46 | B80: 2014-15 | C80: £m | D80: C | J80: =IF(COLUMN(J79)-COLUMN($I$78)<=$I$77,$I$78,0) -> 0.3029275333 | K80: =IF(COLUMN(K79)-COLUMN($I$78)<=$I$77,$I$78,0) -> 0.3029275333 | L80: 0.3029275333 | M80: 0.3029275333 | N80: 0.3029275333 | O80: 0.3029275333 | P80: 0.3029275333 | Q80: 0.3029275333
A81: 47 | B81: 2015-16 | C81: £m | D81: C | K81: =IF(COLUMN(K80)-COLUMN($J$78)<=$J$77,$J$78,0) -> 0.3132270695 | L81: =IF(COLUMN(L80)-COLUMN($J$78)<=$J$77,$J$78,0) -> 0.3132270695 | M81: 0.3132270695 | N81: 0.3132270695 | O81: 0.3132270695 | P81: 0.3132270695 | Q81: 0.3132270695
A82: 48 | B82: 2016-17 | C82: £m | D82: C | L82: =IF(COLUMN(L81)-COLUMN($K$78)<=$K$77,$K$78,0) -> 0.3238767898 | M82: 0.3238767898 | N82: 0.3238767898 | O82: 0.3238767898 | P82: 0.3238767898 | Q82: 0.3238767898
A83: 49 | B83: 2017-18 | C83: £m | D83: C | M83: =IF(COLUMN(M82)-COLUMN($L$78)<=$L$77,$L$78,0) -> 0.3348886007 | N83: =IF(COLUMN(N82)-COLUMN($L$78)<=$L$77,$L$78,0) -> 0.3348886007 | O83: =IF(COLUMN(O82)-COLUMN($L$78)<=$L$77,$L$78,0) -> 0.3348886007 | P83: =IF(COLUMN(P82)-COLUMN($L$78)<=$L$77,$L$78,0) -> 0.3348886007 | Q83: =IF(COLUMN(Q82)-COLUMN($L$78)<=$L$77,$L$78,0) -> 0.3348886007
A84: 50 | B84: 2018-19 | C84: £m | D84: C | N84: =IF(COLUMN(N83)-COLUMN($M$78)<=$M$77,$M$78,0) -> 0.3462748131 | O84: =IF(COLUMN(O83)-COLUMN($M$78)<=$M$77,$M$78,0) -> 0.3462748131 | P84: =IF(COLUMN(P83)-COLUMN($M$78)<=$M$77,$M$78,0) -> 0.3462748131 | Q84: =IF(COLUMN(Q83)-COLUMN($M$78)<=$M$77,$M$78,0) -> 0.3462748131
A85: 51 | B85: 2019-20 | C85: £m | D85: C | O85: =IF(COLUMN(O84)-COLUMN($N$78)<=$N$77,$N$78,0) -> 0.3580481568 | P85: =IF(COLUMN(P84)-COLUMN($N$78)<=$N$77,$N$78,0) -> 0.3580481568 | Q85: =IF(COLUMN(Q84)-COLUMN($N$78)<=$N$77,$N$78,0) -> 0.3580481568
A86: 52 | B86: 2020-21 | C86: £m | D86: C | P86: =IF(COLUMN(P85)-COLUMN($O$78)<=$O$77,$O$78,0) -> 0.3702217941 | Q86: =IF(COLUMN(Q85)-COLUMN($O$78)<=$O$77,$O$78,0) -> 0.3702217941
A87: 53 | B87: 2021-22 | C87: £m | D87: C | Q87: =IF(COLUMN(Q86)-COLUMN($P$78)<=$P$77,$P$78,0) -> 0.3828093351
A88: 54 | B88: 2022-23 | C88: £m | D88: C
A89: 55 | B89: 2023-24 | C89: £m | D89: C
A90: 56 | B90: 2024-25 | C90: £m | D90: C
A91: 57 | B91: 2025-26 | C91: £m | D91: C
A92: 58 | B92: 2026-27 | C92: £m | D92: C
A93: 59 | B93: Total | C93: £m | D93: C | H93: =SUM(H78:H92) -> 0.2929666667 | I93: =SUM(I78:I92) -> 0.5958942 | J93: 0.9091212695 | K93: 1.232998059 | L93: 1.56788666 | M93: 1.914161473 | N93: 2.27220963 | O93: 2.642431424 | P93: 3.025240759 | Q93: 3.421065611
A97: Return to 'Opening' Sheet

Sheet P7
A1: =CHECK!A1 -> Checks = 3
B2: Process sheet: Tax
B4: Corporation Tax Assumptions | C4: Units | D4: Field Type | E4: Additional Info | F4: =+Baseminus1 -> 2017-18 | G4: =+Baseyear -> 2018-19 | H4: =+Baseplus1 -> 2019-20 | I4: =+Baseplus2 -> 2020-21 | J4: =+Baseplus3 -> 2021-22 | K4: =+Baseplus4 -> 2022-23 | L4: =+Baseplus5 -> 2023-24 | M4: =+Baseplus6 -> 2024-25 | N4: =+Baseplus7 -> 2025-26 | O4: =+Baseplus8 -> 2026-27 | P4: =+Baseplus9 -> 2027-28 | Q4: =+Baseplus10 -> 2028-29
A5: 1 | B5: Corporate Tax Rate | C5: % | D5: B | H5: ='A7'!H6 -> 0.23 | I5: ='A7'!I6 -> 0.21 | J5: ='A7'!J6 -> 0.2 | K5: ='A7'!K6 -> 0.2 | L5: ='A7'!L6 -> 0.2 | M5: ='A7'!M6 -> 0.2 | N5: ='A7'!N6 -> 0.2 | O5: ='A7'!O6 -> 0.2 | P5: ='A7'!P6 -> 0.2 | Q5: ='A7'!Q6 -> 0.2
B7: Trading profit/loss calculation (before losses brought forward)* | C7: Units | D7: Field Type | E7: Additional Info | F7: =+Baseminus1 -> 2017-18 | G7: =+Baseyear -> 2018-19 | H7: =+Baseplus1 -> 2019-20 | I7: =+Baseplus2 -> 2020-21 | J7: =+Baseplus3 -> 2021-22 | K7: =+Baseplus4 -> 2022-23 | L7: =+Baseplus5 -> 2023-24 | M7: =+Baseplus6 -> 2024-25 | N7: =+Baseplus7 -> 2025-26 | O7: =+Baseplus8 -> 2026-27 | P7: =+Baseplus9 -> 2027-28 | Q7: =+Baseplus10 -> 2028-29
A8: 2 | B8: Historic Cost Operating Profit | C8: £m | D8: C | H8: ='O1'!H17+'O1'!H18 -> 109.0545994 | I8: ='O1'!I17+'O1'!I18 -> 102.6965914 | J8: =IF('E6'!$C$13=2,'P7'!J104,'O1'!J17+'O1'!J18) -> -271.2721475 | K8: =IF('E6'!$C$13=2,'P7'!K104,'O1'!K17+'O1'!K18) -> -277.1260337 | L8: =IF('E6'!$C$13=2,'P7'!L104,'O1'!L17+'O1'!L18) -> -281.7733391 | M8: =IF('E6'!$C$13=2,'P7'!M104,'O1'!M17+'O1'!M18) -> -286.4153683 | N8: =IF('E6'!$C$13=2,'P7'!N104,'O1'!N17+'O1'!N18) -> -294.5779388 | O8: =IF('E6'!$C$13=2,'P7'!O104,'O1'!O17+'O1'!O18) -> -302.9827903 | P8: =IF('E6'!$C$13=2,'P7'!P104,'O1'!P17+'O1'!P18) -> -403.3624986 | Q8: =IF('E6'!$C$13=2,'P7'!Q104,'O1'!Q17+'O1'!Q18) -> -431.9671518
A9: 3 | B9: plus HC Depreciation | C9: £m | D9: B | H9: =+'P2'!H41 -> 45.35673743 | I9: =+'P2'!I41 -> 44.76833728 | J9: =+'P2'!J41 -> 48.98643221 | K9: =+'P2'!K41 -> 50.1410335 | L9: =+'P2'!L41 -> 53.00980408 | M9: =+'P2'!M41 -> 55.70807678 | N9: =+'P2'!N41 -> 59.75256428 | O9: =+'P2'!O41 -> 64.15815475 | P9: =+'P2'!P41 -> 75.44152762 | Q9: =+'P2'!Q41 -> 93.03010669
A10: 4 | B10: plus infrastructure renewals charge | C10: £m | D10: B | H10: =+'P2'!H70 -> 33.70195112 | I10: =+'P2'!I70 -> 32.78304754 | J10: =+'P2'!J70 -> 25.6358328 | K10: =+'P2'!K70 -> 26.34840641 | L10: =+'P2'!L70 -> 27.08078672 | M10: =+'P2'!M70 -> 27.83352426 | N10: =+'P2'!N70 -> 28.6071849 | O10: =+'P2'!O70 -> 29.40235022 | P10: =+'P2'!P70 -> 108.9912221 | Q10: =+'P2'!Q70 -> 112.6829533
A11: 5 | B11: plus amortisation of PPP | C11: £m | D11: B | H11: =-'A5'!H14 -> 3.2344185 | I11: =-'A5'!I14 -> 3.23077713 | J11: =-'A5'!J14 -> 3.22007257 | K11: =-'A5'!K14 -> 3.21548763 | L11: =-'A5'!L14 -> 3.20861435 | M11: =-'A5'!M14 -> 3.20164339 | N11: =-'A5'!N14 -> 3.19495596 | O11: =-'A5'!O14 -> 3.19155568 | P11: =-'A5'!P14 -> 3.19155568 | Q11: =-'A5'!Q14 -> 3.19155568
A12: 6 | B12: minus amortisation of grants | C12: £m | D12: B | H12: =-'P3'!H90 -> -0.8243980913 | I12: =-'P3'!I90 -> -0.8618472688 | J12: =-'P3'!J90 -> -0.8945312621 | K12: =-'P3'!K90 -> -0.9053366751 | L12: =-'P3'!L90 -> -0.9300742056 | M12: =-'P3'!M90 -> -0.9397036478 | N12: =-'P3'!N90 -> -0.96154642 | O12: =-'P3'!O90 -> -0.9795707238 | P12: =-'P3'!P90 -> -1.026952827 | Q12: =-'P3'!Q90 -> -1.072624904
A13: 7 | B13: minus Capital expenditure allowable as a deduction from profits | C13: £m | D13: B | H13: =-'P6'!H25 -> 0 | I13: =-'P6'!I25 -> 0 | J13: =-'P6'!J25 -> 0 | K13: =-'P6'!K25 -> 0 | L13: =-'P6'!L25 -> 0 | M13: =-'P6'!M25 -> 0 | N13: =-'P6'!N25 -> 0 | O13: =-'P6'!O25 -> 0 | P13: =-'P6'!P25 -> 0 | Q13: =-'P6'!Q25 -> 0
A14: 7a | B14: IFRS capex to opex repairs | C14: £m | D14: B | H14: =-'P6'!H14 -> -0.9936487805 | I14: =-'P6'!I14 -> -0.999448287 | J14: =-'P6'!J14 -> -1.036965205 | K14: =-'P6'!K14 -> -1.072219017 | L14: =-'P6'!L14 -> -1.073221186 | M14: =-'P6'!M14 -> -1.109709186 | N14: =-'P6'!N14 -> -1.109531589 | O14: =-'P6'!O14 -> -1.147251035 | P14: =-'P6'!P14 -> -1.186258418 | Q14: =-'P6'!Q14 -> -1.226592898
A15: 7b | B15: Customer Contributions (infrastructure receipts) | C15: £m | D15: B | H15: =+'P1'!H16 -> 2.334772 | I15: =+'P1'!I16 -> 2.584150052 | J15: =+'P1'!J16 -> 2.760451738 | K15: =+'P1'!K16 -> 2.95032704 | L15: =+'P1'!L16 -> 3.154650618 | M15: =+'P1'!M16 -> 3.373124062 | N15: =+'P1'!N16 -> 3.612916518 | O15: =+'P1'!O16 -> 3.870342191 | P15: =+'P1'!P16 -> 4.145149553 | Q15: =+'P1'!Q16 -> 4.439757816
A16: 7c | B16: PPP Opex (IFRS) Omega and kinnegar | C16: £m | D16: B | H16: ='A7'!H57 -> -8.49292553 | I16: ='A7'!I57 -> -8.20577711 | J16: ='A7'!J57 -> -7.83688905 | K16: ='A7'!K57 -> -7.10420277 | L16: ='A7'!L57 -> -6.49956238 | M16: ='A7'!M57 -> -5.98727536 | N16: ='A7'!N57 -> -5.35848739 | O16: ='A7'!O57 -> -4.63239058 | P16: ='A7'!P57 -> -4.63239058 | Q16: ='A7'!Q57 -> -4.63239058
A17: 8 | B17: minus Depreciation Allowed as a deduction for tax purposes | C17: £m | D17: C | H17: ='P6'!H73+'P6'!H60-'A7'!H48 -> -6.943513729 | I17: ='P6'!I73+'P6'!I60-'A7'!I48 -> -7.558150449 | J17: ='P6'!J73+'P6'!J60-'A7'!J48 -> -8.110899043 | K17: ='P6'!K73+'P6'!K60-'A7'!K48 -> -8.678675341 | L17: ='P6'!L73+'P6'!L60-'A7'!L48 -> -9.262338235 | M17: ='P6'!M73+'P6'!M60-'A7'!M48 -> -9.862062095 | N17: ='P6'!N73+'P6'!N60-'A7'!N48 -> -10.47876319 | O17: ='P6'!O73+'P6'!O60-'A7'!O48 -> -11.11262585 | P17: ='P6'!P73+'P6'!P60-'A7'!P48 -> -12.55193829 | Q17: ='P6'!Q73+'P6'!Q60-'A7'!Q48 -> -14.03021518
A18: 9 | B18: minus net interest payable | C18: £m | D18: C | H18: ='O1'!H19 -> -51.04294106 | I18: ='O1'!I19 -> -53.01536313 | J18: =+'P5'!J84+'P5'!J65 -> -64.8277498 | K18: =+'P5'!K84+'P5'!K65 -> -85.49507607 | L18: =+'P5'!L84+'P5'!L65 -> -107.107519 | M18: =+'P5'!M84+'P5'!M65 -> -130.325527 | N18: =+'P5'!N84+'P5'!N65 -> -154.6553823 | O18: =+'P5'!O84+'P5'!O65 -> -180.1670868 | P18: =+'P5'!P84+'P5'!P65 -> -212.9602491 | Q18: =+'P5'!Q84+'P5'!Q65 -> -257.4062125
A19: 10 | B19: plus revenue expenditure not allowable | C19: £m | D19: B | H19: ='A7'!H53 -> 0 | I19: ='A7'!I53 -> 0 | J19: ='A7'!J53 -> 0 | K19: ='A7'!K53 -> 0 | L19: ='A7'!L53 -> 0 | M19: ='A7'!M53 -> 0 | N19: ='A7'!N53 -> 0 | O19: ='A7'!O53 -> 0 | P19: ='A7'!P53 -> 0 | Q19: ='A7'!Q53 -> 0
A20: 11 | B20: plus Change in General provision | C20: £m | D20: B | H20: =+'A7'!H56 -> 0 | I20: =+'A7'!I56 -> 0 | J20: =+'A7'!J56 -> 0 | K20: =+'A7'!K56 -> 0 | L20: =+'A7'!L56 -> 0 | M20: =+'A7'!M56 -> 0 | N20: =+'A7'!N56 -> 0 | O20: =+'A7'!O56 -> 0 | P20: =+'A7'!P56 -> 0 | Q20: =+'A7'!Q56 -> 0
A21: 12 | B21: minus Capital Allowances (18%, 8% pools and 100% first year) | C21: £m | D21: C | H21: ='P6'!H34+'P6'!H39+'P6'!H46 -> -111.3034993 | I21: ='P6'!I34+'P6'!I39+'P6'!I46 -> -109.2739357 | J21: ='P6'!J34+'P6'!J39+'P6'!J46 -> -108.3985994 | K21: ='P6'!K34+'P6'!K39+'P6'!K46 -> -107.8656343 | L21: ='P6'!L34+'P6'!L39+'P6'!L46 -> -107.6259375 | M21: ='P6'!M34+'P6'!M39+'P6'!M46 -> -107.7163673 | N21: ='P6'!N34+'P6'!N39+'P6'!N46 -> -108.0045842 | O21: ='P6'!O34+'P6'!O39+'P6'!O46 -> -108.7673908 | P21: ='P6'!P34+'P6'!P39+'P6'!P46 -> -147.6254274 | Q21: ='P6'!Q34+'P6'!Q39+'P6'!Q46 -> -182.2439092
A22: 13 | B22: minus Industrial Buildings Allowance | C22: £m | D22: B | H22: ='P6'!H53 -> 0 | I22: ='P6'!I53 -> 0 | J22: ='P6'!J53 -> 0 | K22: ='P6'!K53 -> 0 | L22: ='P6'!L53 -> 0 | M22: ='P6'!M53 -> 0 | N22: ='P6'!N53 -> 0 | O22: ='P6'!O53 -> 0 | P22: ='P6'!P53 -> 0 | Q22: ='P6'!Q53 -> 0
A23: 14 | B23: minus Profit/income not taxed as trading income | C23: £m | D23: B | H23: =-'A7'!H55 -> 0 | I23: =-'A7'!I55 -> 0 | J23: =-'A7'!J55 -> 0 | K23: =-'A7'!K55 -> 0 | L23: =-'A7'!L55 -> 0 | M23: =-'A7'!M55 -> 0 | N23: =-'A7'!N55 -> 0 | O23: =-'A7'!O55 -> 0 | P23: =-'A7'!P55 -> 0 | Q23: =-'A7'!Q55 -> 0
A24: 15 | B24: minus gain on sale of assets | C24: £m | D24: B | H24: =-'O1'!H15 -> -0.25490334 | I24: =-'O1'!I15 -> -0.055 | J24: =-'O1'!J15 -> 0 | K24: =-'O1'!K15 -> 0 | L24: =-'O1'!L15 -> 0 | M24: =-'O1'!M15 -> 0 | N24: =-'O1'!N15 -> 0 | O24: =-'O1'!O15 -> 0 | P24: =-'O1'!P15 -> 0 | Q24: =-'O1'!Q15 -> 0
A25: 16 | B25: plus exceptional income less exceptional expense | C25: £m | D25: B | H25: =+'O1'!H24 -> 0 | I25: =+'O1'!I24 -> 0 | J25: =+'O1'!J24 -> 0 | K25: =+'O1'!K24 -> 0 | L25: =+'O1'!L24 -> 0 | M25: =+'O1'!M24 -> 0 | N25: =+'O1'!N24 -> 0 | O25: =+'O1'!O24 -> 0 | P25: =+'O1'!P24 -> 0 | Q25: =+'O1'!Q24 -> 0
A26: 17 | B26: plus Grants and Contributions taxable on receipt | C26: £m | D26: B | H26: =+'P6'!H30 -> 0 | I26: =+'P6'!I30 -> 0 | J26: =+'P6'!J30 -> 0 | K26: =+'P6'!K30 -> 0 | L26: =+'P6'!L30 -> 0 | M26: =+'P6'!M30 -> 0 | N26: =+'P6'!N30 -> 0 | O26: =+'P6'!O30 -> 0 | P26: =+'P6'!P30 -> 0 | Q26: =+'P6'!Q30 -> 0
A27: 18 | B27: Trading profit/loss for tax | C27: £m | D27: C | H27: =SUM(H8:H26) -> 13.82664857 | I27: =SUM(I8:I26) -> 6.093381437 | J27: -381.7749919 | K27: -405.5919234 | L27: -427.8181358 | M27: -452.2396444 | N27: -479.9786122 | O27: -509.1667033 | P27: -591.5762602 | Q27: -679.2347236
A29: * The initial trading profit might differ if Revenue Variance Cell E10 is 0 or 1. However, for the former there is a further adjustment in line 48 which will match both calculations. This has been done to avoid the use of circular references.
B32: Losses | C32: Units | D32: Field Type | E32: Additional Info | F32: =+Baseminus1 -> 2017-18 | G32: =+Baseyear -> 2018-19 | H32: =+Baseplus1 -> 2019-20 | I32: =+Baseplus2 -> 2020-21 | J32: =+Baseplus3 -> 2021-22 | K32: =+Baseplus4 -> 2022-23 | L32: =+Baseplus5 -> 2023-24 | M32: =+Baseplus6 -> 2024-25 | N32: =+Baseplus7 -> 2025-26 | O32: =+Baseplus8 -> 2026-27 | P32: =+Baseplus9 -> 2027-28 | Q32: =+Baseplus10 -> 2028-29
A33: 19 | B33: Losses brought forward | C33: £m | D33: B | H33: =+'A7'!H43 -> 214.6382373 | I33: =+H36 -> 200.8115888 | J33: =+I36 -> 194.7182073 | K33: 576.4931992 | L33: 982.0851226 | M33: 1409.903258 | N33: 1862.142903 | O33: 2342.121515 | P33: 2851.288218 | Q33: 3442.864479
A34: 20 | B34: Losses used in the period | C34: £m | D34: C | H34: =IF(H27<0,0,IF(H27>H33,-H33,-H27)) -> -13.82664857 | I34: =IF(I27<0,0,IF(I27>I33,-I33,-I27)) -> -6.093381437 | J34: 0 | K34: 0 | L34: 0 | M34: 0 | N34: 0 | O34: 0 | P34: 0 | Q34: 0
A35: 21 | B35: Additions | C35: £m | D35: C | H35: =IF(H27<0,-H27,0) -> 0 | I35: =IF(I27<0,-I27,0) -> 0 | J35: 381.7749919 | K35: 405.5919234 | L35: 427.8181358 | M35: 452.2396444 | N35: 479.9786122 | O35: 509.1667033 | P35: 591.5762602 | Q35: 679.2347236
A36: 22 | B36: Losses carried forward | C36: £m | D36: C | H36: =SUM(H33:H35) -> 200.8115888 | I36: =SUM(I33:I35) -> 194.7182073 | J36: 576.4931992 | K36: 982.0851226 | L36: 1409.903258 | M36: 1862.142903 | N36: 2342.121515 | O36: 2851.288218 | P36: 3442.864479 | Q36: 4122.099202
B38: Corporation tax calculation (if trading profit) | C38: Units | D38: Field Type | E38: Additional Info | F38: =+Baseminus1 -> 2017-18 | G38: =+Baseyear -> 2018-19 | H38: =+Baseplus1 -> 2019-20 | I38: =+Baseplus2 -> 2020-21 | J38: =+Baseplus3 -> 2021-22 | K38: =+Baseplus4 -> 2022-23 | L38: =+Baseplus5 -> 2023-24 | M38: =+Baseplus6 -> 2024-25 | N38: =+Baseplus7 -> 2025-26 | O38: =+Baseplus8 -> 2026-27 | P38: =+Baseplus9 -> 2027-28 | Q38: =+Baseplus10 -> 2028-29
A39: 23 | B39: Adjusted trading profit | C39: £m | D39: C | H39: =+IF(H27<0,0,H27+H34) -> 0 | I39: =+IF(I27<0,0,I27+I34) -> 0 | J39: 0 | K39: 0 | L39: 0 | M39: 0 | N39: 0 | O39: 0 | P39: 0 | Q39: 0
A40: 24 | B40: Corporation Tax paid | C40: £m | D40: C | H40: =IF(H39<0,0,(H39*H5)) -> 0 | I40: =IF(I39<0,0,(I39*I5)) -> 0 | J40: 0 | K40: 0 | L40: 0 | M40: 0 | N40: 0 | O40: 0 | P40: 0 | Q40: 0
B42: Adjustments due to circularity | C42: Units | D42: Field Type | E42: Additional Info | F42: =+Baseminus1 -> 2017-18 | G42: =+Baseyear -> 2018-19 | H42: =+Baseplus1 -> 2019-20 | I42: =+Baseplus2 -> 2020-21 | J42: =+Baseplus3 -> 2021-22 | K42: =+Baseplus4 -> 2022-23 | L42: =+Baseplus5 -> 2023-24 | M42: =+Baseplus6 -> 2024-25 | N42: =+Baseplus7 -> 2025-26 | O42: =+Baseplus8 -> 2026-27 | P42: =+Baseplus9 -> 2027-28 | Q42: =+Baseplus10 -> 2028-29
A43: 25 | B43: Adjustments in Tax due to circularity | C43: £m | D43: B | J43: =+J113 -> 0 | K43: =+K113 -> 0 | L43: 0 | M43: 0 | N43: 0 | O43: 0 | P43: 0 | Q43: 0
A44: 26 | B44: Corporation tax paid | C44: £m | D44: C | H44: =+H40+H43 -> 0 | I44: =+I40+I43 -> 0 | J44: 0 | K44: 0 | L44: 0 | M44: 0 | N44: 0 | O44: 0 | P44: 0 | Q44: 0
B47: Change in Accelerated Capital Allowances | C47: Units | D47: Field Type | E47: Additional Info | F47: =+Baseminus1 -> 2017-18 | G47: =+Baseyear -> 2018-19 | H47: =+Baseplus1 -> 2019-20 | I47: =+Baseplus2 -> 2020-21 | J47: =+Baseplus3 -> 2021-22 | K47: =+Baseplus4 -> 2022-23 | L47: =+Baseplus5 -> 2023-24 | M47: =+Baseplus6 -> 2024-25 | N47: =+Baseplus7 -> 2025-26 | O47: =+Baseplus8 -> 2026-27 | P47: =+Baseplus9 -> 2027-28 | Q47: =+Baseplus10 -> 2028-29
A48: 27 | B48: Total capital allowances utilised | C48: £m | D48: C | H48: =-H21-H22 -> 111.3034993 | I48: =-I21-I22 -> 109.2739357 | J48: 108.3985994 | K48: 107.8656343 | L48: 107.6259375 | M48: 107.7163673 | N48: 108.0045842 | O48: 108.7673908 | P48: 147.6254274 | Q48: 182.2439092
A49: 28 | B49: plus Expenditure allowed as a trading profit deduction | C49: £m | D49: B | H49: =-H13 -> 0 | I49: =-I13 -> 0 | J49: 0 | K49: 0 | L49: 0 | M49: 0 | N49: 0 | O49: 0 | P49: 0 | Q49: 0
A50: 29 | B50: minus IRC | C50: £m | D50: B | H50: =-H10 -> -33.70195112 | I50: =-I10 -> -32.78304754 | J50: -25.6358328 | K50: -26.34840641 | L50: -27.08078672 | M50: -27.83352426 | N50: -28.6071849 | O50: -29.40235022 | P50: -108.9912221 | Q50: -112.6829533
A51: 30 | B51: minus Historic Cost depreciation | C51: £m | D51: B | H51: =-H9 -> -45.35673743 | I51: =-I9 -> -44.76833728 | J51: -48.98643221 | K51: -50.1410335 | L51: -53.00980408 | M51: -55.70807678 | N51: -59.75256428 | O51: -64.15815475 | P51: -75.44152762 | Q51: -93.03010669
A52: 31 | B52: minus amortisation of PPP | C52: £m | D52: B | H52: =-H11 -> -3.2344185 | I52: =-I11 -> -3.23077713 | J52: -3.22007257 | K52: -3.21548763 | L52: -3.20861435 | M52: -3.20164339 | N52: -3.19495596 | O52: -3.19155568 | P52: -3.19155568 | Q52: -3.19155568
A53: 32 | B53: plus amortisation of grants | C53: £m | D53: B | H53: =-H12 -> 0.8243980913 | I53: =-I12 -> 0.8618472688 | J53: 0.8945312621 | K53: 0.9053366751 | L53: 0.9300742056 | M53: 0.9397036478 | N53: 0.96154642 | O53: 0.9795707238 | P53: 1.026952827 | Q53: 1.072624904
A54: 33 | B54: minus revenue expenditure not allowed for tax (excluding permanently disallowed expenditure) | C54: £m | D54: C | H54: =-(+'A7'!H53-'A7'!H54) -> 0 | I54: =-(+'A7'!I53-'A7'!I54) -> 0 | J54: =-(+'A7'!J53-'A7'!J54) -> 0 | K54: =-(+'A7'!K53-'A7'!K54) -> 0 | L54: =-(+'A7'!L53-'A7'!L54) -> 0 | M54: =-(+'A7'!M53-'A7'!M54) -> 0 | N54: =-(+'A7'!N53-'A7'!N54) -> 0 | O54: =-(+'A7'!O53-'A7'!O54) -> 0 | P54: =-(+'A7'!P53-'A7'!P54) -> 0 | Q54: =-(+'A7'!Q53-'A7'!Q54) -> 0
A55: 34 | B55: minus Grants and contributions taxable on receipt | C55: £m | D55: B | H55: =-H26 -> 0 | I55: =-I26 -> 0 | J55: 0 | K55: 0 | L55: 0 | M55: 0 | N55: 0 | O55: 0 | P55: 0 | Q55: 0
A56: 35 | B56: plus depreciation allowed as a deduction | C56: £m | D56: B | H56: =-H17 -> 6.943513729 | I56: =-I17 -> 7.558150449 | J56: 8.110899043 | K56: 8.678675341 | L56: 9.262338235 | M56: 9.862062095 | N56: 10.47876319 | O56: 11.11262585 | P56: 12.55193829 | Q56: 14.03021518
A57: 36 | B57: Change in accelerated capital allowances | C57: £m | D57: C | H57: =SUM(H48:H56) -> 36.7783041 | I57: =SUM(I48:I56) -> 36.9117715 | J57: 39.5616921 | K57: 37.74471882 | L57: 34.51914475 | M57: 31.77488863 | N57: 27.89018862 | O57: 24.10752675 | P57: -26.41998685 | Q57: -11.55786637
B59: Change in deferred tax items | C59: Units | D59: Field Type | E59: Additional Info | F59: =+Baseminus1 -> 2017-18 | G59: =+Baseyear -> 2018-19 | H59: =+Baseplus1 -> 2019-20 | I59: =+Baseplus2 -> 2020-21 | J59: =+Baseplus3 -> 2021-22 | K59: =+Baseplus4 -> 2022-23 | L59: =+Baseplus5 -> 2023-24 | M59: =+Baseplus6 -> 2024-25 | N59: =+Baseplus7 -> 2025-26 | O59: =+Baseplus8 -> 2026-27 | P59: =+Baseplus9 -> 2027-28 | Q59: =+Baseplus10 -> 2028-29
A60: 37 | B60: Change in accelerated capital allowances | C60: £m | D60: B | H60: =+H57 -> 36.7783041 | I60: =+I57 -> 36.9117715 | J60: 39.5616921 | K60: 37.74471882 | L60: 34.51914475 | M60: 31.77488863 | N60: 27.89018862 | O60: 24.10752675 | P60: -26.41998685 | Q60: -11.55786637
A61: 38 | B61: minus change in general provision | C61: £m | D61: B | H61: =-H20 -> 0 | I61: =-I20 -> 0 | J61: 0 | K61: 0 | L61: 0 | M61: 0 | N61: 0 | O61: 0 | P61: 0 | Q61: 0
A62: 39 | B62: minus movement in losses carried forward | C62: £m | D62: C | H62: =-(H36-H33) -> 13.82664857 | I62: =-(I36-I33) -> 6.093381437 | J62: -381.7749919 | K62: -405.5919234 | L62: -427.8181358 | M62: -452.2396444 | N62: -479.9786122 | O62: -509.1667033 | P62: -591.5762602 | Q62: -679.2347236
A63: 40 | B63: Deferred tax items | C63: £m | D63: C | H63: =SUM(H60:H62) -> 50.60495267 | I63: =SUM(I60:I62) -> 43.00515294 | J63: =SUM(J60:J62) -> -342.2132998 | K63: =SUM(K60:K62) -> -367.8472045 | L63: -393.2989911 | M63: -420.4647558 | N63: -452.0884236 | O63: -485.0591765 | P63: -617.9962471 | Q63: -690.7925899
B65: Deferred tax change | C65: Units | D65: Field Type | E65: Additional Info | F65: =+Baseminus1 -> 2017-18 | G65: =+Baseyear -> 2018-19 | H65: =+Baseplus1 -> 2019-20 | I65: =+Baseplus2 -> 2020-21 | J65: =+Baseplus3 -> 2021-22 | K65: =+Baseplus4 -> 2022-23 | L65: =+Baseplus5 -> 2023-24 | M65: =+Baseplus6 -> 2024-25 | N65: =+Baseplus7 -> 2025-26 | O65: =+Baseplus8 -> 2026-27 | P65: =+Baseplus9 -> 2027-28 | Q65: =+Baseplus10 -> 2028-29
